{"text_format":"1","workbook":"xlsx","n_sheets":3,"sheets":["DIMYCOMP","COAI 2022","PAS 2022"],"not_rendered":{"charts":0,"images":1,"macros":1,"external_links":1,"defined_names":19,"comments":2,"pivot_tables":0},"unopened":[],"bounds":{"document_bytes":16777216,"sheet_cells":100000,"rows_first":2000,"rows_last":500,"rows_between":2000,"halvings":0,"cell_chars":16384,"cell_head_chars":4096},"cells_cut":0,"cells_raw":0,"read":"whole","date_system":"1900"}

{"sheet":"DIMYCOMP","index":0,"n_rows":42,"n_cols":18,"rows_kept":42,"cut":false,"hidden":true,"merged":[[0,12,0,13]]}
[null,1,2,3,4,5,6,7,8,9,10,null,"FUENTES DE RECURSOS"]
[null,"DIMENSIÓN_DE_SALUD_AMBIENTAL","DIMENSIÓN_DE_VIDA_SALUDABLE_Y_CONDICIONES_NO_TRANSMISIBLES","DIMENSIÓN_CONVIVENCIA_SOCIAL_Y_SALUD_MENTAL","DIMENSIÓN_SEGURIDAD_ALIMENTARIA_Y_NUTRICIONAL","DIMENSIÓN_SEXUALIDAD_DERECHOS_SEXUALES_Y_REPRODUCTIVOS","DIMENSIÓN_VIDA_SALUDABLE_Y_ENFERMEDADES_TRANSMISIBLES","DIMENSIÓN_SALUD_PÚBLICA_EN_EMERGENCIAS_Y_DESASTRES","DIMENSIÓN_SALUD_Y_ÁMBITO_LABORAL","DIMENSIÓN_TRANSVERSAL_GESTIÓN_DIFERENCIAL_DE_POBLACIONES_VULNERABLES","DIMENSIÓN_FORTALECIMIENTO_DE_LA_AUTORIDAD_SANITARIA_PARA_LA_GESTIÓN_EN_SALUD",null,1,"Recursos_Provenientes_del_Sistema_General_de_Participaciones_SGP",null,"A.2.1","RÉGIMEN SUBSIDIADO ","A.2.1 RÉGIMEN SUBSIDIADO "]
[null,"HABITAT_SALUDABLE","MODOS_CONDICIONES_Y__ESTILOS_DE_VIDA_SALUDABLES","PROMOCION_DE_LA_SALUD_MENTAL_Y_LA_CONVIVENCIA","DISPONIBILIDAD_Y_ACCESO_A_LOS_ALIMENTOS","PROMOCION_DE_LOS_DERECHOS_SEXUALES_Y_REPRODUCTIVOS_Y_EQUIDAD_DE_GENERO","ENFERMEDADES_EMERGENTES_RE_EMERGENTES_Y_DESATENDIDAS","GESTION_INTEGRAL_DE_RIESGOS_EN_EMERGENCIAS_Y_DESASTRES","SEGURIDAD_Y_SALUD_EN_EL_TRABAJO","DESARROLLO_INTEGRAL_DE_LAS_NIÑAS_NIÑOS_Y_ADOLESCENTES","FORTALECIMIENTO_DE_LA_AUTORIDAD_SANITARIA",null,2,"Transferencias_en_salud_del_Ministerio_de_Salud_y_Protección_Social_MSPS",null,"A.2.2","SALUD PÚBLICA   ","A.2.2 SALUD PÚBLICA   "]
[null,"SITUACIONES_EN_SALUD_RELACIONADAS_CON_CONDICIONES_AMBIENTALES","CONDICIONES_CRONICAS_PREVALENTES","PREVENCION_Y_ATENCION_INTEGRAL_A_PROBLEMAS_Y_TRASTORNOS_MENTALES_Y_A_DIFERENTES_FORMAS_DE_VIOLENCIA","CONSUMO_Y_APROVECHAMIENTO_BIOLOGICO_DE_ALIMENTOS","PREVENCION_Y_ATENCION_INTEGRAL_EN_SALUD_SEXUAL_Y_REPRODUCTIVA_DESDE_UN_ENFOQUE_DE_DERECHOS","ENFERMEDADES_INMUNOPREVENIBLES","RESPUESTA_EN_SALUD_ANTE_SITUACIONES_DE_EMERGENCIAS_Y_DESASTRES","SITUACIONES_PREVALENTES_DE_ORIGEN_LABORAL","ENVEJECIMIENTO_Y_VEJEZ",null,null,3,"Rentas_cedidas_Departamentos",null,"A.2.3","PRESTACION DE SERVICIOS A LA POBLACION POBRE EN LO NO CUBIERTO CON SUBSIDIOS A LA DEMANDA ","A.2.3 PRESTACION DE SERVICIOS A LA POBLACION POBRE EN LO NO CUBIERTO CON SUBSIDIOS A LA DEMANDA "]
[null,null,null,null,"INOCUIDAD_Y_CALIDAD_DE_LOS_ALIMENTOS",null,"CONDICIONES_Y_SITUACIONES_ENDEMO_EPIDEMICAS",null,null,"SALUD_Y_GENERO",null,null,4,"Recursos_del_Esfuerzo_Propio_Territorial_Recursos_propios",null,"A.2.4","OTROS GASTOS EN SALUD","A.2.4 OTROS GASTOS EN SALUD"]
[null,null,null,null,null,null,null,null,null,"SALUD_EN_POBLACIONES_ETNICAS",null,null,5,"Recursos_de_las_Cajas_de_Compensación_Familiar_Municipios"]
[null,null,null,null,null,null,null,null,null,"DISCAPACIDAD",null,null,6,"FOSYGA_Porcentaje_destinado_a_Entidad_Territorial"]
[null,null,null,null,null,null,null,null,null,"VICTIMAS_DEL_CONFLICTO_ARMADO_INTERNO",null,null,7,"Otros_Recursos_departamentales_y_o_distritales"]
[]
[]
[]
[]
[]
[]
[null,null,null,null,null,null,null,null,null,null,"PIC - Insumos","PIC - Insumos"]
[null,"PROMOCIÓN_DE_LA_SALUD","PIC","Biológico",null,"Años",null,null,null,null,"PIC - Rehabilitación basada en comunidad","PIC - Rehabilitación basada en comunidad"]
[null,"GESTIÓN_DE_RIESGO_EN_SALUD","AGENDA_TRANSECTORIAL","Canalización",null,"Avpp",null,null,null,null,"PIC - Prevención y control de vectores","PIC - Prevención y control de vectores"]
[null,"GESTIÓN_DE_LA_SALUD_PÚBLICA","INDIVIDUAL_POS","Caracterización social y ambiental",null,"Avisas",null,null,null,null,"PIC - Conformación y fortalecimiento de redes sociales, comunitarias, sectoriales e intersectoriales","PIC - Conformación y fortalecimiento de redes sociales, comunitarias, sectoriales e intersectoriales"]
[null,null,"COLECTIVO_PIC","Conformación y fortalecimiento de redes sociales, comunitarias, sectoriales e intersectoriales",null,"Casos",null,null,null,null,"PIC - Zonas de orientación y centros de escucha","PIC - Zonas de orientación y centros de escucha"]
[null,null,"GSP","Educación y comunicación para la salud",null,"Documentos",null,null,null,null,"PIC - Información en salud","PIC - Información en salud"]
[null,null,null,"Información en salud",null,"Habitantes",null,null,null,null,"PIC - Educación y comunicación en salud","PIC - Educación y comunicación en salud"]
[null,null,null,"Insumos",null,"Incidencia",null,null,null,null,"PIC - Intervención de la población trabajadora informal","PIC - Intervención de la población trabajadora informal"]
[null,null,null,"Intervención de la población trabajadora informal",null,"Indice",null,null,null,null,"PIC - Canalización","PIC - Canalización"]
[null,null,null,"Jornadas de salud",null,"Mediana",null,null,null,null,"PIC - Caracterización social y ambiental","PIC - Caracterización social y ambiental"]
[null,null,null,"Medicamentos",null,"Meses",null,null,null,null,"PIC - Tamizaje","PIC - Tamizaje"]
[null,null,null,"Prevención y control de vectores",null,"Número",null,null,null,null,"PIC - Jornadas de salud","PIC - Jornadas de salud"]
[null,null,null,"Rehabilitación basada en comunidad",null,"Personas",null,null,null,null,"PIC - Vacunación antirrábica","PIC - Vacunación antirrábica"]
[null,null,null,"Tamizaje",null,"Porcentaje",null,null,null,null,"PIC - Biológico","PIC - Biológico"]
[null,null,null,"Vacunación antirrábica",null,"Prevalencia",null,null,null,null,"PIC - Medicamentos","PIC - Medicamentos"]
[null,null,null,"Zonas de orientación y centros de escucha",null,"Probabilidad",null,null,null,null,"GSP - Coordinación Intersectorial"]
[null,null,null,null,null,"Promedio",null,null,null,null,"GSP - Desarrollo de capacidades"]
[null,null,null,null,null,"Proporción",null,null,null,null,"GSP - Gestión administrativa y financiera"]
[null,null,null,null,null,"Razón",null,null,null,null,"GSP - Gestión del Aseguramiento"]
[null,null,null,null,null,"Tasa",null,null,null,null,"GSP -  Gestión del conocimiento"]
[null,null,null,null,null,null,null,null,null,null,"GSP - Gestión de Insumos de interés en Salud Pública"]
[null,null,null,null,null,null,null,null,null,null,"GSP -  Gestión del talento humano"]
[null,null,null,null,null,null,null,null,null,null,"GSP - Gestión de las Intervenciones colectivas"]
[null,null,null,null,null,null,null,null,null,null,"GSP - Gestión de la prestación de servicios individuales"]
[null,null,null,null,null,null,null,null,null,null,"GSP - Participación Social"]
[null,null,null,null,null,null,null,null,null,null,"GSP - Planeación Integral en Salud "]
[null,null,null,null,null,null,null,null,null,null,"GSP -  Vigilancia en Salud Pública"]
[null,null,null,null,null,null,null,null,null,null,"GSP - Inspección, Vigilancia y Control "]

{"sheet":"COAI 2022","index":1,"n_rows":67,"n_cols":12,"rows_kept":67,"cut":false,"hidden":false,"merged":[[0,1,0,10],[1,1,1,10]]}
[null,"                                                         DOCUMENTO DE TRABAJO - 2023 MUNICIPIO DE CALDAS"]
[null,"TABLA 13: CONSOLIDACIÓN DEL COMPONENTE OPERATIVO ANUAL DE INVERSIONES EN SALUD - COAI \nVer documento de Lineamientos Metodologicos, Tecnicos y Operativos - Pag. 235"]
[null,1,2,3,4,5,6,7,8,9,10]
[null,"Dimensión","Código Programa","Programa ","Componente","Código subprograma","Subprograma","Código proyecto (BPI)","Proyecto","Apropiación Anual \n(Miles de Pesos)","Fuente de Recursos"]
[null,"DIMENSIÓN_DE_SALUD_AMBIENTAL","NA","Salud Ambiental","SITUACIONES_EN_SALUD_RELACIONADAS_CON_CONDICIONES_AMBIENTALES",2020051290038,"Fortalecimiento de los programas y procesos de la Salud Pública y el Plan Decena de Salud en el Municipio  de Caldas.",2020051290038,"Fortalecimiento de los programas y procesos de la Salud Pública y el Plan Decena de Salud en el Municipio  de Caldas.",10000000," Recursos Provenientes del Sistema General de Participaciones (SGP)"]
[null,"DIMENSIÓN_DE_SALUD_AMBIENTAL","NA","Salud Ambiental","SITUACIONES_EN_SALUD_RELACIONADAS_CON_CONDICIONES_AMBIENTALES",2020051290038,"Fortalecimiento de los programas y procesos de la Salud Pública y el Plan Decena de Salud en el Municipio  de Caldas.",2020051290038,"Fortalecimiento de los programas y procesos de la Salud Pública y el Plan Decena de Salud en el Municipio  de Caldas.",21252840,"Gestin en salud pública Recursos propios  y Recursos Provenientes del Sistema General de Participaciones (SGP)"]
[null,"DIMENSIÓN_DE_SALUD_AMBIENTAL","NA","Salud Ambiental","SITUACIONES_EN_SALUD_RELACIONADAS_CON_CONDICIONES_AMBIENTALES",2020051290038,"Fortalecimiento de los programas y procesos de la Salud Pública y el Plan Decena de Salud en el Municipio  de Caldas.",2020051290038,"Fortalecimiento de los programas y procesos de la Salud Pública y el Plan Decena de Salud en el Municipio  de Caldas.",45012210," Recursos Provenientes del Sistema General de Participaciones (SGP)"]
[null,"DIMENSIÓN_DE_SALUD_AMBIENTAL","NA","Salud Ambiental","SITUACIONES_EN_SALUD_RELACIONADAS_CON_CONDICIONES_AMBIENTALES",2020051290038,"Fortalecimiento de los programas y procesos de la Salud Pública y el Plan Decena de Salud en el Municipio  de Caldas.",2020051290038,"Fortalecimiento de los programas y procesos de la Salud Pública y el Plan Decena de Salud en el Municipio  de Caldas.",15012210," Recursos Provenientes del Sistema General de Participaciones (SGP)"]
[null,"DIMENSIÓN_DE_SALUD_AMBIENTAL","NA","Salud Ambiental","HABITAT_SALUDABLE",2020051290038,"Fortalecimiento de los programas y procesos de la Salud Pública y el Plan Decena de Salud en el Municipio  de Caldas.",2020051290038,"Fortalecimiento de los programas y procesos de la Salud Pública y el Plan Decena de Salud en el Municipio  de Caldas.",18876335,"No aplica"]
[null,"DIMENSIÓN_DE_SALUD_AMBIENTAL","NA","Salud Ambiental","SITUACIONES_EN_SALUD_RELACIONADAS_CON_CONDICIONES_AMBIENTALES",2020051290038,"Fortalecimiento de los programas y procesos de la Salud Pública y el Plan Decena de Salud en el Municipio  de Caldas.",2020051290038,"Fortalecimiento de los programas y procesos de la Salud Pública y el Plan Decena de Salud en el Municipio  de Caldas.",70113427," Recursos Provenientes del Sistema General de Participaciones (SGP) y Recursos propios gestion salud  ublica"]
[null,"DIMENSIÓN_DE_SALUD_AMBIENTAL","NA","Salud Ambiental","SITUACIONES_EN_SALUD_RELACIONADAS_CON_CONDICIONES_AMBIENTALES",2020051290038,"Fortalecimiento de los programas y procesos de la Salud Pública y el Plan Decena de Salud en el Municipio  de Caldas.",2020051290038,"Fortalecimiento de los programas y procesos de la Salud Pública y el Plan Decena de Salud en el Municipio  de Caldas.",70113427," Recursos Provenientes del Sistema General de Participaciones (SGP) y Recursos propios gestion salud  ublica"]
[null,"DIMENSIÓN_DE_VIDA_SALUDABLE_Y_CONDICIONES_NO_TRANSMISIBLES","NA","Vida saludable y condiciones no transmisibles","MODOS_CONDICIONES_Y__ESTILOS_DE_VIDA_SALUDABLES",2020051290038,"Fortalecimiento de los programas y procesos de la Salud Pública y el Plan Decena de Salud en el Municipio  de Caldas.",2020051290038,"Fortalecimiento de los programas y procesos de la Salud Pública y el Plan Decena de Salud en el Municipio  de Caldas.",20000000,"Recursos Provenientes del Sistema General de Participaciones (SGP)"]
[null,"DIMENSIÓN_DE_VIDA_SALUDABLE_Y_CONDICIONES_NO_TRANSMISIBLES","NA","Vida saludable y condiciones no transmisibles","CONDICIONES_CRONICAS_PREVALENTES",2020051290038,"Fortalecimiento de los programas y procesos de la Salud Pública y el Plan Decena de Salud en el Municipio  de Caldas.",2020051290038,"Fortalecimiento de los programas y procesos de la Salud Pública y el Plan Decena de Salud en el Municipio  de Caldas.",20000000,"No aplica"]
[null,"DIMENSIÓN_DE_VIDA_SALUDABLE_Y_CONDICIONES_NO_TRANSMISIBLES","NA","Vida saludable y condiciones no transmisibles","MODOS_CONDICIONES_Y__ESTILOS_DE_VIDA_SALUDABLES",2020051290038,"Fortalecimiento de los programas y procesos de la Salud Pública y el Plan Decena de Salud en el Municipio  de Caldas.",2020051290038,"Fortalecimiento de los programas y procesos de la Salud Pública y el Plan Decena de Salud en el Municipio  de Caldas.",20000000]
[null,"DIMENSIÓN_CONVIVENCIA_SOCIAL_Y_SALUD_MENTAL","NA","Salud Mental","PROMOCION_DE_LA_SALUD_MENTAL_Y_LA_CONVIVENCIA",2020051290038,"Fortalecimiento de los programas y procesos de la Salud Pública y el Plan Decena de Salud en el Municipio  de Caldas.",2020051290038,"Fortalecimiento de los programas y procesos de la Salud Pública y el Plan Decena de Salud en el Municipio  de Caldas.",40000000,"Recursos Provenientes del Sistema General de Participaciones (SGP)"]
[null,"DIMENSIÓN_CONVIVENCIA_SOCIAL_Y_SALUD_MENTAL","NA","Salud Mental","PROMOCION_DE_LA_SALUD_MENTAL_Y_LA_CONVIVENCIA",2020051290038,"Fortalecimiento de los programas y procesos de la Salud Pública y el Plan Decena de Salud en el Municipio  de Caldas.",2020051290038,"Fortalecimiento de los programas y procesos de la Salud Pública y el Plan Decena de Salud en el Municipio  de Caldas.",40000000,"Recursos Provenientes del Sistema General de Participaciones (SGP)"]
[null,"DIMENSIÓN_CONVIVENCIA_SOCIAL_Y_SALUD_MENTAL","NA","Salud Mental","PREVENCION_Y_ATENCION_INTEGRAL_A_PROBLEMAS_Y_TRASTORNOS_MENTALES_Y_A_DIFERENTES_FORMAS_DE_VIOLENCIA",2020051290038,"Fortalecimiento de los programas y procesos de la Salud Pública y el Plan Decena de Salud en el Municipio  de Caldas.",2020051290038,"Fortalecimiento de los programas y procesos de la Salud Pública y el Plan Decena de Salud en el Municipio  de Caldas.",0,"No aplica"]
[null,"DIMENSIÓN_CONVIVENCIA_SOCIAL_Y_SALUD_MENTAL","NA","Salud Mental","PREVENCION_Y_ATENCION_INTEGRAL_A_PROBLEMAS_Y_TRASTORNOS_MENTALES_Y_A_DIFERENTES_FORMAS_DE_VIOLENCIA",2020051290038,"Fortalecimiento de los programas y procesos de la Salud Pública y el Plan Decena de Salud en el Municipio  de Caldas.",2020051290038,"Fortalecimiento de los programas y procesos de la Salud Pública y el Plan Decena de Salud en el Municipio  de Caldas.",0,"No aplica"]
[null,"DIMENSIÓN_CONVIVENCIA_SOCIAL_Y_SALUD_MENTAL","NA","Salud Mental","PREVENCION_Y_ATENCION_INTEGRAL_A_PROBLEMAS_Y_TRASTORNOS_MENTALES_Y_A_DIFERENTES_FORMAS_DE_VIOLENCIA",2020051290038,"Fortalecimiento de los programas y procesos de la Salud Pública y el Plan DecenaL de Salud en el Municipio  de Caldas.",2020051290038,"Fortalecimiento de los programas y procesos de la Salud Pública y el Plan Decena de Salud en el Municipio  de Caldas.",0,"No aplica"]
[null,"DIMENSIÓN_CONVIVENCIA_SOCIAL_Y_SALUD_MENTAL","NA","Salud Mental","PREVENCION_Y_ATENCION_INTEGRAL_A_PROBLEMAS_Y_TRASTORNOS_MENTALES_Y_A_DIFERENTES_FORMAS_DE_VIOLENCIA",2020051290038,"Fortalecimiento de los programas y procesos de la Salud Pública y el Plan Decenal de Salud en el Municipio  de Caldas.",2020051290038,"Fortalecimiento de los programas y procesos de la Salud Pública y el Plan Decena de Salud en el Municipio  de Caldas.",0,"No aplica"]
[null,"DIMENSIÓN_SEGURIDAD_ALIMENTARIA_Y_NUTRICIONAL","NA","Seguridad Alimentaria y Nutricional ","CONSUMO_Y_APROVECHAMIENTO_BIOLOGICO_DE_ALIMENTOS",2020051290038,"Fortalecimiento de los programas y procesos de la Salud Pública y el Plan Decenal de Salud en el Municipio  de Caldas.",2020051290038,"Fortalecimiento de los programas y procesos de la Salud Pública y el Plan Decenal de Salud en el Municipio  de Caldas.",100000000,"Recursos del Esfuerzo Propio Territorial"]
[null,"DIMENSIÓN_SEGURIDAD_ALIMENTARIA_Y_NUTRICIONAL","NA","Seguridad Alimentaria y Nutricional ","CONSUMO_Y_APROVECHAMIENTO_BIOLOGICO_DE_ALIMENTOS",2020051290038,"Fortalecimiento de los programas y procesos de la Salud Pública y el Plan Decenal de Salud en el Municipio  de Caldas.",2020051290038,"Fortalecimiento de los programas y procesos de la Salud Pública y el Plan Decenal de Salud en el Municipio  de Caldas.",8750000,"Recursos Provenientes del Sistema General de Participaciones (SGP)"]
[null,"DIMENSIÓN_SEGURIDAD_ALIMENTARIA_Y_NUTRICIONAL","NA","Seguridad Alimentaria y Nutricional ","CONSUMO_Y_APROVECHAMIENTO_BIOLOGICO_DE_ALIMENTOS",2020051290038,"Fortalecimiento de los programas y procesos de la Salud Pública y el Plan Decenal de Salud en el Municipio  de Caldas.",2020051290038,"Fortalecimiento de los programas y procesos de la Salud Pública y el Plan Decenal de Salud en el Municipio  de Caldas.",8750000]
[null,"DIMENSIÓN_SEGURIDAD_ALIMENTARIA_Y_NUTRICIONAL","NA","Seguridad Alimentaria y Nutricional ","CONSUMO_Y_APROVECHAMIENTO_BIOLOGICO_DE_ALIMENTOS",2020051290038,"Fortalecimiento de los programas y procesos de la Salud Pública y el Plan Decenal de Salud en el Municipio  de Caldas.",2020051290038,"Fortalecimiento de los programas y procesos de la Salud Pública y el Plan Decenal de Salud en el Municipio  de Caldas.",8750000,"Recursos Provenientes del Sistema General de Participaciones (SGP)"]
[null,"DIMENSIÓN_SEGURIDAD_ALIMENTARIA_Y_NUTRICIONAL","NA","Seguridad Alimentaria y Nutricional ","CONSUMO_Y_APROVECHAMIENTO_BIOLOGICO_DE_ALIMENTOS",2020051290038,"Fortalecimiento de los programas y procesos de la Salud Pública y el Plan Decenal de Salud en el Municipio  de Caldas.",2020051290038,"Fortalecimiento de los programas y procesos de la Salud Pública y el Plan Decenal de Salud en el Municipio  de Caldas.",8750000,"Recursos Provenientes del Sistema General de Participaciones (SGP)"]
[null,"DIMENSIÓN_SEXUALIDAD_DERECHOS_SEXUALES_Y_REPRODUCTIVOS","NA","Derechos sexuales y reproductivos","PROMOCION_DE_LOS_DERECHOS_SEXUALES_Y_REPRODUCTIVOS_Y_EQUIDAD_DE_GENERO",2020051290038,"Fortalecimiento de la salud pública en el Municipio de Caldas",2020051290038,"Fortalecimiento de la salud pública en el Municipio de Caldas",15000000,"Recursos Provenientes del Sistema General de Participaciones (SGP)"]
[null,"DIMENSIÓN_SEXUALIDAD_DERECHOS_SEXUALES_Y_REPRODUCTIVOS","NA","Derechos sexuales y reproductivos","PREVENCION_Y_ATENCION_INTEGRAL_EN_SALUD_SEXUAL_Y_REPRODUCTIVA_DESDE_UN_ENFOQUE_DE_DERECHOS",2020051290038,"Fortalecimiento de los programas y procesos de la Salud Pública y el Plan Decenal de Salud en el Municipio  de Caldas.",2020051290038,"Fortalecimiento de los programas y procesos de la Salud Pública y el Plan Decenal de Salud en el Municipio  de Caldas.",12500000,"Recursos Provenientes del Sistema General de Participaciones (SGP)"]
[null,"DIMENSIÓN_SEXUALIDAD_DERECHOS_SEXUALES_Y_REPRODUCTIVOS","NA","Derechos sexuales y reproductivos","PROMOCION_DE_LOS_DERECHOS_SEXUALES_Y_REPRODUCTIVOS_Y_EQUIDAD_DE_GENERO",2020051290038,"Fortalecimiento de los programas y procesos de la Salud Pública y el Plan Decenal de Salud en el Municipio  de Caldas.",2020051290038,"Fortalecimiento de los programas y procesos de la Salud Pública y el Plan Decenal de Salud en el Municipio  de Caldas.",12500000,"Recursos Provenientes del Sistema General de Participaciones (SGP)","Fortalecimiento de la salud pública en el Municipio de Caldas"]
[null,"DIMENSIÓN_VIDA_SALUDABLE_Y_ENFERMEDADES_TRANSMISIBLES","NA","Vida Saludable y Enfermedades Transmisibles ","ENFERMEDADES_INMUNOPREVENIBLES",2020051290038,"Fortalecimiento de los programas y procesos de la Salud Pública y el Plan Decenal de Salud en el Municipio  de Caldas.",2020051290038,"Fortalecimiento de los programas y procesos de la Salud Pública y el Plan Decenal de Salud en el Municipio  de Caldas.",16000000,"Recursos Provenientes del Sistema General de Participaciones (SGP)","Fortalecimiento de los programas y procesos de la Salud Pública y el Plan Decenal de Salud en el Municipio  de Caldas."]
[null,"DIMENSIÓN_VIDA_SALUDABLE_Y_ENFERMEDADES_TRANSMISIBLES","NA","Vida Saludable y Enfermedades Transmisibles ","ENFERMEDADES_INMUNOPREVENIBLES",2020051290038,"Fortalecimiento de los programas y procesos de la Salud Pública y el Plan Decenal de Salud en el Municipio  de Caldas.",2020051290038,"Fortalecimiento de los programas y procesos de la Salud Pública y el Plan Decenal de Salud en el Municipio  de Caldas.",8500000,"Recursos Provenientes del Sistema General de Participaciones (SGP)","Fortalecimiento de los programas y procesos de la Salud Pública y el Plan Decenal de Salud en el Municipio  de Caldas."]
[null,"DIMENSIÓN_VIDA_SALUDABLE_Y_ENFERMEDADES_TRANSMISIBLES","NA","Vida Saludable y Enfermedades transmisibles","ENFERMEDADES_INMUNOPREVENIBLES",2020051290038,"Fortalecimiento de los programas y procesos de la Salud Pública y el Plan Decenal de Salud en el Municipio  de Caldas.",2020051290038,"Fortalecimiento de los programas y procesos de la Salud Pública y el Plan Decenal de Salud en el Municipio  de Caldas.",18000000,"Recursos Provenientes del Sistema General de Participaciones (SGP)","Fortalecimiento de los programas y procesos de la Salud Pública y el Plan Decenal de Salud en el Municipio  de Caldas."]
[null,"DIMENSIÓN_VIDA_SALUDABLE_Y_ENFERMEDADES_TRANSMISIBLES","NA","Vida Saludable y Enfermedades transmisibles","CONDICIONES_Y_SITUACIONES_ENDEMO_EPIDEMICAS",2020051290038,"Fortalecimiento de los programas y procesos de la Salud Pública y el Plan Decenal de Salud en el Municipio  de Caldas.",2020051290038,"Fortalecimiento de los programas y procesos de la Salud Pública y el Plan Decenal de Salud en el Municipio  de Caldas.",18000000,"Recursos Provenientes del Sistema General de Participaciones (SGP)"]
[null,"DIMENSIÓN_VIDA_SALUDABLE_Y_ENFERMEDADES_TRANSMISIBLES","NA","Vida Saludable y Enfermedades transmisibles","CONDICIONES_Y_SITUACIONES_ENDEMO_EPIDEMICAS",2020051290038,"Fortalecimiento de los programas y procesos de la Salud Pública y el Plan Decenal de Salud en el Municipio  de Caldas.",2020051290038,"Fortalecimiento de los programas y procesos de la Salud Pública y el Plan Decenal de Salud en el Municipio  de Caldas.",23000000,"Recursos Provenientes del Sistema General de Participaciones (SGP)"]
[null,"DIMENSIÓN_VIDA_SALUDABLE_Y_ENFERMEDADES_TRANSMISIBLES","NA","Vida Saludable y Enfermedades transmisibles","ENFERMEDADES_EMERGENTES_RE_EMERGENTES_Y_DESATENDIDAS",2020051290038,"Fortalecimiento de los programas y procesos de la Salud Pública y el Plan Decenal de Salud en el Municipio  de Caldas.",2020051290038,"Fortalecimiento de los programas y procesos de la Salud Pública y el Plan Decenal de Salud en el Municipio  de Caldas.",8966259,"Recursos Provenientes del Sistema General de Participaciones (SGP)"]
[null,"DIMENSIÓN_VIDA_SALUDABLE_Y_ENFERMEDADES_TRANSMISIBLES","NA","Vida Saludable y Enfermedades transmisibles","ENFERMEDADES_EMERGENTES_RE_EMERGENTES_Y_DESATENDIDAS",2020051290038,"Fortalecimiento de los programas y procesos de la Salud Pública y el Plan Decenal de Salud en el Municipio  de Caldas.",2020051290038,"Fortalecimiento de los programas y procesos de la Salud Pública y el Plan Decenal de Salud en el Municipio  de Caldas.",8966259,"Recursos Provenientes del Sistema General de Participaciones (SGP)"]
[null,"DIMENSIÓN_SALUD_PÚBLICA_EN_EMERGENCIAS_Y_DESASTRES","NA","Emergencias y Desastres ","GESTION_INTEGRAL_DE_RIESGOS_EN_EMERGENCIAS_Y_DESASTRES",2020051290038,"Fortalecimiento de los programas y procesos de la Salud Pública y el Plan Decenal de Salud en el Municipio  de Caldas.",2020051290038,"Fortalecimiento de los programas y procesos de la Salud Pública y el Plan Decenal de Salud en el Municipio  de Caldas.",0,"Recursos Provenientes del Sistema General de Participaciones (SGP)"]
[null,"DIMENSIÓN_SALUD_PÚBLICA_EN_EMERGENCIAS_Y_DESASTRES","NA","Emergencias y Desastres ","RESPUESTA_EN_SALUD_ANTE_SITUACIONES_DE_EMERGENCIAS_Y_DESASTRES",2020051290038,"Fortalecimiento de los programas y procesos de la Salud Pública y el Plan Decenal de Salud en el Municipio  de Caldas.",2020051290038,"Fortalecimiento de los programas y procesos de la Salud Pública y el Plan Decenal de Salud en el Municipio  de Caldas.",0,"No aplica"]
[null,"DIMENSIÓN_SALUD_PÚBLICA_EN_EMERGENCIAS_Y_DESASTRES","NA","Emergencias y Desastres ","RESPUESTA_EN_SALUD_ANTE_SITUACIONES_DE_EMERGENCIAS_Y_DESASTRES",2020051290038,"Fortalecimiento de los programas y procesos de la Salud Pública y el Plan Decenal de Salud en el Municipio  de Caldas.",2020051290038,"Fortalecimiento de los programas y procesos de la Salud Pública y el Plan Decenal de Salud en el Municipio  de Caldas.",5000000,"Recursos Provenientes del Sistema General de Participaciones (SGP)"]
[null,"DIMENSIÓN_SALUD_Y_ÁMBITO_LABORAL","NA","Salud y Ámbito Laboral","SEGURIDAD_Y_SALUD_EN_EL_TRABAJO",2020051290038,"Fortalecimiento de los programas y procesos de la Salud Pública y el Plan Decenal de Salud en el Municipio  de Caldas.",2020051290038,"Fortalecimiento de los programas y procesos de la Salud Pública y el Plan Decenal de Salud en el Municipio  de Caldas.",3000000,"Recursos Provenientes del Sistema General de Participaciones (SGP)"]
[null,"DIMENSIÓN_TRANSVERSAL_GESTIÓN_DIFERENCIAL_DE_POBLACIONES_VULNERABLES","NA","Gestión diferencial de poblaciones vulnerables","DESARROLLO_INTEGRAL_DE_LAS_NIÑAS_NIÑOS_Y_ADOLESCENTES",2020051290038,"Fortalecimiento de los programas y procesos de la Salud Pública y el Plan Decenal de Salud en el Municipio  de Caldas.",2020051290038,"Fortalecimiento de los programas y procesos de la Salud Pública y el Plan Decenal de Salud en el Municipio  de Caldas.",0,"Recursos Provenientes del Sistema General de Participaciones (SGP)"]
[null,"DIMENSIÓN_TRANSVERSAL_GESTIÓN_DIFERENCIAL_DE_POBLACIONES_VULNERABLES","NA","Gestión diferencial de poblaciones vulnerables","DESARROLLO_INTEGRAL_DE_LAS_NIÑAS_NIÑOS_Y_ADOLESCENTES",2020051290038,"Fortalecimiento de los programas y procesos de la Salud Pública y el Plan Decenal de Salud en el Municipio  de Caldas.",2020051290038,"Fortalecimiento de los programas y procesos de la Salud Pública y el Plan Decenal de Salud en el Municipio  de Caldas.",10175200,"Recursos Provenientes del Sistema General de Participaciones (SGP)"]
[null,"DIMENSIÓN_TRANSVERSAL_GESTIÓN_DIFERENCIAL_DE_POBLACIONES_VULNERABLES","NA","Asistencia integral al habitante de calle","ENVEJECIMIENTO_Y_VEJEZ",2020051290039,"Implementación de la Política Pública para personas habitantes, en condición de calle y en vulnerabilidad del Municipio de Caldas",2020051290039,"Implementación de la Política Pública para personas habitantes, en condición de calle y en vulnerabilidad del Municipio de Caldas",1000,"Recursos del Esfuerzo Propio Territorial"]
[null,"DIMENSIÓN_TRANSVERSAL_GESTIÓN_DIFERENCIAL_DE_POBLACIONES_VULNERABLES","NA","Asistencia integral al habitante de calle","ENVEJECIMIENTO_Y_VEJEZ",2020051290039,"Implementación de la Política Pública para personas habitantes, en condición de calle y en vulnerabilidad del Municipio de Caldas",2020051290039,"Implementación de la Política Pública para personas habitantes, en condición de calle y en vulnerabilidad del Municipio de Caldas",306556169,"Recursos del Esfuerzo Propio Territorial y SGP proposito general"]
[null,"DIMENSIÓN_TRANSVERSAL_GESTIÓN_DIFERENCIAL_DE_POBLACIONES_VULNERABLES","NA","Gestión diferencial de poblaciones vulnerables","ENVEJECIMIENTO_Y_VEJEZ",2020051290035,"Fortalecimiento a la atención intergral del adulto mayor del municipio de Caldas",2020051290035,"Implementación de la Política Pública para personas habitantes, en condición de calle y en vulnerabilidad del Municipio de Caldas",313000000,"Recursos del Esfuerzo Propio Territorial  y  SGP Proposito general"]
[null,"DIMENSIÓN_TRANSVERSAL_GESTIÓN_DIFERENCIAL_DE_POBLACIONES_VULNERABLES","NA","Gestión diferencial de poblaciones vulnerables","ENVEJECIMIENTO_Y_VEJEZ",2020051290035,"Fortalecimiento a la atención intergral del adulto mayor del municipio de Caldas",2020051290035,"Fortalecimiento a la atención intergral del adulto mayor del municipio de Caldas",300000000,"Recursos del Esfuerzo Propio Territorial  y  SGP Proposito general"]
[null,"DIMENSIÓN_TRANSVERSAL_GESTIÓN_DIFERENCIAL_DE_POBLACIONES_VULNERABLES","NA","Gestión diferencial de poblaciones vulnerables","ENVEJECIMIENTO_Y_VEJEZ",2020051290035,"Fortalecimiento a la atención intergral del adulto mayor del municipio de Caldas",2020051290035,"Fortalecimiento a la atención intergral del adulto mayor del municipio de Caldas",2000000,"Recursos del Esfuerzo Propio Territorial"]
[null,"DIMENSIÓN_TRANSVERSAL_GESTIÓN_DIFERENCIAL_DE_POBLACIONES_VULNERABLES","NA","Gestión diferencial de poblaciones vulnerables","ENVEJECIMIENTO_Y_VEJEZ",2020051290035,"Fortalecimiento a la atención intergral del adulto mayor del municipio de Caldas",2020051290035,"Fortalecimiento a la atención intergral del adulto mayor del municipio de Caldas",18554770,"SGP Proposito general"]
[null,"DIMENSIÓN_TRANSVERSAL_GESTIÓN_DIFERENCIAL_DE_POBLACIONES_VULNERABLES","NA","Gestión diferencial de poblaciones vulnerables","DISCAPACIDAD",2020051290036,"Fortalecimiento a la atención de las personas con discapacidad en el Municipio de Caldas",2020051290036,"Fortalecimiento a la atención de las personas con discapacidad en el Municipio de Caldas",118000000,"Recursos del Esfuerzo Propio Territorial y  SGP proposito general"]
[null,"DIMENSIÓN_TRANSVERSAL_GESTIÓN_DIFERENCIAL_DE_POBLACIONES_VULNERABLES","NA","Gestión diferencial de poblaciones vulnerables","DISCAPACIDAD",2020051290036,"Fortalecimiento a la atención de las personas con discapacidad en el Municipio de Caldas",2020051290036,"Fortalecimiento a la atención de las personas con discapacidad en el Municipio de Caldas",1000000,"Recursos del Esfuerzo Propio Territorial y  SGP proposito general"]
[null,"DIMENSIÓN_TRANSVERSAL_GESTIÓN_DIFERENCIAL_DE_POBLACIONES_VULNERABLES","NA","Gestión diferencial de poblaciones vulnerables","DISCAPACIDAD",2020051290036,"Fortalecimiento a la atención de las personas con discapacidad en el Municipio de Caldas",2020051290036,"Fortalecimiento a la atención de las personas con discapacidad en el Municipio de Caldas",25000000,"Recursos del Esfuerzo Propio Territorial"]
[null,"DIMENSIÓN_FORTALECIMIENTO_DE_LA_AUTORIDAD_SANITARIA_PARA_LA_GESTIÓN_EN_SALUD","NA","Fortalecimiento de la Autoridad Sanitaria ","FORTALECIMIENTO_DE_LA_AUTORIDAD_SANITARIA",2020051290041,"Administración de los servicios de aseguramiento en salud en el Municipio de Caldas",2020051290041,"Administración de los servicios de aseguramiento en salud en el Municipio de Caldas",0,"No aplica"]
[null,"DIMENSIÓN_FORTALECIMIENTO_DE_LA_AUTORIDAD_SANITARIA_PARA_LA_GESTIÓN_EN_SALUD","NA","Fortalecimiento de la Autoridad Sanitaria ","FORTALECIMIENTO_DE_LA_AUTORIDAD_SANITARIA",2020051290041,"Administración de los servicios de aseguramiento en salud en el Municipio de Caldas",2020051290041,"Administración de los servicios de aseguramiento en salud en el Municipio de Caldas",19427184000,"Cofinanciacion nacional "]
[null,"DIMENSIÓN_FORTALECIMIENTO_DE_LA_AUTORIDAD_SANITARIA_PARA_LA_GESTIÓN_EN_SALUD","NA","Fortalecimiento de la Autoridad Sanitaria ","FORTALECIMIENTO_DE_LA_AUTORIDAD_SANITARIA",2020051290041,"Administración de los servicios de aseguramiento en salud en el Municipio de Caldas",2020051290041,"Administración de los servicios de aseguramiento en salud en el Municipio de Caldas",1308009020,"Recursos del Esfuerzo Propio Territorial"]
[null,"DIMENSIÓN_FORTALECIMIENTO_DE_LA_AUTORIDAD_SANITARIA_PARA_LA_GESTIÓN_EN_SALUD","NA","Fortalecimiento de la Autoridad Sanitaria ","FORTALECIMIENTO_DE_LA_AUTORIDAD_SANITARIA",2020051290041,"Administración de los servicios de aseguramiento en salud en el Municipio de Caldas",2020051290041,"Administración de los servicios de aseguramiento en salud en el Municipio de Caldas",0,"no aplica"]
[null,"DIMENSIÓN_FORTALECIMIENTO_DE_LA_AUTORIDAD_SANITARIA_PARA_LA_GESTIÓN_EN_SALUD","NA","Fortalecimiento de la Autoridad Sanitaria ","FORTALECIMIENTO_DE_LA_AUTORIDAD_SANITARIA",2020051290001,"Administración de los servicios de aseguramiento en salud en el Municipio de Caldas",2020051290041,"Administración de los servicios de aseguramiento en salud en el Municipio de Caldas",50000000,"Recursos del Esfuerzo Propio Territorial"]
[null,"DIMENSIÓN_FORTALECIMIENTO_DE_LA_AUTORIDAD_SANITARIA_PARA_LA_GESTIÓN_EN_SALUD","NA","Fortalecimiento de la Autoridad Sanitaria ","FORTALECIMIENTO_DE_LA_AUTORIDAD_SANITARIA",2020051290001,"Servicios de atención de urgencias en el primer nivel a la población pobre y vulnerable no asegurada por subsidio a la demanda en el Municipio de Caldas",2020051290001,"Servicios de atención en el primer nivel a la población pobre y vulnerable no asegurada por subsidio a la demanda en el Municipio de Caldas",416916000,"Recursos Provenientes del Sistema General de Participaciones (SGP)"]
[null,"DIMENSIÓN_FORTALECIMIENTO_DE_LA_AUTORIDAD_SANITARIA_PARA_LA_GESTIÓN_EN_SALUD","NA","Fortalecimiento de la Autoridad Sanitaria ","FORTALECIMIENTO_DE_LA_AUTORIDAD_SANITARIA",2020051290038,"Fortalecimiento de los programas y procesos de la Salud Pública y el Plan Decenal de Salud en el Municipio  de Caldas.",2020051290038,"Fortalecimiento de los programas y procesos de la Salud Pública y el Plan Decenal de Salud en el Municipio  de Caldas.",0,"No aplica"]
[null,"DIMENSIÓN_FORTALECIMIENTO_DE_LA_AUTORIDAD_SANITARIA_PARA_LA_GESTIÓN_EN_SALUD","NA","Fortalecimiento de la Autoridad Sanitaria ","FORTALECIMIENTO_DE_LA_AUTORIDAD_SANITARIA",2020051290038,"Fortalecimiento de los programas y procesos de la Salud Pública y el Plan Decenal de Salud en el Municipio  de Caldas.",2020051290038,"Fortalecimiento de los programas y procesos de la Salud Pública y el Plan Decenal de Salud en el Municipio  de Caldas.",0,"No aplica"]
[null,"DIMENSIÓN_FORTALECIMIENTO_DE_LA_AUTORIDAD_SANITARIA_PARA_LA_GESTIÓN_EN_SALUD","NA","Fortalecimiento de la Autoridad Sanitaria ","FORTALECIMIENTO_DE_LA_AUTORIDAD_SANITARIA",2020051290038,"Fortalecimiento de los programas y procesos de la Salud Pública y el Plan Decenal de Salud en el Municipio  de Caldas.",2020051290038,"Fortalecimiento de los programas y procesos de la Salud Pública y el Plan Decenal de Salud en el Municipio  de Caldas.",0,"No aplica"]
[null,"DIMENSIÓN_FORTALECIMIENTO_DE_LA_AUTORIDAD_SANITARIA_PARA_LA_GESTIÓN_EN_SALUD","NA","Fortalecimiento de la Autoridad Sanitaria ","FORTALECIMIENTO_DE_LA_AUTORIDAD_SANITARIA",2020051290038,"Fortalecimiento de los programas y procesos de la Salud Pública y el Plan Decenal de Salud en el Municipio  de Caldas.",2020051290038,"Fortalecimiento de los programas y procesos de la Salud Pública y el Plan Decenal de Salud en el Municipio  de Caldas.",2516847,"Recursos Provenientes del Sistema General de Participaciones (SGP)"]
[null,"DIMENSIÓN_FORTALECIMIENTO_DE_LA_AUTORIDAD_SANITARIA_PARA_LA_GESTIÓN_EN_SALUD","NA","Fortalecimiento de la Autoridad Sanitaria ","FORTALECIMIENTO_DE_LA_AUTORIDAD_SANITARIA",2020051290038,"Fortalecimiento de los programas y procesos de la Salud Pública y el Plan Decenal de Salud en el Municipio  de Caldas.",2020051290038,"Fortalecimiento de los programas y procesos de la Salud Pública y el Plan Decenal de Salud en el Municipio  de Caldas.",2516844,"Recursos Provenientes del Sistema General de Participaciones (SGP)"]
[null,"DIMENSIÓN_FORTALECIMIENTO_DE_LA_AUTORIDAD_SANITARIA_PARA_LA_GESTIÓN_EN_SALUD","NA","Fortalecimiento de la Autoridad Sanitaria ","FORTALECIMIENTO_DE_LA_AUTORIDAD_SANITARIA",2020051290038,"Fortalecimiento de los programas y procesos de la Salud Pública y el Plan Decenal de Salud en el Municipio  de Caldas.",2020051290038,"Fortalecimiento de los programas y procesos de la Salud Pública y el Plan Decenal de Salud en el Municipio  de Caldas.",2516844,"Recursos Provenientes del Sistema General de Participaciones (SGP)"]
[null,"DIMENSIÓN_FORTALECIMIENTO_DE_LA_AUTORIDAD_SANITARIA_PARA_LA_GESTIÓN_EN_SALUD","NA","Fortalecimiento de la Autoridad Sanitaria ","FORTALECIMIENTO_DE_LA_AUTORIDAD_SANITARIA",2020051290038,"Fortalecimiento de los programas y procesos de la Salud Pública y el Plan Decenal de Salud en el Municipio  de Caldas.",2020051290038,"Fortalecimiento de los programas y procesos de la Salud Pública y el Plan Decenal de Salud en el Municipio  de Caldas.",2516844,"Recursos del Esfuerzo Propio Territorial"]
[null,"DIMENSIÓN_FORTALECIMIENTO_DE_LA_AUTORIDAD_SANITARIA_PARA_LA_GESTIÓN_EN_SALUD","NA","Fortalecimiento de la Autoridad Sanitaria ","FORTALECIMIENTO_DE_LA_AUTORIDAD_SANITARIA",2020051290038,"Fortalecimiento de los programas y procesos de la Salud Pública y el Plan Decenal de Salud en el Municipio  de Caldas.",2020051290038,"Fortalecimiento de los programas y procesos de la Salud Pública y el Plan Decenal de Salud en el Municipio  de Caldas.",2516844,"Recursos Provenientes del Sistema General de Participaciones (SGP)"]
[null,"DIMENSIÓN_FORTALECIMIENTO_DE_LA_AUTORIDAD_SANITARIA_PARA_LA_GESTIÓN_EN_SALUD","NA","Fortalecimiento de la Autoridad Sanitaria ","FORTALECIMIENTO_DE_LA_AUTORIDAD_SANITARIA",2020051290040,"Implementación de la estrategia \"Salud mas cerca\" en el Municipio de Caldas",2020051290040,"Implementación de la estrategia \"Salud mas cerca\" en el Municipio de Caldas",40000000,"Recursos del Esfuerzo Propio Territorial"]
[null,"DIMENSIÓN_FORTALECIMIENTO_DE_LA_AUTORIDAD_SANITARIA_PARA_LA_GESTIÓN_EN_SALUD","NA","Fortalecimiento de la Autoridad Sanitaria ","FORTALECIMIENTO_DE_LA_AUTORIDAD_SANITARIA",2020051290038,"Fortalecimiento de los programas y procesos de la Salud Pública y el Plan Decenal de Salud en el Municipio  de Caldas.",2020051290038,"Fortalecimiento de los programas y procesos de la Salud Pública y el Plan Decenal de Salud en el Municipio  de Caldas.",44932519,"Recursos_Provenientes_del_Sistema_General_de_Participaciones_SGP"]
[null,"DIMENSIÓN_FORTALECIMIENTO_DE_LA_AUTORIDAD_SANITARIA_PARA_LA_GESTIÓN_EN_SALUD","NA","Fortalecimiento de la Autoridad Sanitaria ","FORTALECIMIENTO_DE_LA_AUTORIDAD_SANITARIA",2020051290038,"Fortalecimiento de los programas y procesos de la Salud Pública y el Plan Decenal de Salud en el Municipio  de Caldas.",2020051290038,"Fortalecimiento de los programas y procesos de la Salud Pública y el Plan Decenal de Salud en el Municipio  de Caldas.",112101891,"Recursos_Provenientes_del_Sistema_General_de_Participaciones_SGP"]

{"sheet":"PAS 2022","index":2,"n_rows":1960,"n_cols":35,"rows_kept":1960,"cut":false,"hidden":false,"merged":[[3,32,3,34],[3,13,4,13],[3,14,3,18],[3,19,3,20],[3,21,3,23],[3,24,3,26],[3,27,3,31],[3,12,4,12],[0,1,0,34],[1,1,1,34],[2,19,2,20],[2,24,2,26],[3,1,4,1],[3,2,4,2],[3,3,4,3],[3,4,4,4],[3,5,4,5],[3,6,4,6],[3,7,4,7],[3,8,4,8],[3,9,4,9],[3,10,4,10],[3,11,4,11]]}
[null,"                                                                                                             DOCUMENTO DE TRABAJO - 2023 MUNICIPIO DE CALDAS"]
[null,"TABLA 14: ELABORACIÓN Y CONSOLIDACIÓN DEL PLAN DE ACCIÓN EN SALUD (PAS)\nVer documento de Lineamientos Metodologicos, Tecnicos y Operativos - Pag. 243"]
[null,1,2,3,4,5,6,7,8,9,10,11,12,13,14,15,16,17,18,19,null,20,21,null,23,null,null,24,25,26,27,28,29,30,31]
[null,"Dimensión","Código Programa","Programa ","Componente","Código subprograma","Subprograma","Código proyecto (BPI)","Proyecto","Meta de Producto Anual","Estrategia de PTS","Actividades ","Cantidad Programada","Unidad de Medida","Actividades programadas por trimestre",null,null,null,null,"Linea de Acción",null,"Recursos programados",null,null,"Responsables del cumplimiento",null,null,"Actividades ejecutadas por trimestre",null,null,null,null,"Recursos ejecutados"]
[null,null,null,null,null,null,null,null,null,null,null,null,null,null,"I","II","III","IV","Total","Linea Operativa","Categoria Linea Operativa","Código Rubro Presupuestal","Fuente de Financiación","Total recursos programados \n(Miles de Pesos)","Dependencia ","Cargo ","Nombres y Apellidos","I","II","III","IV","Total","Código Rubro Presupuestal","Fuente de Financiación","Total recursos ejecutados \n(Miles de Pesos)"]
[null,"DIMENSIÓN_DE_SALUD_AMBIENTAL","NA","Salud Ambiental","SITUACIONES_EN_SALUD_RELACIONADAS_CON_CONDICIONES_AMBIENTALES",2020051290038,"Fortalecimiento de los programas y procesos de la Salud Pública y el Plan Decena de Salud en el Municipio  de Caldas.",2020051290038,"Fortalecimiento de los programas y procesos de la Salud Pública y el Plan Decena de Salud en el Municipio  de Caldas.","Realizar campaña  con estrategias municipales para mejorar la calidad del aire.","Educación en Salud Ambiental","Realizar 1  campaña ambiental  sobre calidad del aire  en el marco de la estrategia de Salud Más Cerca . ",1,"Número",0,0,0,1,1,"Promoción de la salud","PIC - Información en salud","2.3.2.02.02.009.2.03"," Recursos Provenientes del Sistema General de Participaciones (SGP)",10000000,"Secretaría de Salud","Secretaria de Salud","Luz Omaira Morales Diez "]
[null,"DIMENSIÓN_DE_SALUD_AMBIENTAL","NA","Salud Ambiental","SITUACIONES_EN_SALUD_RELACIONADAS_CON_CONDICIONES_AMBIENTALES",2020051290038,"Fortalecimiento de los programas y procesos de la Salud Pública y el Plan Decena de Salud en el Municipio  de Caldas.",2020051290038,"Fortalecimiento de los programas y procesos de la Salud Pública y el Plan Decena de Salud en el Municipio  de Caldas.","Lograr una cobertura de vacunación antirrábica mayor o igual al 80% de la población canina y felina del Municipio de Caldas.","Gestión integrada de las zoonosis de interés en salud pública","Vacunar 9.275 caninos y felinos en el municipio de manera anual",9275,"Número",1000,3000,3000,2275,{"$f":"O7+P7+Q7+R7","v":9275},"Gestión de riesgo en salud","GSP - GESTION Vacunación antirrábica","2.3.2.02.02.009.2.02","Gestin en salud pública Recursos propios  y Recursos Provenientes del Sistema General de Participaciones (SGP)",21252840,"Secretaría de Salud","Secretaria de Salud","Luz Omaira Morales Diez "]
[null,"DIMENSIÓN_DE_SALUD_AMBIENTAL","NA","Salud Ambiental","SITUACIONES_EN_SALUD_RELACIONADAS_CON_CONDICIONES_AMBIENTALES",2020051290038,"Fortalecimiento de los programas y procesos de la Salud Pública y el Plan Decena de Salud en el Municipio  de Caldas.",2020051290038,"Fortalecimiento de los programas y procesos de la Salud Pública y el Plan Decena de Salud en el Municipio  de Caldas.","Realizar visitas de vigilancia y control anuales a1 100%  de los  acueductos rurales y urbanos del Municipio. ","Gestión Integral del Recurso Hídrico","Muestreos  de agua a  los acueductos  rurales, urbanos y aguas recreativas  del Municipio de Caldas realizados para verificar la calidad del  agua. ",240,"Número",24,77,63,76,240,"Gestión de la salud pública","GSP - GESTION Inspección, Vigilancia y Control ","2.3.2.02.02.009.2.02"," Recursos Provenientes del Sistema General de Participaciones (SGP)",45012210,"Secretaría de Salud","Secretaria de Salud","Luz Omaira Morales Diez "]
[null,"DIMENSIÓN_DE_SALUD_AMBIENTAL","NA","Salud Ambiental","SITUACIONES_EN_SALUD_RELACIONADAS_CON_CONDICIONES_AMBIENTALES",2020051290038,"Fortalecimiento de los programas y procesos de la Salud Pública y el Plan Decena de Salud en el Municipio  de Caldas.",2020051290038,"Fortalecimiento de los programas y procesos de la Salud Pública y el Plan Decena de Salud en el Municipio  de Caldas.","Realizar visitas de vigilancia y control anuales a1 100%  de los  acueductos rurales y urbanos del Municipio. ","Gestión Integral del Recurso Hídrico","Visitas de inspección, vigilancia y control  a los acueductos rurales y urbanos del Municipio de Caldas. ",21,"Número ",0,0,11,10,{"$f":"Q9+R9","v":21},"Gestión de la salud pública","GSP - GESTION Inspección, Vigilancia y Control ","2.3.2.02.02.009.2.02"," Recursos Provenientes del Sistema General de Participaciones (SGP)",15012210,"Secretaría de Salud","Secretaria de Salud","Luz Omaira Morales Diez "]
[null,"DIMENSIÓN_DE_SALUD_AMBIENTAL","NA","Salud Ambiental","HABITAT_SALUDABLE",2020051290038,"Fortalecimiento de los programas y procesos de la Salud Pública y el Plan Decena de Salud en el Municipio  de Caldas.",2020051290038,"Fortalecimiento de los programas y procesos de la Salud Pública y el Plan Decena de Salud en el Municipio  de Caldas.","Actualizar el mapa de riesgo con los aspectos más relevantes de orden sanitario del Municipio de Caldas","Estrategia de Entornos Saludables","Actualizar el mapa de riesgo sanitario del Municipio de Caldas",{"$f":"SUM(O10:R10)","v":1},"Documento",0,0,0,1,1,"Gestión de la salud pública","GSP - GESTION Inspección, Vigilancia y Control ","2.3.2.02.02.009.2.02"," Recursos Provenientes del Sistema General de Participaciones (SGP)",18876335,"Secretaría de Salud","Secretaria de Salud","Luz Omaira Morales Diez "]
[null,"DIMENSIÓN_DE_SALUD_AMBIENTAL","NA","Salud Ambiental","SITUACIONES_EN_SALUD_RELACIONADAS_CON_CONDICIONES_AMBIENTALES",2020051290038,"Fortalecimiento de los programas y procesos de la Salud Pública y el Plan Decena de Salud en el Municipio  de Caldas.",2020051290038,"Fortalecimiento de los programas y procesos de la Salud Pública y el Plan Decena de Salud en el Municipio  de Caldas.","Realizar visitas de IVC al año a cada establecimiento abierto al público. ","Vigilancia Sanitaria","Visitas de Inspección Vigilancia y Control IVC solicitadas  por la comunidad.",1,"Porcentaje",1,1,1,1,1,"Gestión de la salud pública","GSP - GESTION Inspección, Vigilancia y Control ","2.3.2.02.02.009.2.02"," Recursos Provenientes del Sistema General de Participaciones (SGP) y Recursos propios gestion salud  ublica",70113427,"Secretaría de Salud","Secretaria de Salud","Luz Omaira Morales Diez "]
[null,"DIMENSIÓN_DE_SALUD_AMBIENTAL","NA","Salud Ambiental","SITUACIONES_EN_SALUD_RELACIONADAS_CON_CONDICIONES_AMBIENTALES",2020051290038,"Fortalecimiento de los programas y procesos de la Salud Pública y el Plan Decena de Salud en el Municipio  de Caldas.",2020051290038,"Fortalecimiento de los programas y procesos de la Salud Pública y el Plan Decena de Salud en el Municipio  de Caldas.","Realizar visitas de IVC al año a cada establecimiento abierto al público. ","Vigilancia Sanitaria","Actividades de Inspección Vigilancia y Control IVC  de saneamiento ambiental de acuerdo al  riesgo en Salud Pública. ",2000,"Númerico",350,650,650,350,{"$f":"O12+P12+Q12+R12","v":2000},"Gestión de la salud pública","GSP - GESTION Inspección, Vigilancia y Control ","2.3.2.02.02.009.2.02"," Recursos Provenientes del Sistema General de Participaciones (SGP) y Recursos propios gestion salud  ublica",70113427,"Secretaría de Salud","Secretaria de Salud","Luz Omaira Morales Diez "]
[null,"DIMENSIÓN_DE_VIDA_SALUDABLE_Y_CONDICIONES_NO_TRANSMISIBLES","NA","Vida saludable y condiciones no transmisibles","MODOS_CONDICIONES_Y__ESTILOS_DE_VIDA_SALUDABLES",2020051290038,"Fortalecimiento de los programas y procesos de la Salud Pública y el Plan Decena de Salud en el Municipio  de Caldas.",2020051290038,"Fortalecimiento de los programas y procesos de la Salud Pública y el Plan Decena de Salud en el Municipio  de Caldas.","Desarrollar estrategias de hábitos de vida saludable a poblaciones vulnerables relacionadas con salud oral y prevención de enfermedades crónicas modalidad virtual y presencial .","Información, comunicación y educación que incentive la adopción de estilos de vida saludable","Desarrollar estrategias anuales de vida saludable a poblaciones vulnerables relacionadas con salud oral y prevención de enfermedades crónicas modalidad en el marco de la estrategia de Salud Más Cerca . ",2,"Número",0,1,0,1,2,"Promoción de la salud","PIC - Educación y comunicación en salud","2.3.2.02.02.009.2.06","Recursos Provenientes del Sistema General de Participaciones (SGP)",20000000,"Secretaría de Salud","Secretaria de Salud","Luz Omaira Morales Diez "]
[null,"DIMENSIÓN_DE_VIDA_SALUDABLE_Y_CONDICIONES_NO_TRANSMISIBLES","NA ","Vida saludable y condiciones no transmisibles","MODOS_CONDICIONES_Y__ESTILOS_DE_VIDA_SALUDABLES",2020051290038,"Fortalecimiento de los programas y procesos de la Salud Pública y el Plan Decena de Salud en el Municipio  de Caldas.",2020051290038,"Fortalecimiento de los programas y procesos de la Salud Pública y el Plan Decena de Salud en el Municipio  de Caldas.","Desarrollar estrategias de hábitos de vida saludable a poblaciones vulnerables relacionadas con salud oral y prevención de enfermedades crónicas modalidad virtual y presencial .","Información, comunicación y educación que incentive la adopción de estilos de vida saludable","Realizar actividades de Información, Educación y Comunicación  de la conmemoración de los días internacionales del Corazón, Diabetes, cáncer de mama y lavado de manos. ",4,"Numero ",0,0,1,3,4,"Promoción de la salud","PIC - Educación y comunicación en salud","2.3.2.02.02.009.2.06","Recursos Provenientes del Sistema General de Participaciones (SGP)",20000000,"Secretaría de Salud","Secretaria de Salud","Luz Omaira Morales Diez "]
[null,"DIMENSIÓN_DE_VIDA_SALUDABLE_Y_CONDICIONES_NO_TRANSMISIBLES","NA","Vida saludable y condiciones no transmisibles","MODOS_CONDICIONES_Y__ESTILOS_DE_VIDA_SALUDABLES",2020051290038,"Fortalecimiento de los programas y procesos de la Salud Pública y el Plan Decena de Salud en el Municipio  de Caldas.",2020051290038,"Fortalecimiento de los programas y procesos de la Salud Pública y el Plan Decena de Salud en el Municipio  de Caldas.","Desarrollar estrategias de hábitos de vida saludable a poblaciones vulnerables relacionadas con salud oral y prevención de enfermedades crónicas modalidad virtual y presencial .","Información, comunicación y educación que incentive la adopción de estilos de vida saludable","desarrollar  estrategias de promoción de hábitos de vida saludables en  los grupos focalizados, y de niños , niñas en garantia de sus derechos ",2,"Numero ",1,1,0,0,2,"Promoción de la salud","PIC - Educación y comunicación en salud","2.3.2.02.02.009.2.06","Recursos Provenientes del Sistema General de Participaciones (SGP)",20000000,"Secretaría de Salud","Secretaria de Salud","Luz Omaira Morales Diez "]
[]
[null,"DIMENSIÓN_CONVIVENCIA_SOCIAL_Y_SALUD_MENTAL","NA","Salud Mental","PROMOCION_DE_LA_SALUD_MENTAL_Y_LA_CONVIVENCIA",2020051290038,"Fortalecimiento de los programas y procesos de la Salud Pública y el Plan Decena de Salud en el Municipio  de Caldas.",2020051290038,"Fortalecimiento de los programas y procesos de la Salud Pública y el Plan Decena de Salud en el Municipio  de Caldas.","Promover la salud mental y la convivencia social, en la comunidad del Municipio de Caldas","Información, educación y comunicación para la convivencia , Prevención  de violencias y  Intento  de  suicidio. ","Desarrollar una estrategia de IEC Información, Educación y Comunicación en salud mental “Cosechando Propósitos”en el marco de la estrategia Salu Más Cerca. ",1,"Número",0,1,0,0,1,"Promoción de la salud","PIC - Conformación y fortalecimiento de redes sociales, comunitarias, sectoriales e intersectoriales","2.3.2.02.02.009.2.05","Recursos Provenientes del Sistema General de Participaciones (SGP)",40000000,"Secretaría de Salud","Secretaria de Salud","Luz Omaira Morales Diez "]
[null,"DIMENSIÓN_CONVIVENCIA_SOCIAL_Y_SALUD_MENTAL","NA","Salud Mental","PREVENCION_Y_ATENCION_INTEGRAL_A_PROBLEMAS_Y_TRASTORNOS_MENTALES_Y_A_DIFERENTES_FORMAS_DE_VIOLENCIA",2020051290038,"Fortalecimiento de los programas y procesos de la Salud Pública y el Plan Decena de Salud en el Municipio  de Caldas.",2020051290038,"Fortalecimiento de los programas y procesos de la Salud Pública y el Plan Decena de Salud en el Municipio  de Caldas.","Realizar seguimiento e intervención a todos los casos de intento de suicidio ocurridos en el municipio","Redes socio-institucionales","Fortalecer la estrategia de salud mental (Salud para el Alma),  en el Municipio Caldas. ",1,"Porcentaje",1,1,1,1,1,"Promoción de la salud","PIC - Conformación y fortalecimiento de redes sociales, comunitarias, sectoriales e intersectoriales","2.3.2.02.02.009.2.05","No aplica",40000000,"Secretaría de Salud","Secretaria de Salud","Luz Omaira Morales Diez "]
[null,"DIMENSIÓN_CONVIVENCIA_SOCIAL_Y_SALUD_MENTAL","NA","Salud Mental","PREVENCION_Y_ATENCION_INTEGRAL_A_PROBLEMAS_Y_TRASTORNOS_MENTALES_Y_A_DIFERENTES_FORMAS_DE_VIOLENCIA",2020051290038,"Fortalecimiento de los programas y procesos de la Salud Pública y el Plan Decena de Salud en el Municipio  de Caldas.",2020051290038,"Fortalecimiento de los programas y procesos de la Salud Pública y el Plan Decena de Salud en el Municipio  de Caldas.","Crear una base de datos de casos de consumo de sustancias psicoactivas","Gestión del conocimiento que contempla la gestión de la información, la vigilancia epidemiológica y la investigación del impacto en la salud mental de las diferentes formas de violencia","Elaborar  una base de datos de casos de consumo de sustancias psicoactivas",1,"Número",0,0,0,1,1,"Gestión de la salud pública","GSP - GESTION  Coordinación Intersectorial","No aplica","No aplica",0,"Secretaría de Salud","Secretaria de Salud","Luz Omaira Morales Diez "]
[null,"DIMENSIÓN_CONVIVENCIA_SOCIAL_Y_SALUD_MENTAL","NA","Salud Mental","PREVENCION_Y_ATENCION_INTEGRAL_A_PROBLEMAS_Y_TRASTORNOS_MENTALES_Y_A_DIFERENTES_FORMAS_DE_VIOLENCIA",2020051290038,"Fortalecimiento de los programas y procesos de la Salud Pública y el Plan Decenal de Salud en el Municipio  de Caldas.",2020051290038,"Fortalecimiento de los programas y procesos de la Salud Pública y el Plan Decena de Salud en el Municipio  de Caldas.","Fortalecer las líneas de acción en el marco de la Política Pública de Salud Mental ","Gestión del conocimiento que contempla la gestión de la información, la vigilancia epidemiológica y la investigación del impacto en la salud mental de las diferentes formas de violencia","Realizar seguimiento trimestral a la implementación de la Política Pública de Salud Mental ",4,"Número",1,1,1,1,4,"Gestión de la salud pública","GSP - GESTION  Coordinación Intersectorial","No aplica","No aplica",0,"Secretaría de Salud","Secretaria de Salud","Luz Omaira Morales Diez "]
[null,"DIMENSIÓN_SEGURIDAD_ALIMENTARIA_Y_NUTRICIONAL","NA","Seguridad Alimentaria y Nutricional ","CONSUMO_Y_APROVECHAMIENTO_BIOLOGICO_DE_ALIMENTOS",2020051290038,"Fortalecimiento de los programas y procesos de la Salud Pública y el Plan Decenal de Salud en el Municipio  de Caldas.",2020051290038,"Fortalecimiento de los programas y procesos de la Salud Pública y el Plan Decenal de Salud en el Municipio  de Caldas.","Fortalecimiento de la Seguridad Alimentaria y Nutricional en el Municipio de Caldas","Información, educación y comunicación para  promover la lactancia materna y los hábitos de alimentación saludable en el Marco de la estrategia de Salud Más Cerca. ","Ejecutar el plan de accion de la política publica de Seguridad Alimentaria",1,"Numero",1,0,0,0,1,"Promoción de la salud","Seguridad alimentaria - Coordinación intersectorial","2.3.2.02.02.009.06","Recursos del Esfuerzo Propio Territorial",100000000,"Secretaría de Salud","Secretaria de Salud","Luz Omaira Morales Diez "]
[null,"DIMENSIÓN_SEGURIDAD_ALIMENTARIA_Y_NUTRICIONAL","NA","Seguridad Alimentaria y Nutricional ","CONSUMO_Y_APROVECHAMIENTO_BIOLOGICO_DE_ALIMENTOS",2020051290038,"Fortalecimiento de los programas y procesos de la Salud Pública y el Plan Decenal de Salud en el Municipio  de Caldas.",2020051290038,"Fortalecimiento de los programas y procesos de la Salud Pública y el Plan Decenal de Salud en el Municipio  de Caldas.","Desarrollar estrategias para promover la lactancia materna y hábitos de alimentación saludable.","Información, educación y comunicación para  promover la lactancia materna y los hábitos de alimentación saludable en el Marco de la estrategia de Salud Más Cerca. ","Actividades  para promover habitos de alimentación saludable en el Municipio de Caldas, Antioquia",10,"Número",2,3,3,2,10,"Promoción de la salud","PIC - Educación y comunicación en salud","2.3.2.02.02.009.2.06","Recursos Provenientes del Sistema General de Participaciones (SGP)",8750000,"Secretaría de Salud","Secretaria de Salud","Luz Omaira Morales Diez "]
[null,"DIMENSIÓN_DE_VIDA_SALUDABLE_Y_CONDICIONES_NO_TRANSMISIBLES","NA","Vida saludable y condiciones no transmisibles","CONDICIONES_CRONICAS_PREVALENTES",2020051290038,"Fortalecimiento de los programas y procesos de la Salud Pública y el Plan Decena de Salud en el Municipio  de Caldas.",2020051290038,"Fortalecimiento de los programas y procesos de la Salud Pública y el Plan Decena de Salud en el Municipio  de Caldas.","Realizar asesoría  y asistencia tecnica  al 100% de las instituciones Prestadoras de Servicios de Salud del municipio, sobre la vigilancia de los  eventos relacionados con enfermedades no transmisibles.","Fortalecimiento de las capacidades del recurso humano para la planeación, desarrollo, atención y evaluación de acciones e intervenciones en estilos de vida saludable, prevención y control de ENT y de alteraciones bucales, visuales, auditivas y comunicativas, en el marco de la estrategia de APS y gestión de riesgo","Realizar orientación a los servicios de salud o detención temprana de signos y sintomas de desnutrición. ",10,"Número",3,3,4,0,{"$f":"O23+P23+Q23+R23","v":10},"Promoción de la salud","PIC - Educación y comunicación en salud","2.3.2.02.02.009.2.06","Recursos Provenientes del Sistema General de Participaciones (SGP)",8750000,"Secretaría de Salud","Secretaria de Salud","Luz Omaira Morales Diez "]
[null,null,null,null,null,null,null,null,null,null,null,"Realizar acciones que promuevan la garantia de los derechos de los niños y niñas; enfocadas en la vida saludable.",10,"Número",3,3,4,0,{"$f":"O24+P24+Q24+R24","v":10},"Promoción de la salud","PIC - Educación y comunicación en salud","2.3.2.02.02.009.2.06","Recursos Provenientes del Sistema General de Participaciones (SGP)",8750000]
[null,null,null,null,null,null,null,null,null,null,null,"Realizar actividades de promocion de lonchera saludable en las instituciones educativas del Municipio de Caldas, Antioquia ",30,"Número",7,8,8,7,{"$f":"O25+P25+Q25+R25","v":30},"Promoción de la salud","PIC - Educación y comunicación en salud","2.3.2.02.02.009.2.06","Recursos Provenientes del Sistema General de Participaciones (SGP)",8750000]
[null,"DIMENSIÓN_SEXUALIDAD_DERECHOS_SEXUALES_Y_REPRODUCTIVOS","NA","Derechos sexuales y reproductivos","PREVENCION_Y_ATENCION_INTEGRAL_EN_SALUD_SEXUAL_Y_REPRODUCTIVA_DESDE_UN_ENFOQUE_DE_DERECHOS",2020051290038,"Fortalecimiento de los programas y procesos de la Salud Pública y el Plan Decenal de Salud en el Municipio  de Caldas.",2020051290038,"Fortalecimiento de los programas y procesos de la Salud Pública y el Plan Decenal de Salud en el Municipio  de Caldas.","Desarrollar estrategias sobre maternidad segura.","Información, educación y comunicación","Campañas de educación en derechos sexuales y reproductivos (planificación familiar, explotación sexual, entre otros) para las mujeres Caldeñas , dentro de la estrategia de Salud Más Cerca. ",2,"Número",0,1,0,1,2,"Promoción de la salud","PIC - Educación y comunicación en salud","2.3.2.02.02.009.2.07","Recursos Provenientes del Sistema General de Participaciones (SGP)",15000000,"Secretaría de Salud","Secretaria de Salud","Luz Omaira Morales Diez "]
[null,"DIMENSIÓN_SEXUALIDAD_DERECHOS_SEXUALES_Y_REPRODUCTIVOS","NA","Derechos sexuales y reproductivos","PROMOCION_DE_LOS_DERECHOS_SEXUALES_Y_REPRODUCTIVOS_Y_EQUIDAD_DE_GENERO",2020051290038,"Fortalecimiento de los programas y procesos de la Salud Pública y el Plan Decenal de Salud en el Municipio  de Caldas.",2020051290038,"Fortalecimiento de los programas y procesos de la Salud Pública y el Plan Decenal de Salud en el Municipio  de Caldas.","Campañas de educación en derechos sexuales y reproductivos (planificación familiar, explotación sexual, entre otros) para las mujeres Caldeñas","Información, educación y comunicación","Actividades sobre maternidad segura en el marco del  proyecto de Salud Más Cerca. ",10,"Número",3,3,4,0,10,"Promoción de la salud","PIC - Educación y comunicación en salud","2.3.2.02.02.009.2.07","Recursos Provenientes del Sistema General de Participaciones (SGP)",12500000,"Secretaría de Salud","Secretaria de Salud","Luz Omaira Morales Diez "]
[null,"DIMENSIÓN_SEXUALIDAD_DERECHOS_SEXUALES_Y_REPRODUCTIVOS","NA","Derechos sexuales y reproductivos","PROMOCION_DE_LOS_DERECHOS_SEXUALES_Y_REPRODUCTIVOS_Y_EQUIDAD_DE_GENERO",2020051290038,"Fortalecimiento de los programas y procesos de la Salud Pública y el Plan Decenal de Salud en el Municipio  de Caldas.",2020051290038,"Fortalecimiento de los programas y procesos de la Salud Pública y el Plan Decenal de Salud en el Municipio  de Caldas.","Acciones en beneficio de las Madres gestantes y lactantes atendidas a través de alianzas estratégicas ","Información, educación y comunicación","Realiar acciones de promoción de derechos sexuales y deberes en salud sexual y reproductiva dentro de la Estrategia Salud Más Cerca .",10,"Número",3,3,4,0,10,"Promoción de la salud","PIC - Educación y comunicación en salud","2.3.2.02.02.009.2.07","Recursos Provenientes del Sistema General de Participaciones (SGP)",12500000,"Secretaría de Salud","Secretaria de Salud","Luz Omaira Morales Diez "]
[null,"DIMENSIÓN_VIDA_SALUDABLE_Y_ENFERMEDADES_TRANSMISIBLES","NA","Vida Saludable y Enfermedades Transmisibles ","ENFERMEDADES_INMUNOPREVENIBLES",2020051290038,"Fortalecimiento de los programas y procesos de la Salud Pública y el Plan Decenal de Salud en el Municipio  de Caldas.",2020051290038,"Fortalecimiento de los programas y procesos de la Salud Pública y el Plan Decenal de Salud en el Municipio  de Caldas.","Realizar campaña de IEC promocionando la vacunación en la población objeto del programa. ","Implementación de la estrategia de vacunación sin barreras, que disminuya las oportunidades perdidas y garantice el acceso a la vacunación","Realizar 4 jornadas de vacunacion según directriz de la Secretaría Seccional de Salud y Protección Social de Antioquia (SSSYPSA), el Ministerio de Salud y Protección Social y la Secretaría de Salud Municipal\n\n",4,"Número",1,1,1,1,4,"Promoción de la salud","PIC - Jornadas de salud","2.3.2.02.02.009.2.08","Recursos Provenientes del Sistema General de Participaciones (SGP)",16000000,"Secretaría de Salud","Secretaria de Salud","Luz Omaira Morales Diez "]
[null,"DIMENSIÓN_VIDA_SALUDABLE_Y_ENFERMEDADES_TRANSMISIBLES","NA","Vida Saludable y Enfermedades Transmisibles ","ENFERMEDADES_INMUNOPREVENIBLES",2020051290038,"Fortalecimiento de los programas y procesos de la Salud Pública y el Plan Decenal de Salud en el Municipio  de Caldas.",2020051290038,"Fortalecimiento de los programas y procesos de la Salud Pública y el Plan Decenal de Salud en el Municipio  de Caldas.","Analizar las coberturas de vacunacion en el Municipio, a través de encuestas de cobertura de vacunación y  búsqueda activa comunitaria de eventos inmunoprevenibles. ","Generación de conocimientos que oriente la inclusión de nuevas vacunas, el monitoreo y evaluación del comportamiento de las enfermedades inmunoprevenibles y el impacto de la vacunación a nivel nacional y local ","Realizar  1 monitoreo rápido de coberturas  de vacunación y  búsquedas activas comunitarias de eventos inmunoprevenibles ",1,"Número",0,0,1,0,1,"Gestión de riesgo en salud","GSP - GESTION Vigilancia en Salud Pública","2.3.2.02.02.009.2.02","Recursos Provenientes del Sistema General de Participaciones (SGP)",8500000,"Secretaría de Salud","Secretaria de Salud","Luz Omaira Morales Diez "]
[null,"DIMENSIÓN_VIDA_SALUDABLE_Y_ENFERMEDADES_TRANSMISIBLES","NA","Vida Saludable y Enfermedades transmisibles","ENFERMEDADES_INMUNOPREVENIBLES",2020051290038,"Fortalecimiento de los programas y procesos de la Salud Pública y el Plan Decenal de Salud en el Municipio  de Caldas.",2020051290038,"Fortalecimiento de los programas y procesos de la Salud Pública y el Plan Decenal de Salud en el Municipio  de Caldas.","Realizar campaña de IEC promocionando la vacunación en la población objeto del programa.","Implementación de la estrategia de vacunación sin barreras, que disminuya las oportunidades perdidas y garantice el acceso a la vacunación","Talleres para promocionar la importancia de los esquemas de vacunación, enfermedades que se previenen a través de las vacunas PAI y Covid 19.",10,"Número",2,3,3,2,10,"Promoción de la salud","PIC - Educación y comunicación en salud","2.3.2.02.02.009.2.08","Recursos Provenientes del Sistema General de Participaciones (SGP)",18000000,"Secretaría de Salud","Secretaria de Salud","Luz Omaira Morales Diez "]
[null,"DIMENSIÓN_VIDA_SALUDABLE_Y_ENFERMEDADES_TRANSMISIBLES","NA","Vida Saludable y Enfermedades transmisibles","CONDICIONES_Y_SITUACIONES_ENDEMO_EPIDEMICAS",2020051290038,"Fortalecimiento de los programas y procesos de la Salud Pública y el Plan Decenal de Salud en el Municipio  de Caldas.",2020051290038,"Fortalecimiento de los programas y procesos de la Salud Pública y el Plan Decenal de Salud en el Municipio  de Caldas.","Realizar campaña de entornos saludables asociados a la prevención de IRA.","Gestión integral para la promoción de la salud, prevención y control de las enfermedades transmitidas por vía aérea y de contacto directo","Realizar acciones educativas para prevención de las enfernedades prevalentes de la infancia IRA, EDA, Desnutrición,  el marco de la estrategia Salud Más Cerca. ",40,"Número",10,10,10,10,40,"Promoción de la salud","PIC - Educación y comunicación en salud","2.3.2.02.02.009.2.08","Recursos Provenientes del Sistema General de Participaciones (SGP)",18000000,"Secretaría de Salud","Secretaria de Salud","Luz Omaira Morales Diez "]
[null,"DIMENSIÓN_VIDA_SALUDABLE_Y_ENFERMEDADES_TRANSMISIBLES","NA","Vida Saludable y Enfermedades transmisibles","CONDICIONES_Y_SITUACIONES_ENDEMO_EPIDEMICAS",2020051290038,"Fortalecimiento de los programas y procesos de la Salud Pública y el Plan Decenal de Salud en el Municipio  de Caldas.",2020051290038,"Fortalecimiento de los programas y procesos de la Salud Pública y el Plan Decenal de Salud en el Municipio  de Caldas.","Realizar búsquedas activas comunitarias para eventos de interés de salud pública.","Gestión integral para la promoción de la salud, prevención y control de las enfermedades transmitidas por vía aérea y de contacto directo","Realizar búsquedas activas comunitarias al año para eventos de interés de salud pública",10,"Número",2,3,3,2,10,"Gestión de la salud pública","Vigilancia en Salud Pública","2.3.2.02.02.009.2.08","Recursos Provenientes del Sistema General de Participaciones (SGP)",23000000,"Secretaría de Salud","Secretaria de Salud","Luz Omaira Morales Diez "]
[null,"DIMENSIÓN_VIDA_SALUDABLE_Y_ENFERMEDADES_TRANSMISIBLES","NA","Vida Saludable y Enfermedades transmisibles","ENFERMEDADES_EMERGENTES_RE_EMERGENTES_Y_DESATENDIDAS",2020051290038,"Fortalecimiento de los programas y procesos de la Salud Pública y el Plan Decenal de Salud en el Municipio  de Caldas.",2020051290038,"Fortalecimiento de los programas y procesos de la Salud Pública y el Plan Decenal de Salud en el Municipio  de Caldas.","Verificar el reporte oportuno de las notificaciones en el SIVIGILA de los eventos de interés en salud pública de las UPGD.","Vigilancia en salud pública","Reportes oportunos de los  eventos de interés en salud pública, notificados en el SIVIGILA. ",1,"Porcentaje",1,1,1,1,1,"Gestión de la salud pública","Vigilancia en Salud Pública","2.3.2.02.02.009.2.01","Recursos Provenientes del Sistema General de Participaciones (SGP)",8966259,"Secretaría de Salud","Secretaria de Salud","Luz Omaira Morales Diez "]
[null,"DIMENSIÓN_VIDA_SALUDABLE_Y_ENFERMEDADES_TRANSMISIBLES","NA","Vida Saludable y Enfermedades transmisibles","ENFERMEDADES_EMERGENTES_RE_EMERGENTES_Y_DESATENDIDAS",2020051290038,"Fortalecimiento de los programas y procesos de la Salud Pública y el Plan Decenal de Salud en el Municipio  de Caldas.",2020051290038,"Fortalecimiento de los programas y procesos de la Salud Pública y el Plan Decenal de Salud en el Municipio  de Caldas.","Realizar asesorías y asistencias técnicas a las IPS del municipio en búsqueda activa institucional.","Vigilancia en salud pública","Asesorías y asistencias técnica en BAI a las IPS del Municipio de Caldas. ",10,"Número",1,3,4,2,{"$f":"O35+P35+Q35+R35","v":10},"Gestión de la salud pública"," Vigilancia en Salud Pública","2.3.2.02.02.009.2.02","Recursos Provenientes del Sistema General de Participaciones (SGP)",8966259,"Secretaría de Salud","Secretaria de Salud","Luz Omaira Morales Diez "]
[null,"DIMENSIÓN_SALUD_PÚBLICA_EN_EMERGENCIAS_Y_DESASTRES","NA","Emergencias y Desastres ","GESTION_INTEGRAL_DE_RIESGOS_EN_EMERGENCIAS_Y_DESASTRES",2020051290038,"Fortalecimiento de los programas y procesos de la Salud Pública y el Plan Decenal de Salud en el Municipio  de Caldas.",2020051290038,"Fortalecimiento de los programas y procesos de la Salud Pública y el Plan Decenal de Salud en el Municipio  de Caldas.","Realizar los planes de eventos de mitigación del riesgo en salud pública que se requieran (Sika, Dengue, Chincunguña, Covid-19). ","Fortalecimiento de la capacidad sectorial, transectorial y comunitaria para detectar y responder a eventos de importancia nacional e internacional","Realizar y socializar 100% de los planes de eventos de mitigación del riesgo en salud pública que se requieran, en el Cove Municipal. ",1,"Porcentaje",0,0,0,1,1,"Gestión de la salud pública"," GSP -GESTION-  Vigilancia en Salud Pública","NA","NA",0,"Secretaría de Salud","Secretaria de Salud","Luz Omaira Morales Diez "]
[null,"DIMENSIÓN_SALUD_PÚBLICA_EN_EMERGENCIAS_Y_DESASTRES","NA","Emergencias y Desastres ","RESPUESTA_EN_SALUD_ANTE_SITUACIONES_DE_EMERGENCIAS_Y_DESASTRES",2020051290038,"Fortalecimiento de los programas y procesos de la Salud Pública y el Plan Decenal de Salud en el Municipio  de Caldas.",2020051290038,"Fortalecimiento de los programas y procesos de la Salud Pública y el Plan Decenal de Salud en el Municipio  de Caldas.","Fortalecer en los actores institucionales y  sociales   los conocimientos sobre el riesgo de desastres  en sus diferentes ámbitos y sobre la planificación de las emergencias y desastres","Fortalecimiento de la capacidad sectorial, transectorial y comunitaria para detectar y responder a eventos de importancia nacional e internacional","Realizar 4   reuniones del Equipo de Respuesta Inmediata (ERI) del Municipio de Caldas",4,"Número",1,1,1,1,4,"Gestión de la salud pública","GSP-GESTION   Vigilancia en Salud Pública","NA","NA",0,"Secretaría de Salud","Secretaria de Salud","Luz Omaira Morales Diez "]
[null,"DIMENSIÓN_SALUD_PÚBLICA_EN_EMERGENCIAS_Y_DESASTRES","NA","Emergencias y Desastres ","RESPUESTA_EN_SALUD_ANTE_SITUACIONES_DE_EMERGENCIAS_Y_DESASTRES",2020051290038,"Fortalecimiento de los programas y procesos de la Salud Pública y el Plan Decenal de Salud en el Municipio  de Caldas.",2020051290038,"Fortalecimiento de los programas y procesos de la Salud Pública y el Plan Decenal de Salud en el Municipio  de Caldas.","Fortalecer en los actores institucionales y  sociales   los conocimientos sobre el riesgo de desastres  en sus diferentes ámbitos y sobre la planificación de las emergencias y desastres","Fortalecimiento de la capacidad sectorial, transectorial y comunitaria para detectar y responder a eventos de importancia nacional e internacional","Talleres educativos  sobre el riesgo y manejo de  emergencias y deseastres en  el marco de la estrategia de Salud Más Cerca. (Gestión de riesgos\nCómo actuar frente a una emergencia o desastre)",10,"Número",2,3,3,2,10,"Gestión de riesgo en salud","PIC - Educación y comunicación en salud","2.3.2.02.02.009.2.09","Recursos Provenientes del Sistema General de Participaciones (SGP)",5000000,"Secretaría de Salud","Secretaria de Salud","Luz Omaira Morales Diez "]
[null,"DIMENSIÓN_SALUD_Y_ÁMBITO_LABORAL","NA","Salud y Ámbito Laboral","SEGURIDAD_Y_SALUD_EN_EL_TRABAJO",2020051290038,"Fortalecimiento de los programas y procesos de la Salud Pública y el Plan Decenal de Salud en el Municipio  de Caldas.",2020051290038,"Fortalecimiento de los programas y procesos de la Salud Pública y el Plan Decenal de Salud en el Municipio  de Caldas.","Promover estrategia de estilos, modos y condiciones saludables en el entorno laboral en sector formal e informal de la economía.","Prevención de los riesgos derivados del trabajo en el sector informal de la economía","Caracterización e intervención  de la población  del sector informal de la economia en el  marco de la estrategia de salud más cerca.",1,"Número",0,0,0,1,1,"Gestión de riesgo en salud","PIC - Intervención de la población trabajadora informal y formal","2.3.2.02.02.009.2.10","Recursos Provenientes del Sistema General de Participaciones (SGP)",3000000,"Secretaría de Salud","Secretaria de Salud","Luz Omaira Morales Diez "]
[null,"DIMENSIÓN_TRANSVERSAL_GESTIÓN_DIFERENCIAL_DE_POBLACIONES_VULNERABLES","NA","Gestión diferencial de poblaciones vulnerables","DESARROLLO_INTEGRAL_DE_LAS_NIÑAS_NIÑOS_Y_ADOLESCENTES",2020051290038,"Fortalecimiento de los programas y procesos de la Salud Pública y el Plan Decenal de Salud en el Municipio  de Caldas.",2020051290038,"Fortalecimiento de los programas y procesos de la Salud Pública y el Plan Decenal de Salud en el Municipio  de Caldas.","Implementar una campaña de desparasitación antihelmíntica dirigida a 417 niños en edad escolar (5 - 14 años) del Municipio de Caldas","Implementación nacional y territorial de la Política de Atención Integral a la Primera Infancia, Infancia y Adolescencia, que incluye, entre otras, la implementación y fortalecimiento de la estrategia de Atención Integral para las Enfermedades Prevalentes en la Infancia AIEPI, la estrategia de prevención y reducción de anemia nutricional en niñas y niños; el Programa Ampliado de Inmunizaciones PAI; el plan de disminución de morbilidad y mortalidad neonatal; el programa método madre canguro; servicios de salud amigables para adolescentes y jóvenes; y demás estrategias definidas en las dimensiones prioritarias del Plan Decenal de Salud Pública PDSP, 2012-2021","Realizar, en el marco de la estrategia de Atención Primaria en Salud y Escuelas Saludables, una campaña de desparasitación antihelmíntica dirigida a  417 niños en edad escolar (entre 5 y 14 años), que incluya la aplicación y la capacitación al equipo básico de salud pública, docentes, padres de familia y niños",1,"Número",0,0,0,1,1,"Gestión de riesgo en salud","PIC - Jornadas de salud","NA","NA",0,"Secretaría de Salud","Secretaria de Salud","Luz Omaira Morales Diez "]
[null,"DIMENSIÓN_TRANSVERSAL_GESTIÓN_DIFERENCIAL_DE_POBLACIONES_VULNERABLES","NA","Gestión diferencial de poblaciones vulnerables","DESARROLLO_INTEGRAL_DE_LAS_NIÑAS_NIÑOS_Y_ADOLESCENTES",2020051290038,"Fortalecimiento de los programas y procesos de la Salud Pública y el Plan Decenal de Salud en el Municipio  de Caldas.",2020051290038,"Fortalecimiento de los programas y procesos de la Salud Pública y el Plan Decenal de Salud en el Municipio  de Caldas.","Prevenir lesiones por pólvora en la población Caldeña","Estrategia de Entornos Saludables","Realizar 1 campaña sobre prevencion de lesiones causadas por polvora",{"$f":"SUM(O41:R41)","v":1},"Número",0,0,0,1,{"$f":"O41+P41+Q41+R41","v":1},"Gestión de riesgo en salud","Educación y comunicación en salud","2.3.2.02.02.009.2.11","Recursos Provenientes del Sistema General de Participaciones (SGP)",10175200,"Secretaría de Salud","Secretaria de Salud","Luz Omaira Morales Diez "]
[null,"DIMENSIÓN_TRANSVERSAL_GESTIÓN_DIFERENCIAL_DE_POBLACIONES_VULNERABLES","NA","Asistencia integral al habitante de calle","ENVEJECIMIENTO_Y_VEJEZ",2020051290039,"Implementación de la Política Pública para personas habitantes, en condición de calle y en vulnerabilidad del Municipio de Caldas",2020051290039,"Implementación de la Política Pública para personas habitantes, en condición de calle y en vulnerabilidad del Municipio de Caldas","Acciones para la caracterización e identificación de la población habitante de calle en el Municipio","Promoción del envejecimiento activo y fomento de una cultura positiva de la vejez","Realizar 1 documento de caracterización e identificación de la población habitante de calle en el Municipio",1,"Número",0,0,0,1,1,"Gestión de riesgo en salud"," Coordinación Intersectorial","2.3.2.02.02.006.01","Recursos del Esfuerzo Propio Territorial",1000,"Secretaría de Salud","Secretaria de Salud","Luz Omaira Morales Diez "]
[null,"DIMENSIÓN_TRANSVERSAL_GESTIÓN_DIFERENCIAL_DE_POBLACIONES_VULNERABLES","NA","Asistencia integral al habitante de calle","ENVEJECIMIENTO_Y_VEJEZ",2020051290039,"Implementación de la Política Pública para personas habitantes, en condición de calle y en vulnerabilidad del Municipio de Caldas",2020051290039,"Implementación de la Política Pública para personas habitantes, en condición de calle y en vulnerabilidad del Municipio de Caldas","Acciones de atención Integral de Protección Social de la población habitante de calle en el Municipio","Promoción del envejecimiento activo y fomento de una cultura positiva de la vejez","Realizar atención integral a los adultos mayores  habitante de calle en el Municipio",1,"Porcentaje ",1,1,1,1,1,"Gestión de riesgo en salud"," Coordinación Intersectorial","2.3.2.02.02.006.01","Recursos del Esfuerzo Propio Territorial y SGP proposito general",306556169,"Secretaría de Salud","Secretaria de Salud","Luz Omaira Morales Diez "]
[null,"DIMENSIÓN_TRANSVERSAL_GESTIÓN_DIFERENCIAL_DE_POBLACIONES_VULNERABLES","NA","Gestión diferencial de poblaciones vulnerables","ENVEJECIMIENTO_Y_VEJEZ",2020051290035,"Fortalecimiento a la atención intergral del adulto mayor del municipio de Caldas",2020051290035,"Implementación de la Política Pública para personas habitantes, en condición de calle y en vulnerabilidad del Municipio de Caldas","Acciones de atención integral de adultos mayores inscritos en los diferentes programas de la Administración Municipal ","Promoción del envejecimiento activo y fomento de una cultura positiva de la vejez","Promover el envejecimiento activo en  110   personas mayores inscritas en el Centro Vida Gerontológico ",110,"Personas",110,0,0,0,110,"Gestión de la salud pública"," Coordinación Intersectorial","2.3.2.02.01.002.03-2.3.2.02.02.006.05","Recursos del Esfuerzo Propio Territorial  y  SGP Proposito general",313000000,"Secretaría de Salud","Secretaria de Salud","Luz Omaira Morales Diez "]
[null,"DIMENSIÓN_TRANSVERSAL_GESTIÓN_DIFERENCIAL_DE_POBLACIONES_VULNERABLES","NA","Gestión diferencial de poblaciones vulnerables","ENVEJECIMIENTO_Y_VEJEZ",2020051290035,"Fortalecimiento a la atención intergral del adulto mayor del municipio de Caldas",2020051290035,"Fortalecimiento a la atención intergral del adulto mayor del municipio de Caldas","Seguimiento trimestral a las acciones de implementación de la política pública de adulto mayor ","Promoción del envejecimiento activo y fomento de una cultura positiva de la vejez","Seguimiento trimestral a las acciones de implementación de la política pública de adulto mayor  mediante acuerdo Municipal 013 del 2019.a través de  reuniones  al Cabildo de Adulto Mayor, líderes Gerontológicos y equipo interdisciplinario",4,"Número",1,1,1,1,4,"Gestión de la salud pública"," Coordinación Intersectorial","2.3.2.02.02.009.05","Recursos del Esfuerzo Propio Territorial  y  SGP Proposito general",300000000,"Secretaría de Salud","Secretaria de Salud","Luz Omaira Morales Diez "]
[null,"DIMENSIÓN_TRANSVERSAL_GESTIÓN_DIFERENCIAL_DE_POBLACIONES_VULNERABLES","NA","Gestión diferencial de poblaciones vulnerables","ENVEJECIMIENTO_Y_VEJEZ",2020051290035,"Fortalecimiento a la atención intergral del adulto mayor del municipio de Caldas",2020051290035,"Fortalecimiento a la atención intergral del adulto mayor del municipio de Caldas","Acciones de promoción de la corresponsabilidad de la familia en el desarrollo de la atención integral a las personas mayores o con discapacidad","Promoción del envejecimiento activo y fomento de una cultura positiva de la vejez","Realizar acciones permanentes de promoción de la corresponsabilidad de la familia en el desarrollo de la atención integral a las personas mayores o con discapacidad",1,"porcentaje ",1,1,1,1,1,"Promoción de la salud"," Información en salud","2.3.2.02.02.009.08","Recursos del Esfuerzo Propio Territorial",2000000,"Secretaría de Salud","Secretaria de Salud","Luz Omaira Morales Diez "]
[null,"DIMENSIÓN_TRANSVERSAL_GESTIÓN_DIFERENCIAL_DE_POBLACIONES_VULNERABLES","NA","Gestión diferencial de poblaciones vulnerables","ENVEJECIMIENTO_Y_VEJEZ",2020051290035,"Fortalecimiento a la atención intergral del adulto mayor del municipio de Caldas",2020051290035,"Fortalecimiento a la atención intergral del adulto mayor del municipio de Caldas","Generar e implementar una ruta de atención intersectorial para el adulto mayor, con discapacidad, sus familias y cuidadores, con el fin de incluirlos dentro de la oferta programática sectorial","Fortalecimiento de la institucionalidad para responder equitativamente al goce efectivo de derechos y a las necesidades y demandas de las personas mayores","implementar una ruta de atención intersectorial para el adulto mayor, con discapacidad, para promover la identificación y acompañamiento de los cuidadores y sujetos de cuidado de las personas mayores del municipio.",1,"Número",1,0,0,0,{"$f":"O47+P47+Q47+R47","v":1},"Gestión de la salud pública"," Coordinación Intersectorial","2.3.2.02.02.009.01","SGP Proposito general",18554770,"Secretaría de Salud","Secretaria de Salud","Luz Omaira Morales Diez "]
["Desarrollar estrategias que promuevan el aseguramiento en salud.","DIMENSIÓN_TRANSVERSAL_GESTIÓN_DIFERENCIAL_DE_POBLACIONES_VULNERABLES","NA","Gestión diferencial de poblaciones vulnerables","DISCAPACIDAD",2020051290036,"Fortalecimiento a la atención de las personas con discapacidad en el Municipio de Caldas",2020051290036,"Fortalecimiento a la atención de las personas con discapacidad en el Municipio de Caldas","Acciones de atención integral de personas en situación de discapacidad inscritos en los diferentes programas de la Administración Municipal ","Promoción de trato digno hacia las personas con discapacidad","Realizar atención integral a 120 personas en situación de discapacidad del Municipio de Caldas ",120,"Personas",120,0,0,0,120,"Gestión de la salud pública"," Coordinación Intersectorial","2.3.2.02.01.002.04-2.3.2.02.02.006.04","Recursos del Esfuerzo Propio Territorial y  SGP proposito general",118000000,"Secretaría de Salud","Secretaria de Salud","Luz Omaira Morales Diez "]
[null,"DIMENSIÓN_TRANSVERSAL_GESTIÓN_DIFERENCIAL_DE_POBLACIONES_VULNERABLES","NA","Gestión diferencial de poblaciones vulnerables","DISCAPACIDAD",2020051290036,"Fortalecimiento a la atención de las personas con discapacidad en el Municipio de Caldas",2020051290036,"Fortalecimiento a la atención de las personas con discapacidad en el Municipio de Caldas","Caracterización e identificación de la población en situación de discapacidad como estrategia de atención de atención integral.","Promoción de trato digno hacia las personas con discapacidad","Caracterización e identificación de la población en situación de discapacidad ",1,"Número",0,0,0,1,1,"Gestión de la salud pública"," Coordinación Intersectorial","2.3.2.02.02.009.04","Recursos del Esfuerzo Propio Territorial y  SGP proposito general",10000000,"Secretaría de Salud","Secretaria de Salud","Luz Omaira Morales Diez "]
[null,"DIMENSIÓN_TRANSVERSAL_GESTIÓN_DIFERENCIAL_DE_POBLACIONES_VULNERABLES","NA","Gestión diferencial de poblaciones vulnerables","DISCAPACIDAD",2020051290036,"Fortalecimiento a la atención de las personas con discapacidad en el Municipio de Caldas",2020051290036,"Fortalecimiento a la atención de las personas con discapacidad en el Municipio de Caldas","Formulación e implementación del plan estrategico de la política pública de discapacidad mediante acuerdo Municipal 013 del 2019.","Promoción de trato digno hacia las personas con discapacidad","Implementación del plan estrategico de la política pública de discapacidad mediante acuerdo Municipal 013 del 2019.",1,"Número",1,0,0,0,1,"Gestión de la salud pública"," Coordinación Intersectorial","2.3.2.02.02.009.04","Recursos del Esfuerzo Propio Territorial",250000000,"Secretaría de Salud","Secretaria de Salud","Luz Omaira Morales Diez "]
[null,"DIMENSIÓN_FORTALECIMIENTO_DE_LA_AUTORIDAD_SANITARIA_PARA_LA_GESTIÓN_EN_SALUD","NA","Fortalecimiento de la Autoridad Sanitaria ","FORTALECIMIENTO_DE_LA_AUTORIDAD_SANITARIA",2020051290041,"Administración de los servicios de aseguramiento en salud en el Municipio de Caldas",2020051290041,"Administración de los servicios de aseguramiento en salud en el Municipio de Caldas","Realizar el seguimiento a las afiliaciones institucionales realizadas por la ESE Hospital San Vicente de Paúl de Caldas","Estrategias para garantizar el aseguramiento y provisión adecuada de servicios de salud","Realizar seguimiento mensual a la Empresa Social del Estado, al proceso de afiliaciones  institucionales ",{"$f":"SUM(O51:R51)","v":12},"Número",3,3,3,3,12,"Gestión de la salud pública"," Gestión del Aseguramiento","No aplica","No aplica",0,"Secretaría de Salud","Secretaria de Salud","Luz Omaira Morales Diez "]
[null,"DIMENSIÓN_FORTALECIMIENTO_DE_LA_AUTORIDAD_SANITARIA_PARA_LA_GESTIÓN_EN_SALUD","NA","Fortalecimiento de la Autoridad Sanitaria ","FORTALECIMIENTO_DE_LA_AUTORIDAD_SANITARIA",2020051290041,"Administración de los servicios de aseguramiento en salud en el Municipio de Caldas",2020051290041,"Administración de los servicios de aseguramiento en salud en el Municipio de Caldas","Acciones para garantizar el aseguramiento en salud de la poblacin objetivo","Estrategias para garantizar el aseguramiento y provisión adecuada de servicios de salud","Suscripcion de acto administrativo para garantizar la continuidada del aseguramiento  de los afiliados al regimen subsidiado y la afiliacion de la poblacion pobre no asegurada. Vigencia 2023 ",1,"Número",1,0,0,0,1,"Gestión de la salud pública"," Gestión del Aseguramiento","2.3.2.02.02.009.1.02- 2.3.2.02.02.009.1.03- 2.3.2.02.02.009.1.05- 2.3.2.02.02.009.1.04","Cofinanciación Nacional",19427184000,"Secretaría de Salud","Secretaria de Salud","Luz Omaira Morales Diez "]
[null,"DIMENSIÓN_FORTALECIMIENTO_DE_LA_AUTORIDAD_SANITARIA_PARA_LA_GESTIÓN_EN_SALUD","NA","Fortalecimiento de la Autoridad Sanitaria ","FORTALECIMIENTO_DE_LA_AUTORIDAD_SANITARIA",2020051290041,"Administración de los servicios de aseguramiento en salud en el Municipio de Caldas",2020051290041,"Administración de los servicios de aseguramiento en salud en el Municipio de Caldas","Acciones para garantizar el aseguramiento en salud de la poblacin objetivo","Estrategias para garantizar el aseguramiento y provisión adecuada de servicios de salud","Suscripcion de acto administrativo para garantizar la continuidada del aseguramiento  de los afiliados al regimen subsidiado y la afiliacion de la poblacion pobre no asegurada. Vigencia 2024",1,"Número",1,0,0,0,1,"Gestión de la salud pública"," Gestión del Aseguramiento","2.3.2.02.02.009.1.01- 2.3.2.02.02.009.1.06","Recursos del Esfuerzo Propio Territorial",1308009020,"Secretaría de Salud","Secretaria de Salud","Luz Omaira Morales Diez "]
[null,"DIMENSIÓN_FORTALECIMIENTO_DE_LA_AUTORIDAD_SANITARIA_PARA_LA_GESTIÓN_EN_SALUD","NA","Fortalecimiento de la Autoridad Sanitaria ","FORTALECIMIENTO_DE_LA_AUTORIDAD_SANITARIA",2020051290041,"Administración de los servicios de aseguramiento en salud en el Municipio de Caldas",2020051290041,"Administración de los servicios de aseguramiento en salud en el Municipio de Caldas","Elaborar  y reportar bimestralmente los informes de auditoría realizados  a la Entidad Promotora de Salud (EPS) del Régimen subsisiado y a las Entidades Promotoras de Salud (EPS) en movilidad","Estrategias para garantizar el aseguramiento y provisión adecuada de servicios de salud ","Elaborar y reportar 12 informes de Auditoría al Régimen Subsidiado a la Entidad Promotora de Salud (EPS) del Régimen subsisiado y a las Entidades Promotoras de Salud (EPS) en movilidad",12,"Informes",0,6,0,6,12,"Gestión de la salud pública","Gestión del Aseguramiento","No aplica","No aplica",0,"Secretaría de Salud","Secretaria de Salud","Luz Omaira Morales Diez "]
[null,"DIMENSIÓN_FORTALECIMIENTO_DE_LA_AUTORIDAD_SANITARIA_PARA_LA_GESTIÓN_EN_SALUD","NA","Fortalecimiento de la Autoridad Sanitaria ","FORTALECIMIENTO_DE_LA_AUTORIDAD_SANITARIA",2020051290001,"Servicios de atención de urgencias en el primer nivel a la población pobre y vulnerable no asegurada por subsidio a la demanda en el Municipio de Caldas",2020051290001,"Servicios de atención en el primer nivel a la población pobre y vulnerable no asegurada por subsidio a la demanda en el Municipio de Caldas","Suscripción de un Contrato Interadministrativo con la ESE Hospital San Vicente de Paúl del Municipio de Caldas, con el fin de garantizar la prestación del  servicio de salud en el primer nivel de complejidad a la población pobre no cubierta con subsidios a la demanda","Gestión de recursos para la atención en salud de la población pobre no cubierta con subsidios a la demanda ","Suscribir contrato interadministrativo con la ESE Hospital San Vicente de Paul  del  Municipio de Caldas con el fin de garantizar la prestacion del servicio en el primer nivel de complejidad a la población pobre no cubierta con subsidios a la demanda",1,"Número",1,0,0,0,1,"Gestión de la salud pública"," Gestión de la prestación de servicios individuales","2.3.2.02.02.009.3.02","Recursos del Esfuerzo Propio Territorial",50000000,"Secretaría de Salud","Secretaria de Salud","Luz Omaira Morales Diez "]
[null,"DIMENSIÓN_FORTALECIMIENTO_DE_LA_AUTORIDAD_SANITARIA_PARA_LA_GESTIÓN_EN_SALUD","NA","Fortalecimiento de la Autoridad Sanitaria ","FORTALECIMIENTO_DE_LA_AUTORIDAD_SANITARIA",2020051290001,"Servicios de atención de urgencias en el primer nivel a la población pobre y vulnerable no asegurada por subsidio a la demanda en el Municipio de Caldas",2020051290001,"Servicios de atención en el primer nivel a la población pobre y vulnerable no asegurada por subsidio a la demanda en el Municipio de Caldas","Celebrar un contrato interadministrativo para financiar los gastos de operación de la empresa social del esatdo Hspital San Vicente de paul destinados a la prestacion de servicios de salud. ","Gestión de recursos para la atención en salud de la población pobre no cubierta con subsidios a la demanda ","Celebrar un contrato interadministrativo para financiar los gastos de operación de la empresa social del esatdo Hspital San Vicente de paul destinados a la prestacion de servicios de salud. ",1,"Numero ",1,0,0,0,1,"Gestión de la salud pública"," Gestión de la prestación de servicios individuales","2.3.2.02.02.009.3.01","Recursos Provenientes del Sistema General de Participaciones (SGP)",416916000,"Secretaría de Salud","Secretaria de Salud","Luz Omaira Morales Diez "]
[null,"DIMENSIÓN_FORTALECIMIENTO_DE_LA_AUTORIDAD_SANITARIA_PARA_LA_GESTIÓN_EN_SALUD","NA","Fortalecimiento de la Autoridad Sanitaria ","FORTALECIMIENTO_DE_LA_AUTORIDAD_SANITARIA",2020051290038,"Fortalecimiento de los programas y procesos de la Salud Pública y el Plan Decenal de Salud en el Municipio  de Caldas.",2020051290038,"Fortalecimiento de los programas y procesos de la Salud Pública y el Plan Decenal de Salud en el Municipio  de Caldas.","Fortalecimiento de la Salud Pública del Municipio de Caldas con la Actualización  del Análisis de la situación de salud - ASIS del Municipio","Análisis de Situación de Salud ASIS, con enfoque de determinantes sociales","Realizar el Análisis de la situación de salud - ASIS del Municipio con enfoque de determinantes sociales",1,"Número",0,0,0,1,1,"Gestión de la salud pública"," GSP - GESTION Gestión del conocimiento","No aplica","No aplica",0,"Secretaría de Salud","Secretaria de Salud","Luz Omaira Morales Diez "]
[null,"DIMENSIÓN_FORTALECIMIENTO_DE_LA_AUTORIDAD_SANITARIA_PARA_LA_GESTIÓN_EN_SALUD","NA","Fortalecimiento de la Autoridad Sanitaria ","FORTALECIMIENTO_DE_LA_AUTORIDAD_SANITARIA",2020051290038,"Fortalecimiento de los programas y procesos de la Salud Pública y el Plan Decenal de Salud en el Municipio  de Caldas.",2020051290038,"Fortalecimiento de los programas y procesos de la Salud Pública y el Plan Decenal de Salud en el Municipio  de Caldas.","Fortalecimiento de la Vigilancia Epidemiológica municipal","Desarrollo y actualización de instrumentos, modelos de vigilancia del sistema y sus subcomponentes, vigilancia en salud pública y vigilancia sanitaria, y el componente de Inspección, Vigilancia y Control IVC.","Promocionar y fortalecer  la participación social comunitaria (COVE,COVECON, redes de vigilancia epidemiologica).",20,"Número",5,5,5,5,20,"Gestión de la Salud Pública","GSP - GESTION  Vigilancia en Salud Pública","No aplica","No aplica",0,"Secretaría de Salud","Secretaria de Salud","Luz Omaira Morales Diez "]
[null,"DIMENSIÓN_FORTALECIMIENTO_DE_LA_AUTORIDAD_SANITARIA_PARA_LA_GESTIÓN_EN_SALUD","NA","Fortalecimiento de la Autoridad Sanitaria ","FORTALECIMIENTO_DE_LA_AUTORIDAD_SANITARIA",2020051290038,"Fortalecimiento de los programas y procesos de la Salud Pública y el Plan Decenal de Salud en el Municipio  de Caldas.",2020051290038,"Fortalecimiento de los programas y procesos de la Salud Pública y el Plan Decenal de Salud en el Municipio  de Caldas.","Fortalecer  la Vigilancia Epidemiológica de los diferentes eventos de Interes en Salud Pública con la realización del 100%  de las Unidades de Análisis requeridas","Desarrollo y actualización de instrumentos, modelos de vigilancia del sistema y sus subcomponentes, vigilancia en salud pública y vigilancia sanitaria, y el componente de Inspección, Vigilancia y Control IVC.","Realizar las unidades de análisis  de los eventos de interés en salud pública reportados que lo requieran ",1,"Porcentaje",1,1,1,1,1,"Gestión de la salud pública","GSP - GESTION  Vigilancia en Salud Pública","No aplica","No aplica",0,"Secretaría de Salud","Secretaria de Salud","Luz Omaira Morales Diez "]
[null,"DIMENSIÓN_FORTALECIMIENTO_DE_LA_AUTORIDAD_SANITARIA_PARA_LA_GESTIÓN_EN_SALUD","NA","Fortalecimiento de la Autoridad Sanitaria ","FORTALECIMIENTO_DE_LA_AUTORIDAD_SANITARIA",2020051290038,"Fortalecimiento de los programas y procesos de la Salud Pública y el Plan Decenal de Salud en el Municipio  de Caldas.",2020051290038,"Fortalecimiento de los programas y procesos de la Salud Pública y el Plan Decenal de Salud en el Municipio  de Caldas.","Fortalecer  los mecanismos de participación social en salud de competencia para el  ente territoral","Promoción de espacios de participación ciudadana para el control de la provisión de servicios de salud","Realizar 4 reuniones  del Comite de Participación Comunitaria (COPACO), que garanticen  el funcionamiento del mismo",4,"Número",1,1,1,1,4,"Gestión de la salud pública","GSP - GESTION Participación Social","2.3.2.02.02.009.2.02","Recursos Provenientes del Sistema General de Participaciones (SGP)",2516847,"Secretaría de Salud","Secretaria de Salud","Luz Omaira Morales Diez "]
[null,"DIMENSIÓN_FORTALECIMIENTO_DE_LA_AUTORIDAD_SANITARIA_PARA_LA_GESTIÓN_EN_SALUD","NA","Fortalecimiento de la Autoridad Sanitaria ","FORTALECIMIENTO_DE_LA_AUTORIDAD_SANITARIA",2020051290038,"Fortalecimiento de los programas y procesos de la Salud Pública y el Plan Decenal de Salud en el Municipio  de Caldas.",2020051290038,"Fortalecimiento de los programas y procesos de la Salud Pública y el Plan Decenal de Salud en el Municipio  de Caldas.","Fortalecer  los mecanismos de participación social en salud de competencia para el  ente territoral","Promoción de espacios de participación ciudadana para el control de la provisión de servicios de salud","Realizar 4 reuniones del Consejo Municipal de Seguridad Social en Salud (CMSSS) que garanticen el funcionamiento del mismo",4,"Número",1,1,1,1,4,"Gestión de la salud pública","GSP - GESTION Participación Social","2.3.2.02.02.009.2.02","Recursos Provenientes del Sistema General de Participaciones (SGP)",2516844,"Secretaría de Salud","Secretaria de Salud","Luz Omaira Morales Diez "]
[null,"DIMENSIÓN_FORTALECIMIENTO_DE_LA_AUTORIDAD_SANITARIA_PARA_LA_GESTIÓN_EN_SALUD","NA","Fortalecimiento de la Autoridad Sanitaria ","FORTALECIMIENTO_DE_LA_AUTORIDAD_SANITARIA",2020051290038,"Fortalecimiento de los programas y procesos de la Salud Pública y el Plan Decenal de Salud en el Municipio  de Caldas.",2020051290038,"Fortalecimiento de los programas y procesos de la Salud Pública y el Plan Decenal de Salud en el Municipio  de Caldas.","Fortalecer  los mecanismos de participación social en salud de competencia para el  ente territoral","Promoción de espacios de participación ciudadana para el control de la provisión de servicios de salud","Realizar 1 eventos de rendición de cuentas en salud",1,"Número",0,0,0,1,1,"Gestión de la salud pública","GSP - GESTION Participación Social","2.3.2.02.02.009.2.02","Recursos Provenientes del Sistema General de Participaciones (SGP)",2516844,"Secretaría de Salud","Secretaria de Salud","Luz Omaira Morales Diez "]
[null,"DIMENSIÓN_FORTALECIMIENTO_DE_LA_AUTORIDAD_SANITARIA_PARA_LA_GESTIÓN_EN_SALUD","NA","Fortalecimiento de la Autoridad Sanitaria ","FORTALECIMIENTO_DE_LA_AUTORIDAD_SANITARIA",2020051290038,"Fortalecimiento de los programas y procesos de la Salud Pública y el Plan Decenal de Salud en el Municipio  de Caldas.",2020051290038,"Fortalecimiento de los programas y procesos de la Salud Pública y el Plan Decenal de Salud en el Municipio  de Caldas.","Fortalecer  los mecanismos de participación social en salud de competencia para el  ente territoral","Promoción de espacios de participación ciudadana para el control de la provisión de servicios de salud","Realizar una jornada de promoción de la  participación social y comunitario, en el marco de la estrategia de salud más cerca . ",1,"Número",0,0,0,1,1,"Gestión de la salud pública","GSP - GESTION Participación Social","2.3.2.02.02.009.2.02","Recursos del Esfuerzo Propio Territorial",2516844,"Secretaría de Salud","Secretaria de Salud","Luz Omaira Morales Diez "]
[null,"DIMENSIÓN_FORTALECIMIENTO_DE_LA_AUTORIDAD_SANITARIA_PARA_LA_GESTIÓN_EN_SALUD","NA","Fortalecimiento de la Autoridad Sanitaria ","FORTALECIMIENTO_DE_LA_AUTORIDAD_SANITARIA",2020051290038,"Fortalecimiento de los programas y procesos de la Salud Pública y el Plan Decenal de Salud en el Municipio  de Caldas.",2020051290038,"Fortalecimiento de los programas y procesos de la Salud Pública y el Plan Decenal de Salud en el Municipio  de Caldas.","Fortalecer  los mecanismos de participación social en salud de competencia para el  ente territoral","Fortalecimiento de las capacidades locales de gestión de la salud pública","Formular  y ejecutar  el plan de acción de la   politica de  de particiapcion social en salud ",1,"Documento",1,0,0,0,1,"Gestión de la salud pública","GSP - GESTION Participación Social","2.3.2.02.02.009.2.02","Recursos Provenientes del Sistema General de Participaciones (SGP)",2516844,"Secretaría de Salud","Secretaria de Salud","Luz Omaira Morales Diez "]
[0,"DIMENSIÓN_FORTALECIMIENTO_DE_LA_AUTORIDAD_SANITARIA_PARA_LA_GESTIÓN_EN_SALUD","NA","Fortalecimiento de la Autoridad Sanitaria ","FORTALECIMIENTO_DE_LA_AUTORIDAD_SANITARIA",2020051290040,"Implementación de la estrategia \"Salud mas cerca\" en el Municipio de Caldas",2020051290040,"Implementación de la estrategia \"Salud mas cerca\" en el Municipio de Caldas","Desarrollar la estrategia de SALUD MAS CERCA en el 100%","Fortalecimiento de las capacidades locales de gestión de la salud pública","Realizar 100% de las  tomas urbanas  y rurales  programadas dela estrategia  salud más Cerca",1,"Porcentaje ",1,1,1,1,1,"Gestión de la salud pública"," PIC-Jornadas de salud","2.3.2.02.02.009.03","Recursos del Esfuerzo Propio Territorial",40000000,"Secretaría de Salud","Secretaria de Salud","Luz Omaira Morales Diez "]
[null,"DIMENSIÓN_FORTALECIMIENTO_DE_LA_AUTORIDAD_SANITARIA_PARA_LA_GESTIÓN_EN_SALUD","NA","Fortalecimiento de la Autoridad Sanitaria ","FORTALECIMIENTO_DE_LA_AUTORIDAD_SANITARIA",2020051290038,"Fortalecimiento de los programas y procesos de la Salud Pública y el Plan Decenal de Salud en el Municipio  de Caldas.",2020051290038,"Fortalecimiento de los programas y procesos de la Salud Pública y el Plan Decenal de Salud en el Municipio  de Caldas.","Realizar asesorías y/o asistencias técnicas anuales, por cada uno de los proyectos programados, a cada institución prestadora de servicios de salud.","Fortalecimiento de las capacidades locales de gestión de la salud pública","Asesorías y asistencias técnicas a las IPS del Municipio de Caldas. ",12,"Número",0,6,6,0,{"$f":"O66+P66+Q66+R66","v":12},"Gestión de la salud pública","GSP - GESTION Planeacion integral en salud","2.3.2.02.02.009.2.02","Recursos_Provenientes_del_Sistema_General_de_Participaciones_SGP",44932519,"Secretaría de Salud","Secretaria de Salud","Luz Omaira Morales Diez "]
[null,"DIMENSIÓN_FORTALECIMIENTO_DE_LA_AUTORIDAD_SANITARIA_PARA_LA_GESTIÓN_EN_SALUD","NA","Fortalecimiento de la Autoridad Sanitaria ","FORTALECIMIENTO_DE_LA_AUTORIDAD_SANITARIA",2020051290038,"Fortalecimiento de los programas y procesos de la Salud Pública y el Plan Decenal de Salud en el Municipio  de Caldas.",2020051290038,"Fortalecimiento de los programas y procesos de la Salud Pública y el Plan Decenal de Salud en el Municipio  de Caldas.","Fortalecer los procesos de gestión de la salud pública","Fortalecimiento de las capacidades locales de gestión de la salud pública","Fortalecer los procesos de gestión de la salud pública",1,"Porentaje ",1,1,1,1,1,"Gestión de la salud pública","GSP - GESTION Planeacion integral en salud","2.3.2.02.02.009.2.02","Recursos_Provenientes_del_Sistema_General_de_Participaciones_SGP",112101891,"Secretaría de Salud","Secretaria de Salud","Luz Omaira Morales Diez "]
[]
[]
[]
[]
[]
[]
[]
[]
[]
[]
[]
[]
[]
[]
[]
[]
[]
[]
[null,null,null,null,null,null,null,null,null,null,null,"salud mental "]
[null,null,null,null,null,null,null,null,null,null,null,"salud ambiental "]
[null,null,null,null,null,null,null,null,null,null,null,"seguridad alimentaria "]
[null,null,null,null,null,null,null,null,null,null,null,"salud sexual "]
[null,null,null,null,null,null,null,null,null,null,null,"vacunacion "]
[null,null,null,null,null,null,null,null,null,null,null,"vigilancia "]
[null,null,null,null,null,null,null,null,null,null,null,"discapacidad adulto mayor "]
[null,null,null,null,null,null,null,null,null,null,null,"aseguramiento "]
[null,null,null,null,null,null,null,null,null,null,null,"participacion "]
[null,null,null,null,null,null,null,null,null,null,null,"Salud Más Cerca  - Salud Pública  "]
[null,null,null,null,null,null,null,null,null,null,null,"cronicas no trasmisibles "]
[]
[]
[]
[]
[]
[]
[]
[]
[]
[]
[null,null,null,null,null,null,null,null,null,null,null,null,null,null,null,null,null,null,null,null,null,null,null,null,null,null,null,null,null,null,null,{"$f":"AB107+AC107+AD107+AE107","v":0}]
[null,null,null,null,null,null,null,null,null,null,null,null,null,null,null,null,null,null,null,null,null,null,null,null,null,null,null,null,null,null,null,0]
[null,null,null,null,null,null,null,null,null,null,null,null,null,null,null,null,null,null,null,null,null,null,null,null,null,null,null,null,null,null,null,0]
[null,null,null,null,null,null,null,null,null,null,null,null,null,null,null,null,null,null,null,null,null,null,null,null,null,null,null,null,null,null,null,0]
[null,null,null,null,null,null,null,null,null,null,null,null,null,null,null,null,null,null,null,null,null,null,null,null,null,null,null,null,null,null,null,0]
[null,null,null,null,null,null,null,null,null,null,null,null,null,null,null,null,null,null,null,null,null,null,null,null,null,null,null,null,null,null,null,0]
[null,null,null,null,null,null,null,null,null,null,null,null,null,null,null,null,null,null,null,null,null,null,null,null,null,null,null,null,null,null,null,0]
[null,null,null,null,null,null,null,null,null,null,null,null,null,null,null,null,null,null,null,null,null,null,null,null,null,null,null,null,null,null,null,0]
[null,null,null,null,null,null,null,null,null,null,null,null,null,null,null,null,null,null,null,null,null,null,null,null,null,null,null,null,null,null,null,0]
[null,null,null,null,null,null,null,null,null,null,null,null,null,null,null,null,null,null,null,null,null,null,null,null,null,null,null,null,null,null,null,0]
[null,null,null,null,null,null,null,null,null,null,null,null,null,null,null,null,null,null,null,null,null,null,null,null,null,null,null,null,null,null,null,0]
[null,null,null,null,null,null,null,null,null,null,null,null,null,null,null,null,null,null,null,null,null,null,null,null,null,null,null,null,null,null,null,0]
[null,null,null,null,null,null,null,null,null,null,null,null,null,null,null,null,null,null,null,null,null,null,null,null,null,null,null,null,null,null,null,0]
[null,null,null,null,null,null,null,null,null,null,null,null,null,null,null,null,null,null,null,null,null,null,null,null,null,null,null,null,null,null,null,0]
[null,null,null,null,null,null,null,null,null,null,null,null,null,null,null,null,null,null,null,null,null,null,null,null,null,null,null,null,null,null,null,0]
[null,null,null,null,null,null,null,null,null,null,null,null,null,null,null,null,null,null,null,null,null,null,null,null,null,null,null,null,null,null,null,0]
[null,null,null,null,null,null,null,null,null,null,null,null,null,null,null,null,null,null,null,null,null,null,null,null,null,null,null,null,null,null,null,0]
[null,null,null,null,null,null,null,null,null,null,null,null,null,null,null,null,null,null,null,null,null,null,null,null,null,null,null,null,null,null,null,0]
[null,null,null,null,null,null,null,null,null,null,null,null,null,null,null,null,null,null,null,null,null,null,null,null,null,null,null,null,null,null,null,0]
[null,null,null,null,null,null,null,null,null,null,null,null,null,null,null,null,null,null,null,null,null,null,null,null,null,null,null,null,null,null,null,0]
[null,null,null,null,null,null,null,null,null,null,null,null,null,null,null,null,null,null,null,null,null,null,null,null,null,null,null,null,null,null,null,0]
[null,null,null,null,null,null,null,null,null,null,null,null,null,null,null,null,null,null,null,null,null,null,null,null,null,null,null,null,null,null,null,0]
[null,null,null,null,null,null,null,null,null,null,null,null,null,null,null,null,null,null,null,null,null,null,null,null,null,null,null,null,null,null,null,0]
[null,null,null,null,null,null,null,null,null,null,null,null,null,null,null,null,null,null,null,null,null,null,null,null,null,null,null,null,null,null,null,0]
[null,null,null,null,null,null,null,null,null,null,null,null,null,null,null,null,null,null,null,null,null,null,null,null,null,null,null,null,null,null,null,0]
[null,null,null,null,null,null,null,null,null,null,null,null,null,null,null,null,null,null,null,null,null,null,null,null,null,null,null,null,null,null,null,0]
[null,null,null,null,null,null,null,null,null,null,null,null,null,null,null,null,null,null,null,null,null,null,null,null,null,null,null,null,null,null,null,0]
[null,null,null,null,null,null,null,null,null,null,null,null,null,null,null,null,null,null,null,null,null,null,null,null,null,null,null,null,null,null,null,0]
[null,null,null,null,null,null,null,null,null,null,null,null,null,null,null,null,null,null,null,null,null,null,null,null,null,null,null,null,null,null,null,0]
[null,null,null,null,null,null,null,null,null,null,null,null,null,null,null,null,null,null,null,null,null,null,null,null,null,null,null,null,null,null,null,0]
[null,null,null,null,null,null,null,null,null,null,null,null,null,null,null,null,null,null,null,null,null,null,null,null,null,null,null,null,null,null,null,0]
[null,null,null,null,null,null,null,null,null,null,null,null,null,null,null,null,null,null,null,null,null,null,null,null,null,null,null,null,null,null,null,0]
[null,null,null,null,null,null,null,null,null,null,null,null,null,null,null,null,null,null,null,null,null,null,null,null,null,null,null,null,null,null,null,0]
[null,null,null,null,null,null,null,null,null,null,null,null,null,null,null,null,null,null,null,null,null,null,null,null,null,null,null,null,null,null,null,0]
[null,null,null,null,null,null,null,null,null,null,null,null,null,null,null,null,null,null,null,null,null,null,null,null,null,null,null,null,null,null,null,0]
[null,null,null,null,null,null,null,null,null,null,null,null,null,null,null,null,null,null,null,null,null,null,null,null,null,null,null,null,null,null,null,0]
[null,null,null,null,null,null,null,null,null,null,null,null,null,null,null,null,null,null,null,null,null,null,null,null,null,null,null,null,null,null,null,0]
[null,null,null,null,null,null,null,null,null,null,null,null,null,null,null,null,null,null,null,null,null,null,null,null,null,null,null,null,null,null,null,0]
[null,null,null,null,null,null,null,null,null,null,null,null,null,null,null,null,null,null,null,null,null,null,null,null,null,null,null,null,null,null,null,0]
[null,null,null,null,null,null,null,null,null,null,null,null,null,null,null,null,null,null,null,null,null,null,null,null,null,null,null,null,null,null,null,0]
[null,null,null,null,null,null,null,null,null,null,null,null,null,null,null,null,null,null,null,null,null,null,null,null,null,null,null,null,null,null,null,0]
[null,null,null,null,null,null,null,null,null,null,null,null,null,null,null,null,null,null,null,null,null,null,null,null,null,null,null,null,null,null,null,0]
[null,null,null,null,null,null,null,null,null,null,null,null,null,null,null,null,null,null,null,null,null,null,null,null,null,null,null,null,null,null,null,0]
[null,null,null,null,null,null,null,null,null,null,null,null,null,null,null,null,null,null,null,null,null,null,null,null,null,null,null,null,null,null,null,0]
[null,null,null,null,null,null,null,null,null,null,null,null,null,null,null,null,null,null,null,null,null,null,null,null,null,null,null,null,null,null,null,0]
[null,null,null,null,null,null,null,null,null,null,null,null,null,null,null,null,null,null,null,null,null,null,null,null,null,null,null,null,null,null,null,0]
[null,null,null,null,null,null,null,null,null,null,null,null,null,null,null,null,null,null,null,null,null,null,null,null,null,null,null,null,null,null,null,0]
[null,null,null,null,null,null,null,null,null,null,null,null,null,null,null,null,null,null,null,null,null,null,null,null,null,null,null,null,null,null,null,0]
[null,null,null,null,null,null,null,null,null,null,null,null,null,null,null,null,null,null,null,null,null,null,null,null,null,null,null,null,null,null,null,0]
[null,null,null,null,null,null,null,null,null,null,null,null,null,null,null,null,null,null,null,null,null,null,null,null,null,null,null,null,null,null,null,0]
[null,null,null,null,null,null,null,null,null,null,null,null,null,null,null,null,null,null,null,null,null,null,null,null,null,null,null,null,null,null,null,0]
[null,null,null,null,null,null,null,null,null,null,null,null,null,null,null,null,null,null,null,null,null,null,null,null,null,null,null,null,null,null,null,0]
[null,null,null,null,null,null,null,"2016-05000-0236","Fortalecimiento de la estrategia de Atención Primaria en salud-renovada con enfoque integral Todo El Departamento Antioquia",null,null,null,null,null,null,null,null,null,null,null,null,null,null,null,null,null,null,null,null,null,null,0]
[null,null,null,null,null,null,null,"2016-05000-0236","Fortalecimiento de la estrategia de Atención Primaria en salud-renovada con enfoque integral Todo El Departamento Antioquia",null,null,null,null,null,null,null,null,null,null,null,null,null,null,null,null,null,null,null,null,null,null,0]
[null,null,null,null,null,null,null,"2016-05000-0236","Fortalecimiento de la estrategia de Atención Primaria en salud-renovada con enfoque integral Todo El Departamento Antioquia",null,null,null,null,null,null,null,null,null,null,null,null,null,null,null,null,null,null,null,null,null,null,{"$f":"AB161+AC161+AD161+AE161","v":0}]
[null,null,null,null,null,null,null,"2016-05000-0236","Fortalecimiento de la estrategia de Atención Primaria en salud-renovada con enfoque integral Todo El Departamento Antioquia",null,null,null,null,null,null,null,null,null,null,null,null,null,null,null,null,null,null,null,null,null,null,0]
[null,null,null,null,null,null,null,"2016-05000-0236","Fortalecimiento de la estrategia de Atención Primaria en salud-renovada con enfoque integral Todo El Departamento Antioquia",null,null,null,null,null,null,null,null,null,null,null,null,null,null,null,null,null,null,null,null,null,null,0]
[null,null,null,null,null,null,null,"2016-05000-0236","Fortalecimiento de la estrategia de Atención Primaria en salud-renovada con enfoque integral Todo El Departamento Antioquia",null,null,null,null,null,null,null,null,null,null,null,null,null,null,null,null,null,null,null,null,null,null,0]
[]
[]
[]
[]
[]
[]
[]
[]
[]
[]
[]
[null,null,null,null,null,null,null,null,null,null,null,null,null,null,null,null,null,null,null,null,null,null,null,null,null,null,null,null,null,null,null,0]
[null,null,null,null,null,null,null,null,null,null,null,null,null,null,null,null,null,null,null,null,null,null,null,null,null,null,null,null,null,null,null,0]
[null,null,null,null,null,null,null,null,null,null,null,null,null,null,null,null,null,null,null,null,null,null,null,null,null,null,null,null,null,null,null,0]
[null,null,null,null,null,null,null,null,null,null,null,null,null,null,null,null,null,null,null,null,null,null,null,null,null,null,null,null,null,null,null,0]
[null,null,null,null,null,null,null,null,null,null,null,null,null,null,null,null,null,null,null,null,null,null,null,null,null,null,null,null,null,null,null,0]
[null,null,null,null,null,null,null,null,null,null,null,null,null,null,null,null,null,null,null,null,null,null,null,null,null,null,null,null,null,null,null,0]
[null,null,null,null,null,null,null,null,null,null,null,null,null,null,null,null,null,null,null,null,null,null,null,null,null,null,null,null,null,null,null,0]
[null,null,null,null,null,null,null,null,null,null,null,null,null,null,null,null,null,null,null,null,null,null,null,null,null,null,null,null,null,null,null,0]
[null,null,null,null,null,null,null,null,null,null,null,null,null,null,null,null,null,null,null,null,null,null,null,null,null,null,null,null,null,null,null,0]
[null,null,null,null,null,null,null,null,null,null,null,null,null,null,null,null,null,null,null,null,null,null,null,null,null,null,null,null,null,null,null,0]
[null,null,null,null,null,null,null,null,null,null,null,null,null,null,null,null,null,null,null,null,null,null,null,null,null,null,null,null,null,null,null,0]
[null,null,null,null,null,null,null,null,null,null,null,null,null,null,null,null,null,null,null,null,null,null,null,null,null,null,null,null,null,null,null,0]
[null,null,null,null,null,null,null,null,null,null,null,null,null,null,null,null,null,null,null,null,null,null,null,null,null,null,null,null,null,null,null,0]
[null,null,null,null,null,null,null,null,null,null,null,null,null,null,null,null,null,null,null,null,null,null,null,null,null,null,null,null,null,null,null,0]
[null,null,null,null,null,null,null,null,null,null,null,null,null,null,null,null,null,null,null,null,null,null,null,null,null,null,null,null,null,null,null,0]
[null,null,null,null,null,null,null,null,null,null,null,null,null,null,null,null,null,null,null,null,null,null,null,null,null,null,null,null,null,null,null,0]
[]
[null,null,null,null,null,null,null,null,null,null,null,null,null,null,null,null,null,null,null,null,null,null,null,null,null,null,null,null,null,null,null,0]
[null,null,null,null,null,null,null,null,null,null,null,null,null,null,null,null,null,null,null,null,null,null,null,null,null,null,null,null,null,null,null,0]
[null,null,null,null,null,null,null,null,null,null,null,null,null,null,null,null,null,null,{"$f":"O195+P195+Q195+R195","v":0},null,null,null,null,null,null,null,null,null,null,null,null,0]
[null,null,null,null,null,null,null,null,null,null,null,null,null,null,null,null,null,null,0,null,null,null,null,null,null,null,null,null,null,null,null,0]
[null,null,null,null,null,null,null,null,null,null,null,null,null,null,null,null,null,null,0,null,null,null,null,null,null,null,null,null,null,null,null,0]
[null,null,null,null,null,null,null,null,null,null,null,null,null,null,null,null,null,null,0,null,null,null,null,null,null,null,null,null,null,null,null,0]
[null,null,null,null,null,null,null,null,null,null,null,null,null,null,null,null,null,null,0,null,null,null,null,null,null,null,null,null,null,null,null,0]
[null,null,null,null,null,null,null,null,null,null,null,null,null,null,null,null,null,null,0,null,null,null,null,null,null,null,null,null,null,null,null,0]
[null,null,null,null,null,null,null,null,null,null,null,null,null,null,null,null,null,null,0,null,null,null,null,null,null,null,null,null,null,null,null,0]
[null,null,null,null,null,null,null,null,null,null,null,null,null,null,null,null,null,null,0,null,null,null,null,null,null,null,null,null,null,null,null,0]
[null,null,null,null,null,null,null,null,null,null,null,null,null,null,null,null,null,null,0,null,null,null,null,null,null,null,null,null,null,null,null,0]
[null,null,null,null,null,null,null,null,null,null,null,null,null,null,null,null,null,null,0,null,null,null,null,null,null,null,null,null,null,null,null,0]
[null,null,null,null,null,null,null,null,null,null,null,null,null,null,null,null,null,null,0,null,null,null,null,null,null,null,null,null,null,null,null,0]
[null,null,null,null,null,null,null,null,null,null,null,null,null,null,null,null,null,null,0,null,null,null,null,null,null,null,null,null,null,null,null,0]
[null,null,null,null,null,null,null,null,null,null,null,null,null,null,null,null,null,null,0,null,null,null,null,null,null,null,null,null,null,null,null,0]
[null,null,null,null,null,null,null,null,null,null,null,null,null,null,null,null,null,null,0,null,null,null,null,null,null,null,null,null,null,null,null,0]
[null,null,null,null,null,null,null,null,null,null,null,null,null,null,null,null,null,null,0,null,null,null,null,null,null,null,null,null,null,null,null,0]
[null,null,null,null,null,null,null,null,null,null,null,null,null,null,null,null,null,null,0,null,null,null,null,null,null,null,null,null,null,null,null,0]
[null,null,null,null,null,null,null,null,null,null,null,null,null,null,null,null,null,null,0,null,null,null,null,null,null,null,null,null,null,null,null,0]
[null,null,null,null,null,null,null,null,null,null,null,null,null,null,null,null,null,null,0,null,null,null,null,null,null,null,null,null,null,null,null,0]
[null,null,null,null,null,null,null,null,null,null,null,null,null,null,null,null,null,null,0,null,null,null,null,null,null,null,null,null,null,null,null,0]
[null,null,null,null,null,null,null,null,null,null,null,null,null,null,null,null,null,null,0,null,null,null,null,null,null,null,null,null,null,null,null,0]
[null,null,null,null,null,null,null,null,null,null,null,null,null,null,null,null,null,null,0,null,null,null,null,null,null,null,null,null,null,null,null,0]
[null,null,null,null,null,null,null,null,null,null,null,null,null,null,null,null,null,null,0,null,null,null,null,null,null,null,null,null,null,null,null,0]
[null,null,null,null,null,null,null,null,null,null,null,null,null,null,null,null,null,null,0,null,null,null,null,null,null,null,null,null,null,null,null,0]
[null,null,null,null,null,null,null,null,null,null,null,null,null,null,null,null,null,null,0,null,null,null,null,null,null,null,null,null,null,null,null,0]
[null,null,null,null,null,null,null,null,null,null,null,null,null,null,null,null,null,null,0,null,null,null,null,null,null,null,null,null,null,null,null,0]
[null,null,null,null,null,null,null,null,null,null,null,null,null,null,null,null,null,null,0,null,null,null,null,null,null,null,null,null,null,null,null,0]
[null,null,null,null,null,null,null,null,null,null,null,null,null,null,null,null,null,null,0,null,null,null,null,null,null,null,null,null,null,null,null,0]
[null,null,null,null,null,null,null,null,null,null,null,null,null,null,null,null,null,null,0,null,null,null,null,null,null,null,null,null,null,null,null,0]
[null,null,null,null,null,null,null,null,null,null,null,null,null,null,null,null,null,null,0,null,null,null,null,null,null,null,null,null,null,null,null,0]
[null,null,null,null,null,null,null,null,null,null,null,null,null,null,null,null,null,null,0,null,null,null,null,null,null,null,null,null,null,null,null,0]
[null,null,null,null,null,null,null,null,null,null,null,null,null,null,null,null,null,null,{"$f":"O225+P225+Q225+R225","v":0},null,null,null,null,null,null,null,null,null,null,null,null,{"$f":"AB225+AC225+AD225+AE225","v":0}]
[null,null,null,null,null,null,null,null,null,null,null,null,null,null,null,null,null,null,0,null,null,null,null,null,null,null,null,null,null,null,null,0]
[null,null,null,null,null,null,null,null,null,null,null,null,null,null,null,null,null,null,0,null,null,null,null,null,null,null,null,null,null,null,null,0]
[null,null,null,null,null,null,null,null,null,null,null,null,null,null,null,null,null,null,0,null,null,null,null,null,null,null,null,null,null,null,null,0]
[null,null,null,null,null,null,null,null,null,null,null,null,null,null,null,null,null,null,0,null,null,null,null,null,null,null,null,null,null,null,null,0]
[null,null,null,null,null,null,null,null,null,null,null,null,null,null,null,null,null,null,0,null,null,null,null,null,null,null,null,null,null,null,null,0]
[null,null,null,null,null,null,null,null,null,null,null,null,null,null,null,null,null,null,0,null,null,null,null,null,null,null,null,null,null,null,null,0]
[null,null,null,null,null,null,null,null,null,null,null,null,null,null,null,null,null,null,0,null,null,null,null,null,null,null,null,null,null,null,null,0]
[null,null,null,null,null,null,null,null,null,null,null,null,null,null,null,null,null,null,0,null,null,null,null,null,null,null,null,null,null,null,null,0]
[null,null,null,null,null,null,null,null,null,null,null,null,null,null,null,null,null,null,0,null,null,null,null,null,null,null,null,null,null,null,null,0]
[null,null,null,null,null,null,null,null,null,null,null,null,null,null,null,null,null,null,0,null,null,null,null,null,null,null,null,null,null,null,null,0]
[null,null,null,null,null,null,null,null,null,null,null,null,null,null,null,null,null,null,0,null,null,null,null,null,null,null,null,null,null,null,null,0]
[null,null,null,null,null,null,null,null,null,null,null,null,null,null,null,null,null,null,0,null,null,null,null,null,null,null,null,null,null,null,null,0]
[null,null,null,null,null,null,null,null,null,null,null,null,null,null,null,null,null,null,0,null,null,null,null,null,null,null,null,null,null,null,null,0]
[null,null,null,null,null,null,null,null,null,null,null,null,null,null,null,null,null,null,0,null,null,null,null,null,null,null,null,null,null,null,null,0]
[null,null,null,null,null,null,null,null,null,null,null,null,null,null,null,null,null,null,0,null,null,null,null,null,null,null,null,null,null,null,null,0]
[null,null,null,null,null,null,null,null,null,null,null,null,null,null,null,null,null,null,0,null,null,null,null,null,null,null,null,null,null,null,null,0]
[null,null,null,null,null,null,null,null,null,null,null,null,null,null,null,null,null,null,0,null,null,null,null,null,null,null,null,null,null,null,null,0]
[null,null,null,null,null,null,null,null,null,null,null,null,null,null,null,null,null,null,0,null,null,null,null,null,null,null,null,null,null,null,null,0]
[null,null,null,null,null,null,null,null,null,null,null,null,null,null,null,null,null,null,0,null,null,null,null,null,null,null,null,null,null,null,null,0]
[null,null,null,null,null,null,null,null,null,null,null,null,null,null,null,null,null,null,0,null,null,null,null,null,null,null,null,null,null,null,null,0]
[null,null,null,null,null,null,null,null,null,null,null,null,null,null,null,null,null,null,0,null,null,null,null,null,null,null,null,null,null,null,null,0]
[null,null,null,null,null,null,null,null,null,null,null,null,null,null,null,null,null,null,0,null,null,null,null,null,null,null,null,null,null,null,null,0]
[null,null,null,null,null,null,null,null,null,null,null,null,null,null,null,null,null,null,0,null,null,null,null,null,null,null,null,null,null,null,null,0]
[null,null,null,null,null,null,null,null,null,null,null,null,null,null,null,null,null,null,0,null,null,null,null,null,null,null,null,null,null,null,null,0]
[null,null,null,null,null,null,null,null,null,null,null,null,null,null,null,null,null,null,0,null,null,null,null,null,null,null,null,null,null,null,null,0]
[null,null,null,null,null,null,null,null,null,null,null,null,null,null,null,null,null,null,0,null,null,null,null,null,null,null,null,null,null,null,null,0]
[null,null,null,null,null,null,null,null,null,null,null,null,null,null,null,null,null,null,0,null,null,null,null,null,null,null,null,null,null,null,null,0]
[null,null,null,null,null,null,null,null,null,null,null,null,null,null,null,null,null,null,0,null,null,null,null,null,null,null,null,null,null,null,null,0]
[null,null,null,null,null,null,null,null,null,null,null,null,null,null,null,null,null,null,0,null,null,null,null,null,null,null,null,null,null,null,null,0]
[null,null,null,null,null,null,null,null,null,null,null,null,null,null,null,null,null,null,0,null,null,null,null,null,null,null,null,null,null,null,null,0]
[null,null,null,null,null,null,null,null,null,null,null,null,null,null,null,null,null,null,0,null,null,null,null,null,null,null,null,null,null,null,null,0]
[null,null,null,null,null,null,null,null,null,null,null,null,null,null,null,null,null,null,0,null,null,null,null,null,null,null,null,null,null,null,null,0]
[null,null,null,null,null,null,null,null,null,null,null,null,null,null,null,null,null,null,0,null,null,null,null,null,null,null,null,null,null,null,null,0]
[null,null,null,null,null,null,null,null,null,null,null,null,null,null,null,null,null,null,0,null,null,null,null,null,null,null,null,null,null,null,null,0]
[null,null,null,null,null,null,null,null,null,null,null,null,null,null,null,null,null,null,0,null,null,null,null,null,null,null,null,null,null,null,null,0]
[null,null,null,null,null,null,null,null,null,null,null,null,null,null,null,null,null,null,0,null,null,null,null,null,null,null,null,null,null,null,null,0]
[null,null,null,null,null,null,null,null,null,null,null,null,null,null,null,null,null,null,0,null,null,null,null,null,null,null,null,null,null,null,null,0]
[null,null,null,null,null,null,null,null,null,null,null,null,null,null,null,null,null,null,0,null,null,null,null,null,null,null,null,null,null,null,null,0]
[null,null,null,null,null,null,null,null,null,null,null,null,null,null,null,null,null,null,0,null,null,null,null,null,null,null,null,null,null,null,null,0]
[null,null,null,null,null,null,null,null,null,null,null,null,null,null,null,null,null,null,0,null,null,null,null,null,null,null,null,null,null,null,null,0]
[null,null,null,null,null,null,null,null,null,null,null,null,null,null,null,null,null,null,0,null,null,null,null,null,null,null,null,null,null,null,null,0]
[null,null,null,null,null,null,null,null,null,null,null,null,null,null,null,null,null,null,0,null,null,null,null,null,null,null,null,null,null,null,null,0]
[null,null,null,null,null,null,null,null,null,null,null,null,null,null,null,null,null,null,0,null,null,null,null,null,null,null,null,null,null,null,null,0]
[null,null,null,null,null,null,null,null,null,null,null,null,null,null,null,null,null,null,0,null,null,null,null,null,null,null,null,null,null,null,null,0]
[null,null,null,null,null,null,null,null,null,null,null,null,null,null,null,null,null,null,0,null,null,null,null,null,null,null,null,null,null,null,null,0]
[null,null,null,null,null,null,null,null,null,null,null,null,null,null,null,null,null,null,0,null,null,null,null,null,null,null,null,null,null,null,null,0]
[null,null,null,null,null,null,null,null,null,null,null,null,null,null,null,null,null,null,0,null,null,null,null,null,null,null,null,null,null,null,null,0]
[null,null,null,null,null,null,null,null,null,null,null,null,null,null,null,null,null,null,0,null,null,null,null,null,null,null,null,null,null,null,null,0]
[null,null,null,null,null,null,null,null,null,null,null,null,null,null,null,null,null,null,0,null,null,null,null,null,null,null,null,null,null,null,null,0]
[null,null,null,null,null,null,null,null,null,null,null,null,null,null,null,null,null,null,0,null,null,null,null,null,null,null,null,null,null,null,null,0]
[null,null,null,null,null,null,null,null,null,null,null,null,null,null,null,null,null,null,0,null,null,null,null,null,null,null,null,null,null,null,null,0]
[null,null,null,null,null,null,null,null,null,null,null,null,null,null,null,null,null,null,0,null,null,null,null,null,null,null,null,null,null,null,null,0]
[null,null,null,null,null,null,null,null,null,null,null,null,null,null,null,null,null,null,0,null,null,null,null,null,null,null,null,null,null,null,null,0]
[null,null,null,null,null,null,null,null,null,null,null,null,null,null,null,null,null,null,0,null,null,null,null,null,null,null,null,null,null,null,null,0]
[null,null,null,null,null,null,null,null,null,null,null,null,null,null,null,null,null,null,0,null,null,null,null,null,null,null,null,null,null,null,null,0]
[null,null,null,null,null,null,null,null,null,null,null,null,null,null,null,null,null,null,0,null,null,null,null,null,null,null,null,null,null,null,null,0]
[null,null,null,null,null,null,null,null,null,null,null,null,null,null,null,null,null,null,0,null,null,null,null,null,null,null,null,null,null,null,null,0]
[null,null,null,null,null,null,null,null,null,null,null,null,null,null,null,null,null,null,0,null,null,null,null,null,null,null,null,null,null,null,null,0]
[null,null,null,null,null,null,null,null,null,null,null,null,null,null,null,null,null,null,0,null,null,null,null,null,null,null,null,null,null,null,null,0]
[null,null,null,null,null,null,null,null,null,null,null,null,null,null,null,null,null,null,0,null,null,null,null,null,null,null,null,null,null,null,null,0]
[null,null,null,null,null,null,null,null,null,null,null,null,null,null,null,null,null,null,0,null,null,null,null,null,null,null,null,null,null,null,null,0]
[null,null,null,null,null,null,null,null,null,null,null,null,null,null,null,null,null,null,0,null,null,null,null,null,null,null,null,null,null,null,null,0]
[null,null,null,null,null,null,null,null,null,null,null,null,null,null,null,null,null,null,0,null,null,null,null,null,null,null,null,null,null,null,null,0]
[null,null,null,null,null,null,null,null,null,null,null,null,null,null,null,null,null,null,{"$f":"O289+P289+Q289+R289","v":0},null,null,null,null,null,null,null,null,null,null,null,null,{"$f":"AB289+AC289+AD289+AE289","v":0}]
[null,null,null,null,null,null,null,null,null,null,null,null,null,null,null,null,null,null,0,null,null,null,null,null,null,null,null,null,null,null,null,0]
[null,null,null,null,null,null,null,null,null,null,null,null,null,null,null,null,null,null,0,null,null,null,null,null,null,null,null,null,null,null,null,0]
[null,null,null,null,null,null,null,null,null,null,null,null,null,null,null,null,null,null,0,null,null,null,null,null,null,null,null,null,null,null,null,0]
[null,null,null,null,null,null,null,null,null,null,null,null,null,null,null,null,null,null,0,null,null,null,null,null,null,null,null,null,null,null,null,0]
[null,null,null,null,null,null,null,null,null,null,null,null,null,null,null,null,null,null,0,null,null,null,null,null,null,null,null,null,null,null,null,0]
[null,null,null,null,null,null,null,null,null,null,null,null,null,null,null,null,null,null,0,null,null,null,null,null,null,null,null,null,null,null,null,0]
[null,null,null,null,null,null,null,null,null,null,null,null,null,null,null,null,null,null,0,null,null,null,null,null,null,null,null,null,null,null,null,0]
[null,null,null,null,null,null,null,null,null,null,null,null,null,null,null,null,null,null,0,null,null,null,null,null,null,null,null,null,null,null,null,0]
[null,null,null,null,null,null,null,null,null,null,null,null,null,null,null,null,null,null,0,null,null,null,null,null,null,null,null,null,null,null,null,0]
[null,null,null,null,null,null,null,null,null,null,null,null,null,null,null,null,null,null,0,null,null,null,null,null,null,null,null,null,null,null,null,0]
[null,null,null,null,null,null,null,null,null,null,null,null,null,null,null,null,null,null,0,null,null,null,null,null,null,null,null,null,null,null,null,0]
[null,null,null,null,null,null,null,null,null,null,null,null,null,null,null,null,null,null,0,null,null,null,null,null,null,null,null,null,null,null,null,0]
[null,null,null,null,null,null,null,null,null,null,null,null,null,null,null,null,null,null,0,null,null,null,null,null,null,null,null,null,null,null,null,0]
[null,null,null,null,null,null,null,null,null,null,null,null,null,null,null,null,null,null,0,null,null,null,null,null,null,null,null,null,null,null,null,0]
[null,null,null,null,null,null,null,null,null,null,null,null,null,null,null,null,null,null,0,null,null,null,null,null,null,null,null,null,null,null,null,0]
[null,null,null,null,null,null,null,null,null,null,null,null,null,null,null,null,null,null,0,null,null,null,null,null,null,null,null,null,null,null,null,0]
[null,null,null,null,null,null,null,null,null,null,null,null,null,null,null,null,null,null,0,null,null,null,null,null,null,null,null,null,null,null,null,0]
[null,null,null,null,null,null,null,null,null,null,null,null,null,null,null,null,null,null,0,null,null,null,null,null,null,null,null,null,null,null,null,0]
[null,null,null,null,null,null,null,null,null,null,null,null,null,null,null,null,null,null,0,null,null,null,null,null,null,null,null,null,null,null,null,0]
[null,null,null,null,null,null,null,null,null,null,null,null,null,null,null,null,null,null,0,null,null,null,null,null,null,null,null,null,null,null,null,0]
[null,null,null,null,null,null,null,null,null,null,null,null,null,null,null,null,null,null,0,null,null,null,null,null,null,null,null,null,null,null,null,0]
[null,null,null,null,null,null,null,null,null,null,null,null,null,null,null,null,null,null,0,null,null,null,null,null,null,null,null,null,null,null,null,0]
[null,null,null,null,null,null,null,null,null,null,null,null,null,null,null,null,null,null,0,null,null,null,null,null,null,null,null,null,null,null,null,0]
[null,null,null,null,null,null,null,null,null,null,null,null,null,null,null,null,null,null,0,null,null,null,null,null,null,null,null,null,null,null,null,0]
[null,null,null,null,null,null,null,null,null,null,null,null,null,null,null,null,null,null,0,null,null,null,null,null,null,null,null,null,null,null,null,0]
[null,null,null,null,null,null,null,null,null,null,null,null,null,null,null,null,null,null,0,null,null,null,null,null,null,null,null,null,null,null,null,0]
[null,null,null,null,null,null,null,null,null,null,null,null,null,null,null,null,null,null,0,null,null,null,null,null,null,null,null,null,null,null,null,0]
[null,null,null,null,null,null,null,null,null,null,null,null,null,null,null,null,null,null,0,null,null,null,null,null,null,null,null,null,null,null,null,0]
[null,null,null,null,null,null,null,null,null,null,null,null,null,null,null,null,null,null,0,null,null,null,null,null,null,null,null,null,null,null,null,0]
[null,null,null,null,null,null,null,null,null,null,null,null,null,null,null,null,null,null,0,null,null,null,null,null,null,null,null,null,null,null,null,0]
[null,null,null,null,null,null,null,null,null,null,null,null,null,null,null,null,null,null,0,null,null,null,null,null,null,null,null,null,null,null,null,0]
[null,null,null,null,null,null,null,null,null,null,null,null,null,null,null,null,null,null,0,null,null,null,null,null,null,null,null,null,null,null,null,0]
[null,null,null,null,null,null,null,null,null,null,null,null,null,null,null,null,null,null,0,null,null,null,null,null,null,null,null,null,null,null,null,0]
[null,null,null,null,null,null,null,null,null,null,null,null,null,null,null,null,null,null,0,null,null,null,null,null,null,null,null,null,null,null,null,0]
[null,null,null,null,null,null,null,null,null,null,null,null,null,null,null,null,null,null,0,null,null,null,null,null,null,null,null,null,null,null,null,0]
[null,null,null,null,null,null,null,null,null,null,null,null,null,null,null,null,null,null,0,null,null,null,null,null,null,null,null,null,null,null,null,0]
[null,null,null,null,null,null,null,null,null,null,null,null,null,null,null,null,null,null,0,null,null,null,null,null,null,null,null,null,null,null,null,0]
[null,null,null,null,null,null,null,null,null,null,null,null,null,null,null,null,null,null,0,null,null,null,null,null,null,null,null,null,null,null,null,0]
[null,null,null,null,null,null,null,null,null,null,null,null,null,null,null,null,null,null,0,null,null,null,null,null,null,null,null,null,null,null,null,0]
[null,null,null,null,null,null,null,null,null,null,null,null,null,null,null,null,null,null,0,null,null,null,null,null,null,null,null,null,null,null,null,0]
[null,null,null,null,null,null,null,null,null,null,null,null,null,null,null,null,null,null,0,null,null,null,null,null,null,null,null,null,null,null,null,0]
[null,null,null,null,null,null,null,null,null,null,null,null,null,null,null,null,null,null,0,null,null,null,null,null,null,null,null,null,null,null,null,0]
[null,null,null,null,null,null,null,null,null,null,null,null,null,null,null,null,null,null,0,null,null,null,null,null,null,null,null,null,null,null,null,0]
[null,null,null,null,null,null,null,null,null,null,null,null,null,null,null,null,null,null,0,null,null,null,null,null,null,null,null,null,null,null,null,0]
[null,null,null,null,null,null,null,null,null,null,null,null,null,null,null,null,null,null,0,null,null,null,null,null,null,null,null,null,null,null,null,0]
[null,null,null,null,null,null,null,null,null,null,null,null,null,null,null,null,null,null,0,null,null,null,null,null,null,null,null,null,null,null,null,0]
[null,null,null,null,null,null,null,null,null,null,null,null,null,null,null,null,null,null,0,null,null,null,null,null,null,null,null,null,null,null,null,0]
[null,null,null,null,null,null,null,null,null,null,null,null,null,null,null,null,null,null,0,null,null,null,null,null,null,null,null,null,null,null,null,0]
[null,null,null,null,null,null,null,null,null,null,null,null,null,null,null,null,null,null,0,null,null,null,null,null,null,null,null,null,null,null,null,0]
[null,null,null,null,null,null,null,null,null,null,null,null,null,null,null,null,null,null,0,null,null,null,null,null,null,null,null,null,null,null,null,0]
[null,null,null,null,null,null,null,null,null,null,null,null,null,null,null,null,null,null,0,null,null,null,null,null,null,null,null,null,null,null,null,0]
[null,null,null,null,null,null,null,null,null,null,null,null,null,null,null,null,null,null,0,null,null,null,null,null,null,null,null,null,null,null,null,0]
[null,null,null,null,null,null,null,null,null,null,null,null,null,null,null,null,null,null,0,null,null,null,null,null,null,null,null,null,null,null,null,0]
[null,null,null,null,null,null,null,null,null,null,null,null,null,null,null,null,null,null,0,null,null,null,null,null,null,null,null,null,null,null,null,0]
[null,null,null,null,null,null,null,null,null,null,null,null,null,null,null,null,null,null,0,null,null,null,null,null,null,null,null,null,null,null,null,0]
[null,null,null,null,null,null,null,null,null,null,null,null,null,null,null,null,null,null,0,null,null,null,null,null,null,null,null,null,null,null,null,0]
[null,null,null,null,null,null,null,null,null,null,null,null,null,null,null,null,null,null,0,null,null,null,null,null,null,null,null,null,null,null,null,0]
[null,null,null,null,null,null,null,null,null,null,null,null,null,null,null,null,null,null,0,null,null,null,null,null,null,null,null,null,null,null,null,0]
[null,null,null,null,null,null,null,null,null,null,null,null,null,null,null,null,null,null,0,null,null,null,null,null,null,null,null,null,null,null,null,0]
[null,null,null,null,null,null,null,null,null,null,null,null,null,null,null,null,null,null,0,null,null,null,null,null,null,null,null,null,null,null,null,0]
[null,null,null,null,null,null,null,null,null,null,null,null,null,null,null,null,null,null,0,null,null,null,null,null,null,null,null,null,null,null,null,0]
[null,null,null,null,null,null,null,null,null,null,null,null,null,null,null,null,null,null,0,null,null,null,null,null,null,null,null,null,null,null,null,0]
[null,null,null,null,null,null,null,null,null,null,null,null,null,null,null,null,null,null,0,null,null,null,null,null,null,null,null,null,null,null,null,0]
[null,null,null,null,null,null,null,null,null,null,null,null,null,null,null,null,null,null,{"$f":"O353+P353+Q353+R353","v":0},null,null,null,null,null,null,null,null,null,null,null,null,{"$f":"AB353+AC353+AD353+AE353","v":0}]
[null,null,null,null,null,null,null,null,null,null,null,null,null,null,null,null,null,null,0,null,null,null,null,null,null,null,null,null,null,null,null,0]
[null,null,null,null,null,null,null,null,null,null,null,null,null,null,null,null,null,null,0,null,null,null,null,null,null,null,null,null,null,null,null,0]
[null,null,null,null,null,null,null,null,null,null,null,null,null,null,null,null,null,null,0,null,null,null,null,null,null,null,null,null,null,null,null,0]
[null,null,null,null,null,null,null,null,null,null,null,null,null,null,null,null,null,null,0,null,null,null,null,null,null,null,null,null,null,null,null,0]
[null,null,null,null,null,null,null,null,null,null,null,null,null,null,null,null,null,null,0,null,null,null,null,null,null,null,null,null,null,null,null,0]
[null,null,null,null,null,null,null,null,null,null,null,null,null,null,null,null,null,null,0,null,null,null,null,null,null,null,null,null,null,null,null,0]
[null,null,null,null,null,null,null,null,null,null,null,null,null,null,null,null,null,null,0,null,null,null,null,null,null,null,null,null,null,null,null,0]
[null,null,null,null,null,null,null,null,null,null,null,null,null,null,null,null,null,null,0,null,null,null,null,null,null,null,null,null,null,null,null,0]
[null,null,null,null,null,null,null,null,null,null,null,null,null,null,null,null,null,null,0,null,null,null,null,null,null,null,null,null,null,null,null,0]
[null,null,null,null,null,null,null,null,null,null,null,null,null,null,null,null,null,null,0,null,null,null,null,null,null,null,null,null,null,null,null,0]
[null,null,null,null,null,null,null,null,null,null,null,null,null,null,null,null,null,null,0,null,null,null,null,null,null,null,null,null,null,null,null,0]
[null,null,null,null,null,null,null,null,null,null,null,null,null,null,null,null,null,null,0,null,null,null,null,null,null,null,null,null,null,null,null,0]
[null,null,null,null,null,null,null,null,null,null,null,null,null,null,null,null,null,null,0,null,null,null,null,null,null,null,null,null,null,null,null,0]
[null,null,null,null,null,null,null,null,null,null,null,null,null,null,null,null,null,null,0,null,null,null,null,null,null,null,null,null,null,null,null,0]
[null,null,null,null,null,null,null,null,null,null,null,null,null,null,null,null,null,null,0,null,null,null,null,null,null,null,null,null,null,null,null,0]
[null,null,null,null,null,null,null,null,null,null,null,null,null,null,null,null,null,null,0,null,null,null,null,null,null,null,null,null,null,null,null,0]
[null,null,null,null,null,null,null,null,null,null,null,null,null,null,null,null,null,null,0,null,null,null,null,null,null,null,null,null,null,null,null,0]
[null,null,null,null,null,null,null,null,null,null,null,null,null,null,null,null,null,null,0,null,null,null,null,null,null,null,null,null,null,null,null,0]
[null,null,null,null,null,null,null,null,null,null,null,null,null,null,null,null,null,null,0,null,null,null,null,null,null,null,null,null,null,null,null,0]
[null,null,null,null,null,null,null,null,null,null,null,null,null,null,null,null,null,null,0,null,null,null,null,null,null,null,null,null,null,null,null,0]
[null,null,null,null,null,null,null,null,null,null,null,null,null,null,null,null,null,null,0,null,null,null,null,null,null,null,null,null,null,null,null,0]
[null,null,null,null,null,null,null,null,null,null,null,null,null,null,null,null,null,null,0,null,null,null,null,null,null,null,null,null,null,null,null,0]
[null,null,null,null,null,null,null,null,null,null,null,null,null,null,null,null,null,null,0,null,null,null,null,null,null,null,null,null,null,null,null,0]
[null,null,null,null,null,null,null,null,null,null,null,null,null,null,null,null,null,null,0,null,null,null,null,null,null,null,null,null,null,null,null,0]
[null,null,null,null,null,null,null,null,null,null,null,null,null,null,null,null,null,null,0,null,null,null,null,null,null,null,null,null,null,null,null,0]
[null,null,null,null,null,null,null,null,null,null,null,null,null,null,null,null,null,null,0,null,null,null,null,null,null,null,null,null,null,null,null,0]
[null,null,null,null,null,null,null,null,null,null,null,null,null,null,null,null,null,null,0,null,null,null,null,null,null,null,null,null,null,null,null,0]
[null,null,null,null,null,null,null,null,null,null,null,null,null,null,null,null,null,null,0,null,null,null,null,null,null,null,null,null,null,null,null,0]
[null,null,null,null,null,null,null,null,null,null,null,null,null,null,null,null,null,null,0,null,null,null,null,null,null,null,null,null,null,null,null,0]
[null,null,null,null,null,null,null,null,null,null,null,null,null,null,null,null,null,null,0,null,null,null,null,null,null,null,null,null,null,null,null,0]
[null,null,null,null,null,null,null,null,null,null,null,null,null,null,null,null,null,null,0,null,null,null,null,null,null,null,null,null,null,null,null,0]
[null,null,null,null,null,null,null,null,null,null,null,null,null,null,null,null,null,null,0,null,null,null,null,null,null,null,null,null,null,null,null,0]
[null,null,null,null,null,null,null,null,null,null,null,null,null,null,null,null,null,null,0,null,null,null,null,null,null,null,null,null,null,null,null,0]
[null,null,null,null,null,null,null,null,null,null,null,null,null,null,null,null,null,null,0,null,null,null,null,null,null,null,null,null,null,null,null,0]
[null,null,null,null,null,null,null,null,null,null,null,null,null,null,null,null,null,null,0,null,null,null,null,null,null,null,null,null,null,null,null,0]
[null,null,null,null,null,null,null,null,null,null,null,null,null,null,null,null,null,null,0,null,null,null,null,null,null,null,null,null,null,null,null,0]
[null,null,null,null,null,null,null,null,null,null,null,null,null,null,null,null,null,null,0,null,null,null,null,null,null,null,null,null,null,null,null,0]
[null,null,null,null,null,null,null,null,null,null,null,null,null,null,null,null,null,null,0,null,null,null,null,null,null,null,null,null,null,null,null,0]
[null,null,null,null,null,null,null,null,null,null,null,null,null,null,null,null,null,null,0,null,null,null,null,null,null,null,null,null,null,null,null,0]
[null,null,null,null,null,null,null,null,null,null,null,null,null,null,null,null,null,null,0,null,null,null,null,null,null,null,null,null,null,null,null,0]
[null,null,null,null,null,null,null,null,null,null,null,null,null,null,null,null,null,null,0,null,null,null,null,null,null,null,null,null,null,null,null,0]
[null,null,null,null,null,null,null,null,null,null,null,null,null,null,null,null,null,null,0,null,null,null,null,null,null,null,null,null,null,null,null,0]
[null,null,null,null,null,null,null,null,null,null,null,null,null,null,null,null,null,null,0,null,null,null,null,null,null,null,null,null,null,null,null,0]
[null,null,null,null,null,null,null,null,null,null,null,null,null,null,null,null,null,null,0,null,null,null,null,null,null,null,null,null,null,null,null,0]
[null,null,null,null,null,null,null,null,null,null,null,null,null,null,null,null,null,null,0,null,null,null,null,null,null,null,null,null,null,null,null,0]
[null,null,null,null,null,null,null,null,null,null,null,null,null,null,null,null,null,null,0,null,null,null,null,null,null,null,null,null,null,null,null,0]
[null,null,null,null,null,null,null,null,null,null,null,null,null,null,null,null,null,null,0,null,null,null,null,null,null,null,null,null,null,null,null,0]
[null,null,null,null,null,null,null,null,null,null,null,null,null,null,null,null,null,null,0,null,null,null,null,null,null,null,null,null,null,null,null,0]
[null,null,null,null,null,null,null,null,null,null,null,null,null,null,null,null,null,null,0,null,null,null,null,null,null,null,null,null,null,null,null,0]
[null,null,null,null,null,null,null,null,null,null,null,null,null,null,null,null,null,null,0,null,null,null,null,null,null,null,null,null,null,null,null,0]
[null,null,null,null,null,null,null,null,null,null,null,null,null,null,null,null,null,null,0,null,null,null,null,null,null,null,null,null,null,null,null,0]
[null,null,null,null,null,null,null,null,null,null,null,null,null,null,null,null,null,null,0,null,null,null,null,null,null,null,null,null,null,null,null,0]
[null,null,null,null,null,null,null,null,null,null,null,null,null,null,null,null,null,null,0,null,null,null,null,null,null,null,null,null,null,null,null,0]
[null,null,null,null,null,null,null,null,null,null,null,null,null,null,null,null,null,null,0,null,null,null,null,null,null,null,null,null,null,null,null,0]
[null,null,null,null,null,null,null,null,null,null,null,null,null,null,null,null,null,null,0,null,null,null,null,null,null,null,null,null,null,null,null,0]
[null,null,null,null,null,null,null,null,null,null,null,null,null,null,null,null,null,null,0,null,null,null,null,null,null,null,null,null,null,null,null,0]
[null,null,null,null,null,null,null,null,null,null,null,null,null,null,null,null,null,null,0,null,null,null,null,null,null,null,null,null,null,null,null,0]
[null,null,null,null,null,null,null,null,null,null,null,null,null,null,null,null,null,null,0,null,null,null,null,null,null,null,null,null,null,null,null,0]
[null,null,null,null,null,null,null,null,null,null,null,null,null,null,null,null,null,null,0,null,null,null,null,null,null,null,null,null,null,null,null,0]
[null,null,null,null,null,null,null,null,null,null,null,null,null,null,null,null,null,null,0,null,null,null,null,null,null,null,null,null,null,null,null,0]
[null,null,null,null,null,null,null,null,null,null,null,null,null,null,null,null,null,null,0,null,null,null,null,null,null,null,null,null,null,null,null,0]
[null,null,null,null,null,null,null,null,null,null,null,null,null,null,null,null,null,null,0,null,null,null,null,null,null,null,null,null,null,null,null,0]
[null,null,null,null,null,null,null,null,null,null,null,null,null,null,null,null,null,null,0,null,null,null,null,null,null,null,null,null,null,null,null,0]
[null,null,null,null,null,null,null,null,null,null,null,null,null,null,null,null,null,null,{"$f":"O417+P417+Q417+R417","v":0},null,null,null,null,null,null,null,null,null,null,null,null,{"$f":"AB417+AC417+AD417+AE417","v":0}]
[null,null,null,null,null,null,null,null,null,null,null,null,null,null,null,null,null,null,0,null,null,null,null,null,null,null,null,null,null,null,null,0]
[null,null,null,null,null,null,null,null,null,null,null,null,null,null,null,null,null,null,0,null,null,null,null,null,null,null,null,null,null,null,null,0]
[null,null,null,null,null,null,null,null,null,null,null,null,null,null,null,null,null,null,0,null,null,null,null,null,null,null,null,null,null,null,null,0]
[null,null,null,null,null,null,null,null,null,null,null,null,null,null,null,null,null,null,0,null,null,null,null,null,null,null,null,null,null,null,null,0]
[null,null,null,null,null,null,null,null,null,null,null,null,null,null,null,null,null,null,0,null,null,null,null,null,null,null,null,null,null,null,null,0]
[null,null,null,null,null,null,null,null,null,null,null,null,null,null,null,null,null,null,0,null,null,null,null,null,null,null,null,null,null,null,null,0]
[null,null,null,null,null,null,null,null,null,null,null,null,null,null,null,null,null,null,0,null,null,null,null,null,null,null,null,null,null,null,null,0]
[null,null,null,null,null,null,null,null,null,null,null,null,null,null,null,null,null,null,0,null,null,null,null,null,null,null,null,null,null,null,null,0]
[null,null,null,null,null,null,null,null,null,null,null,null,null,null,null,null,null,null,0,null,null,null,null,null,null,null,null,null,null,null,null,0]
[null,null,null,null,null,null,null,null,null,null,null,null,null,null,null,null,null,null,0,null,null,null,null,null,null,null,null,null,null,null,null,0]
[null,null,null,null,null,null,null,null,null,null,null,null,null,null,null,null,null,null,0,null,null,null,null,null,null,null,null,null,null,null,null,0]
[null,null,null,null,null,null,null,null,null,null,null,null,null,null,null,null,null,null,0,null,null,null,null,null,null,null,null,null,null,null,null,0]
[null,null,null,null,null,null,null,null,null,null,null,null,null,null,null,null,null,null,0,null,null,null,null,null,null,null,null,null,null,null,null,0]
[null,null,null,null,null,null,null,null,null,null,null,null,null,null,null,null,null,null,0,null,null,null,null,null,null,null,null,null,null,null,null,0]
[null,null,null,null,null,null,null,null,null,null,null,null,null,null,null,null,null,null,0,null,null,null,null,null,null,null,null,null,null,null,null,0]
[null,null,null,null,null,null,null,null,null,null,null,null,null,null,null,null,null,null,0,null,null,null,null,null,null,null,null,null,null,null,null,0]
[null,null,null,null,null,null,null,null,null,null,null,null,null,null,null,null,null,null,0,null,null,null,null,null,null,null,null,null,null,null,null,0]
[null,null,null,null,null,null,null,null,null,null,null,null,null,null,null,null,null,null,0,null,null,null,null,null,null,null,null,null,null,null,null,0]
[null,null,null,null,null,null,null,null,null,null,null,null,null,null,null,null,null,null,0,null,null,null,null,null,null,null,null,null,null,null,null,0]
[null,null,null,null,null,null,null,null,null,null,null,null,null,null,null,null,null,null,0,null,null,null,null,null,null,null,null,null,null,null,null,0]
[null,null,null,null,null,null,null,null,null,null,null,null,null,null,null,null,null,null,0,null,null,null,null,null,null,null,null,null,null,null,null,0]
[null,null,null,null,null,null,null,null,null,null,null,null,null,null,null,null,null,null,0,null,null,null,null,null,null,null,null,null,null,null,null,0]
[null,null,null,null,null,null,null,null,null,null,null,null,null,null,null,null,null,null,0,null,null,null,null,null,null,null,null,null,null,null,null,0]
[null,null,null,null,null,null,null,null,null,null,null,null,null,null,null,null,null,null,0,null,null,null,null,null,null,null,null,null,null,null,null,0]
[null,null,null,null,null,null,null,null,null,null,null,null,null,null,null,null,null,null,0,null,null,null,null,null,null,null,null,null,null,null,null,0]
[null,null,null,null,null,null,null,null,null,null,null,null,null,null,null,null,null,null,0,null,null,null,null,null,null,null,null,null,null,null,null,0]
[null,null,null,null,null,null,null,null,null,null,null,null,null,null,null,null,null,null,0,null,null,null,null,null,null,null,null,null,null,null,null,0]
[null,null,null,null,null,null,null,null,null,null,null,null,null,null,null,null,null,null,0,null,null,null,null,null,null,null,null,null,null,null,null,0]
[null,null,null,null,null,null,null,null,null,null,null,null,null,null,null,null,null,null,0,null,null,null,null,null,null,null,null,null,null,null,null,0]
[null,null,null,null,null,null,null,null,null,null,null,null,null,null,null,null,null,null,0,null,null,null,null,null,null,null,null,null,null,null,null,0]
[null,null,null,null,null,null,null,null,null,null,null,null,null,null,null,null,null,null,0,null,null,null,null,null,null,null,null,null,null,null,null,0]
[null,null,null,null,null,null,null,null,null,null,null,null,null,null,null,null,null,null,0,null,null,null,null,null,null,null,null,null,null,null,null,0]
[null,null,null,null,null,null,null,null,null,null,null,null,null,null,null,null,null,null,0,null,null,null,null,null,null,null,null,null,null,null,null,0]
[null,null,null,null,null,null,null,null,null,null,null,null,null,null,null,null,null,null,0,null,null,null,null,null,null,null,null,null,null,null,null,0]
[null,null,null,null,null,null,null,null,null,null,null,null,null,null,null,null,null,null,0,null,null,null,null,null,null,null,null,null,null,null,null,0]
[null,null,null,null,null,null,null,null,null,null,null,null,null,null,null,null,null,null,0,null,null,null,null,null,null,null,null,null,null,null,null,0]
[null,null,null,null,null,null,null,null,null,null,null,null,null,null,null,null,null,null,0,null,null,null,null,null,null,null,null,null,null,null,null,0]
[null,null,null,null,null,null,null,null,null,null,null,null,null,null,null,null,null,null,0,null,null,null,null,null,null,null,null,null,null,null,null,0]
[null,null,null,null,null,null,null,null,null,null,null,null,null,null,null,null,null,null,0,null,null,null,null,null,null,null,null,null,null,null,null,0]
[null,null,null,null,null,null,null,null,null,null,null,null,null,null,null,null,null,null,0,null,null,null,null,null,null,null,null,null,null,null,null,0]
[null,null,null,null,null,null,null,null,null,null,null,null,null,null,null,null,null,null,0,null,null,null,null,null,null,null,null,null,null,null,null,0]
[null,null,null,null,null,null,null,null,null,null,null,null,null,null,null,null,null,null,0,null,null,null,null,null,null,null,null,null,null,null,null,0]
[null,null,null,null,null,null,null,null,null,null,null,null,null,null,null,null,null,null,0,null,null,null,null,null,null,null,null,null,null,null,null,0]
[null,null,null,null,null,null,null,null,null,null,null,null,null,null,null,null,null,null,0,null,null,null,null,null,null,null,null,null,null,null,null,0]
[null,null,null,null,null,null,null,null,null,null,null,null,null,null,null,null,null,null,0,null,null,null,null,null,null,null,null,null,null,null,null,0]
[null,null,null,null,null,null,null,null,null,null,null,null,null,null,null,null,null,null,0,null,null,null,null,null,null,null,null,null,null,null,null,0]
[null,null,null,null,null,null,null,null,null,null,null,null,null,null,null,null,null,null,0,null,null,null,null,null,null,null,null,null,null,null,null,0]
[null,null,null,null,null,null,null,null,null,null,null,null,null,null,null,null,null,null,0,null,null,null,null,null,null,null,null,null,null,null,null,0]
[null,null,null,null,null,null,null,null,null,null,null,null,null,null,null,null,null,null,0,null,null,null,null,null,null,null,null,null,null,null,null,0]
[null,null,null,null,null,null,null,null,null,null,null,null,null,null,null,null,null,null,0,null,null,null,null,null,null,null,null,null,null,null,null,0]
[null,null,null,null,null,null,null,null,null,null,null,null,null,null,null,null,null,null,0,null,null,null,null,null,null,null,null,null,null,null,null,0]
[null,null,null,null,null,null,null,null,null,null,null,null,null,null,null,null,null,null,0,null,null,null,null,null,null,null,null,null,null,null,null,0]
[null,null,null,null,null,null,null,null,null,null,null,null,null,null,null,null,null,null,0,null,null,null,null,null,null,null,null,null,null,null,null,0]
[null,null,null,null,null,null,null,null,null,null,null,null,null,null,null,null,null,null,0,null,null,null,null,null,null,null,null,null,null,null,null,0]
[null,null,null,null,null,null,null,null,null,null,null,null,null,null,null,null,null,null,0,null,null,null,null,null,null,null,null,null,null,null,null,0]
[null,null,null,null,null,null,null,null,null,null,null,null,null,null,null,null,null,null,0,null,null,null,null,null,null,null,null,null,null,null,null,0]
[null,null,null,null,null,null,null,null,null,null,null,null,null,null,null,null,null,null,0,null,null,null,null,null,null,null,null,null,null,null,null,0]
[null,null,null,null,null,null,null,null,null,null,null,null,null,null,null,null,null,null,0,null,null,null,null,null,null,null,null,null,null,null,null,0]
[null,null,null,null,null,null,null,null,null,null,null,null,null,null,null,null,null,null,0,null,null,null,null,null,null,null,null,null,null,null,null,0]
[null,null,null,null,null,null,null,null,null,null,null,null,null,null,null,null,null,null,0,null,null,null,null,null,null,null,null,null,null,null,null,0]
[null,null,null,null,null,null,null,null,null,null,null,null,null,null,null,null,null,null,0,null,null,null,null,null,null,null,null,null,null,null,null,0]
[null,null,null,null,null,null,null,null,null,null,null,null,null,null,null,null,null,null,0,null,null,null,null,null,null,null,null,null,null,null,null,0]
[null,null,null,null,null,null,null,null,null,null,null,null,null,null,null,null,null,null,0,null,null,null,null,null,null,null,null,null,null,null,null,0]
[null,null,null,null,null,null,null,null,null,null,null,null,null,null,null,null,null,null,{"$f":"O481+P481+Q481+R481","v":0},null,null,null,null,null,null,null,null,null,null,null,null,{"$f":"AB481+AC481+AD481+AE481","v":0}]
[null,null,null,null,null,null,null,null,null,null,null,null,null,null,null,null,null,null,0,null,null,null,null,null,null,null,null,null,null,null,null,0]
[null,null,null,null,null,null,null,null,null,null,null,null,null,null,null,null,null,null,0,null,null,null,null,null,null,null,null,null,null,null,null,0]
[null,null,null,null,null,null,null,null,null,null,null,null,null,null,null,null,null,null,0,null,null,null,null,null,null,null,null,null,null,null,null,0]
[null,null,null,null,null,null,null,null,null,null,null,null,null,null,null,null,null,null,0,null,null,null,null,null,null,null,null,null,null,null,null,0]
[null,null,null,null,null,null,null,null,null,null,null,null,null,null,null,null,null,null,0,null,null,null,null,null,null,null,null,null,null,null,null,0]
[null,null,null,null,null,null,null,null,null,null,null,null,null,null,null,null,null,null,0,null,null,null,null,null,null,null,null,null,null,null,null,0]
[null,null,null,null,null,null,null,null,null,null,null,null,null,null,null,null,null,null,0,null,null,null,null,null,null,null,null,null,null,null,null,0]
[null,null,null,null,null,null,null,null,null,null,null,null,null,null,null,null,null,null,0,null,null,null,null,null,null,null,null,null,null,null,null,0]
[null,null,null,null,null,null,null,null,null,null,null,null,null,null,null,null,null,null,0,null,null,null,null,null,null,null,null,null,null,null,null,0]
[null,null,null,null,null,null,null,null,null,null,null,null,null,null,null,null,null,null,0,null,null,null,null,null,null,null,null,null,null,null,null,0]
[null,null,null,null,null,null,null,null,null,null,null,null,null,null,null,null,null,null,0,null,null,null,null,null,null,null,null,null,null,null,null,0]
[null,null,null,null,null,null,null,null,null,null,null,null,null,null,null,null,null,null,0,null,null,null,null,null,null,null,null,null,null,null,null,0]
[null,null,null,null,null,null,null,null,null,null,null,null,null,null,null,null,null,null,0,null,null,null,null,null,null,null,null,null,null,null,null,0]
[null,null,null,null,null,null,null,null,null,null,null,null,null,null,null,null,null,null,0,null,null,null,null,null,null,null,null,null,null,null,null,0]
[null,null,null,null,null,null,null,null,null,null,null,null,null,null,null,null,null,null,0,null,null,null,null,null,null,null,null,null,null,null,null,0]
[null,null,null,null,null,null,null,null,null,null,null,null,null,null,null,null,null,null,0,null,null,null,null,null,null,null,null,null,null,null,null,0]
[null,null,null,null,null,null,null,null,null,null,null,null,null,null,null,null,null,null,0,null,null,null,null,null,null,null,null,null,null,null,null,0]
[null,null,null,null,null,null,null,null,null,null,null,null,null,null,null,null,null,null,0,null,null,null,null,null,null,null,null,null,null,null,null,0]
[null,null,null,null,null,null,null,null,null,null,null,null,null,null,null,null,null,null,0,null,null,null,null,null,null,null,null,null,null,null,null,0]
[null,null,null,null,null,null,null,null,null,null,null,null,null,null,null,null,null,null,0,null,null,null,null,null,null,null,null,null,null,null,null,0]
[null,null,null,null,null,null,null,null,null,null,null,null,null,null,null,null,null,null,0,null,null,null,null,null,null,null,null,null,null,null,null,0]
[null,null,null,null,null,null,null,null,null,null,null,null,null,null,null,null,null,null,0,null,null,null,null,null,null,null,null,null,null,null,null,0]
[null,null,null,null,null,null,null,null,null,null,null,null,null,null,null,null,null,null,0,null,null,null,null,null,null,null,null,null,null,null,null,0]
[null,null,null,null,null,null,null,null,null,null,null,null,null,null,null,null,null,null,0,null,null,null,null,null,null,null,null,null,null,null,null,0]
[null,null,null,null,null,null,null,null,null,null,null,null,null,null,null,null,null,null,0,null,null,null,null,null,null,null,null,null,null,null,null,0]
[null,null,null,null,null,null,null,null,null,null,null,null,null,null,null,null,null,null,0,null,null,null,null,null,null,null,null,null,null,null,null,0]
[null,null,null,null,null,null,null,null,null,null,null,null,null,null,null,null,null,null,0,null,null,null,null,null,null,null,null,null,null,null,null,0]
[null,null,null,null,null,null,null,null,null,null,null,null,null,null,null,null,null,null,0,null,null,null,null,null,null,null,null,null,null,null,null,0]
[null,null,null,null,null,null,null,null,null,null,null,null,null,null,null,null,null,null,0,null,null,null,null,null,null,null,null,null,null,null,null,0]
[null,null,null,null,null,null,null,null,null,null,null,null,null,null,null,null,null,null,0,null,null,null,null,null,null,null,null,null,null,null,null,0]
[null,null,null,null,null,null,null,null,null,null,null,null,null,null,null,null,null,null,0,null,null,null,null,null,null,null,null,null,null,null,null,0]
[null,null,null,null,null,null,null,null,null,null,null,null,null,null,null,null,null,null,0,null,null,null,null,null,null,null,null,null,null,null,null,0]
[null,null,null,null,null,null,null,null,null,null,null,null,null,null,null,null,null,null,0,null,null,null,null,null,null,null,null,null,null,null,null,0]
[null,null,null,null,null,null,null,null,null,null,null,null,null,null,null,null,null,null,0,null,null,null,null,null,null,null,null,null,null,null,null,0]
[null,null,null,null,null,null,null,null,null,null,null,null,null,null,null,null,null,null,0,null,null,null,null,null,null,null,null,null,null,null,null,0]
[null,null,null,null,null,null,null,null,null,null,null,null,null,null,null,null,null,null,0,null,null,null,null,null,null,null,null,null,null,null,null,0]
[null,null,null,null,null,null,null,null,null,null,null,null,null,null,null,null,null,null,0,null,null,null,null,null,null,null,null,null,null,null,null,0]
[null,null,null,null,null,null,null,null,null,null,null,null,null,null,null,null,null,null,0,null,null,null,null,null,null,null,null,null,null,null,null,0]
[null,null,null,null,null,null,null,null,null,null,null,null,null,null,null,null,null,null,0,null,null,null,null,null,null,null,null,null,null,null,null,0]
[null,null,null,null,null,null,null,null,null,null,null,null,null,null,null,null,null,null,0,null,null,null,null,null,null,null,null,null,null,null,null,0]
[null,null,null,null,null,null,null,null,null,null,null,null,null,null,null,null,null,null,0,null,null,null,null,null,null,null,null,null,null,null,null,0]
[null,null,null,null,null,null,null,null,null,null,null,null,null,null,null,null,null,null,0,null,null,null,null,null,null,null,null,null,null,null,null,0]
[null,null,null,null,null,null,null,null,null,null,null,null,null,null,null,null,null,null,0,null,null,null,null,null,null,null,null,null,null,null,null,0]
[null,null,null,null,null,null,null,null,null,null,null,null,null,null,null,null,null,null,0,null,null,null,null,null,null,null,null,null,null,null,null,0]
[null,null,null,null,null,null,null,null,null,null,null,null,null,null,null,null,null,null,0,null,null,null,null,null,null,null,null,null,null,null,null,0]
[null,null,null,null,null,null,null,null,null,null,null,null,null,null,null,null,null,null,0,null,null,null,null,null,null,null,null,null,null,null,null,0]
[null,null,null,null,null,null,null,null,null,null,null,null,null,null,null,null,null,null,0,null,null,null,null,null,null,null,null,null,null,null,null,0]
[null,null,null,null,null,null,null,null,null,null,null,null,null,null,null,null,null,null,0,null,null,null,null,null,null,null,null,null,null,null,null,0]
[null,null,null,null,null,null,null,null,null,null,null,null,null,null,null,null,null,null,0,null,null,null,null,null,null,null,null,null,null,null,null,0]
[null,null,null,null,null,null,null,null,null,null,null,null,null,null,null,null,null,null,0,null,null,null,null,null,null,null,null,null,null,null,null,0]
[null,null,null,null,null,null,null,null,null,null,null,null,null,null,null,null,null,null,0,null,null,null,null,null,null,null,null,null,null,null,null,0]
[null,null,null,null,null,null,null,null,null,null,null,null,null,null,null,null,null,null,0,null,null,null,null,null,null,null,null,null,null,null,null,0]
[null,null,null,null,null,null,null,null,null,null,null,null,null,null,null,null,null,null,0,null,null,null,null,null,null,null,null,null,null,null,null,0]
[null,null,null,null,null,null,null,null,null,null,null,null,null,null,null,null,null,null,0,null,null,null,null,null,null,null,null,null,null,null,null,0]
[null,null,null,null,null,null,null,null,null,null,null,null,null,null,null,null,null,null,0,null,null,null,null,null,null,null,null,null,null,null,null,0]
[null,null,null,null,null,null,null,null,null,null,null,null,null,null,null,null,null,null,0,null,null,null,null,null,null,null,null,null,null,null,null,0]
[null,null,null,null,null,null,null,null,null,null,null,null,null,null,null,null,null,null,0,null,null,null,null,null,null,null,null,null,null,null,null,0]
[null,null,null,null,null,null,null,null,null,null,null,null,null,null,null,null,null,null,0,null,null,null,null,null,null,null,null,null,null,null,null,0]
[null,null,null,null,null,null,null,null,null,null,null,null,null,null,null,null,null,null,0,null,null,null,null,null,null,null,null,null,null,null,null,0]
[null,null,null,null,null,null,null,null,null,null,null,null,null,null,null,null,null,null,0,null,null,null,null,null,null,null,null,null,null,null,null,0]
[null,null,null,null,null,null,null,null,null,null,null,null,null,null,null,null,null,null,0,null,null,null,null,null,null,null,null,null,null,null,null,0]
[null,null,null,null,null,null,null,null,null,null,null,null,null,null,null,null,null,null,0,null,null,null,null,null,null,null,null,null,null,null,null,0]
[null,null,null,null,null,null,null,null,null,null,null,null,null,null,null,null,null,null,0,null,null,null,null,null,null,null,null,null,null,null,null,0]
[null,null,null,null,null,null,null,null,null,null,null,null,null,null,null,null,null,null,{"$f":"O545+P545+Q545+R545","v":0},null,null,null,null,null,null,null,null,null,null,null,null,{"$f":"AB545+AC545+AD545+AE545","v":0}]
[null,null,null,null,null,null,null,null,null,null,null,null,null,null,null,null,null,null,0,null,null,null,null,null,null,null,null,null,null,null,null,0]
[null,null,null,null,null,null,null,null,null,null,null,null,null,null,null,null,null,null,0,null,null,null,null,null,null,null,null,null,null,null,null,0]
[null,null,null,null,null,null,null,null,null,null,null,null,null,null,null,null,null,null,0,null,null,null,null,null,null,null,null,null,null,null,null,0]
[null,null,null,null,null,null,null,null,null,null,null,null,null,null,null,null,null,null,0,null,null,null,null,null,null,null,null,null,null,null,null,0]
[null,null,null,null,null,null,null,null,null,null,null,null,null,null,null,null,null,null,0,null,null,null,null,null,null,null,null,null,null,null,null,0]
[null,null,null,null,null,null,null,null,null,null,null,null,null,null,null,null,null,null,0,null,null,null,null,null,null,null,null,null,null,null,null,0]
[null,null,null,null,null,null,null,null,null,null,null,null,null,null,null,null,null,null,0,null,null,null,null,null,null,null,null,null,null,null,null,0]
[null,null,null,null,null,null,null,null,null,null,null,null,null,null,null,null,null,null,0,null,null,null,null,null,null,null,null,null,null,null,null,0]
[null,null,null,null,null,null,null,null,null,null,null,null,null,null,null,null,null,null,0,null,null,null,null,null,null,null,null,null,null,null,null,0]
[null,null,null,null,null,null,null,null,null,null,null,null,null,null,null,null,null,null,0,null,null,null,null,null,null,null,null,null,null,null,null,0]
[null,null,null,null,null,null,null,null,null,null,null,null,null,null,null,null,null,null,0,null,null,null,null,null,null,null,null,null,null,null,null,0]
[null,null,null,null,null,null,null,null,null,null,null,null,null,null,null,null,null,null,0,null,null,null,null,null,null,null,null,null,null,null,null,0]
[null,null,null,null,null,null,null,null,null,null,null,null,null,null,null,null,null,null,0,null,null,null,null,null,null,null,null,null,null,null,null,0]
[null,null,null,null,null,null,null,null,null,null,null,null,null,null,null,null,null,null,0,null,null,null,null,null,null,null,null,null,null,null,null,0]
[null,null,null,null,null,null,null,null,null,null,null,null,null,null,null,null,null,null,0,null,null,null,null,null,null,null,null,null,null,null,null,0]
[null,null,null,null,null,null,null,null,null,null,null,null,null,null,null,null,null,null,0,null,null,null,null,null,null,null,null,null,null,null,null,0]
[null,null,null,null,null,null,null,null,null,null,null,null,null,null,null,null,null,null,0,null,null,null,null,null,null,null,null,null,null,null,null,0]
[null,null,null,null,null,null,null,null,null,null,null,null,null,null,null,null,null,null,0,null,null,null,null,null,null,null,null,null,null,null,null,0]
[null,null,null,null,null,null,null,null,null,null,null,null,null,null,null,null,null,null,0,null,null,null,null,null,null,null,null,null,null,null,null,0]
[null,null,null,null,null,null,null,null,null,null,null,null,null,null,null,null,null,null,0,null,null,null,null,null,null,null,null,null,null,null,null,0]
[null,null,null,null,null,null,null,null,null,null,null,null,null,null,null,null,null,null,0,null,null,null,null,null,null,null,null,null,null,null,null,0]
[null,null,null,null,null,null,null,null,null,null,null,null,null,null,null,null,null,null,0,null,null,null,null,null,null,null,null,null,null,null,null,0]
[null,null,null,null,null,null,null,null,null,null,null,null,null,null,null,null,null,null,0,null,null,null,null,null,null,null,null,null,null,null,null,0]
[null,null,null,null,null,null,null,null,null,null,null,null,null,null,null,null,null,null,0,null,null,null,null,null,null,null,null,null,null,null,null,0]
[null,null,null,null,null,null,null,null,null,null,null,null,null,null,null,null,null,null,0,null,null,null,null,null,null,null,null,null,null,null,null,0]
[null,null,null,null,null,null,null,null,null,null,null,null,null,null,null,null,null,null,0,null,null,null,null,null,null,null,null,null,null,null,null,0]
[null,null,null,null,null,null,null,null,null,null,null,null,null,null,null,null,null,null,0,null,null,null,null,null,null,null,null,null,null,null,null,0]
[null,null,null,null,null,null,null,null,null,null,null,null,null,null,null,null,null,null,0,null,null,null,null,null,null,null,null,null,null,null,null,0]
[null,null,null,null,null,null,null,null,null,null,null,null,null,null,null,null,null,null,0,null,null,null,null,null,null,null,null,null,null,null,null,0]
[null,null,null,null,null,null,null,null,null,null,null,null,null,null,null,null,null,null,0,null,null,null,null,null,null,null,null,null,null,null,null,0]
[null,null,null,null,null,null,null,null,null,null,null,null,null,null,null,null,null,null,0,null,null,null,null,null,null,null,null,null,null,null,null,0]
[null,null,null,null,null,null,null,null,null,null,null,null,null,null,null,null,null,null,0,null,null,null,null,null,null,null,null,null,null,null,null,0]
[null,null,null,null,null,null,null,null,null,null,null,null,null,null,null,null,null,null,0,null,null,null,null,null,null,null,null,null,null,null,null,0]
[null,null,null,null,null,null,null,null,null,null,null,null,null,null,null,null,null,null,0,null,null,null,null,null,null,null,null,null,null,null,null,0]
[null,null,null,null,null,null,null,null,null,null,null,null,null,null,null,null,null,null,0,null,null,null,null,null,null,null,null,null,null,null,null,0]
[null,null,null,null,null,null,null,null,null,null,null,null,null,null,null,null,null,null,0,null,null,null,null,null,null,null,null,null,null,null,null,0]
[null,null,null,null,null,null,null,null,null,null,null,null,null,null,null,null,null,null,0,null,null,null,null,null,null,null,null,null,null,null,null,0]
[null,null,null,null,null,null,null,null,null,null,null,null,null,null,null,null,null,null,0,null,null,null,null,null,null,null,null,null,null,null,null,0]
[null,null,null,null,null,null,null,null,null,null,null,null,null,null,null,null,null,null,0,null,null,null,null,null,null,null,null,null,null,null,null,0]
[null,null,null,null,null,null,null,null,null,null,null,null,null,null,null,null,null,null,0,null,null,null,null,null,null,null,null,null,null,null,null,0]
[null,null,null,null,null,null,null,null,null,null,null,null,null,null,null,null,null,null,0,null,null,null,null,null,null,null,null,null,null,null,null,0]
[null,null,null,null,null,null,null,null,null,null,null,null,null,null,null,null,null,null,0,null,null,null,null,null,null,null,null,null,null,null,null,0]
[null,null,null,null,null,null,null,null,null,null,null,null,null,null,null,null,null,null,0,null,null,null,null,null,null,null,null,null,null,null,null,0]
[null,null,null,null,null,null,null,null,null,null,null,null,null,null,null,null,null,null,0,null,null,null,null,null,null,null,null,null,null,null,null,0]
[null,null,null,null,null,null,null,null,null,null,null,null,null,null,null,null,null,null,0,null,null,null,null,null,null,null,null,null,null,null,null,0]
[null,null,null,null,null,null,null,null,null,null,null,null,null,null,null,null,null,null,0,null,null,null,null,null,null,null,null,null,null,null,null,0]
[null,null,null,null,null,null,null,null,null,null,null,null,null,null,null,null,null,null,0,null,null,null,null,null,null,null,null,null,null,null,null,0]
[null,null,null,null,null,null,null,null,null,null,null,null,null,null,null,null,null,null,0,null,null,null,null,null,null,null,null,null,null,null,null,0]
[null,null,null,null,null,null,null,null,null,null,null,null,null,null,null,null,null,null,0,null,null,null,null,null,null,null,null,null,null,null,null,0]
[null,null,null,null,null,null,null,null,null,null,null,null,null,null,null,null,null,null,0,null,null,null,null,null,null,null,null,null,null,null,null,0]
[null,null,null,null,null,null,null,null,null,null,null,null,null,null,null,null,null,null,0,null,null,null,null,null,null,null,null,null,null,null,null,0]
[null,null,null,null,null,null,null,null,null,null,null,null,null,null,null,null,null,null,0,null,null,null,null,null,null,null,null,null,null,null,null,0]
[null,null,null,null,null,null,null,null,null,null,null,null,null,null,null,null,null,null,0,null,null,null,null,null,null,null,null,null,null,null,null,0]
[null,null,null,null,null,null,null,null,null,null,null,null,null,null,null,null,null,null,0,null,null,null,null,null,null,null,null,null,null,null,null,0]
[null,null,null,null,null,null,null,null,null,null,null,null,null,null,null,null,null,null,0,null,null,null,null,null,null,null,null,null,null,null,null,0]
[null,null,null,null,null,null,null,null,null,null,null,null,null,null,null,null,null,null,0,null,null,null,null,null,null,null,null,null,null,null,null,0]
[null,null,null,null,null,null,null,null,null,null,null,null,null,null,null,null,null,null,0,null,null,null,null,null,null,null,null,null,null,null,null,0]
[null,null,null,null,null,null,null,null,null,null,null,null,null,null,null,null,null,null,0,null,null,null,null,null,null,null,null,null,null,null,null,0]
[null,null,null,null,null,null,null,null,null,null,null,null,null,null,null,null,null,null,0,null,null,null,null,null,null,null,null,null,null,null,null,0]
[null,null,null,null,null,null,null,null,null,null,null,null,null,null,null,null,null,null,0,null,null,null,null,null,null,null,null,null,null,null,null,0]
[null,null,null,null,null,null,null,null,null,null,null,null,null,null,null,null,null,null,0,null,null,null,null,null,null,null,null,null,null,null,null,0]
[null,null,null,null,null,null,null,null,null,null,null,null,null,null,null,null,null,null,0,null,null,null,null,null,null,null,null,null,null,null,null,0]
[null,null,null,null,null,null,null,null,null,null,null,null,null,null,null,null,null,null,0,null,null,null,null,null,null,null,null,null,null,null,null,0]
[null,null,null,null,null,null,null,null,null,null,null,null,null,null,null,null,null,null,{"$f":"O609+P609+Q609+R609","v":0},null,null,null,null,null,null,null,null,null,null,null,null,{"$f":"AB609+AC609+AD609+AE609","v":0}]
[null,null,null,null,null,null,null,null,null,null,null,null,null,null,null,null,null,null,0,null,null,null,null,null,null,null,null,null,null,null,null,0]
[null,null,null,null,null,null,null,null,null,null,null,null,null,null,null,null,null,null,0,null,null,null,null,null,null,null,null,null,null,null,null,0]
[null,null,null,null,null,null,null,null,null,null,null,null,null,null,null,null,null,null,0,null,null,null,null,null,null,null,null,null,null,null,null,0]
[null,null,null,null,null,null,null,null,null,null,null,null,null,null,null,null,null,null,0,null,null,null,null,null,null,null,null,null,null,null,null,0]
[null,null,null,null,null,null,null,null,null,null,null,null,null,null,null,null,null,null,0,null,null,null,null,null,null,null,null,null,null,null,null,0]
[null,null,null,null,null,null,null,null,null,null,null,null,null,null,null,null,null,null,0,null,null,null,null,null,null,null,null,null,null,null,null,0]
[null,null,null,null,null,null,null,null,null,null,null,null,null,null,null,null,null,null,0,null,null,null,null,null,null,null,null,null,null,null,null,0]
[null,null,null,null,null,null,null,null,null,null,null,null,null,null,null,null,null,null,0,null,null,null,null,null,null,null,null,null,null,null,null,0]
[null,null,null,null,null,null,null,null,null,null,null,null,null,null,null,null,null,null,0,null,null,null,null,null,null,null,null,null,null,null,null,0]
[null,null,null,null,null,null,null,null,null,null,null,null,null,null,null,null,null,null,0,null,null,null,null,null,null,null,null,null,null,null,null,0]
[null,null,null,null,null,null,null,null,null,null,null,null,null,null,null,null,null,null,0,null,null,null,null,null,null,null,null,null,null,null,null,0]
[null,null,null,null,null,null,null,null,null,null,null,null,null,null,null,null,null,null,0,null,null,null,null,null,null,null,null,null,null,null,null,0]
[null,null,null,null,null,null,null,null,null,null,null,null,null,null,null,null,null,null,0,null,null,null,null,null,null,null,null,null,null,null,null,0]
[null,null,null,null,null,null,null,null,null,null,null,null,null,null,null,null,null,null,0,null,null,null,null,null,null,null,null,null,null,null,null,0]
[null,null,null,null,null,null,null,null,null,null,null,null,null,null,null,null,null,null,0,null,null,null,null,null,null,null,null,null,null,null,null,0]
[null,null,null,null,null,null,null,null,null,null,null,null,null,null,null,null,null,null,0,null,null,null,null,null,null,null,null,null,null,null,null,0]
[null,null,null,null,null,null,null,null,null,null,null,null,null,null,null,null,null,null,0,null,null,null,null,null,null,null,null,null,null,null,null,0]
[null,null,null,null,null,null,null,null,null,null,null,null,null,null,null,null,null,null,0,null,null,null,null,null,null,null,null,null,null,null,null,0]
[null,null,null,null,null,null,null,null,null,null,null,null,null,null,null,null,null,null,0,null,null,null,null,null,null,null,null,null,null,null,null,0]
[null,null,null,null,null,null,null,null,null,null,null,null,null,null,null,null,null,null,0,null,null,null,null,null,null,null,null,null,null,null,null,0]
[null,null,null,null,null,null,null,null,null,null,null,null,null,null,null,null,null,null,0,null,null,null,null,null,null,null,null,null,null,null,null,0]
[null,null,null,null,null,null,null,null,null,null,null,null,null,null,null,null,null,null,0,null,null,null,null,null,null,null,null,null,null,null,null,0]
[null,null,null,null,null,null,null,null,null,null,null,null,null,null,null,null,null,null,0,null,null,null,null,null,null,null,null,null,null,null,null,0]
[null,null,null,null,null,null,null,null,null,null,null,null,null,null,null,null,null,null,0,null,null,null,null,null,null,null,null,null,null,null,null,0]
[null,null,null,null,null,null,null,null,null,null,null,null,null,null,null,null,null,null,0,null,null,null,null,null,null,null,null,null,null,null,null,0]
[null,null,null,null,null,null,null,null,null,null,null,null,null,null,null,null,null,null,0,null,null,null,null,null,null,null,null,null,null,null,null,0]
[null,null,null,null,null,null,null,null,null,null,null,null,null,null,null,null,null,null,0,null,null,null,null,null,null,null,null,null,null,null,null,0]
[null,null,null,null,null,null,null,null,null,null,null,null,null,null,null,null,null,null,0,null,null,null,null,null,null,null,null,null,null,null,null,0]
[null,null,null,null,null,null,null,null,null,null,null,null,null,null,null,null,null,null,0,null,null,null,null,null,null,null,null,null,null,null,null,0]
[null,null,null,null,null,null,null,null,null,null,null,null,null,null,null,null,null,null,0,null,null,null,null,null,null,null,null,null,null,null,null,0]
[null,null,null,null,null,null,null,null,null,null,null,null,null,null,null,null,null,null,0,null,null,null,null,null,null,null,null,null,null,null,null,0]
[null,null,null,null,null,null,null,null,null,null,null,null,null,null,null,null,null,null,0,null,null,null,null,null,null,null,null,null,null,null,null,0]
[null,null,null,null,null,null,null,null,null,null,null,null,null,null,null,null,null,null,0,null,null,null,null,null,null,null,null,null,null,null,null,0]
[null,null,null,null,null,null,null,null,null,null,null,null,null,null,null,null,null,null,0,null,null,null,null,null,null,null,null,null,null,null,null,0]
[null,null,null,null,null,null,null,null,null,null,null,null,null,null,null,null,null,null,0,null,null,null,null,null,null,null,null,null,null,null,null,0]
[null,null,null,null,null,null,null,null,null,null,null,null,null,null,null,null,null,null,0,null,null,null,null,null,null,null,null,null,null,null,null,0]
[null,null,null,null,null,null,null,null,null,null,null,null,null,null,null,null,null,null,0,null,null,null,null,null,null,null,null,null,null,null,null,0]
[null,null,null,null,null,null,null,null,null,null,null,null,null,null,null,null,null,null,0,null,null,null,null,null,null,null,null,null,null,null,null,0]
[null,null,null,null,null,null,null,null,null,null,null,null,null,null,null,null,null,null,0,null,null,null,null,null,null,null,null,null,null,null,null,0]
[null,null,null,null,null,null,null,null,null,null,null,null,null,null,null,null,null,null,0,null,null,null,null,null,null,null,null,null,null,null,null,0]
[null,null,null,null,null,null,null,null,null,null,null,null,null,null,null,null,null,null,0,null,null,null,null,null,null,null,null,null,null,null,null,0]
[null,null,null,null,null,null,null,null,null,null,null,null,null,null,null,null,null,null,0,null,null,null,null,null,null,null,null,null,null,null,null,0]
[null,null,null,null,null,null,null,null,null,null,null,null,null,null,null,null,null,null,0,null,null,null,null,null,null,null,null,null,null,null,null,0]
[null,null,null,null,null,null,null,null,null,null,null,null,null,null,null,null,null,null,0,null,null,null,null,null,null,null,null,null,null,null,null,0]
[null,null,null,null,null,null,null,null,null,null,null,null,null,null,null,null,null,null,0,null,null,null,null,null,null,null,null,null,null,null,null,0]
[null,null,null,null,null,null,null,null,null,null,null,null,null,null,null,null,null,null,0,null,null,null,null,null,null,null,null,null,null,null,null,0]
[null,null,null,null,null,null,null,null,null,null,null,null,null,null,null,null,null,null,0,null,null,null,null,null,null,null,null,null,null,null,null,0]
[null,null,null,null,null,null,null,null,null,null,null,null,null,null,null,null,null,null,0,null,null,null,null,null,null,null,null,null,null,null,null,0]
[null,null,null,null,null,null,null,null,null,null,null,null,null,null,null,null,null,null,0,null,null,null,null,null,null,null,null,null,null,null,null,0]
[null,null,null,null,null,null,null,null,null,null,null,null,null,null,null,null,null,null,0,null,null,null,null,null,null,null,null,null,null,null,null,0]
[null,null,null,null,null,null,null,null,null,null,null,null,null,null,null,null,null,null,0,null,null,null,null,null,null,null,null,null,null,null,null,0]
[null,null,null,null,null,null,null,null,null,null,null,null,null,null,null,null,null,null,0,null,null,null,null,null,null,null,null,null,null,null,null,0]
[null,null,null,null,null,null,null,null,null,null,null,null,null,null,null,null,null,null,0,null,null,null,null,null,null,null,null,null,null,null,null,0]
[null,null,null,null,null,null,null,null,null,null,null,null,null,null,null,null,null,null,0,null,null,null,null,null,null,null,null,null,null,null,null,0]
[null,null,null,null,null,null,null,null,null,null,null,null,null,null,null,null,null,null,0,null,null,null,null,null,null,null,null,null,null,null,null,0]
[null,null,null,null,null,null,null,null,null,null,null,null,null,null,null,null,null,null,0,null,null,null,null,null,null,null,null,null,null,null,null,0]
[null,null,null,null,null,null,null,null,null,null,null,null,null,null,null,null,null,null,0,null,null,null,null,null,null,null,null,null,null,null,null,0]
[null,null,null,null,null,null,null,null,null,null,null,null,null,null,null,null,null,null,0,null,null,null,null,null,null,null,null,null,null,null,null,0]
[null,null,null,null,null,null,null,null,null,null,null,null,null,null,null,null,null,null,0,null,null,null,null,null,null,null,null,null,null,null,null,0]
[null,null,null,null,null,null,null,null,null,null,null,null,null,null,null,null,null,null,0,null,null,null,null,null,null,null,null,null,null,null,null,0]
[null,null,null,null,null,null,null,null,null,null,null,null,null,null,null,null,null,null,0,null,null,null,null,null,null,null,null,null,null,null,null,0]
[null,null,null,null,null,null,null,null,null,null,null,null,null,null,null,null,null,null,0,null,null,null,null,null,null,null,null,null,null,null,null,0]
[null,null,null,null,null,null,null,null,null,null,null,null,null,null,null,null,null,null,0,null,null,null,null,null,null,null,null,null,null,null,null,0]
[null,null,null,null,null,null,null,null,null,null,null,null,null,null,null,null,null,null,{"$f":"O673+P673+Q673+R673","v":0},null,null,null,null,null,null,null,null,null,null,null,null,{"$f":"AB673+AC673+AD673+AE673","v":0}]
[null,null,null,null,null,null,null,null,null,null,null,null,null,null,null,null,null,null,0,null,null,null,null,null,null,null,null,null,null,null,null,0]
[null,null,null,null,null,null,null,null,null,null,null,null,null,null,null,null,null,null,0,null,null,null,null,null,null,null,null,null,null,null,null,0]
[null,null,null,null,null,null,null,null,null,null,null,null,null,null,null,null,null,null,0,null,null,null,null,null,null,null,null,null,null,null,null,0]
[null,null,null,null,null,null,null,null,null,null,null,null,null,null,null,null,null,null,0,null,null,null,null,null,null,null,null,null,null,null,null,0]
[null,null,null,null,null,null,null,null,null,null,null,null,null,null,null,null,null,null,0,null,null,null,null,null,null,null,null,null,null,null,null,0]
[null,null,null,null,null,null,null,null,null,null,null,null,null,null,null,null,null,null,0,null,null,null,null,null,null,null,null,null,null,null,null,0]
[null,null,null,null,null,null,null,null,null,null,null,null,null,null,null,null,null,null,0,null,null,null,null,null,null,null,null,null,null,null,null,0]
[null,null,null,null,null,null,null,null,null,null,null,null,null,null,null,null,null,null,0,null,null,null,null,null,null,null,null,null,null,null,null,0]
[null,null,null,null,null,null,null,null,null,null,null,null,null,null,null,null,null,null,0,null,null,null,null,null,null,null,null,null,null,null,null,0]
[null,null,null,null,null,null,null,null,null,null,null,null,null,null,null,null,null,null,0,null,null,null,null,null,null,null,null,null,null,null,null,0]
[null,null,null,null,null,null,null,null,null,null,null,null,null,null,null,null,null,null,0,null,null,null,null,null,null,null,null,null,null,null,null,0]
[null,null,null,null,null,null,null,null,null,null,null,null,null,null,null,null,null,null,0,null,null,null,null,null,null,null,null,null,null,null,null,0]
[null,null,null,null,null,null,null,null,null,null,null,null,null,null,null,null,null,null,0,null,null,null,null,null,null,null,null,null,null,null,null,0]
[null,null,null,null,null,null,null,null,null,null,null,null,null,null,null,null,null,null,0,null,null,null,null,null,null,null,null,null,null,null,null,0]
[null,null,null,null,null,null,null,null,null,null,null,null,null,null,null,null,null,null,0,null,null,null,null,null,null,null,null,null,null,null,null,0]
[null,null,null,null,null,null,null,null,null,null,null,null,null,null,null,null,null,null,0,null,null,null,null,null,null,null,null,null,null,null,null,0]
[null,null,null,null,null,null,null,null,null,null,null,null,null,null,null,null,null,null,0,null,null,null,null,null,null,null,null,null,null,null,null,0]
[null,null,null,null,null,null,null,null,null,null,null,null,null,null,null,null,null,null,0,null,null,null,null,null,null,null,null,null,null,null,null,0]
[null,null,null,null,null,null,null,null,null,null,null,null,null,null,null,null,null,null,0,null,null,null,null,null,null,null,null,null,null,null,null,0]
[null,null,null,null,null,null,null,null,null,null,null,null,null,null,null,null,null,null,0,null,null,null,null,null,null,null,null,null,null,null,null,0]
[null,null,null,null,null,null,null,null,null,null,null,null,null,null,null,null,null,null,0,null,null,null,null,null,null,null,null,null,null,null,null,0]
[null,null,null,null,null,null,null,null,null,null,null,null,null,null,null,null,null,null,0,null,null,null,null,null,null,null,null,null,null,null,null,0]
[null,null,null,null,null,null,null,null,null,null,null,null,null,null,null,null,null,null,0,null,null,null,null,null,null,null,null,null,null,null,null,0]
[null,null,null,null,null,null,null,null,null,null,null,null,null,null,null,null,null,null,0,null,null,null,null,null,null,null,null,null,null,null,null,0]
[null,null,null,null,null,null,null,null,null,null,null,null,null,null,null,null,null,null,0,null,null,null,null,null,null,null,null,null,null,null,null,0]
[null,null,null,null,null,null,null,null,null,null,null,null,null,null,null,null,null,null,0,null,null,null,null,null,null,null,null,null,null,null,null,0]
[null,null,null,null,null,null,null,null,null,null,null,null,null,null,null,null,null,null,0,null,null,null,null,null,null,null,null,null,null,null,null,0]
[null,null,null,null,null,null,null,null,null,null,null,null,null,null,null,null,null,null,0,null,null,null,null,null,null,null,null,null,null,null,null,0]
[null,null,null,null,null,null,null,null,null,null,null,null,null,null,null,null,null,null,0,null,null,null,null,null,null,null,null,null,null,null,null,0]
[null,null,null,null,null,null,null,null,null,null,null,null,null,null,null,null,null,null,0,null,null,null,null,null,null,null,null,null,null,null,null,0]
[null,null,null,null,null,null,null,null,null,null,null,null,null,null,null,null,null,null,0,null,null,null,null,null,null,null,null,null,null,null,null,0]
[null,null,null,null,null,null,null,null,null,null,null,null,null,null,null,null,null,null,0,null,null,null,null,null,null,null,null,null,null,null,null,0]
[null,null,null,null,null,null,null,null,null,null,null,null,null,null,null,null,null,null,0,null,null,null,null,null,null,null,null,null,null,null,null,0]
[null,null,null,null,null,null,null,null,null,null,null,null,null,null,null,null,null,null,0,null,null,null,null,null,null,null,null,null,null,null,null,0]
[null,null,null,null,null,null,null,null,null,null,null,null,null,null,null,null,null,null,0,null,null,null,null,null,null,null,null,null,null,null,null,0]
[null,null,null,null,null,null,null,null,null,null,null,null,null,null,null,null,null,null,0,null,null,null,null,null,null,null,null,null,null,null,null,0]
[null,null,null,null,null,null,null,null,null,null,null,null,null,null,null,null,null,null,0,null,null,null,null,null,null,null,null,null,null,null,null,0]
[null,null,null,null,null,null,null,null,null,null,null,null,null,null,null,null,null,null,0,null,null,null,null,null,null,null,null,null,null,null,null,0]
[null,null,null,null,null,null,null,null,null,null,null,null,null,null,null,null,null,null,0,null,null,null,null,null,null,null,null,null,null,null,null,0]
[null,null,null,null,null,null,null,null,null,null,null,null,null,null,null,null,null,null,0,null,null,null,null,null,null,null,null,null,null,null,null,0]
[null,null,null,null,null,null,null,null,null,null,null,null,null,null,null,null,null,null,0,null,null,null,null,null,null,null,null,null,null,null,null,0]
[null,null,null,null,null,null,null,null,null,null,null,null,null,null,null,null,null,null,0,null,null,null,null,null,null,null,null,null,null,null,null,0]
[null,null,null,null,null,null,null,null,null,null,null,null,null,null,null,null,null,null,0,null,null,null,null,null,null,null,null,null,null,null,null,0]
[null,null,null,null,null,null,null,null,null,null,null,null,null,null,null,null,null,null,0,null,null,null,null,null,null,null,null,null,null,null,null,0]
[null,null,null,null,null,null,null,null,null,null,null,null,null,null,null,null,null,null,0,null,null,null,null,null,null,null,null,null,null,null,null,0]
[null,null,null,null,null,null,null,null,null,null,null,null,null,null,null,null,null,null,0,null,null,null,null,null,null,null,null,null,null,null,null,0]
[null,null,null,null,null,null,null,null,null,null,null,null,null,null,null,null,null,null,0,null,null,null,null,null,null,null,null,null,null,null,null,0]
[null,null,null,null,null,null,null,null,null,null,null,null,null,null,null,null,null,null,0,null,null,null,null,null,null,null,null,null,null,null,null,0]
[null,null,null,null,null,null,null,null,null,null,null,null,null,null,null,null,null,null,0,null,null,null,null,null,null,null,null,null,null,null,null,0]
[null,null,null,null,null,null,null,null,null,null,null,null,null,null,null,null,null,null,0,null,null,null,null,null,null,null,null,null,null,null,null,0]
[null,null,null,null,null,null,null,null,null,null,null,null,null,null,null,null,null,null,0,null,null,null,null,null,null,null,null,null,null,null,null,0]
[null,null,null,null,null,null,null,null,null,null,null,null,null,null,null,null,null,null,0,null,null,null,null,null,null,null,null,null,null,null,null,0]
[null,null,null,null,null,null,null,null,null,null,null,null,null,null,null,null,null,null,0,null,null,null,null,null,null,null,null,null,null,null,null,0]
[null,null,null,null,null,null,null,null,null,null,null,null,null,null,null,null,null,null,0,null,null,null,null,null,null,null,null,null,null,null,null,0]
[null,null,null,null,null,null,null,null,null,null,null,null,null,null,null,null,null,null,0,null,null,null,null,null,null,null,null,null,null,null,null,0]
[null,null,null,null,null,null,null,null,null,null,null,null,null,null,null,null,null,null,0,null,null,null,null,null,null,null,null,null,null,null,null,0]
[null,null,null,null,null,null,null,null,null,null,null,null,null,null,null,null,null,null,0,null,null,null,null,null,null,null,null,null,null,null,null,0]
[null,null,null,null,null,null,null,null,null,null,null,null,null,null,null,null,null,null,0,null,null,null,null,null,null,null,null,null,null,null,null,0]
[null,null,null,null,null,null,null,null,null,null,null,null,null,null,null,null,null,null,0,null,null,null,null,null,null,null,null,null,null,null,null,0]
[null,null,null,null,null,null,null,null,null,null,null,null,null,null,null,null,null,null,0,null,null,null,null,null,null,null,null,null,null,null,null,0]
[null,null,null,null,null,null,null,null,null,null,null,null,null,null,null,null,null,null,0,null,null,null,null,null,null,null,null,null,null,null,null,0]
[null,null,null,null,null,null,null,null,null,null,null,null,null,null,null,null,null,null,0,null,null,null,null,null,null,null,null,null,null,null,null,0]
[null,null,null,null,null,null,null,null,null,null,null,null,null,null,null,null,null,null,0,null,null,null,null,null,null,null,null,null,null,null,null,0]
[null,null,null,null,null,null,null,null,null,null,null,null,null,null,null,null,null,null,{"$f":"O737+P737+Q737+R737","v":0},null,null,null,null,null,null,null,null,null,null,null,null,{"$f":"AB737+AC737+AD737+AE737","v":0}]
[null,null,null,null,null,null,null,null,null,null,null,null,null,null,null,null,null,null,0,null,null,null,null,null,null,null,null,null,null,null,null,0]
[null,null,null,null,null,null,null,null,null,null,null,null,null,null,null,null,null,null,0,null,null,null,null,null,null,null,null,null,null,null,null,0]
[null,null,null,null,null,null,null,null,null,null,null,null,null,null,null,null,null,null,0,null,null,null,null,null,null,null,null,null,null,null,null,0]
[null,null,null,null,null,null,null,null,null,null,null,null,null,null,null,null,null,null,0,null,null,null,null,null,null,null,null,null,null,null,null,0]
[null,null,null,null,null,null,null,null,null,null,null,null,null,null,null,null,null,null,0,null,null,null,null,null,null,null,null,null,null,null,null,0]
[null,null,null,null,null,null,null,null,null,null,null,null,null,null,null,null,null,null,0,null,null,null,null,null,null,null,null,null,null,null,null,0]
[null,null,null,null,null,null,null,null,null,null,null,null,null,null,null,null,null,null,0,null,null,null,null,null,null,null,null,null,null,null,null,0]
[null,null,null,null,null,null,null,null,null,null,null,null,null,null,null,null,null,null,0,null,null,null,null,null,null,null,null,null,null,null,null,0]
[null,null,null,null,null,null,null,null,null,null,null,null,null,null,null,null,null,null,0,null,null,null,null,null,null,null,null,null,null,null,null,0]
[null,null,null,null,null,null,null,null,null,null,null,null,null,null,null,null,null,null,0,null,null,null,null,null,null,null,null,null,null,null,null,0]
[null,null,null,null,null,null,null,null,null,null,null,null,null,null,null,null,null,null,0,null,null,null,null,null,null,null,null,null,null,null,null,0]
[null,null,null,null,null,null,null,null,null,null,null,null,null,null,null,null,null,null,0,null,null,null,null,null,null,null,null,null,null,null,null,0]
[null,null,null,null,null,null,null,null,null,null,null,null,null,null,null,null,null,null,0,null,null,null,null,null,null,null,null,null,null,null,null,0]
[null,null,null,null,null,null,null,null,null,null,null,null,null,null,null,null,null,null,0,null,null,null,null,null,null,null,null,null,null,null,null,0]
[null,null,null,null,null,null,null,null,null,null,null,null,null,null,null,null,null,null,0,null,null,null,null,null,null,null,null,null,null,null,null,0]
[null,null,null,null,null,null,null,null,null,null,null,null,null,null,null,null,null,null,0,null,null,null,null,null,null,null,null,null,null,null,null,0]
[null,null,null,null,null,null,null,null,null,null,null,null,null,null,null,null,null,null,0,null,null,null,null,null,null,null,null,null,null,null,null,0]
[null,null,null,null,null,null,null,null,null,null,null,null,null,null,null,null,null,null,0,null,null,null,null,null,null,null,null,null,null,null,null,0]
[null,null,null,null,null,null,null,null,null,null,null,null,null,null,null,null,null,null,0,null,null,null,null,null,null,null,null,null,null,null,null,0]
[null,null,null,null,null,null,null,null,null,null,null,null,null,null,null,null,null,null,0,null,null,null,null,null,null,null,null,null,null,null,null,0]
[null,null,null,null,null,null,null,null,null,null,null,null,null,null,null,null,null,null,0,null,null,null,null,null,null,null,null,null,null,null,null,0]
[null,null,null,null,null,null,null,null,null,null,null,null,null,null,null,null,null,null,0,null,null,null,null,null,null,null,null,null,null,null,null,0]
[null,null,null,null,null,null,null,null,null,null,null,null,null,null,null,null,null,null,0,null,null,null,null,null,null,null,null,null,null,null,null,0]
[null,null,null,null,null,null,null,null,null,null,null,null,null,null,null,null,null,null,0,null,null,null,null,null,null,null,null,null,null,null,null,0]
[null,null,null,null,null,null,null,null,null,null,null,null,null,null,null,null,null,null,0,null,null,null,null,null,null,null,null,null,null,null,null,0]
[null,null,null,null,null,null,null,null,null,null,null,null,null,null,null,null,null,null,0,null,null,null,null,null,null,null,null,null,null,null,null,0]
[null,null,null,null,null,null,null,null,null,null,null,null,null,null,null,null,null,null,0,null,null,null,null,null,null,null,null,null,null,null,null,0]
[null,null,null,null,null,null,null,null,null,null,null,null,null,null,null,null,null,null,0,null,null,null,null,null,null,null,null,null,null,null,null,0]
[null,null,null,null,null,null,null,null,null,null,null,null,null,null,null,null,null,null,0,null,null,null,null,null,null,null,null,null,null,null,null,0]
[null,null,null,null,null,null,null,null,null,null,null,null,null,null,null,null,null,null,0,null,null,null,null,null,null,null,null,null,null,null,null,0]
[null,null,null,null,null,null,null,null,null,null,null,null,null,null,null,null,null,null,0,null,null,null,null,null,null,null,null,null,null,null,null,0]
[null,null,null,null,null,null,null,null,null,null,null,null,null,null,null,null,null,null,0,null,null,null,null,null,null,null,null,null,null,null,null,0]
[null,null,null,null,null,null,null,null,null,null,null,null,null,null,null,null,null,null,0,null,null,null,null,null,null,null,null,null,null,null,null,0]
[null,null,null,null,null,null,null,null,null,null,null,null,null,null,null,null,null,null,0,null,null,null,null,null,null,null,null,null,null,null,null,0]
[null,null,null,null,null,null,null,null,null,null,null,null,null,null,null,null,null,null,0,null,null,null,null,null,null,null,null,null,null,null,null,0]
[null,null,null,null,null,null,null,null,null,null,null,null,null,null,null,null,null,null,0,null,null,null,null,null,null,null,null,null,null,null,null,0]
[null,null,null,null,null,null,null,null,null,null,null,null,null,null,null,null,null,null,0,null,null,null,null,null,null,null,null,null,null,null,null,0]
[null,null,null,null,null,null,null,null,null,null,null,null,null,null,null,null,null,null,0,null,null,null,null,null,null,null,null,null,null,null,null,0]
[null,null,null,null,null,null,null,null,null,null,null,null,null,null,null,null,null,null,0,null,null,null,null,null,null,null,null,null,null,null,null,0]
[null,null,null,null,null,null,null,null,null,null,null,null,null,null,null,null,null,null,0,null,null,null,null,null,null,null,null,null,null,null,null,0]
[null,null,null,null,null,null,null,null,null,null,null,null,null,null,null,null,null,null,0,null,null,null,null,null,null,null,null,null,null,null,null,0]
[null,null,null,null,null,null,null,null,null,null,null,null,null,null,null,null,null,null,0,null,null,null,null,null,null,null,null,null,null,null,null,0]
[null,null,null,null,null,null,null,null,null,null,null,null,null,null,null,null,null,null,0,null,null,null,null,null,null,null,null,null,null,null,null,0]
[null,null,null,null,null,null,null,null,null,null,null,null,null,null,null,null,null,null,0,null,null,null,null,null,null,null,null,null,null,null,null,0]
[null,null,null,null,null,null,null,null,null,null,null,null,null,null,null,null,null,null,0,null,null,null,null,null,null,null,null,null,null,null,null,0]
[null,null,null,null,null,null,null,null,null,null,null,null,null,null,null,null,null,null,0,null,null,null,null,null,null,null,null,null,null,null,null,0]
[null,null,null,null,null,null,null,null,null,null,null,null,null,null,null,null,null,null,0,null,null,null,null,null,null,null,null,null,null,null,null,0]
[null,null,null,null,null,null,null,null,null,null,null,null,null,null,null,null,null,null,0,null,null,null,null,null,null,null,null,null,null,null,null,0]
[null,null,null,null,null,null,null,null,null,null,null,null,null,null,null,null,null,null,0,null,null,null,null,null,null,null,null,null,null,null,null,0]
[null,null,null,null,null,null,null,null,null,null,null,null,null,null,null,null,null,null,0,null,null,null,null,null,null,null,null,null,null,null,null,0]
[null,null,null,null,null,null,null,null,null,null,null,null,null,null,null,null,null,null,0,null,null,null,null,null,null,null,null,null,null,null,null,0]
[null,null,null,null,null,null,null,null,null,null,null,null,null,null,null,null,null,null,0,null,null,null,null,null,null,null,null,null,null,null,null,0]
[null,null,null,null,null,null,null,null,null,null,null,null,null,null,null,null,null,null,0,null,null,null,null,null,null,null,null,null,null,null,null,0]
[null,null,null,null,null,null,null,null,null,null,null,null,null,null,null,null,null,null,0,null,null,null,null,null,null,null,null,null,null,null,null,0]
[null,null,null,null,null,null,null,null,null,null,null,null,null,null,null,null,null,null,0,null,null,null,null,null,null,null,null,null,null,null,null,0]
[null,null,null,null,null,null,null,null,null,null,null,null,null,null,null,null,null,null,0,null,null,null,null,null,null,null,null,null,null,null,null,0]
[null,null,null,null,null,null,null,null,null,null,null,null,null,null,null,null,null,null,0,null,null,null,null,null,null,null,null,null,null,null,null,0]
[null,null,null,null,null,null,null,null,null,null,null,null,null,null,null,null,null,null,0,null,null,null,null,null,null,null,null,null,null,null,null,0]
[null,null,null,null,null,null,null,null,null,null,null,null,null,null,null,null,null,null,0,null,null,null,null,null,null,null,null,null,null,null,null,0]
[null,null,null,null,null,null,null,null,null,null,null,null,null,null,null,null,null,null,0,null,null,null,null,null,null,null,null,null,null,null,null,0]
[null,null,null,null,null,null,null,null,null,null,null,null,null,null,null,null,null,null,0,null,null,null,null,null,null,null,null,null,null,null,null,0]
[null,null,null,null,null,null,null,null,null,null,null,null,null,null,null,null,null,null,0,null,null,null,null,null,null,null,null,null,null,null,null,0]
[null,null,null,null,null,null,null,null,null,null,null,null,null,null,null,null,null,null,0,null,null,null,null,null,null,null,null,null,null,null,null,0]
[null,null,null,null,null,null,null,null,null,null,null,null,null,null,null,null,null,null,{"$f":"O801+P801+Q801+R801","v":0},null,null,null,null,null,null,null,null,null,null,null,null,{"$f":"AB801+AC801+AD801+AE801","v":0}]
[null,null,null,null,null,null,null,null,null,null,null,null,null,null,null,null,null,null,0,null,null,null,null,null,null,null,null,null,null,null,null,0]
[null,null,null,null,null,null,null,null,null,null,null,null,null,null,null,null,null,null,0,null,null,null,null,null,null,null,null,null,null,null,null,0]
[null,null,null,null,null,null,null,null,null,null,null,null,null,null,null,null,null,null,0,null,null,null,null,null,null,null,null,null,null,null,null,0]
[null,null,null,null,null,null,null,null,null,null,null,null,null,null,null,null,null,null,0,null,null,null,null,null,null,null,null,null,null,null,null,0]
[null,null,null,null,null,null,null,null,null,null,null,null,null,null,null,null,null,null,0,null,null,null,null,null,null,null,null,null,null,null,null,0]
[null,null,null,null,null,null,null,null,null,null,null,null,null,null,null,null,null,null,0,null,null,null,null,null,null,null,null,null,null,null,null,0]
[null,null,null,null,null,null,null,null,null,null,null,null,null,null,null,null,null,null,0,null,null,null,null,null,null,null,null,null,null,null,null,0]
[null,null,null,null,null,null,null,null,null,null,null,null,null,null,null,null,null,null,0,null,null,null,null,null,null,null,null,null,null,null,null,0]
[null,null,null,null,null,null,null,null,null,null,null,null,null,null,null,null,null,null,0,null,null,null,null,null,null,null,null,null,null,null,null,0]
[null,null,null,null,null,null,null,null,null,null,null,null,null,null,null,null,null,null,0,null,null,null,null,null,null,null,null,null,null,null,null,0]
[null,null,null,null,null,null,null,null,null,null,null,null,null,null,null,null,null,null,0,null,null,null,null,null,null,null,null,null,null,null,null,0]
[null,null,null,null,null,null,null,null,null,null,null,null,null,null,null,null,null,null,0,null,null,null,null,null,null,null,null,null,null,null,null,0]
[null,null,null,null,null,null,null,null,null,null,null,null,null,null,null,null,null,null,0,null,null,null,null,null,null,null,null,null,null,null,null,0]
[null,null,null,null,null,null,null,null,null,null,null,null,null,null,null,null,null,null,0,null,null,null,null,null,null,null,null,null,null,null,null,0]
[null,null,null,null,null,null,null,null,null,null,null,null,null,null,null,null,null,null,0,null,null,null,null,null,null,null,null,null,null,null,null,0]
[null,null,null,null,null,null,null,null,null,null,null,null,null,null,null,null,null,null,0,null,null,null,null,null,null,null,null,null,null,null,null,0]
[null,null,null,null,null,null,null,null,null,null,null,null,null,null,null,null,null,null,0,null,null,null,null,null,null,null,null,null,null,null,null,0]
[null,null,null,null,null,null,null,null,null,null,null,null,null,null,null,null,null,null,0,null,null,null,null,null,null,null,null,null,null,null,null,0]
[null,null,null,null,null,null,null,null,null,null,null,null,null,null,null,null,null,null,0,null,null,null,null,null,null,null,null,null,null,null,null,0]
[null,null,null,null,null,null,null,null,null,null,null,null,null,null,null,null,null,null,0,null,null,null,null,null,null,null,null,null,null,null,null,0]
[null,null,null,null,null,null,null,null,null,null,null,null,null,null,null,null,null,null,0,null,null,null,null,null,null,null,null,null,null,null,null,0]
[null,null,null,null,null,null,null,null,null,null,null,null,null,null,null,null,null,null,0,null,null,null,null,null,null,null,null,null,null,null,null,0]
[null,null,null,null,null,null,null,null,null,null,null,null,null,null,null,null,null,null,0,null,null,null,null,null,null,null,null,null,null,null,null,0]
[null,null,null,null,null,null,null,null,null,null,null,null,null,null,null,null,null,null,0,null,null,null,null,null,null,null,null,null,null,null,null,0]
[null,null,null,null,null,null,null,null,null,null,null,null,null,null,null,null,null,null,0,null,null,null,null,null,null,null,null,null,null,null,null,0]
[null,null,null,null,null,null,null,null,null,null,null,null,null,null,null,null,null,null,0,null,null,null,null,null,null,null,null,null,null,null,null,0]
[null,null,null,null,null,null,null,null,null,null,null,null,null,null,null,null,null,null,0,null,null,null,null,null,null,null,null,null,null,null,null,0]
[null,null,null,null,null,null,null,null,null,null,null,null,null,null,null,null,null,null,0,null,null,null,null,null,null,null,null,null,null,null,null,0]
[null,null,null,null,null,null,null,null,null,null,null,null,null,null,null,null,null,null,0,null,null,null,null,null,null,null,null,null,null,null,null,0]
[null,null,null,null,null,null,null,null,null,null,null,null,null,null,null,null,null,null,0,null,null,null,null,null,null,null,null,null,null,null,null,0]
[null,null,null,null,null,null,null,null,null,null,null,null,null,null,null,null,null,null,0,null,null,null,null,null,null,null,null,null,null,null,null,0]
[null,null,null,null,null,null,null,null,null,null,null,null,null,null,null,null,null,null,0,null,null,null,null,null,null,null,null,null,null,null,null,0]
[null,null,null,null,null,null,null,null,null,null,null,null,null,null,null,null,null,null,0,null,null,null,null,null,null,null,null,null,null,null,null,0]
[null,null,null,null,null,null,null,null,null,null,null,null,null,null,null,null,null,null,0,null,null,null,null,null,null,null,null,null,null,null,null,0]
[null,null,null,null,null,null,null,null,null,null,null,null,null,null,null,null,null,null,0,null,null,null,null,null,null,null,null,null,null,null,null,0]
[null,null,null,null,null,null,null,null,null,null,null,null,null,null,null,null,null,null,0,null,null,null,null,null,null,null,null,null,null,null,null,0]
[null,null,null,null,null,null,null,null,null,null,null,null,null,null,null,null,null,null,0,null,null,null,null,null,null,null,null,null,null,null,null,0]
[null,null,null,null,null,null,null,null,null,null,null,null,null,null,null,null,null,null,0,null,null,null,null,null,null,null,null,null,null,null,null,0]
[null,null,null,null,null,null,null,null,null,null,null,null,null,null,null,null,null,null,0,null,null,null,null,null,null,null,null,null,null,null,null,0]
[null,null,null,null,null,null,null,null,null,null,null,null,null,null,null,null,null,null,0,null,null,null,null,null,null,null,null,null,null,null,null,0]
[null,null,null,null,null,null,null,null,null,null,null,null,null,null,null,null,null,null,0,null,null,null,null,null,null,null,null,null,null,null,null,0]
[null,null,null,null,null,null,null,null,null,null,null,null,null,null,null,null,null,null,0,null,null,null,null,null,null,null,null,null,null,null,null,0]
[null,null,null,null,null,null,null,null,null,null,null,null,null,null,null,null,null,null,0,null,null,null,null,null,null,null,null,null,null,null,null,0]
[null,null,null,null,null,null,null,null,null,null,null,null,null,null,null,null,null,null,0,null,null,null,null,null,null,null,null,null,null,null,null,0]
[null,null,null,null,null,null,null,null,null,null,null,null,null,null,null,null,null,null,0,null,null,null,null,null,null,null,null,null,null,null,null,0]
[null,null,null,null,null,null,null,null,null,null,null,null,null,null,null,null,null,null,0,null,null,null,null,null,null,null,null,null,null,null,null,0]
[null,null,null,null,null,null,null,null,null,null,null,null,null,null,null,null,null,null,0,null,null,null,null,null,null,null,null,null,null,null,null,0]
[null,null,null,null,null,null,null,null,null,null,null,null,null,null,null,null,null,null,0,null,null,null,null,null,null,null,null,null,null,null,null,0]
[null,null,null,null,null,null,null,null,null,null,null,null,null,null,null,null,null,null,0,null,null,null,null,null,null,null,null,null,null,null,null,0]
[null,null,null,null,null,null,null,null,null,null,null,null,null,null,null,null,null,null,0,null,null,null,null,null,null,null,null,null,null,null,null,0]
[null,null,null,null,null,null,null,null,null,null,null,null,null,null,null,null,null,null,0,null,null,null,null,null,null,null,null,null,null,null,null,0]
[null,null,null,null,null,null,null,null,null,null,null,null,null,null,null,null,null,null,0,null,null,null,null,null,null,null,null,null,null,null,null,0]
[null,null,null,null,null,null,null,null,null,null,null,null,null,null,null,null,null,null,0,null,null,null,null,null,null,null,null,null,null,null,null,0]
[null,null,null,null,null,null,null,null,null,null,null,null,null,null,null,null,null,null,0,null,null,null,null,null,null,null,null,null,null,null,null,0]
[null,null,null,null,null,null,null,null,null,null,null,null,null,null,null,null,null,null,0,null,null,null,null,null,null,null,null,null,null,null,null,0]
[null,null,null,null,null,null,null,null,null,null,null,null,null,null,null,null,null,null,0,null,null,null,null,null,null,null,null,null,null,null,null,0]
[null,null,null,null,null,null,null,null,null,null,null,null,null,null,null,null,null,null,0,null,null,null,null,null,null,null,null,null,null,null,null,0]
[null,null,null,null,null,null,null,null,null,null,null,null,null,null,null,null,null,null,0,null,null,null,null,null,null,null,null,null,null,null,null,0]
[null,null,null,null,null,null,null,null,null,null,null,null,null,null,null,null,null,null,0,null,null,null,null,null,null,null,null,null,null,null,null,0]
[null,null,null,null,null,null,null,null,null,null,null,null,null,null,null,null,null,null,0,null,null,null,null,null,null,null,null,null,null,null,null,0]
[null,null,null,null,null,null,null,null,null,null,null,null,null,null,null,null,null,null,0,null,null,null,null,null,null,null,null,null,null,null,null,0]
[null,null,null,null,null,null,null,null,null,null,null,null,null,null,null,null,null,null,0,null,null,null,null,null,null,null,null,null,null,null,null,0]
[null,null,null,null,null,null,null,null,null,null,null,null,null,null,null,null,null,null,0,null,null,null,null,null,null,null,null,null,null,null,null,0]
[null,null,null,null,null,null,null,null,null,null,null,null,null,null,null,null,null,null,{"$f":"O865+P865+Q865+R865","v":0},null,null,null,null,null,null,null,null,null,null,null,null,{"$f":"AB865+AC865+AD865+AE865","v":0}]
[null,null,null,null,null,null,null,null,null,null,null,null,null,null,null,null,null,null,0,null,null,null,null,null,null,null,null,null,null,null,null,0]
[null,null,null,null,null,null,null,null,null,null,null,null,null,null,null,null,null,null,0,null,null,null,null,null,null,null,null,null,null,null,null,0]
[null,null,null,null,null,null,null,null,null,null,null,null,null,null,null,null,null,null,0,null,null,null,null,null,null,null,null,null,null,null,null,0]
[null,null,null,null,null,null,null,null,null,null,null,null,null,null,null,null,null,null,0,null,null,null,null,null,null,null,null,null,null,null,null,0]
[null,null,null,null,null,null,null,null,null,null,null,null,null,null,null,null,null,null,0,null,null,null,null,null,null,null,null,null,null,null,null,0]
[null,null,null,null,null,null,null,null,null,null,null,null,null,null,null,null,null,null,0,null,null,null,null,null,null,null,null,null,null,null,null,0]
[null,null,null,null,null,null,null,null,null,null,null,null,null,null,null,null,null,null,0,null,null,null,null,null,null,null,null,null,null,null,null,0]
[null,null,null,null,null,null,null,null,null,null,null,null,null,null,null,null,null,null,0,null,null,null,null,null,null,null,null,null,null,null,null,0]
[null,null,null,null,null,null,null,null,null,null,null,null,null,null,null,null,null,null,0,null,null,null,null,null,null,null,null,null,null,null,null,0]
[null,null,null,null,null,null,null,null,null,null,null,null,null,null,null,null,null,null,0,null,null,null,null,null,null,null,null,null,null,null,null,0]
[null,null,null,null,null,null,null,null,null,null,null,null,null,null,null,null,null,null,0,null,null,null,null,null,null,null,null,null,null,null,null,0]
[null,null,null,null,null,null,null,null,null,null,null,null,null,null,null,null,null,null,0,null,null,null,null,null,null,null,null,null,null,null,null,0]
[null,null,null,null,null,null,null,null,null,null,null,null,null,null,null,null,null,null,0,null,null,null,null,null,null,null,null,null,null,null,null,0]
[null,null,null,null,null,null,null,null,null,null,null,null,null,null,null,null,null,null,0,null,null,null,null,null,null,null,null,null,null,null,null,0]
[null,null,null,null,null,null,null,null,null,null,null,null,null,null,null,null,null,null,0,null,null,null,null,null,null,null,null,null,null,null,null,0]
[null,null,null,null,null,null,null,null,null,null,null,null,null,null,null,null,null,null,0,null,null,null,null,null,null,null,null,null,null,null,null,0]
[null,null,null,null,null,null,null,null,null,null,null,null,null,null,null,null,null,null,0,null,null,null,null,null,null,null,null,null,null,null,null,0]
[null,null,null,null,null,null,null,null,null,null,null,null,null,null,null,null,null,null,0,null,null,null,null,null,null,null,null,null,null,null,null,0]
[null,null,null,null,null,null,null,null,null,null,null,null,null,null,null,null,null,null,0,null,null,null,null,null,null,null,null,null,null,null,null,0]
[null,null,null,null,null,null,null,null,null,null,null,null,null,null,null,null,null,null,0,null,null,null,null,null,null,null,null,null,null,null,null,0]
[null,null,null,null,null,null,null,null,null,null,null,null,null,null,null,null,null,null,0,null,null,null,null,null,null,null,null,null,null,null,null,0]
[null,null,null,null,null,null,null,null,null,null,null,null,null,null,null,null,null,null,0,null,null,null,null,null,null,null,null,null,null,null,null,0]
[null,null,null,null,null,null,null,null,null,null,null,null,null,null,null,null,null,null,0,null,null,null,null,null,null,null,null,null,null,null,null,0]
[null,null,null,null,null,null,null,null,null,null,null,null,null,null,null,null,null,null,0,null,null,null,null,null,null,null,null,null,null,null,null,0]
[null,null,null,null,null,null,null,null,null,null,null,null,null,null,null,null,null,null,0,null,null,null,null,null,null,null,null,null,null,null,null,0]
[null,null,null,null,null,null,null,null,null,null,null,null,null,null,null,null,null,null,0,null,null,null,null,null,null,null,null,null,null,null,null,0]
[null,null,null,null,null,null,null,null,null,null,null,null,null,null,null,null,null,null,0,null,null,null,null,null,null,null,null,null,null,null,null,0]
[null,null,null,null,null,null,null,null,null,null,null,null,null,null,null,null,null,null,0,null,null,null,null,null,null,null,null,null,null,null,null,0]
[null,null,null,null,null,null,null,null,null,null,null,null,null,null,null,null,null,null,0,null,null,null,null,null,null,null,null,null,null,null,null,0]
[null,null,null,null,null,null,null,null,null,null,null,null,null,null,null,null,null,null,0,null,null,null,null,null,null,null,null,null,null,null,null,0]
[null,null,null,null,null,null,null,null,null,null,null,null,null,null,null,null,null,null,0,null,null,null,null,null,null,null,null,null,null,null,null,0]
[null,null,null,null,null,null,null,null,null,null,null,null,null,null,null,null,null,null,0,null,null,null,null,null,null,null,null,null,null,null,null,0]
[null,null,null,null,null,null,null,null,null,null,null,null,null,null,null,null,null,null,0,null,null,null,null,null,null,null,null,null,null,null,null,0]
[null,null,null,null,null,null,null,null,null,null,null,null,null,null,null,null,null,null,0,null,null,null,null,null,null,null,null,null,null,null,null,0]
[null,null,null,null,null,null,null,null,null,null,null,null,null,null,null,null,null,null,0,null,null,null,null,null,null,null,null,null,null,null,null,0]
[null,null,null,null,null,null,null,null,null,null,null,null,null,null,null,null,null,null,0,null,null,null,null,null,null,null,null,null,null,null,null,0]
[null,null,null,null,null,null,null,null,null,null,null,null,null,null,null,null,null,null,0,null,null,null,null,null,null,null,null,null,null,null,null,0]
[null,null,null,null,null,null,null,null,null,null,null,null,null,null,null,null,null,null,0,null,null,null,null,null,null,null,null,null,null,null,null,0]
[null,null,null,null,null,null,null,null,null,null,null,null,null,null,null,null,null,null,0,null,null,null,null,null,null,null,null,null,null,null,null,0]
[null,null,null,null,null,null,null,null,null,null,null,null,null,null,null,null,null,null,0,null,null,null,null,null,null,null,null,null,null,null,null,0]
[null,null,null,null,null,null,null,null,null,null,null,null,null,null,null,null,null,null,0,null,null,null,null,null,null,null,null,null,null,null,null,0]
[null,null,null,null,null,null,null,null,null,null,null,null,null,null,null,null,null,null,0,null,null,null,null,null,null,null,null,null,null,null,null,0]
[null,null,null,null,null,null,null,null,null,null,null,null,null,null,null,null,null,null,0,null,null,null,null,null,null,null,null,null,null,null,null,0]
[null,null,null,null,null,null,null,null,null,null,null,null,null,null,null,null,null,null,0,null,null,null,null,null,null,null,null,null,null,null,null,0]
[null,null,null,null,null,null,null,null,null,null,null,null,null,null,null,null,null,null,0,null,null,null,null,null,null,null,null,null,null,null,null,0]
[null,null,null,null,null,null,null,null,null,null,null,null,null,null,null,null,null,null,0,null,null,null,null,null,null,null,null,null,null,null,null,0]
[null,null,null,null,null,null,null,null,null,null,null,null,null,null,null,null,null,null,0,null,null,null,null,null,null,null,null,null,null,null,null,0]
[null,null,null,null,null,null,null,null,null,null,null,null,null,null,null,null,null,null,0,null,null,null,null,null,null,null,null,null,null,null,null,0]
[null,null,null,null,null,null,null,null,null,null,null,null,null,null,null,null,null,null,0,null,null,null,null,null,null,null,null,null,null,null,null,0]
[null,null,null,null,null,null,null,null,null,null,null,null,null,null,null,null,null,null,0,null,null,null,null,null,null,null,null,null,null,null,null,0]
[null,null,null,null,null,null,null,null,null,null,null,null,null,null,null,null,null,null,0,null,null,null,null,null,null,null,null,null,null,null,null,0]
[null,null,null,null,null,null,null,null,null,null,null,null,null,null,null,null,null,null,0,null,null,null,null,null,null,null,null,null,null,null,null,0]
[null,null,null,null,null,null,null,null,null,null,null,null,null,null,null,null,null,null,0,null,null,null,null,null,null,null,null,null,null,null,null,0]
[null,null,null,null,null,null,null,null,null,null,null,null,null,null,null,null,null,null,0,null,null,null,null,null,null,null,null,null,null,null,null,0]
[null,null,null,null,null,null,null,null,null,null,null,null,null,null,null,null,null,null,0,null,null,null,null,null,null,null,null,null,null,null,null,0]
[null,null,null,null,null,null,null,null,null,null,null,null,null,null,null,null,null,null,0,null,null,null,null,null,null,null,null,null,null,null,null,0]
[null,null,null,null,null,null,null,null,null,null,null,null,null,null,null,null,null,null,0,null,null,null,null,null,null,null,null,null,null,null,null,0]
[null,null,null,null,null,null,null,null,null,null,null,null,null,null,null,null,null,null,0,null,null,null,null,null,null,null,null,null,null,null,null,0]
[null,null,null,null,null,null,null,null,null,null,null,null,null,null,null,null,null,null,0,null,null,null,null,null,null,null,null,null,null,null,null,0]
[null,null,null,null,null,null,null,null,null,null,null,null,null,null,null,null,null,null,0,null,null,null,null,null,null,null,null,null,null,null,null,0]
[null,null,null,null,null,null,null,null,null,null,null,null,null,null,null,null,null,null,0,null,null,null,null,null,null,null,null,null,null,null,null,0]
[null,null,null,null,null,null,null,null,null,null,null,null,null,null,null,null,null,null,0,null,null,null,null,null,null,null,null,null,null,null,null,0]
[null,null,null,null,null,null,null,null,null,null,null,null,null,null,null,null,null,null,0,null,null,null,null,null,null,null,null,null,null,null,null,0]
[null,null,null,null,null,null,null,null,null,null,null,null,null,null,null,null,null,null,{"$f":"O929+P929+Q929+R929","v":0},null,null,null,null,null,null,null,null,null,null,null,null,{"$f":"AB929+AC929+AD929+AE929","v":0}]
[null,null,null,null,null,null,null,null,null,null,null,null,null,null,null,null,null,null,0,null,null,null,null,null,null,null,null,null,null,null,null,0]
[null,null,null,null,null,null,null,null,null,null,null,null,null,null,null,null,null,null,0,null,null,null,null,null,null,null,null,null,null,null,null,0]
[null,null,null,null,null,null,null,null,null,null,null,null,null,null,null,null,null,null,0,null,null,null,null,null,null,null,null,null,null,null,null,0]
[null,null,null,null,null,null,null,null,null,null,null,null,null,null,null,null,null,null,0,null,null,null,null,null,null,null,null,null,null,null,null,0]
[null,null,null,null,null,null,null,null,null,null,null,null,null,null,null,null,null,null,0,null,null,null,null,null,null,null,null,null,null,null,null,0]
[null,null,null,null,null,null,null,null,null,null,null,null,null,null,null,null,null,null,0,null,null,null,null,null,null,null,null,null,null,null,null,0]
[null,null,null,null,null,null,null,null,null,null,null,null,null,null,null,null,null,null,0,null,null,null,null,null,null,null,null,null,null,null,null,0]
[null,null,null,null,null,null,null,null,null,null,null,null,null,null,null,null,null,null,0,null,null,null,null,null,null,null,null,null,null,null,null,0]
[null,null,null,null,null,null,null,null,null,null,null,null,null,null,null,null,null,null,0,null,null,null,null,null,null,null,null,null,null,null,null,0]
[null,null,null,null,null,null,null,null,null,null,null,null,null,null,null,null,null,null,0,null,null,null,null,null,null,null,null,null,null,null,null,0]
[null,null,null,null,null,null,null,null,null,null,null,null,null,null,null,null,null,null,0,null,null,null,null,null,null,null,null,null,null,null,null,0]
[null,null,null,null,null,null,null,null,null,null,null,null,null,null,null,null,null,null,0,null,null,null,null,null,null,null,null,null,null,null,null,0]
[null,null,null,null,null,null,null,null,null,null,null,null,null,null,null,null,null,null,0,null,null,null,null,null,null,null,null,null,null,null,null,0]
[null,null,null,null,null,null,null,null,null,null,null,null,null,null,null,null,null,null,0,null,null,null,null,null,null,null,null,null,null,null,null,0]
[null,null,null,null,null,null,null,null,null,null,null,null,null,null,null,null,null,null,0,null,null,null,null,null,null,null,null,null,null,null,null,0]
[null,null,null,null,null,null,null,null,null,null,null,null,null,null,null,null,null,null,0,null,null,null,null,null,null,null,null,null,null,null,null,0]
[null,null,null,null,null,null,null,null,null,null,null,null,null,null,null,null,null,null,0,null,null,null,null,null,null,null,null,null,null,null,null,0]
[null,null,null,null,null,null,null,null,null,null,null,null,null,null,null,null,null,null,0,null,null,null,null,null,null,null,null,null,null,null,null,0]
[null,null,null,null,null,null,null,null,null,null,null,null,null,null,null,null,null,null,0,null,null,null,null,null,null,null,null,null,null,null,null,0]
[null,null,null,null,null,null,null,null,null,null,null,null,null,null,null,null,null,null,0,null,null,null,null,null,null,null,null,null,null,null,null,0]
[null,null,null,null,null,null,null,null,null,null,null,null,null,null,null,null,null,null,0,null,null,null,null,null,null,null,null,null,null,null,null,0]
[null,null,null,null,null,null,null,null,null,null,null,null,null,null,null,null,null,null,0,null,null,null,null,null,null,null,null,null,null,null,null,0]
[null,null,null,null,null,null,null,null,null,null,null,null,null,null,null,null,null,null,0,null,null,null,null,null,null,null,null,null,null,null,null,0]
[null,null,null,null,null,null,null,null,null,null,null,null,null,null,null,null,null,null,0,null,null,null,null,null,null,null,null,null,null,null,null,0]
[null,null,null,null,null,null,null,null,null,null,null,null,null,null,null,null,null,null,0,null,null,null,null,null,null,null,null,null,null,null,null,0]
[null,null,null,null,null,null,null,null,null,null,null,null,null,null,null,null,null,null,0,null,null,null,null,null,null,null,null,null,null,null,null,0]
[null,null,null,null,null,null,null,null,null,null,null,null,null,null,null,null,null,null,0,null,null,null,null,null,null,null,null,null,null,null,null,0]
[null,null,null,null,null,null,null,null,null,null,null,null,null,null,null,null,null,null,0,null,null,null,null,null,null,null,null,null,null,null,null,0]
[null,null,null,null,null,null,null,null,null,null,null,null,null,null,null,null,null,null,0,null,null,null,null,null,null,null,null,null,null,null,null,0]
[null,null,null,null,null,null,null,null,null,null,null,null,null,null,null,null,null,null,0,null,null,null,null,null,null,null,null,null,null,null,null,0]
[null,null,null,null,null,null,null,null,null,null,null,null,null,null,null,null,null,null,0,null,null,null,null,null,null,null,null,null,null,null,null,0]
[null,null,null,null,null,null,null,null,null,null,null,null,null,null,null,null,null,null,0,null,null,null,null,null,null,null,null,null,null,null,null,0]
[null,null,null,null,null,null,null,null,null,null,null,null,null,null,null,null,null,null,0,null,null,null,null,null,null,null,null,null,null,null,null,0]
[null,null,null,null,null,null,null,null,null,null,null,null,null,null,null,null,null,null,0,null,null,null,null,null,null,null,null,null,null,null,null,0]
[null,null,null,null,null,null,null,null,null,null,null,null,null,null,null,null,null,null,0,null,null,null,null,null,null,null,null,null,null,null,null,0]
[null,null,null,null,null,null,null,null,null,null,null,null,null,null,null,null,null,null,0,null,null,null,null,null,null,null,null,null,null,null,null,0]
[null,null,null,null,null,null,null,null,null,null,null,null,null,null,null,null,null,null,0,null,null,null,null,null,null,null,null,null,null,null,null,0]
[null,null,null,null,null,null,null,null,null,null,null,null,null,null,null,null,null,null,0,null,null,null,null,null,null,null,null,null,null,null,null,0]
[null,null,null,null,null,null,null,null,null,null,null,null,null,null,null,null,null,null,0,null,null,null,null,null,null,null,null,null,null,null,null,0]
[null,null,null,null,null,null,null,null,null,null,null,null,null,null,null,null,null,null,0,null,null,null,null,null,null,null,null,null,null,null,null,0]
[null,null,null,null,null,null,null,null,null,null,null,null,null,null,null,null,null,null,0,null,null,null,null,null,null,null,null,null,null,null,null,0]
[null,null,null,null,null,null,null,null,null,null,null,null,null,null,null,null,null,null,0,null,null,null,null,null,null,null,null,null,null,null,null,0]
[null,null,null,null,null,null,null,null,null,null,null,null,null,null,null,null,null,null,0,null,null,null,null,null,null,null,null,null,null,null,null,0]
[null,null,null,null,null,null,null,null,null,null,null,null,null,null,null,null,null,null,0,null,null,null,null,null,null,null,null,null,null,null,null,0]
[null,null,null,null,null,null,null,null,null,null,null,null,null,null,null,null,null,null,0,null,null,null,null,null,null,null,null,null,null,null,null,0]
[null,null,null,null,null,null,null,null,null,null,null,null,null,null,null,null,null,null,0,null,null,null,null,null,null,null,null,null,null,null,null,0]
[null,null,null,null,null,null,null,null,null,null,null,null,null,null,null,null,null,null,0,null,null,null,null,null,null,null,null,null,null,null,null,0]
[null,null,null,null,null,null,null,null,null,null,null,null,null,null,null,null,null,null,0,null,null,null,null,null,null,null,null,null,null,null,null,0]
[null,null,null,null,null,null,null,null,null,null,null,null,null,null,null,null,null,null,0,null,null,null,null,null,null,null,null,null,null,null,null,0]
[null,null,null,null,null,null,null,null,null,null,null,null,null,null,null,null,null,null,0,null,null,null,null,null,null,null,null,null,null,null,null,0]
[null,null,null,null,null,null,null,null,null,null,null,null,null,null,null,null,null,null,0,null,null,null,null,null,null,null,null,null,null,null,null,0]
[null,null,null,null,null,null,null,null,null,null,null,null,null,null,null,null,null,null,0,null,null,null,null,null,null,null,null,null,null,null,null,0]
[null,null,null,null,null,null,null,null,null,null,null,null,null,null,null,null,null,null,0,null,null,null,null,null,null,null,null,null,null,null,null,0]
[null,null,null,null,null,null,null,null,null,null,null,null,null,null,null,null,null,null,0,null,null,null,null,null,null,null,null,null,null,null,null,0]
[null,null,null,null,null,null,null,null,null,null,null,null,null,null,null,null,null,null,0,null,null,null,null,null,null,null,null,null,null,null,null,0]
[null,null,null,null,null,null,null,null,null,null,null,null,null,null,null,null,null,null,0,null,null,null,null,null,null,null,null,null,null,null,null,0]
[null,null,null,null,null,null,null,null,null,null,null,null,null,null,null,null,null,null,0,null,null,null,null,null,null,null,null,null,null,null,null,0]
[null,null,null,null,null,null,null,null,null,null,null,null,null,null,null,null,null,null,0,null,null,null,null,null,null,null,null,null,null,null,null,0]
[null,null,null,null,null,null,null,null,null,null,null,null,null,null,null,null,null,null,0,null,null,null,null,null,null,null,null,null,null,null,null,0]
[null,null,null,null,null,null,null,null,null,null,null,null,null,null,null,null,null,null,0,null,null,null,null,null,null,null,null,null,null,null,null,0]
[null,null,null,null,null,null,null,null,null,null,null,null,null,null,null,null,null,null,0,null,null,null,null,null,null,null,null,null,null,null,null,0]
[null,null,null,null,null,null,null,null,null,null,null,null,null,null,null,null,null,null,0,null,null,null,null,null,null,null,null,null,null,null,null,0]
[null,null,null,null,null,null,null,null,null,null,null,null,null,null,null,null,null,null,0,null,null,null,null,null,null,null,null,null,null,null,null,0]
[null,null,null,null,null,null,null,null,null,null,null,null,null,null,null,null,null,null,{"$f":"O993+P993+Q993+R993","v":0},null,null,null,null,null,null,null,null,null,null,null,null,{"$f":"AB993+AC993+AD993+AE993","v":0}]
[null,null,null,null,null,null,null,null,null,null,null,null,null,null,null,null,null,null,0,null,null,null,null,null,null,null,null,null,null,null,null,0]
[null,null,null,null,null,null,null,null,null,null,null,null,null,null,null,null,null,null,0,null,null,null,null,null,null,null,null,null,null,null,null,0]
[null,null,null,null,null,null,null,null,null,null,null,null,null,null,null,null,null,null,0,null,null,null,null,null,null,null,null,null,null,null,null,0]
[null,null,null,null,null,null,null,null,null,null,null,null,null,null,null,null,null,null,0,null,null,null,null,null,null,null,null,null,null,null,null,0]
[null,null,null,null,null,null,null,null,null,null,null,null,null,null,null,null,null,null,0,null,null,null,null,null,null,null,null,null,null,null,null,0]
[null,null,null,null,null,null,null,null,null,null,null,null,null,null,null,null,null,null,0,null,null,null,null,null,null,null,null,null,null,null,null,0]
[null,null,null,null,null,null,null,null,null,null,null,null,null,null,null,null,null,null,0,null,null,null,null,null,null,null,null,null,null,null,null,0]
[null,null,null,null,null,null,null,null,null,null,null,null,null,null,null,null,null,null,0,null,null,null,null,null,null,null,null,null,null,null,null,0]
[null,null,null,null,null,null,null,null,null,null,null,null,null,null,null,null,null,null,0,null,null,null,null,null,null,null,null,null,null,null,null,0]
[null,null,null,null,null,null,null,null,null,null,null,null,null,null,null,null,null,null,0,null,null,null,null,null,null,null,null,null,null,null,null,0]
[null,null,null,null,null,null,null,null,null,null,null,null,null,null,null,null,null,null,0,null,null,null,null,null,null,null,null,null,null,null,null,0]
[null,null,null,null,null,null,null,null,null,null,null,null,null,null,null,null,null,null,0,null,null,null,null,null,null,null,null,null,null,null,null,0]
[null,null,null,null,null,null,null,null,null,null,null,null,null,null,null,null,null,null,0,null,null,null,null,null,null,null,null,null,null,null,null,0]
[null,null,null,null,null,null,null,null,null,null,null,null,null,null,null,null,null,null,0,null,null,null,null,null,null,null,null,null,null,null,null,0]
[null,null,null,null,null,null,null,null,null,null,null,null,null,null,null,null,null,null,0,null,null,null,null,null,null,null,null,null,null,null,null,0]
[null,null,null,null,null,null,null,null,null,null,null,null,null,null,null,null,null,null,0,null,null,null,null,null,null,null,null,null,null,null,null,0]
[null,null,null,null,null,null,null,null,null,null,null,null,null,null,null,null,null,null,0,null,null,null,null,null,null,null,null,null,null,null,null,0]
[null,null,null,null,null,null,null,null,null,null,null,null,null,null,null,null,null,null,0,null,null,null,null,null,null,null,null,null,null,null,null,0]
[null,null,null,null,null,null,null,null,null,null,null,null,null,null,null,null,null,null,0,null,null,null,null,null,null,null,null,null,null,null,null,0]
[null,null,null,null,null,null,null,null,null,null,null,null,null,null,null,null,null,null,0,null,null,null,null,null,null,null,null,null,null,null,null,0]
[null,null,null,null,null,null,null,null,null,null,null,null,null,null,null,null,null,null,0,null,null,null,null,null,null,null,null,null,null,null,null,0]
[null,null,null,null,null,null,null,null,null,null,null,null,null,null,null,null,null,null,0,null,null,null,null,null,null,null,null,null,null,null,null,0]
[null,null,null,null,null,null,null,null,null,null,null,null,null,null,null,null,null,null,0,null,null,null,null,null,null,null,null,null,null,null,null,0]
[null,null,null,null,null,null,null,null,null,null,null,null,null,null,null,null,null,null,0,null,null,null,null,null,null,null,null,null,null,null,null,0]
[null,null,null,null,null,null,null,null,null,null,null,null,null,null,null,null,null,null,0,null,null,null,null,null,null,null,null,null,null,null,null,0]
[null,null,null,null,null,null,null,null,null,null,null,null,null,null,null,null,null,null,0,null,null,null,null,null,null,null,null,null,null,null,null,0]
[null,null,null,null,null,null,null,null,null,null,null,null,null,null,null,null,null,null,0,null,null,null,null,null,null,null,null,null,null,null,null,0]
[null,null,null,null,null,null,null,null,null,null,null,null,null,null,null,null,null,null,0,null,null,null,null,null,null,null,null,null,null,null,null,0]
[null,null,null,null,null,null,null,null,null,null,null,null,null,null,null,null,null,null,0,null,null,null,null,null,null,null,null,null,null,null,null,0]
[null,null,null,null,null,null,null,null,null,null,null,null,null,null,null,null,null,null,0,null,null,null,null,null,null,null,null,null,null,null,null,0]
[null,null,null,null,null,null,null,null,null,null,null,null,null,null,null,null,null,null,0,null,null,null,null,null,null,null,null,null,null,null,null,0]
[null,null,null,null,null,null,null,null,null,null,null,null,null,null,null,null,null,null,0,null,null,null,null,null,null,null,null,null,null,null,null,0]
[null,null,null,null,null,null,null,null,null,null,null,null,null,null,null,null,null,null,0,null,null,null,null,null,null,null,null,null,null,null,null,0]
[null,null,null,null,null,null,null,null,null,null,null,null,null,null,null,null,null,null,0,null,null,null,null,null,null,null,null,null,null,null,null,0]
[null,null,null,null,null,null,null,null,null,null,null,null,null,null,null,null,null,null,0,null,null,null,null,null,null,null,null,null,null,null,null,0]
[null,null,null,null,null,null,null,null,null,null,null,null,null,null,null,null,null,null,0,null,null,null,null,null,null,null,null,null,null,null,null,0]
[null,null,null,null,null,null,null,null,null,null,null,null,null,null,null,null,null,null,0,null,null,null,null,null,null,null,null,null,null,null,null,0]
[null,null,null,null,null,null,null,null,null,null,null,null,null,null,null,null,null,null,0,null,null,null,null,null,null,null,null,null,null,null,null,0]
[null,null,null,null,null,null,null,null,null,null,null,null,null,null,null,null,null,null,0,null,null,null,null,null,null,null,null,null,null,null,null,0]
[null,null,null,null,null,null,null,null,null,null,null,null,null,null,null,null,null,null,0,null,null,null,null,null,null,null,null,null,null,null,null,0]
[null,null,null,null,null,null,null,null,null,null,null,null,null,null,null,null,null,null,0,null,null,null,null,null,null,null,null,null,null,null,null,0]
[null,null,null,null,null,null,null,null,null,null,null,null,null,null,null,null,null,null,0,null,null,null,null,null,null,null,null,null,null,null,null,0]
[null,null,null,null,null,null,null,null,null,null,null,null,null,null,null,null,null,null,0,null,null,null,null,null,null,null,null,null,null,null,null,0]
[null,null,null,null,null,null,null,null,null,null,null,null,null,null,null,null,null,null,0,null,null,null,null,null,null,null,null,null,null,null,null,0]
[null,null,null,null,null,null,null,null,null,null,null,null,null,null,null,null,null,null,0,null,null,null,null,null,null,null,null,null,null,null,null,0]
[null,null,null,null,null,null,null,null,null,null,null,null,null,null,null,null,null,null,0,null,null,null,null,null,null,null,null,null,null,null,null,0]
[null,null,null,null,null,null,null,null,null,null,null,null,null,null,null,null,null,null,0,null,null,null,null,null,null,null,null,null,null,null,null,0]
[null,null,null,null,null,null,null,null,null,null,null,null,null,null,null,null,null,null,0,null,null,null,null,null,null,null,null,null,null,null,null,0]
[null,null,null,null,null,null,null,null,null,null,null,null,null,null,null,null,null,null,0,null,null,null,null,null,null,null,null,null,null,null,null,0]
[null,null,null,null,null,null,null,null,null,null,null,null,null,null,null,null,null,null,0,null,null,null,null,null,null,null,null,null,null,null,null,0]
[null,null,null,null,null,null,null,null,null,null,null,null,null,null,null,null,null,null,0,null,null,null,null,null,null,null,null,null,null,null,null,0]
[null,null,null,null,null,null,null,null,null,null,null,null,null,null,null,null,null,null,0,null,null,null,null,null,null,null,null,null,null,null,null,0]
[null,null,null,null,null,null,null,null,null,null,null,null,null,null,null,null,null,null,0,null,null,null,null,null,null,null,null,null,null,null,null,0]
[null,null,null,null,null,null,null,null,null,null,null,null,null,null,null,null,null,null,0,null,null,null,null,null,null,null,null,null,null,null,null,0]
[null,null,null,null,null,null,null,null,null,null,null,null,null,null,null,null,null,null,0,null,null,null,null,null,null,null,null,null,null,null,null,0]
[null,null,null,null,null,null,null,null,null,null,null,null,null,null,null,null,null,null,0,null,null,null,null,null,null,null,null,null,null,null,null,0]
[null,null,null,null,null,null,null,null,null,null,null,null,null,null,null,null,null,null,0,null,null,null,null,null,null,null,null,null,null,null,null,0]
[null,null,null,null,null,null,null,null,null,null,null,null,null,null,null,null,null,null,0,null,null,null,null,null,null,null,null,null,null,null,null,0]
[null,null,null,null,null,null,null,null,null,null,null,null,null,null,null,null,null,null,0,null,null,null,null,null,null,null,null,null,null,null,null,0]
[null,null,null,null,null,null,null,null,null,null,null,null,null,null,null,null,null,null,0,null,null,null,null,null,null,null,null,null,null,null,null,0]
[null,null,null,null,null,null,null,null,null,null,null,null,null,null,null,null,null,null,0,null,null,null,null,null,null,null,null,null,null,null,null,0]
[null,null,null,null,null,null,null,null,null,null,null,null,null,null,null,null,null,null,0,null,null,null,null,null,null,null,null,null,null,null,null,0]
[null,null,null,null,null,null,null,null,null,null,null,null,null,null,null,null,null,null,0,null,null,null,null,null,null,null,null,null,null,null,null,0]
[null,null,null,null,null,null,null,null,null,null,null,null,null,null,null,null,null,null,{"$f":"O1057+P1057+Q1057+R1057","v":0},null,null,null,null,null,null,null,null,null,null,null,null,{"$f":"AB1057+AC1057+AD1057+AE1057","v":0}]
[null,null,null,null,null,null,null,null,null,null,null,null,null,null,null,null,null,null,0,null,null,null,null,null,null,null,null,null,null,null,null,0]
[null,null,null,null,null,null,null,null,null,null,null,null,null,null,null,null,null,null,0,null,null,null,null,null,null,null,null,null,null,null,null,0]
[null,null,null,null,null,null,null,null,null,null,null,null,null,null,null,null,null,null,0,null,null,null,null,null,null,null,null,null,null,null,null,0]
[null,null,null,null,null,null,null,null,null,null,null,null,null,null,null,null,null,null,0,null,null,null,null,null,null,null,null,null,null,null,null,0]
[null,null,null,null,null,null,null,null,null,null,null,null,null,null,null,null,null,null,0,null,null,null,null,null,null,null,null,null,null,null,null,0]
[null,null,null,null,null,null,null,null,null,null,null,null,null,null,null,null,null,null,0,null,null,null,null,null,null,null,null,null,null,null,null,0]
[null,null,null,null,null,null,null,null,null,null,null,null,null,null,null,null,null,null,0,null,null,null,null,null,null,null,null,null,null,null,null,0]
[null,null,null,null,null,null,null,null,null,null,null,null,null,null,null,null,null,null,0,null,null,null,null,null,null,null,null,null,null,null,null,0]
[null,null,null,null,null,null,null,null,null,null,null,null,null,null,null,null,null,null,0,null,null,null,null,null,null,null,null,null,null,null,null,0]
[null,null,null,null,null,null,null,null,null,null,null,null,null,null,null,null,null,null,0,null,null,null,null,null,null,null,null,null,null,null,null,0]
[null,null,null,null,null,null,null,null,null,null,null,null,null,null,null,null,null,null,0,null,null,null,null,null,null,null,null,null,null,null,null,0]
[null,null,null,null,null,null,null,null,null,null,null,null,null,null,null,null,null,null,0,null,null,null,null,null,null,null,null,null,null,null,null,0]
[null,null,null,null,null,null,null,null,null,null,null,null,null,null,null,null,null,null,0,null,null,null,null,null,null,null,null,null,null,null,null,0]
[null,null,null,null,null,null,null,null,null,null,null,null,null,null,null,null,null,null,0,null,null,null,null,null,null,null,null,null,null,null,null,0]
[null,null,null,null,null,null,null,null,null,null,null,null,null,null,null,null,null,null,0,null,null,null,null,null,null,null,null,null,null,null,null,0]
[null,null,null,null,null,null,null,null,null,null,null,null,null,null,null,null,null,null,0,null,null,null,null,null,null,null,null,null,null,null,null,0]
[null,null,null,null,null,null,null,null,null,null,null,null,null,null,null,null,null,null,0,null,null,null,null,null,null,null,null,null,null,null,null,0]
[null,null,null,null,null,null,null,null,null,null,null,null,null,null,null,null,null,null,0,null,null,null,null,null,null,null,null,null,null,null,null,0]
[null,null,null,null,null,null,null,null,null,null,null,null,null,null,null,null,null,null,0,null,null,null,null,null,null,null,null,null,null,null,null,0]
[null,null,null,null,null,null,null,null,null,null,null,null,null,null,null,null,null,null,0,null,null,null,null,null,null,null,null,null,null,null,null,0]
[null,null,null,null,null,null,null,null,null,null,null,null,null,null,null,null,null,null,0,null,null,null,null,null,null,null,null,null,null,null,null,0]
[null,null,null,null,null,null,null,null,null,null,null,null,null,null,null,null,null,null,0,null,null,null,null,null,null,null,null,null,null,null,null,0]
[null,null,null,null,null,null,null,null,null,null,null,null,null,null,null,null,null,null,0,null,null,null,null,null,null,null,null,null,null,null,null,0]
[null,null,null,null,null,null,null,null,null,null,null,null,null,null,null,null,null,null,0,null,null,null,null,null,null,null,null,null,null,null,null,0]
[null,null,null,null,null,null,null,null,null,null,null,null,null,null,null,null,null,null,0,null,null,null,null,null,null,null,null,null,null,null,null,0]
[null,null,null,null,null,null,null,null,null,null,null,null,null,null,null,null,null,null,0,null,null,null,null,null,null,null,null,null,null,null,null,0]
[null,null,null,null,null,null,null,null,null,null,null,null,null,null,null,null,null,null,0,null,null,null,null,null,null,null,null,null,null,null,null,0]
[null,null,null,null,null,null,null,null,null,null,null,null,null,null,null,null,null,null,0,null,null,null,null,null,null,null,null,null,null,null,null,0]
[null,null,null,null,null,null,null,null,null,null,null,null,null,null,null,null,null,null,0,null,null,null,null,null,null,null,null,null,null,null,null,0]
[null,null,null,null,null,null,null,null,null,null,null,null,null,null,null,null,null,null,0,null,null,null,null,null,null,null,null,null,null,null,null,0]
[null,null,null,null,null,null,null,null,null,null,null,null,null,null,null,null,null,null,0,null,null,null,null,null,null,null,null,null,null,null,null,0]
[null,null,null,null,null,null,null,null,null,null,null,null,null,null,null,null,null,null,0,null,null,null,null,null,null,null,null,null,null,null,null,0]
[null,null,null,null,null,null,null,null,null,null,null,null,null,null,null,null,null,null,0,null,null,null,null,null,null,null,null,null,null,null,null,0]
[null,null,null,null,null,null,null,null,null,null,null,null,null,null,null,null,null,null,0,null,null,null,null,null,null,null,null,null,null,null,null,0]
[null,null,null,null,null,null,null,null,null,null,null,null,null,null,null,null,null,null,0,null,null,null,null,null,null,null,null,null,null,null,null,0]
[null,null,null,null,null,null,null,null,null,null,null,null,null,null,null,null,null,null,0,null,null,null,null,null,null,null,null,null,null,null,null,0]
[null,null,null,null,null,null,null,null,null,null,null,null,null,null,null,null,null,null,0,null,null,null,null,null,null,null,null,null,null,null,null,0]
[null,null,null,null,null,null,null,null,null,null,null,null,null,null,null,null,null,null,0,null,null,null,null,null,null,null,null,null,null,null,null,0]
[null,null,null,null,null,null,null,null,null,null,null,null,null,null,null,null,null,null,0,null,null,null,null,null,null,null,null,null,null,null,null,0]
[null,null,null,null,null,null,null,null,null,null,null,null,null,null,null,null,null,null,0,null,null,null,null,null,null,null,null,null,null,null,null,0]
[null,null,null,null,null,null,null,null,null,null,null,null,null,null,null,null,null,null,0,null,null,null,null,null,null,null,null,null,null,null,null,0]
[null,null,null,null,null,null,null,null,null,null,null,null,null,null,null,null,null,null,0,null,null,null,null,null,null,null,null,null,null,null,null,0]
[null,null,null,null,null,null,null,null,null,null,null,null,null,null,null,null,null,null,0,null,null,null,null,null,null,null,null,null,null,null,null,0]
[null,null,null,null,null,null,null,null,null,null,null,null,null,null,null,null,null,null,0,null,null,null,null,null,null,null,null,null,null,null,null,0]
[null,null,null,null,null,null,null,null,null,null,null,null,null,null,null,null,null,null,0,null,null,null,null,null,null,null,null,null,null,null,null,0]
[null,null,null,null,null,null,null,null,null,null,null,null,null,null,null,null,null,null,0,null,null,null,null,null,null,null,null,null,null,null,null,0]
[null,null,null,null,null,null,null,null,null,null,null,null,null,null,null,null,null,null,0,null,null,null,null,null,null,null,null,null,null,null,null,0]
[null,null,null,null,null,null,null,null,null,null,null,null,null,null,null,null,null,null,0,null,null,null,null,null,null,null,null,null,null,null,null,0]
[null,null,null,null,null,null,null,null,null,null,null,null,null,null,null,null,null,null,0,null,null,null,null,null,null,null,null,null,null,null,null,0]
[null,null,null,null,null,null,null,null,null,null,null,null,null,null,null,null,null,null,0,null,null,null,null,null,null,null,null,null,null,null,null,0]
[null,null,null,null,null,null,null,null,null,null,null,null,null,null,null,null,null,null,0,null,null,null,null,null,null,null,null,null,null,null,null,0]
[null,null,null,null,null,null,null,null,null,null,null,null,null,null,null,null,null,null,0,null,null,null,null,null,null,null,null,null,null,null,null,0]
[null,null,null,null,null,null,null,null,null,null,null,null,null,null,null,null,null,null,0,null,null,null,null,null,null,null,null,null,null,null,null,0]
[null,null,null,null,null,null,null,null,null,null,null,null,null,null,null,null,null,null,0,null,null,null,null,null,null,null,null,null,null,null,null,0]
[null,null,null,null,null,null,null,null,null,null,null,null,null,null,null,null,null,null,0,null,null,null,null,null,null,null,null,null,null,null,null,0]
[null,null,null,null,null,null,null,null,null,null,null,null,null,null,null,null,null,null,0,null,null,null,null,null,null,null,null,null,null,null,null,0]
[null,null,null,null,null,null,null,null,null,null,null,null,null,null,null,null,null,null,0,null,null,null,null,null,null,null,null,null,null,null,null,0]
[null,null,null,null,null,null,null,null,null,null,null,null,null,null,null,null,null,null,0,null,null,null,null,null,null,null,null,null,null,null,null,0]
[null,null,null,null,null,null,null,null,null,null,null,null,null,null,null,null,null,null,0,null,null,null,null,null,null,null,null,null,null,null,null,0]
[null,null,null,null,null,null,null,null,null,null,null,null,null,null,null,null,null,null,0,null,null,null,null,null,null,null,null,null,null,null,null,0]
[null,null,null,null,null,null,null,null,null,null,null,null,null,null,null,null,null,null,0,null,null,null,null,null,null,null,null,null,null,null,null,0]
[null,null,null,null,null,null,null,null,null,null,null,null,null,null,null,null,null,null,0,null,null,null,null,null,null,null,null,null,null,null,null,0]
[null,null,null,null,null,null,null,null,null,null,null,null,null,null,null,null,null,null,0,null,null,null,null,null,null,null,null,null,null,null,null,0]
[null,null,null,null,null,null,null,null,null,null,null,null,null,null,null,null,null,null,{"$f":"O1121+P1121+Q1121+R1121","v":0},null,null,null,null,null,null,null,null,null,null,null,null,{"$f":"AB1121+AC1121+AD1121+AE1121","v":0}]
[null,null,null,null,null,null,null,null,null,null,null,null,null,null,null,null,null,null,0,null,null,null,null,null,null,null,null,null,null,null,null,0]
[null,null,null,null,null,null,null,null,null,null,null,null,null,null,null,null,null,null,0,null,null,null,null,null,null,null,null,null,null,null,null,0]
[null,null,null,null,null,null,null,null,null,null,null,null,null,null,null,null,null,null,0,null,null,null,null,null,null,null,null,null,null,null,null,0]
[null,null,null,null,null,null,null,null,null,null,null,null,null,null,null,null,null,null,0,null,null,null,null,null,null,null,null,null,null,null,null,0]
[null,null,null,null,null,null,null,null,null,null,null,null,null,null,null,null,null,null,0,null,null,null,null,null,null,null,null,null,null,null,null,0]
[null,null,null,null,null,null,null,null,null,null,null,null,null,null,null,null,null,null,0,null,null,null,null,null,null,null,null,null,null,null,null,0]
[null,null,null,null,null,null,null,null,null,null,null,null,null,null,null,null,null,null,0,null,null,null,null,null,null,null,null,null,null,null,null,0]
[null,null,null,null,null,null,null,null,null,null,null,null,null,null,null,null,null,null,0,null,null,null,null,null,null,null,null,null,null,null,null,0]
[null,null,null,null,null,null,null,null,null,null,null,null,null,null,null,null,null,null,0,null,null,null,null,null,null,null,null,null,null,null,null,0]
[null,null,null,null,null,null,null,null,null,null,null,null,null,null,null,null,null,null,0,null,null,null,null,null,null,null,null,null,null,null,null,0]
[null,null,null,null,null,null,null,null,null,null,null,null,null,null,null,null,null,null,0,null,null,null,null,null,null,null,null,null,null,null,null,0]
[null,null,null,null,null,null,null,null,null,null,null,null,null,null,null,null,null,null,0,null,null,null,null,null,null,null,null,null,null,null,null,0]
[null,null,null,null,null,null,null,null,null,null,null,null,null,null,null,null,null,null,0,null,null,null,null,null,null,null,null,null,null,null,null,0]
[null,null,null,null,null,null,null,null,null,null,null,null,null,null,null,null,null,null,0,null,null,null,null,null,null,null,null,null,null,null,null,0]
[null,null,null,null,null,null,null,null,null,null,null,null,null,null,null,null,null,null,0,null,null,null,null,null,null,null,null,null,null,null,null,0]
[null,null,null,null,null,null,null,null,null,null,null,null,null,null,null,null,null,null,0,null,null,null,null,null,null,null,null,null,null,null,null,0]
[null,null,null,null,null,null,null,null,null,null,null,null,null,null,null,null,null,null,0,null,null,null,null,null,null,null,null,null,null,null,null,0]
[null,null,null,null,null,null,null,null,null,null,null,null,null,null,null,null,null,null,0,null,null,null,null,null,null,null,null,null,null,null,null,0]
[null,null,null,null,null,null,null,null,null,null,null,null,null,null,null,null,null,null,0,null,null,null,null,null,null,null,null,null,null,null,null,0]
[null,null,null,null,null,null,null,null,null,null,null,null,null,null,null,null,null,null,0,null,null,null,null,null,null,null,null,null,null,null,null,0]
[null,null,null,null,null,null,null,null,null,null,null,null,null,null,null,null,null,null,0,null,null,null,null,null,null,null,null,null,null,null,null,0]
[null,null,null,null,null,null,null,null,null,null,null,null,null,null,null,null,null,null,0,null,null,null,null,null,null,null,null,null,null,null,null,0]
[null,null,null,null,null,null,null,null,null,null,null,null,null,null,null,null,null,null,0,null,null,null,null,null,null,null,null,null,null,null,null,0]
[null,null,null,null,null,null,null,null,null,null,null,null,null,null,null,null,null,null,0,null,null,null,null,null,null,null,null,null,null,null,null,0]
[null,null,null,null,null,null,null,null,null,null,null,null,null,null,null,null,null,null,0,null,null,null,null,null,null,null,null,null,null,null,null,0]
[null,null,null,null,null,null,null,null,null,null,null,null,null,null,null,null,null,null,0,null,null,null,null,null,null,null,null,null,null,null,null,0]
[null,null,null,null,null,null,null,null,null,null,null,null,null,null,null,null,null,null,0,null,null,null,null,null,null,null,null,null,null,null,null,0]
[null,null,null,null,null,null,null,null,null,null,null,null,null,null,null,null,null,null,0,null,null,null,null,null,null,null,null,null,null,null,null,0]
[null,null,null,null,null,null,null,null,null,null,null,null,null,null,null,null,null,null,0,null,null,null,null,null,null,null,null,null,null,null,null,0]
[null,null,null,null,null,null,null,null,null,null,null,null,null,null,null,null,null,null,0,null,null,null,null,null,null,null,null,null,null,null,null,0]
[null,null,null,null,null,null,null,null,null,null,null,null,null,null,null,null,null,null,0,null,null,null,null,null,null,null,null,null,null,null,null,0]
[null,null,null,null,null,null,null,null,null,null,null,null,null,null,null,null,null,null,0,null,null,null,null,null,null,null,null,null,null,null,null,0]
[null,null,null,null,null,null,null,null,null,null,null,null,null,null,null,null,null,null,0,null,null,null,null,null,null,null,null,null,null,null,null,0]
[null,null,null,null,null,null,null,null,null,null,null,null,null,null,null,null,null,null,0,null,null,null,null,null,null,null,null,null,null,null,null,0]
[null,null,null,null,null,null,null,null,null,null,null,null,null,null,null,null,null,null,0,null,null,null,null,null,null,null,null,null,null,null,null,0]
[null,null,null,null,null,null,null,null,null,null,null,null,null,null,null,null,null,null,0,null,null,null,null,null,null,null,null,null,null,null,null,0]
[null,null,null,null,null,null,null,null,null,null,null,null,null,null,null,null,null,null,0,null,null,null,null,null,null,null,null,null,null,null,null,0]
[null,null,null,null,null,null,null,null,null,null,null,null,null,null,null,null,null,null,0,null,null,null,null,null,null,null,null,null,null,null,null,0]
[null,null,null,null,null,null,null,null,null,null,null,null,null,null,null,null,null,null,0,null,null,null,null,null,null,null,null,null,null,null,null,0]
[null,null,null,null,null,null,null,null,null,null,null,null,null,null,null,null,null,null,0,null,null,null,null,null,null,null,null,null,null,null,null,0]
[null,null,null,null,null,null,null,null,null,null,null,null,null,null,null,null,null,null,0,null,null,null,null,null,null,null,null,null,null,null,null,0]
[null,null,null,null,null,null,null,null,null,null,null,null,null,null,null,null,null,null,0,null,null,null,null,null,null,null,null,null,null,null,null,0]
[null,null,null,null,null,null,null,null,null,null,null,null,null,null,null,null,null,null,0,null,null,null,null,null,null,null,null,null,null,null,null,0]
[null,null,null,null,null,null,null,null,null,null,null,null,null,null,null,null,null,null,0,null,null,null,null,null,null,null,null,null,null,null,null,0]
[null,null,null,null,null,null,null,null,null,null,null,null,null,null,null,null,null,null,0,null,null,null,null,null,null,null,null,null,null,null,null,0]
[null,null,null,null,null,null,null,null,null,null,null,null,null,null,null,null,null,null,0,null,null,null,null,null,null,null,null,null,null,null,null,0]
[null,null,null,null,null,null,null,null,null,null,null,null,null,null,null,null,null,null,0,null,null,null,null,null,null,null,null,null,null,null,null,0]
[null,null,null,null,null,null,null,null,null,null,null,null,null,null,null,null,null,null,0,null,null,null,null,null,null,null,null,null,null,null,null,0]
[null,null,null,null,null,null,null,null,null,null,null,null,null,null,null,null,null,null,0,null,null,null,null,null,null,null,null,null,null,null,null,0]
[null,null,null,null,null,null,null,null,null,null,null,null,null,null,null,null,null,null,0,null,null,null,null,null,null,null,null,null,null,null,null,0]
[null,null,null,null,null,null,null,null,null,null,null,null,null,null,null,null,null,null,0,null,null,null,null,null,null,null,null,null,null,null,null,0]
[null,null,null,null,null,null,null,null,null,null,null,null,null,null,null,null,null,null,0,null,null,null,null,null,null,null,null,null,null,null,null,0]
[null,null,null,null,null,null,null,null,null,null,null,null,null,null,null,null,null,null,0,null,null,null,null,null,null,null,null,null,null,null,null,0]
[null,null,null,null,null,null,null,null,null,null,null,null,null,null,null,null,null,null,0,null,null,null,null,null,null,null,null,null,null,null,null,0]
[null,null,null,null,null,null,null,null,null,null,null,null,null,null,null,null,null,null,0,null,null,null,null,null,null,null,null,null,null,null,null,0]
[null,null,null,null,null,null,null,null,null,null,null,null,null,null,null,null,null,null,0,null,null,null,null,null,null,null,null,null,null,null,null,0]
[null,null,null,null,null,null,null,null,null,null,null,null,null,null,null,null,null,null,0,null,null,null,null,null,null,null,null,null,null,null,null,0]
[null,null,null,null,null,null,null,null,null,null,null,null,null,null,null,null,null,null,0,null,null,null,null,null,null,null,null,null,null,null,null,0]
[null,null,null,null,null,null,null,null,null,null,null,null,null,null,null,null,null,null,0,null,null,null,null,null,null,null,null,null,null,null,null,0]
[null,null,null,null,null,null,null,null,null,null,null,null,null,null,null,null,null,null,0,null,null,null,null,null,null,null,null,null,null,null,null,0]
[null,null,null,null,null,null,null,null,null,null,null,null,null,null,null,null,null,null,0,null,null,null,null,null,null,null,null,null,null,null,null,0]
[null,null,null,null,null,null,null,null,null,null,null,null,null,null,null,null,null,null,0,null,null,null,null,null,null,null,null,null,null,null,null,0]
[null,null,null,null,null,null,null,null,null,null,null,null,null,null,null,null,null,null,0,null,null,null,null,null,null,null,null,null,null,null,null,0]
[null,null,null,null,null,null,null,null,null,null,null,null,null,null,null,null,null,null,{"$f":"O1185+P1185+Q1185+R1185","v":0},null,null,null,null,null,null,null,null,null,null,null,null,{"$f":"AB1185+AC1185+AD1185+AE1185","v":0}]
[null,null,null,null,null,null,null,null,null,null,null,null,null,null,null,null,null,null,0,null,null,null,null,null,null,null,null,null,null,null,null,0]
[null,null,null,null,null,null,null,null,null,null,null,null,null,null,null,null,null,null,0,null,null,null,null,null,null,null,null,null,null,null,null,0]
[null,null,null,null,null,null,null,null,null,null,null,null,null,null,null,null,null,null,0,null,null,null,null,null,null,null,null,null,null,null,null,0]
[null,null,null,null,null,null,null,null,null,null,null,null,null,null,null,null,null,null,0,null,null,null,null,null,null,null,null,null,null,null,null,0]
[null,null,null,null,null,null,null,null,null,null,null,null,null,null,null,null,null,null,0,null,null,null,null,null,null,null,null,null,null,null,null,0]
[null,null,null,null,null,null,null,null,null,null,null,null,null,null,null,null,null,null,0,null,null,null,null,null,null,null,null,null,null,null,null,0]
[null,null,null,null,null,null,null,null,null,null,null,null,null,null,null,null,null,null,0,null,null,null,null,null,null,null,null,null,null,null,null,0]
[null,null,null,null,null,null,null,null,null,null,null,null,null,null,null,null,null,null,0,null,null,null,null,null,null,null,null,null,null,null,null,0]
[null,null,null,null,null,null,null,null,null,null,null,null,null,null,null,null,null,null,0,null,null,null,null,null,null,null,null,null,null,null,null,0]
[null,null,null,null,null,null,null,null,null,null,null,null,null,null,null,null,null,null,0,null,null,null,null,null,null,null,null,null,null,null,null,0]
[null,null,null,null,null,null,null,null,null,null,null,null,null,null,null,null,null,null,0,null,null,null,null,null,null,null,null,null,null,null,null,0]
[null,null,null,null,null,null,null,null,null,null,null,null,null,null,null,null,null,null,0,null,null,null,null,null,null,null,null,null,null,null,null,0]
[null,null,null,null,null,null,null,null,null,null,null,null,null,null,null,null,null,null,0,null,null,null,null,null,null,null,null,null,null,null,null,0]
[null,null,null,null,null,null,null,null,null,null,null,null,null,null,null,null,null,null,0,null,null,null,null,null,null,null,null,null,null,null,null,0]
[null,null,null,null,null,null,null,null,null,null,null,null,null,null,null,null,null,null,0,null,null,null,null,null,null,null,null,null,null,null,null,0]
[null,null,null,null,null,null,null,null,null,null,null,null,null,null,null,null,null,null,0,null,null,null,null,null,null,null,null,null,null,null,null,0]
[null,null,null,null,null,null,null,null,null,null,null,null,null,null,null,null,null,null,0,null,null,null,null,null,null,null,null,null,null,null,null,0]
[null,null,null,null,null,null,null,null,null,null,null,null,null,null,null,null,null,null,0,null,null,null,null,null,null,null,null,null,null,null,null,0]
[null,null,null,null,null,null,null,null,null,null,null,null,null,null,null,null,null,null,0,null,null,null,null,null,null,null,null,null,null,null,null,0]
[null,null,null,null,null,null,null,null,null,null,null,null,null,null,null,null,null,null,0,null,null,null,null,null,null,null,null,null,null,null,null,0]
[null,null,null,null,null,null,null,null,null,null,null,null,null,null,null,null,null,null,0,null,null,null,null,null,null,null,null,null,null,null,null,0]
[null,null,null,null,null,null,null,null,null,null,null,null,null,null,null,null,null,null,0,null,null,null,null,null,null,null,null,null,null,null,null,0]
[null,null,null,null,null,null,null,null,null,null,null,null,null,null,null,null,null,null,0,null,null,null,null,null,null,null,null,null,null,null,null,0]
[null,null,null,null,null,null,null,null,null,null,null,null,null,null,null,null,null,null,0,null,null,null,null,null,null,null,null,null,null,null,null,0]
[null,null,null,null,null,null,null,null,null,null,null,null,null,null,null,null,null,null,0,null,null,null,null,null,null,null,null,null,null,null,null,0]
[null,null,null,null,null,null,null,null,null,null,null,null,null,null,null,null,null,null,0,null,null,null,null,null,null,null,null,null,null,null,null,0]
[null,null,null,null,null,null,null,null,null,null,null,null,null,null,null,null,null,null,0,null,null,null,null,null,null,null,null,null,null,null,null,0]
[null,null,null,null,null,null,null,null,null,null,null,null,null,null,null,null,null,null,0,null,null,null,null,null,null,null,null,null,null,null,null,0]
[null,null,null,null,null,null,null,null,null,null,null,null,null,null,null,null,null,null,0,null,null,null,null,null,null,null,null,null,null,null,null,0]
[null,null,null,null,null,null,null,null,null,null,null,null,null,null,null,null,null,null,0,null,null,null,null,null,null,null,null,null,null,null,null,0]
[null,null,null,null,null,null,null,null,null,null,null,null,null,null,null,null,null,null,0,null,null,null,null,null,null,null,null,null,null,null,null,0]
[null,null,null,null,null,null,null,null,null,null,null,null,null,null,null,null,null,null,0,null,null,null,null,null,null,null,null,null,null,null,null,0]
[null,null,null,null,null,null,null,null,null,null,null,null,null,null,null,null,null,null,0,null,null,null,null,null,null,null,null,null,null,null,null,0]
[null,null,null,null,null,null,null,null,null,null,null,null,null,null,null,null,null,null,0,null,null,null,null,null,null,null,null,null,null,null,null,0]
[null,null,null,null,null,null,null,null,null,null,null,null,null,null,null,null,null,null,0,null,null,null,null,null,null,null,null,null,null,null,null,0]
[null,null,null,null,null,null,null,null,null,null,null,null,null,null,null,null,null,null,0,null,null,null,null,null,null,null,null,null,null,null,null,0]
[null,null,null,null,null,null,null,null,null,null,null,null,null,null,null,null,null,null,0,null,null,null,null,null,null,null,null,null,null,null,null,0]
[null,null,null,null,null,null,null,null,null,null,null,null,null,null,null,null,null,null,0,null,null,null,null,null,null,null,null,null,null,null,null,0]
[null,null,null,null,null,null,null,null,null,null,null,null,null,null,null,null,null,null,0,null,null,null,null,null,null,null,null,null,null,null,null,0]
[null,null,null,null,null,null,null,null,null,null,null,null,null,null,null,null,null,null,0,null,null,null,null,null,null,null,null,null,null,null,null,0]
[null,null,null,null,null,null,null,null,null,null,null,null,null,null,null,null,null,null,0,null,null,null,null,null,null,null,null,null,null,null,null,0]
[null,null,null,null,null,null,null,null,null,null,null,null,null,null,null,null,null,null,0,null,null,null,null,null,null,null,null,null,null,null,null,0]
[null,null,null,null,null,null,null,null,null,null,null,null,null,null,null,null,null,null,0,null,null,null,null,null,null,null,null,null,null,null,null,0]
[null,null,null,null,null,null,null,null,null,null,null,null,null,null,null,null,null,null,0,null,null,null,null,null,null,null,null,null,null,null,null,0]
[null,null,null,null,null,null,null,null,null,null,null,null,null,null,null,null,null,null,0,null,null,null,null,null,null,null,null,null,null,null,null,0]
[null,null,null,null,null,null,null,null,null,null,null,null,null,null,null,null,null,null,0,null,null,null,null,null,null,null,null,null,null,null,null,0]
[null,null,null,null,null,null,null,null,null,null,null,null,null,null,null,null,null,null,0,null,null,null,null,null,null,null,null,null,null,null,null,0]
[null,null,null,null,null,null,null,null,null,null,null,null,null,null,null,null,null,null,0,null,null,null,null,null,null,null,null,null,null,null,null,0]
[null,null,null,null,null,null,null,null,null,null,null,null,null,null,null,null,null,null,0,null,null,null,null,null,null,null,null,null,null,null,null,0]
[null,null,null,null,null,null,null,null,null,null,null,null,null,null,null,null,null,null,0,null,null,null,null,null,null,null,null,null,null,null,null,0]
[null,null,null,null,null,null,null,null,null,null,null,null,null,null,null,null,null,null,0,null,null,null,null,null,null,null,null,null,null,null,null,0]
[null,null,null,null,null,null,null,null,null,null,null,null,null,null,null,null,null,null,0,null,null,null,null,null,null,null,null,null,null,null,null,0]
[null,null,null,null,null,null,null,null,null,null,null,null,null,null,null,null,null,null,0,null,null,null,null,null,null,null,null,null,null,null,null,0]
[null,null,null,null,null,null,null,null,null,null,null,null,null,null,null,null,null,null,0,null,null,null,null,null,null,null,null,null,null,null,null,0]
[null,null,null,null,null,null,null,null,null,null,null,null,null,null,null,null,null,null,0,null,null,null,null,null,null,null,null,null,null,null,null,0]
[null,null,null,null,null,null,null,null,null,null,null,null,null,null,null,null,null,null,0,null,null,null,null,null,null,null,null,null,null,null,null,0]
[null,null,null,null,null,null,null,null,null,null,null,null,null,null,null,null,null,null,0,null,null,null,null,null,null,null,null,null,null,null,null,0]
[null,null,null,null,null,null,null,null,null,null,null,null,null,null,null,null,null,null,0,null,null,null,null,null,null,null,null,null,null,null,null,0]
[null,null,null,null,null,null,null,null,null,null,null,null,null,null,null,null,null,null,0,null,null,null,null,null,null,null,null,null,null,null,null,0]
[null,null,null,null,null,null,null,null,null,null,null,null,null,null,null,null,null,null,0,null,null,null,null,null,null,null,null,null,null,null,null,0]
[null,null,null,null,null,null,null,null,null,null,null,null,null,null,null,null,null,null,0,null,null,null,null,null,null,null,null,null,null,null,null,0]
[null,null,null,null,null,null,null,null,null,null,null,null,null,null,null,null,null,null,0,null,null,null,null,null,null,null,null,null,null,null,null,0]
[null,null,null,null,null,null,null,null,null,null,null,null,null,null,null,null,null,null,0,null,null,null,null,null,null,null,null,null,null,null,null,0]
[null,null,null,null,null,null,null,null,null,null,null,null,null,null,null,null,null,null,{"$f":"O1249+P1249+Q1249+R1249","v":0},null,null,null,null,null,null,null,null,null,null,null,null,{"$f":"AB1249+AC1249+AD1249+AE1249","v":0}]
[null,null,null,null,null,null,null,null,null,null,null,null,null,null,null,null,null,null,0,null,null,null,null,null,null,null,null,null,null,null,null,0]
[null,null,null,null,null,null,null,null,null,null,null,null,null,null,null,null,null,null,0,null,null,null,null,null,null,null,null,null,null,null,null,0]
[null,null,null,null,null,null,null,null,null,null,null,null,null,null,null,null,null,null,0,null,null,null,null,null,null,null,null,null,null,null,null,0]
[null,null,null,null,null,null,null,null,null,null,null,null,null,null,null,null,null,null,0,null,null,null,null,null,null,null,null,null,null,null,null,0]
[null,null,null,null,null,null,null,null,null,null,null,null,null,null,null,null,null,null,0,null,null,null,null,null,null,null,null,null,null,null,null,0]
[null,null,null,null,null,null,null,null,null,null,null,null,null,null,null,null,null,null,0,null,null,null,null,null,null,null,null,null,null,null,null,0]
[null,null,null,null,null,null,null,null,null,null,null,null,null,null,null,null,null,null,0,null,null,null,null,null,null,null,null,null,null,null,null,0]
[null,null,null,null,null,null,null,null,null,null,null,null,null,null,null,null,null,null,0,null,null,null,null,null,null,null,null,null,null,null,null,0]
[null,null,null,null,null,null,null,null,null,null,null,null,null,null,null,null,null,null,0,null,null,null,null,null,null,null,null,null,null,null,null,0]
[null,null,null,null,null,null,null,null,null,null,null,null,null,null,null,null,null,null,0,null,null,null,null,null,null,null,null,null,null,null,null,0]
[null,null,null,null,null,null,null,null,null,null,null,null,null,null,null,null,null,null,0,null,null,null,null,null,null,null,null,null,null,null,null,0]
[null,null,null,null,null,null,null,null,null,null,null,null,null,null,null,null,null,null,0,null,null,null,null,null,null,null,null,null,null,null,null,0]
[null,null,null,null,null,null,null,null,null,null,null,null,null,null,null,null,null,null,0,null,null,null,null,null,null,null,null,null,null,null,null,0]
[null,null,null,null,null,null,null,null,null,null,null,null,null,null,null,null,null,null,0,null,null,null,null,null,null,null,null,null,null,null,null,0]
[null,null,null,null,null,null,null,null,null,null,null,null,null,null,null,null,null,null,0,null,null,null,null,null,null,null,null,null,null,null,null,0]
[null,null,null,null,null,null,null,null,null,null,null,null,null,null,null,null,null,null,0,null,null,null,null,null,null,null,null,null,null,null,null,0]
[null,null,null,null,null,null,null,null,null,null,null,null,null,null,null,null,null,null,0,null,null,null,null,null,null,null,null,null,null,null,null,0]
[null,null,null,null,null,null,null,null,null,null,null,null,null,null,null,null,null,null,0,null,null,null,null,null,null,null,null,null,null,null,null,0]
[null,null,null,null,null,null,null,null,null,null,null,null,null,null,null,null,null,null,0,null,null,null,null,null,null,null,null,null,null,null,null,0]
[null,null,null,null,null,null,null,null,null,null,null,null,null,null,null,null,null,null,0,null,null,null,null,null,null,null,null,null,null,null,null,0]
[null,null,null,null,null,null,null,null,null,null,null,null,null,null,null,null,null,null,0,null,null,null,null,null,null,null,null,null,null,null,null,0]
[null,null,null,null,null,null,null,null,null,null,null,null,null,null,null,null,null,null,0,null,null,null,null,null,null,null,null,null,null,null,null,0]
[null,null,null,null,null,null,null,null,null,null,null,null,null,null,null,null,null,null,0,null,null,null,null,null,null,null,null,null,null,null,null,0]
[null,null,null,null,null,null,null,null,null,null,null,null,null,null,null,null,null,null,0,null,null,null,null,null,null,null,null,null,null,null,null,0]
[null,null,null,null,null,null,null,null,null,null,null,null,null,null,null,null,null,null,0,null,null,null,null,null,null,null,null,null,null,null,null,0]
[null,null,null,null,null,null,null,null,null,null,null,null,null,null,null,null,null,null,0,null,null,null,null,null,null,null,null,null,null,null,null,0]
[null,null,null,null,null,null,null,null,null,null,null,null,null,null,null,null,null,null,0,null,null,null,null,null,null,null,null,null,null,null,null,0]
[null,null,null,null,null,null,null,null,null,null,null,null,null,null,null,null,null,null,0,null,null,null,null,null,null,null,null,null,null,null,null,0]
[null,null,null,null,null,null,null,null,null,null,null,null,null,null,null,null,null,null,0,null,null,null,null,null,null,null,null,null,null,null,null,0]
[null,null,null,null,null,null,null,null,null,null,null,null,null,null,null,null,null,null,0,null,null,null,null,null,null,null,null,null,null,null,null,0]
[null,null,null,null,null,null,null,null,null,null,null,null,null,null,null,null,null,null,0,null,null,null,null,null,null,null,null,null,null,null,null,0]
[null,null,null,null,null,null,null,null,null,null,null,null,null,null,null,null,null,null,0,null,null,null,null,null,null,null,null,null,null,null,null,0]
[null,null,null,null,null,null,null,null,null,null,null,null,null,null,null,null,null,null,0,null,null,null,null,null,null,null,null,null,null,null,null,0]
[null,null,null,null,null,null,null,null,null,null,null,null,null,null,null,null,null,null,0,null,null,null,null,null,null,null,null,null,null,null,null,0]
[null,null,null,null,null,null,null,null,null,null,null,null,null,null,null,null,null,null,0,null,null,null,null,null,null,null,null,null,null,null,null,0]
[null,null,null,null,null,null,null,null,null,null,null,null,null,null,null,null,null,null,0,null,null,null,null,null,null,null,null,null,null,null,null,0]
[null,null,null,null,null,null,null,null,null,null,null,null,null,null,null,null,null,null,0,null,null,null,null,null,null,null,null,null,null,null,null,0]
[null,null,null,null,null,null,null,null,null,null,null,null,null,null,null,null,null,null,0,null,null,null,null,null,null,null,null,null,null,null,null,0]
[null,null,null,null,null,null,null,null,null,null,null,null,null,null,null,null,null,null,0,null,null,null,null,null,null,null,null,null,null,null,null,0]
[null,null,null,null,null,null,null,null,null,null,null,null,null,null,null,null,null,null,0,null,null,null,null,null,null,null,null,null,null,null,null,0]
[null,null,null,null,null,null,null,null,null,null,null,null,null,null,null,null,null,null,0,null,null,null,null,null,null,null,null,null,null,null,null,0]
[null,null,null,null,null,null,null,null,null,null,null,null,null,null,null,null,null,null,0,null,null,null,null,null,null,null,null,null,null,null,null,0]
[null,null,null,null,null,null,null,null,null,null,null,null,null,null,null,null,null,null,0,null,null,null,null,null,null,null,null,null,null,null,null,0]
[null,null,null,null,null,null,null,null,null,null,null,null,null,null,null,null,null,null,0,null,null,null,null,null,null,null,null,null,null,null,null,0]
[null,null,null,null,null,null,null,null,null,null,null,null,null,null,null,null,null,null,0,null,null,null,null,null,null,null,null,null,null,null,null,0]
[null,null,null,null,null,null,null,null,null,null,null,null,null,null,null,null,null,null,0,null,null,null,null,null,null,null,null,null,null,null,null,0]
[null,null,null,null,null,null,null,null,null,null,null,null,null,null,null,null,null,null,0,null,null,null,null,null,null,null,null,null,null,null,null,0]
[null,null,null,null,null,null,null,null,null,null,null,null,null,null,null,null,null,null,0,null,null,null,null,null,null,null,null,null,null,null,null,0]
[null,null,null,null,null,null,null,null,null,null,null,null,null,null,null,null,null,null,0,null,null,null,null,null,null,null,null,null,null,null,null,0]
[null,null,null,null,null,null,null,null,null,null,null,null,null,null,null,null,null,null,0,null,null,null,null,null,null,null,null,null,null,null,null,0]
[null,null,null,null,null,null,null,null,null,null,null,null,null,null,null,null,null,null,0,null,null,null,null,null,null,null,null,null,null,null,null,0]
[null,null,null,null,null,null,null,null,null,null,null,null,null,null,null,null,null,null,0,null,null,null,null,null,null,null,null,null,null,null,null,0]
[null,null,null,null,null,null,null,null,null,null,null,null,null,null,null,null,null,null,0,null,null,null,null,null,null,null,null,null,null,null,null,0]
[null,null,null,null,null,null,null,null,null,null,null,null,null,null,null,null,null,null,0,null,null,null,null,null,null,null,null,null,null,null,null,0]
[null,null,null,null,null,null,null,null,null,null,null,null,null,null,null,null,null,null,0,null,null,null,null,null,null,null,null,null,null,null,null,0]
[null,null,null,null,null,null,null,null,null,null,null,null,null,null,null,null,null,null,0,null,null,null,null,null,null,null,null,null,null,null,null,0]
[null,null,null,null,null,null,null,null,null,null,null,null,null,null,null,null,null,null,0,null,null,null,null,null,null,null,null,null,null,null,null,0]
[null,null,null,null,null,null,null,null,null,null,null,null,null,null,null,null,null,null,0,null,null,null,null,null,null,null,null,null,null,null,null,0]
[null,null,null,null,null,null,null,null,null,null,null,null,null,null,null,null,null,null,0,null,null,null,null,null,null,null,null,null,null,null,null,0]
[null,null,null,null,null,null,null,null,null,null,null,null,null,null,null,null,null,null,0,null,null,null,null,null,null,null,null,null,null,null,null,0]
[null,null,null,null,null,null,null,null,null,null,null,null,null,null,null,null,null,null,0,null,null,null,null,null,null,null,null,null,null,null,null,0]
[null,null,null,null,null,null,null,null,null,null,null,null,null,null,null,null,null,null,0,null,null,null,null,null,null,null,null,null,null,null,null,0]
[null,null,null,null,null,null,null,null,null,null,null,null,null,null,null,null,null,null,0,null,null,null,null,null,null,null,null,null,null,null,null,0]
[null,null,null,null,null,null,null,null,null,null,null,null,null,null,null,null,null,null,{"$f":"O1313+P1313+Q1313+R1313","v":0},null,null,null,null,null,null,null,null,null,null,null,null,{"$f":"AB1313+AC1313+AD1313+AE1313","v":0}]
[null,null,null,null,null,null,null,null,null,null,null,null,null,null,null,null,null,null,0,null,null,null,null,null,null,null,null,null,null,null,null,0]
[null,null,null,null,null,null,null,null,null,null,null,null,null,null,null,null,null,null,0,null,null,null,null,null,null,null,null,null,null,null,null,0]
[null,null,null,null,null,null,null,null,null,null,null,null,null,null,null,null,null,null,0,null,null,null,null,null,null,null,null,null,null,null,null,0]
[null,null,null,null,null,null,null,null,null,null,null,null,null,null,null,null,null,null,0,null,null,null,null,null,null,null,null,null,null,null,null,0]
[null,null,null,null,null,null,null,null,null,null,null,null,null,null,null,null,null,null,0,null,null,null,null,null,null,null,null,null,null,null,null,0]
[null,null,null,null,null,null,null,null,null,null,null,null,null,null,null,null,null,null,0,null,null,null,null,null,null,null,null,null,null,null,null,0]
[null,null,null,null,null,null,null,null,null,null,null,null,null,null,null,null,null,null,0,null,null,null,null,null,null,null,null,null,null,null,null,0]
[null,null,null,null,null,null,null,null,null,null,null,null,null,null,null,null,null,null,0,null,null,null,null,null,null,null,null,null,null,null,null,0]
[null,null,null,null,null,null,null,null,null,null,null,null,null,null,null,null,null,null,0,null,null,null,null,null,null,null,null,null,null,null,null,0]
[null,null,null,null,null,null,null,null,null,null,null,null,null,null,null,null,null,null,0,null,null,null,null,null,null,null,null,null,null,null,null,0]
[null,null,null,null,null,null,null,null,null,null,null,null,null,null,null,null,null,null,0,null,null,null,null,null,null,null,null,null,null,null,null,0]
[null,null,null,null,null,null,null,null,null,null,null,null,null,null,null,null,null,null,0,null,null,null,null,null,null,null,null,null,null,null,null,0]
[null,null,null,null,null,null,null,null,null,null,null,null,null,null,null,null,null,null,0,null,null,null,null,null,null,null,null,null,null,null,null,0]
[null,null,null,null,null,null,null,null,null,null,null,null,null,null,null,null,null,null,0,null,null,null,null,null,null,null,null,null,null,null,null,0]
[null,null,null,null,null,null,null,null,null,null,null,null,null,null,null,null,null,null,0,null,null,null,null,null,null,null,null,null,null,null,null,0]
[null,null,null,null,null,null,null,null,null,null,null,null,null,null,null,null,null,null,0,null,null,null,null,null,null,null,null,null,null,null,null,0]
[null,null,null,null,null,null,null,null,null,null,null,null,null,null,null,null,null,null,0,null,null,null,null,null,null,null,null,null,null,null,null,0]
[null,null,null,null,null,null,null,null,null,null,null,null,null,null,null,null,null,null,0,null,null,null,null,null,null,null,null,null,null,null,null,0]
[null,null,null,null,null,null,null,null,null,null,null,null,null,null,null,null,null,null,0,null,null,null,null,null,null,null,null,null,null,null,null,0]
[null,null,null,null,null,null,null,null,null,null,null,null,null,null,null,null,null,null,0,null,null,null,null,null,null,null,null,null,null,null,null,0]
[null,null,null,null,null,null,null,null,null,null,null,null,null,null,null,null,null,null,0,null,null,null,null,null,null,null,null,null,null,null,null,0]
[null,null,null,null,null,null,null,null,null,null,null,null,null,null,null,null,null,null,0,null,null,null,null,null,null,null,null,null,null,null,null,0]
[null,null,null,null,null,null,null,null,null,null,null,null,null,null,null,null,null,null,0,null,null,null,null,null,null,null,null,null,null,null,null,0]
[null,null,null,null,null,null,null,null,null,null,null,null,null,null,null,null,null,null,0,null,null,null,null,null,null,null,null,null,null,null,null,0]
[null,null,null,null,null,null,null,null,null,null,null,null,null,null,null,null,null,null,0,null,null,null,null,null,null,null,null,null,null,null,null,0]
[null,null,null,null,null,null,null,null,null,null,null,null,null,null,null,null,null,null,0,null,null,null,null,null,null,null,null,null,null,null,null,0]
[null,null,null,null,null,null,null,null,null,null,null,null,null,null,null,null,null,null,0,null,null,null,null,null,null,null,null,null,null,null,null,0]
[null,null,null,null,null,null,null,null,null,null,null,null,null,null,null,null,null,null,0,null,null,null,null,null,null,null,null,null,null,null,null,0]
[null,null,null,null,null,null,null,null,null,null,null,null,null,null,null,null,null,null,0,null,null,null,null,null,null,null,null,null,null,null,null,0]
[null,null,null,null,null,null,null,null,null,null,null,null,null,null,null,null,null,null,0,null,null,null,null,null,null,null,null,null,null,null,null,0]
[null,null,null,null,null,null,null,null,null,null,null,null,null,null,null,null,null,null,0,null,null,null,null,null,null,null,null,null,null,null,null,0]
[null,null,null,null,null,null,null,null,null,null,null,null,null,null,null,null,null,null,0,null,null,null,null,null,null,null,null,null,null,null,null,0]
[null,null,null,null,null,null,null,null,null,null,null,null,null,null,null,null,null,null,0,null,null,null,null,null,null,null,null,null,null,null,null,0]
[null,null,null,null,null,null,null,null,null,null,null,null,null,null,null,null,null,null,0,null,null,null,null,null,null,null,null,null,null,null,null,0]
[null,null,null,null,null,null,null,null,null,null,null,null,null,null,null,null,null,null,0,null,null,null,null,null,null,null,null,null,null,null,null,0]
[null,null,null,null,null,null,null,null,null,null,null,null,null,null,null,null,null,null,0,null,null,null,null,null,null,null,null,null,null,null,null,0]
[null,null,null,null,null,null,null,null,null,null,null,null,null,null,null,null,null,null,0,null,null,null,null,null,null,null,null,null,null,null,null,0]
[null,null,null,null,null,null,null,null,null,null,null,null,null,null,null,null,null,null,0,null,null,null,null,null,null,null,null,null,null,null,null,0]
[null,null,null,null,null,null,null,null,null,null,null,null,null,null,null,null,null,null,0,null,null,null,null,null,null,null,null,null,null,null,null,0]
[null,null,null,null,null,null,null,null,null,null,null,null,null,null,null,null,null,null,0,null,null,null,null,null,null,null,null,null,null,null,null,0]
[null,null,null,null,null,null,null,null,null,null,null,null,null,null,null,null,null,null,0,null,null,null,null,null,null,null,null,null,null,null,null,0]
[null,null,null,null,null,null,null,null,null,null,null,null,null,null,null,null,null,null,0,null,null,null,null,null,null,null,null,null,null,null,null,0]
[null,null,null,null,null,null,null,null,null,null,null,null,null,null,null,null,null,null,0,null,null,null,null,null,null,null,null,null,null,null,null,0]
[null,null,null,null,null,null,null,null,null,null,null,null,null,null,null,null,null,null,0,null,null,null,null,null,null,null,null,null,null,null,null,0]
[null,null,null,null,null,null,null,null,null,null,null,null,null,null,null,null,null,null,0,null,null,null,null,null,null,null,null,null,null,null,null,0]
[null,null,null,null,null,null,null,null,null,null,null,null,null,null,null,null,null,null,0,null,null,null,null,null,null,null,null,null,null,null,null,0]
[null,null,null,null,null,null,null,null,null,null,null,null,null,null,null,null,null,null,0,null,null,null,null,null,null,null,null,null,null,null,null,0]
[null,null,null,null,null,null,null,null,null,null,null,null,null,null,null,null,null,null,0,null,null,null,null,null,null,null,null,null,null,null,null,0]
[null,null,null,null,null,null,null,null,null,null,null,null,null,null,null,null,null,null,0,null,null,null,null,null,null,null,null,null,null,null,null,0]
[null,null,null,null,null,null,null,null,null,null,null,null,null,null,null,null,null,null,0,null,null,null,null,null,null,null,null,null,null,null,null,0]
[null,null,null,null,null,null,null,null,null,null,null,null,null,null,null,null,null,null,0,null,null,null,null,null,null,null,null,null,null,null,null,0]
[null,null,null,null,null,null,null,null,null,null,null,null,null,null,null,null,null,null,0,null,null,null,null,null,null,null,null,null,null,null,null,0]
[null,null,null,null,null,null,null,null,null,null,null,null,null,null,null,null,null,null,0,null,null,null,null,null,null,null,null,null,null,null,null,0]
[null,null,null,null,null,null,null,null,null,null,null,null,null,null,null,null,null,null,0,null,null,null,null,null,null,null,null,null,null,null,null,0]
[null,null,null,null,null,null,null,null,null,null,null,null,null,null,null,null,null,null,0,null,null,null,null,null,null,null,null,null,null,null,null,0]
[null,null,null,null,null,null,null,null,null,null,null,null,null,null,null,null,null,null,0,null,null,null,null,null,null,null,null,null,null,null,null,0]
[null,null,null,null,null,null,null,null,null,null,null,null,null,null,null,null,null,null,0,null,null,null,null,null,null,null,null,null,null,null,null,0]
[null,null,null,null,null,null,null,null,null,null,null,null,null,null,null,null,null,null,0,null,null,null,null,null,null,null,null,null,null,null,null,0]
[null,null,null,null,null,null,null,null,null,null,null,null,null,null,null,null,null,null,0,null,null,null,null,null,null,null,null,null,null,null,null,0]
[null,null,null,null,null,null,null,null,null,null,null,null,null,null,null,null,null,null,0,null,null,null,null,null,null,null,null,null,null,null,null,0]
[null,null,null,null,null,null,null,null,null,null,null,null,null,null,null,null,null,null,0,null,null,null,null,null,null,null,null,null,null,null,null,0]
[null,null,null,null,null,null,null,null,null,null,null,null,null,null,null,null,null,null,0,null,null,null,null,null,null,null,null,null,null,null,null,0]
[null,null,null,null,null,null,null,null,null,null,null,null,null,null,null,null,null,null,0,null,null,null,null,null,null,null,null,null,null,null,null,0]
[null,null,null,null,null,null,null,null,null,null,null,null,null,null,null,null,null,null,{"$f":"O1377+P1377+Q1377+R1377","v":0},null,null,null,null,null,null,null,null,null,null,null,null,{"$f":"AB1377+AC1377+AD1377+AE1377","v":0}]
[null,null,null,null,null,null,null,null,null,null,null,null,null,null,null,null,null,null,0,null,null,null,null,null,null,null,null,null,null,null,null,0]
[null,null,null,null,null,null,null,null,null,null,null,null,null,null,null,null,null,null,0,null,null,null,null,null,null,null,null,null,null,null,null,0]
[null,null,null,null,null,null,null,null,null,null,null,null,null,null,null,null,null,null,0,null,null,null,null,null,null,null,null,null,null,null,null,0]
[null,null,null,null,null,null,null,null,null,null,null,null,null,null,null,null,null,null,0,null,null,null,null,null,null,null,null,null,null,null,null,0]
[null,null,null,null,null,null,null,null,null,null,null,null,null,null,null,null,null,null,0,null,null,null,null,null,null,null,null,null,null,null,null,0]
[null,null,null,null,null,null,null,null,null,null,null,null,null,null,null,null,null,null,0,null,null,null,null,null,null,null,null,null,null,null,null,0]
[null,null,null,null,null,null,null,null,null,null,null,null,null,null,null,null,null,null,0,null,null,null,null,null,null,null,null,null,null,null,null,0]
[null,null,null,null,null,null,null,null,null,null,null,null,null,null,null,null,null,null,0,null,null,null,null,null,null,null,null,null,null,null,null,0]
[null,null,null,null,null,null,null,null,null,null,null,null,null,null,null,null,null,null,0,null,null,null,null,null,null,null,null,null,null,null,null,0]
[null,null,null,null,null,null,null,null,null,null,null,null,null,null,null,null,null,null,0,null,null,null,null,null,null,null,null,null,null,null,null,0]
[null,null,null,null,null,null,null,null,null,null,null,null,null,null,null,null,null,null,0,null,null,null,null,null,null,null,null,null,null,null,null,0]
[null,null,null,null,null,null,null,null,null,null,null,null,null,null,null,null,null,null,0,null,null,null,null,null,null,null,null,null,null,null,null,0]
[null,null,null,null,null,null,null,null,null,null,null,null,null,null,null,null,null,null,0,null,null,null,null,null,null,null,null,null,null,null,null,0]
[null,null,null,null,null,null,null,null,null,null,null,null,null,null,null,null,null,null,0,null,null,null,null,null,null,null,null,null,null,null,null,0]
[null,null,null,null,null,null,null,null,null,null,null,null,null,null,null,null,null,null,0,null,null,null,null,null,null,null,null,null,null,null,null,0]
[null,null,null,null,null,null,null,null,null,null,null,null,null,null,null,null,null,null,0,null,null,null,null,null,null,null,null,null,null,null,null,0]
[null,null,null,null,null,null,null,null,null,null,null,null,null,null,null,null,null,null,0,null,null,null,null,null,null,null,null,null,null,null,null,0]
[null,null,null,null,null,null,null,null,null,null,null,null,null,null,null,null,null,null,0,null,null,null,null,null,null,null,null,null,null,null,null,0]
[null,null,null,null,null,null,null,null,null,null,null,null,null,null,null,null,null,null,0,null,null,null,null,null,null,null,null,null,null,null,null,0]
[null,null,null,null,null,null,null,null,null,null,null,null,null,null,null,null,null,null,0,null,null,null,null,null,null,null,null,null,null,null,null,0]
[null,null,null,null,null,null,null,null,null,null,null,null,null,null,null,null,null,null,0,null,null,null,null,null,null,null,null,null,null,null,null,0]
[null,null,null,null,null,null,null,null,null,null,null,null,null,null,null,null,null,null,0,null,null,null,null,null,null,null,null,null,null,null,null,0]
[null,null,null,null,null,null,null,null,null,null,null,null,null,null,null,null,null,null,0,null,null,null,null,null,null,null,null,null,null,null,null,0]
[null,null,null,null,null,null,null,null,null,null,null,null,null,null,null,null,null,null,0,null,null,null,null,null,null,null,null,null,null,null,null,0]
[null,null,null,null,null,null,null,null,null,null,null,null,null,null,null,null,null,null,0,null,null,null,null,null,null,null,null,null,null,null,null,0]
[null,null,null,null,null,null,null,null,null,null,null,null,null,null,null,null,null,null,0,null,null,null,null,null,null,null,null,null,null,null,null,0]
[null,null,null,null,null,null,null,null,null,null,null,null,null,null,null,null,null,null,0,null,null,null,null,null,null,null,null,null,null,null,null,0]
[null,null,null,null,null,null,null,null,null,null,null,null,null,null,null,null,null,null,0,null,null,null,null,null,null,null,null,null,null,null,null,0]
[null,null,null,null,null,null,null,null,null,null,null,null,null,null,null,null,null,null,0,null,null,null,null,null,null,null,null,null,null,null,null,0]
[null,null,null,null,null,null,null,null,null,null,null,null,null,null,null,null,null,null,0,null,null,null,null,null,null,null,null,null,null,null,null,0]
[null,null,null,null,null,null,null,null,null,null,null,null,null,null,null,null,null,null,0,null,null,null,null,null,null,null,null,null,null,null,null,0]
[null,null,null,null,null,null,null,null,null,null,null,null,null,null,null,null,null,null,0,null,null,null,null,null,null,null,null,null,null,null,null,0]
[null,null,null,null,null,null,null,null,null,null,null,null,null,null,null,null,null,null,0,null,null,null,null,null,null,null,null,null,null,null,null,0]
[null,null,null,null,null,null,null,null,null,null,null,null,null,null,null,null,null,null,0,null,null,null,null,null,null,null,null,null,null,null,null,0]
[null,null,null,null,null,null,null,null,null,null,null,null,null,null,null,null,null,null,0,null,null,null,null,null,null,null,null,null,null,null,null,0]
[null,null,null,null,null,null,null,null,null,null,null,null,null,null,null,null,null,null,0,null,null,null,null,null,null,null,null,null,null,null,null,0]
[null,null,null,null,null,null,null,null,null,null,null,null,null,null,null,null,null,null,0,null,null,null,null,null,null,null,null,null,null,null,null,0]
[null,null,null,null,null,null,null,null,null,null,null,null,null,null,null,null,null,null,0,null,null,null,null,null,null,null,null,null,null,null,null,0]
[null,null,null,null,null,null,null,null,null,null,null,null,null,null,null,null,null,null,0,null,null,null,null,null,null,null,null,null,null,null,null,0]
[null,null,null,null,null,null,null,null,null,null,null,null,null,null,null,null,null,null,0,null,null,null,null,null,null,null,null,null,null,null,null,0]
[null,null,null,null,null,null,null,null,null,null,null,null,null,null,null,null,null,null,0,null,null,null,null,null,null,null,null,null,null,null,null,0]
[null,null,null,null,null,null,null,null,null,null,null,null,null,null,null,null,null,null,0,null,null,null,null,null,null,null,null,null,null,null,null,0]
[null,null,null,null,null,null,null,null,null,null,null,null,null,null,null,null,null,null,0,null,null,null,null,null,null,null,null,null,null,null,null,0]
[null,null,null,null,null,null,null,null,null,null,null,null,null,null,null,null,null,null,0,null,null,null,null,null,null,null,null,null,null,null,null,0]
[null,null,null,null,null,null,null,null,null,null,null,null,null,null,null,null,null,null,0,null,null,null,null,null,null,null,null,null,null,null,null,0]
[null,null,null,null,null,null,null,null,null,null,null,null,null,null,null,null,null,null,0,null,null,null,null,null,null,null,null,null,null,null,null,0]
[null,null,null,null,null,null,null,null,null,null,null,null,null,null,null,null,null,null,0,null,null,null,null,null,null,null,null,null,null,null,null,0]
[null,null,null,null,null,null,null,null,null,null,null,null,null,null,null,null,null,null,0,null,null,null,null,null,null,null,null,null,null,null,null,0]
[null,null,null,null,null,null,null,null,null,null,null,null,null,null,null,null,null,null,0,null,null,null,null,null,null,null,null,null,null,null,null,0]
[null,null,null,null,null,null,null,null,null,null,null,null,null,null,null,null,null,null,0,null,null,null,null,null,null,null,null,null,null,null,null,0]
[null,null,null,null,null,null,null,null,null,null,null,null,null,null,null,null,null,null,0,null,null,null,null,null,null,null,null,null,null,null,null,0]
[null,null,null,null,null,null,null,null,null,null,null,null,null,null,null,null,null,null,0,null,null,null,null,null,null,null,null,null,null,null,null,0]
[null,null,null,null,null,null,null,null,null,null,null,null,null,null,null,null,null,null,0,null,null,null,null,null,null,null,null,null,null,null,null,0]
[null,null,null,null,null,null,null,null,null,null,null,null,null,null,null,null,null,null,0,null,null,null,null,null,null,null,null,null,null,null,null,0]
[null,null,null,null,null,null,null,null,null,null,null,null,null,null,null,null,null,null,0,null,null,null,null,null,null,null,null,null,null,null,null,0]
[null,null,null,null,null,null,null,null,null,null,null,null,null,null,null,null,null,null,0,null,null,null,null,null,null,null,null,null,null,null,null,0]
[null,null,null,null,null,null,null,null,null,null,null,null,null,null,null,null,null,null,0,null,null,null,null,null,null,null,null,null,null,null,null,0]
[null,null,null,null,null,null,null,null,null,null,null,null,null,null,null,null,null,null,0,null,null,null,null,null,null,null,null,null,null,null,null,0]
[null,null,null,null,null,null,null,null,null,null,null,null,null,null,null,null,null,null,0,null,null,null,null,null,null,null,null,null,null,null,null,0]
[null,null,null,null,null,null,null,null,null,null,null,null,null,null,null,null,null,null,0,null,null,null,null,null,null,null,null,null,null,null,null,0]
[null,null,null,null,null,null,null,null,null,null,null,null,null,null,null,null,null,null,0,null,null,null,null,null,null,null,null,null,null,null,null,0]
[null,null,null,null,null,null,null,null,null,null,null,null,null,null,null,null,null,null,0,null,null,null,null,null,null,null,null,null,null,null,null,0]
[null,null,null,null,null,null,null,null,null,null,null,null,null,null,null,null,null,null,0,null,null,null,null,null,null,null,null,null,null,null,null,0]
[null,null,null,null,null,null,null,null,null,null,null,null,null,null,null,null,null,null,{"$f":"O1441+P1441+Q1441+R1441","v":0},null,null,null,null,null,null,null,null,null,null,null,null,{"$f":"AB1441+AC1441+AD1441+AE1441","v":0}]
[null,null,null,null,null,null,null,null,null,null,null,null,null,null,null,null,null,null,0,null,null,null,null,null,null,null,null,null,null,null,null,0]
[null,null,null,null,null,null,null,null,null,null,null,null,null,null,null,null,null,null,0,null,null,null,null,null,null,null,null,null,null,null,null,0]
[null,null,null,null,null,null,null,null,null,null,null,null,null,null,null,null,null,null,0,null,null,null,null,null,null,null,null,null,null,null,null,0]
[null,null,null,null,null,null,null,null,null,null,null,null,null,null,null,null,null,null,0,null,null,null,null,null,null,null,null,null,null,null,null,0]
[null,null,null,null,null,null,null,null,null,null,null,null,null,null,null,null,null,null,0,null,null,null,null,null,null,null,null,null,null,null,null,0]
[null,null,null,null,null,null,null,null,null,null,null,null,null,null,null,null,null,null,0,null,null,null,null,null,null,null,null,null,null,null,null,0]
[null,null,null,null,null,null,null,null,null,null,null,null,null,null,null,null,null,null,0,null,null,null,null,null,null,null,null,null,null,null,null,0]
[null,null,null,null,null,null,null,null,null,null,null,null,null,null,null,null,null,null,0,null,null,null,null,null,null,null,null,null,null,null,null,0]
[null,null,null,null,null,null,null,null,null,null,null,null,null,null,null,null,null,null,0,null,null,null,null,null,null,null,null,null,null,null,null,0]
[null,null,null,null,null,null,null,null,null,null,null,null,null,null,null,null,null,null,0,null,null,null,null,null,null,null,null,null,null,null,null,0]
[null,null,null,null,null,null,null,null,null,null,null,null,null,null,null,null,null,null,0,null,null,null,null,null,null,null,null,null,null,null,null,0]
[null,null,null,null,null,null,null,null,null,null,null,null,null,null,null,null,null,null,0,null,null,null,null,null,null,null,null,null,null,null,null,0]
[null,null,null,null,null,null,null,null,null,null,null,null,null,null,null,null,null,null,0,null,null,null,null,null,null,null,null,null,null,null,null,0]
[null,null,null,null,null,null,null,null,null,null,null,null,null,null,null,null,null,null,0,null,null,null,null,null,null,null,null,null,null,null,null,0]
[null,null,null,null,null,null,null,null,null,null,null,null,null,null,null,null,null,null,0,null,null,null,null,null,null,null,null,null,null,null,null,0]
[null,null,null,null,null,null,null,null,null,null,null,null,null,null,null,null,null,null,0,null,null,null,null,null,null,null,null,null,null,null,null,0]
[null,null,null,null,null,null,null,null,null,null,null,null,null,null,null,null,null,null,0,null,null,null,null,null,null,null,null,null,null,null,null,0]
[null,null,null,null,null,null,null,null,null,null,null,null,null,null,null,null,null,null,0,null,null,null,null,null,null,null,null,null,null,null,null,0]
[null,null,null,null,null,null,null,null,null,null,null,null,null,null,null,null,null,null,0,null,null,null,null,null,null,null,null,null,null,null,null,0]
[null,null,null,null,null,null,null,null,null,null,null,null,null,null,null,null,null,null,0,null,null,null,null,null,null,null,null,null,null,null,null,0]
[null,null,null,null,null,null,null,null,null,null,null,null,null,null,null,null,null,null,0,null,null,null,null,null,null,null,null,null,null,null,null,0]
[null,null,null,null,null,null,null,null,null,null,null,null,null,null,null,null,null,null,0,null,null,null,null,null,null,null,null,null,null,null,null,0]
[null,null,null,null,null,null,null,null,null,null,null,null,null,null,null,null,null,null,0,null,null,null,null,null,null,null,null,null,null,null,null,0]
[null,null,null,null,null,null,null,null,null,null,null,null,null,null,null,null,null,null,0,null,null,null,null,null,null,null,null,null,null,null,null,0]
[null,null,null,null,null,null,null,null,null,null,null,null,null,null,null,null,null,null,0,null,null,null,null,null,null,null,null,null,null,null,null,0]
[null,null,null,null,null,null,null,null,null,null,null,null,null,null,null,null,null,null,0,null,null,null,null,null,null,null,null,null,null,null,null,0]
[null,null,null,null,null,null,null,null,null,null,null,null,null,null,null,null,null,null,0,null,null,null,null,null,null,null,null,null,null,null,null,0]
[null,null,null,null,null,null,null,null,null,null,null,null,null,null,null,null,null,null,0,null,null,null,null,null,null,null,null,null,null,null,null,0]
[null,null,null,null,null,null,null,null,null,null,null,null,null,null,null,null,null,null,0,null,null,null,null,null,null,null,null,null,null,null,null,0]
[null,null,null,null,null,null,null,null,null,null,null,null,null,null,null,null,null,null,0,null,null,null,null,null,null,null,null,null,null,null,null,0]
[null,null,null,null,null,null,null,null,null,null,null,null,null,null,null,null,null,null,0,null,null,null,null,null,null,null,null,null,null,null,null,0]
[null,null,null,null,null,null,null,null,null,null,null,null,null,null,null,null,null,null,0,null,null,null,null,null,null,null,null,null,null,null,null,0]
[null,null,null,null,null,null,null,null,null,null,null,null,null,null,null,null,null,null,0,null,null,null,null,null,null,null,null,null,null,null,null,0]
[null,null,null,null,null,null,null,null,null,null,null,null,null,null,null,null,null,null,0,null,null,null,null,null,null,null,null,null,null,null,null,0]
[null,null,null,null,null,null,null,null,null,null,null,null,null,null,null,null,null,null,0,null,null,null,null,null,null,null,null,null,null,null,null,0]
[null,null,null,null,null,null,null,null,null,null,null,null,null,null,null,null,null,null,0,null,null,null,null,null,null,null,null,null,null,null,null,0]
[null,null,null,null,null,null,null,null,null,null,null,null,null,null,null,null,null,null,0,null,null,null,null,null,null,null,null,null,null,null,null,0]
[null,null,null,null,null,null,null,null,null,null,null,null,null,null,null,null,null,null,0,null,null,null,null,null,null,null,null,null,null,null,null,0]
[null,null,null,null,null,null,null,null,null,null,null,null,null,null,null,null,null,null,0,null,null,null,null,null,null,null,null,null,null,null,null,0]
[null,null,null,null,null,null,null,null,null,null,null,null,null,null,null,null,null,null,0,null,null,null,null,null,null,null,null,null,null,null,null,0]
[null,null,null,null,null,null,null,null,null,null,null,null,null,null,null,null,null,null,0,null,null,null,null,null,null,null,null,null,null,null,null,0]
[null,null,null,null,null,null,null,null,null,null,null,null,null,null,null,null,null,null,0,null,null,null,null,null,null,null,null,null,null,null,null,0]
[null,null,null,null,null,null,null,null,null,null,null,null,null,null,null,null,null,null,0,null,null,null,null,null,null,null,null,null,null,null,null,0]
[null,null,null,null,null,null,null,null,null,null,null,null,null,null,null,null,null,null,0,null,null,null,null,null,null,null,null,null,null,null,null,0]
[null,null,null,null,null,null,null,null,null,null,null,null,null,null,null,null,null,null,0,null,null,null,null,null,null,null,null,null,null,null,null,0]
[null,null,null,null,null,null,null,null,null,null,null,null,null,null,null,null,null,null,0,null,null,null,null,null,null,null,null,null,null,null,null,0]
[null,null,null,null,null,null,null,null,null,null,null,null,null,null,null,null,null,null,0,null,null,null,null,null,null,null,null,null,null,null,null,0]
[null,null,null,null,null,null,null,null,null,null,null,null,null,null,null,null,null,null,0,null,null,null,null,null,null,null,null,null,null,null,null,0]
[null,null,null,null,null,null,null,null,null,null,null,null,null,null,null,null,null,null,0,null,null,null,null,null,null,null,null,null,null,null,null,0]
[null,null,null,null,null,null,null,null,null,null,null,null,null,null,null,null,null,null,0,null,null,null,null,null,null,null,null,null,null,null,null,0]
[null,null,null,null,null,null,null,null,null,null,null,null,null,null,null,null,null,null,0,null,null,null,null,null,null,null,null,null,null,null,null,0]
[null,null,null,null,null,null,null,null,null,null,null,null,null,null,null,null,null,null,0,null,null,null,null,null,null,null,null,null,null,null,null,0]
[null,null,null,null,null,null,null,null,null,null,null,null,null,null,null,null,null,null,0,null,null,null,null,null,null,null,null,null,null,null,null,0]
[null,null,null,null,null,null,null,null,null,null,null,null,null,null,null,null,null,null,0,null,null,null,null,null,null,null,null,null,null,null,null,0]
[null,null,null,null,null,null,null,null,null,null,null,null,null,null,null,null,null,null,0,null,null,null,null,null,null,null,null,null,null,null,null,0]
[null,null,null,null,null,null,null,null,null,null,null,null,null,null,null,null,null,null,0,null,null,null,null,null,null,null,null,null,null,null,null,0]
[null,null,null,null,null,null,null,null,null,null,null,null,null,null,null,null,null,null,0,null,null,null,null,null,null,null,null,null,null,null,null,0]
[null,null,null,null,null,null,null,null,null,null,null,null,null,null,null,null,null,null,0,null,null,null,null,null,null,null,null,null,null,null,null,0]
[null,null,null,null,null,null,null,null,null,null,null,null,null,null,null,null,null,null,0,null,null,null,null,null,null,null,null,null,null,null,null,0]
[null,null,null,null,null,null,null,null,null,null,null,null,null,null,null,null,null,null,0,null,null,null,null,null,null,null,null,null,null,null,null,0]
[null,null,null,null,null,null,null,null,null,null,null,null,null,null,null,null,null,null,0,null,null,null,null,null,null,null,null,null,null,null,null,0]
[null,null,null,null,null,null,null,null,null,null,null,null,null,null,null,null,null,null,0,null,null,null,null,null,null,null,null,null,null,null,null,0]
[null,null,null,null,null,null,null,null,null,null,null,null,null,null,null,null,null,null,0,null,null,null,null,null,null,null,null,null,null,null,null,0]
[null,null,null,null,null,null,null,null,null,null,null,null,null,null,null,null,null,null,{"$f":"O1505+P1505+Q1505+R1505","v":0},null,null,null,null,null,null,null,null,null,null,null,null,{"$f":"AB1505+AC1505+AD1505+AE1505","v":0}]
[null,null,null,null,null,null,null,null,null,null,null,null,null,null,null,null,null,null,0,null,null,null,null,null,null,null,null,null,null,null,null,0]
[null,null,null,null,null,null,null,null,null,null,null,null,null,null,null,null,null,null,0,null,null,null,null,null,null,null,null,null,null,null,null,0]
[null,null,null,null,null,null,null,null,null,null,null,null,null,null,null,null,null,null,0,null,null,null,null,null,null,null,null,null,null,null,null,0]
[null,null,null,null,null,null,null,null,null,null,null,null,null,null,null,null,null,null,0,null,null,null,null,null,null,null,null,null,null,null,null,0]
[null,null,null,null,null,null,null,null,null,null,null,null,null,null,null,null,null,null,0,null,null,null,null,null,null,null,null,null,null,null,null,0]
[null,null,null,null,null,null,null,null,null,null,null,null,null,null,null,null,null,null,0,null,null,null,null,null,null,null,null,null,null,null,null,0]
[null,null,null,null,null,null,null,null,null,null,null,null,null,null,null,null,null,null,0,null,null,null,null,null,null,null,null,null,null,null,null,0]
[null,null,null,null,null,null,null,null,null,null,null,null,null,null,null,null,null,null,0,null,null,null,null,null,null,null,null,null,null,null,null,0]
[null,null,null,null,null,null,null,null,null,null,null,null,null,null,null,null,null,null,0,null,null,null,null,null,null,null,null,null,null,null,null,0]
[null,null,null,null,null,null,null,null,null,null,null,null,null,null,null,null,null,null,0,null,null,null,null,null,null,null,null,null,null,null,null,0]
[null,null,null,null,null,null,null,null,null,null,null,null,null,null,null,null,null,null,0,null,null,null,null,null,null,null,null,null,null,null,null,0]
[null,null,null,null,null,null,null,null,null,null,null,null,null,null,null,null,null,null,0,null,null,null,null,null,null,null,null,null,null,null,null,0]
[null,null,null,null,null,null,null,null,null,null,null,null,null,null,null,null,null,null,0,null,null,null,null,null,null,null,null,null,null,null,null,0]
[null,null,null,null,null,null,null,null,null,null,null,null,null,null,null,null,null,null,0,null,null,null,null,null,null,null,null,null,null,null,null,0]
[null,null,null,null,null,null,null,null,null,null,null,null,null,null,null,null,null,null,0,null,null,null,null,null,null,null,null,null,null,null,null,0]
[null,null,null,null,null,null,null,null,null,null,null,null,null,null,null,null,null,null,0,null,null,null,null,null,null,null,null,null,null,null,null,0]
[null,null,null,null,null,null,null,null,null,null,null,null,null,null,null,null,null,null,0,null,null,null,null,null,null,null,null,null,null,null,null,0]
[null,null,null,null,null,null,null,null,null,null,null,null,null,null,null,null,null,null,0,null,null,null,null,null,null,null,null,null,null,null,null,0]
[null,null,null,null,null,null,null,null,null,null,null,null,null,null,null,null,null,null,0,null,null,null,null,null,null,null,null,null,null,null,null,0]
[null,null,null,null,null,null,null,null,null,null,null,null,null,null,null,null,null,null,0,null,null,null,null,null,null,null,null,null,null,null,null,0]
[null,null,null,null,null,null,null,null,null,null,null,null,null,null,null,null,null,null,0,null,null,null,null,null,null,null,null,null,null,null,null,0]
[null,null,null,null,null,null,null,null,null,null,null,null,null,null,null,null,null,null,0,null,null,null,null,null,null,null,null,null,null,null,null,0]
[null,null,null,null,null,null,null,null,null,null,null,null,null,null,null,null,null,null,0,null,null,null,null,null,null,null,null,null,null,null,null,0]
[null,null,null,null,null,null,null,null,null,null,null,null,null,null,null,null,null,null,0,null,null,null,null,null,null,null,null,null,null,null,null,0]
[null,null,null,null,null,null,null,null,null,null,null,null,null,null,null,null,null,null,0,null,null,null,null,null,null,null,null,null,null,null,null,0]
[null,null,null,null,null,null,null,null,null,null,null,null,null,null,null,null,null,null,0,null,null,null,null,null,null,null,null,null,null,null,null,0]
[null,null,null,null,null,null,null,null,null,null,null,null,null,null,null,null,null,null,0,null,null,null,null,null,null,null,null,null,null,null,null,0]
[null,null,null,null,null,null,null,null,null,null,null,null,null,null,null,null,null,null,0,null,null,null,null,null,null,null,null,null,null,null,null,0]
[null,null,null,null,null,null,null,null,null,null,null,null,null,null,null,null,null,null,0,null,null,null,null,null,null,null,null,null,null,null,null,0]
[null,null,null,null,null,null,null,null,null,null,null,null,null,null,null,null,null,null,0,null,null,null,null,null,null,null,null,null,null,null,null,0]
[null,null,null,null,null,null,null,null,null,null,null,null,null,null,null,null,null,null,0,null,null,null,null,null,null,null,null,null,null,null,null,0]
[null,null,null,null,null,null,null,null,null,null,null,null,null,null,null,null,null,null,0,null,null,null,null,null,null,null,null,null,null,null,null,0]
[null,null,null,null,null,null,null,null,null,null,null,null,null,null,null,null,null,null,0,null,null,null,null,null,null,null,null,null,null,null,null,0]
[null,null,null,null,null,null,null,null,null,null,null,null,null,null,null,null,null,null,0,null,null,null,null,null,null,null,null,null,null,null,null,0]
[null,null,null,null,null,null,null,null,null,null,null,null,null,null,null,null,null,null,0,null,null,null,null,null,null,null,null,null,null,null,null,0]
[null,null,null,null,null,null,null,null,null,null,null,null,null,null,null,null,null,null,0,null,null,null,null,null,null,null,null,null,null,null,null,0]
[null,null,null,null,null,null,null,null,null,null,null,null,null,null,null,null,null,null,0,null,null,null,null,null,null,null,null,null,null,null,null,0]
[null,null,null,null,null,null,null,null,null,null,null,null,null,null,null,null,null,null,0,null,null,null,null,null,null,null,null,null,null,null,null,0]
[null,null,null,null,null,null,null,null,null,null,null,null,null,null,null,null,null,null,0,null,null,null,null,null,null,null,null,null,null,null,null,0]
[null,null,null,null,null,null,null,null,null,null,null,null,null,null,null,null,null,null,0,null,null,null,null,null,null,null,null,null,null,null,null,0]
[null,null,null,null,null,null,null,null,null,null,null,null,null,null,null,null,null,null,0,null,null,null,null,null,null,null,null,null,null,null,null,0]
[null,null,null,null,null,null,null,null,null,null,null,null,null,null,null,null,null,null,0,null,null,null,null,null,null,null,null,null,null,null,null,0]
[null,null,null,null,null,null,null,null,null,null,null,null,null,null,null,null,null,null,0,null,null,null,null,null,null,null,null,null,null,null,null,0]
[null,null,null,null,null,null,null,null,null,null,null,null,null,null,null,null,null,null,0,null,null,null,null,null,null,null,null,null,null,null,null,0]
[null,null,null,null,null,null,null,null,null,null,null,null,null,null,null,null,null,null,0,null,null,null,null,null,null,null,null,null,null,null,null,0]
[null,null,null,null,null,null,null,null,null,null,null,null,null,null,null,null,null,null,0,null,null,null,null,null,null,null,null,null,null,null,null,0]
[null,null,null,null,null,null,null,null,null,null,null,null,null,null,null,null,null,null,0,null,null,null,null,null,null,null,null,null,null,null,null,0]
[null,null,null,null,null,null,null,null,null,null,null,null,null,null,null,null,null,null,0,null,null,null,null,null,null,null,null,null,null,null,null,0]
[null,null,null,null,null,null,null,null,null,null,null,null,null,null,null,null,null,null,0,null,null,null,null,null,null,null,null,null,null,null,null,0]
[null,null,null,null,null,null,null,null,null,null,null,null,null,null,null,null,null,null,0,null,null,null,null,null,null,null,null,null,null,null,null,0]
[null,null,null,null,null,null,null,null,null,null,null,null,null,null,null,null,null,null,0,null,null,null,null,null,null,null,null,null,null,null,null,0]
[null,null,null,null,null,null,null,null,null,null,null,null,null,null,null,null,null,null,0,null,null,null,null,null,null,null,null,null,null,null,null,0]
[null,null,null,null,null,null,null,null,null,null,null,null,null,null,null,null,null,null,0,null,null,null,null,null,null,null,null,null,null,null,null,0]
[null,null,null,null,null,null,null,null,null,null,null,null,null,null,null,null,null,null,0,null,null,null,null,null,null,null,null,null,null,null,null,0]
[null,null,null,null,null,null,null,null,null,null,null,null,null,null,null,null,null,null,0,null,null,null,null,null,null,null,null,null,null,null,null,0]
[null,null,null,null,null,null,null,null,null,null,null,null,null,null,null,null,null,null,0,null,null,null,null,null,null,null,null,null,null,null,null,0]
[null,null,null,null,null,null,null,null,null,null,null,null,null,null,null,null,null,null,0,null,null,null,null,null,null,null,null,null,null,null,null,0]
[null,null,null,null,null,null,null,null,null,null,null,null,null,null,null,null,null,null,0,null,null,null,null,null,null,null,null,null,null,null,null,0]
[null,null,null,null,null,null,null,null,null,null,null,null,null,null,null,null,null,null,0,null,null,null,null,null,null,null,null,null,null,null,null,0]
[null,null,null,null,null,null,null,null,null,null,null,null,null,null,null,null,null,null,0,null,null,null,null,null,null,null,null,null,null,null,null,0]
[null,null,null,null,null,null,null,null,null,null,null,null,null,null,null,null,null,null,0,null,null,null,null,null,null,null,null,null,null,null,null,0]
[null,null,null,null,null,null,null,null,null,null,null,null,null,null,null,null,null,null,0,null,null,null,null,null,null,null,null,null,null,null,null,0]
[null,null,null,null,null,null,null,null,null,null,null,null,null,null,null,null,null,null,0,null,null,null,null,null,null,null,null,null,null,null,null,0]
[null,null,null,null,null,null,null,null,null,null,null,null,null,null,null,null,null,null,{"$f":"O1569+P1569+Q1569+R1569","v":0},null,null,null,null,null,null,null,null,null,null,null,null,{"$f":"AB1569+AC1569+AD1569+AE1569","v":0}]
[null,null,null,null,null,null,null,null,null,null,null,null,null,null,null,null,null,null,0,null,null,null,null,null,null,null,null,null,null,null,null,0]
[null,null,null,null,null,null,null,null,null,null,null,null,null,null,null,null,null,null,0,null,null,null,null,null,null,null,null,null,null,null,null,0]
[null,null,null,null,null,null,null,null,null,null,null,null,null,null,null,null,null,null,0,null,null,null,null,null,null,null,null,null,null,null,null,0]
[null,null,null,null,null,null,null,null,null,null,null,null,null,null,null,null,null,null,0,null,null,null,null,null,null,null,null,null,null,null,null,0]
[null,null,null,null,null,null,null,null,null,null,null,null,null,null,null,null,null,null,0,null,null,null,null,null,null,null,null,null,null,null,null,0]
[null,null,null,null,null,null,null,null,null,null,null,null,null,null,null,null,null,null,0,null,null,null,null,null,null,null,null,null,null,null,null,0]
[null,null,null,null,null,null,null,null,null,null,null,null,null,null,null,null,null,null,0,null,null,null,null,null,null,null,null,null,null,null,null,0]
[null,null,null,null,null,null,null,null,null,null,null,null,null,null,null,null,null,null,0,null,null,null,null,null,null,null,null,null,null,null,null,0]
[null,null,null,null,null,null,null,null,null,null,null,null,null,null,null,null,null,null,0,null,null,null,null,null,null,null,null,null,null,null,null,0]
[null,null,null,null,null,null,null,null,null,null,null,null,null,null,null,null,null,null,0,null,null,null,null,null,null,null,null,null,null,null,null,0]
[null,null,null,null,null,null,null,null,null,null,null,null,null,null,null,null,null,null,0,null,null,null,null,null,null,null,null,null,null,null,null,0]
[null,null,null,null,null,null,null,null,null,null,null,null,null,null,null,null,null,null,0,null,null,null,null,null,null,null,null,null,null,null,null,0]
[null,null,null,null,null,null,null,null,null,null,null,null,null,null,null,null,null,null,0,null,null,null,null,null,null,null,null,null,null,null,null,0]
[null,null,null,null,null,null,null,null,null,null,null,null,null,null,null,null,null,null,0,null,null,null,null,null,null,null,null,null,null,null,null,0]
[null,null,null,null,null,null,null,null,null,null,null,null,null,null,null,null,null,null,0,null,null,null,null,null,null,null,null,null,null,null,null,0]
[null,null,null,null,null,null,null,null,null,null,null,null,null,null,null,null,null,null,0,null,null,null,null,null,null,null,null,null,null,null,null,0]
[null,null,null,null,null,null,null,null,null,null,null,null,null,null,null,null,null,null,0,null,null,null,null,null,null,null,null,null,null,null,null,0]
[null,null,null,null,null,null,null,null,null,null,null,null,null,null,null,null,null,null,0,null,null,null,null,null,null,null,null,null,null,null,null,0]
[null,null,null,null,null,null,null,null,null,null,null,null,null,null,null,null,null,null,0,null,null,null,null,null,null,null,null,null,null,null,null,0]
[null,null,null,null,null,null,null,null,null,null,null,null,null,null,null,null,null,null,0,null,null,null,null,null,null,null,null,null,null,null,null,0]
[null,null,null,null,null,null,null,null,null,null,null,null,null,null,null,null,null,null,0,null,null,null,null,null,null,null,null,null,null,null,null,0]
[null,null,null,null,null,null,null,null,null,null,null,null,null,null,null,null,null,null,0,null,null,null,null,null,null,null,null,null,null,null,null,0]
[null,null,null,null,null,null,null,null,null,null,null,null,null,null,null,null,null,null,0,null,null,null,null,null,null,null,null,null,null,null,null,0]
[null,null,null,null,null,null,null,null,null,null,null,null,null,null,null,null,null,null,0,null,null,null,null,null,null,null,null,null,null,null,null,0]
[null,null,null,null,null,null,null,null,null,null,null,null,null,null,null,null,null,null,0,null,null,null,null,null,null,null,null,null,null,null,null,0]
[null,null,null,null,null,null,null,null,null,null,null,null,null,null,null,null,null,null,0,null,null,null,null,null,null,null,null,null,null,null,null,0]
[null,null,null,null,null,null,null,null,null,null,null,null,null,null,null,null,null,null,0,null,null,null,null,null,null,null,null,null,null,null,null,0]
[null,null,null,null,null,null,null,null,null,null,null,null,null,null,null,null,null,null,0,null,null,null,null,null,null,null,null,null,null,null,null,0]
[null,null,null,null,null,null,null,null,null,null,null,null,null,null,null,null,null,null,0,null,null,null,null,null,null,null,null,null,null,null,null,0]
[null,null,null,null,null,null,null,null,null,null,null,null,null,null,null,null,null,null,0,null,null,null,null,null,null,null,null,null,null,null,null,0]
[null,null,null,null,null,null,null,null,null,null,null,null,null,null,null,null,null,null,0,null,null,null,null,null,null,null,null,null,null,null,null,0]
[null,null,null,null,null,null,null,null,null,null,null,null,null,null,null,null,null,null,0,null,null,null,null,null,null,null,null,null,null,null,null,0]
[null,null,null,null,null,null,null,null,null,null,null,null,null,null,null,null,null,null,0,null,null,null,null,null,null,null,null,null,null,null,null,0]
[null,null,null,null,null,null,null,null,null,null,null,null,null,null,null,null,null,null,0,null,null,null,null,null,null,null,null,null,null,null,null,0]
[null,null,null,null,null,null,null,null,null,null,null,null,null,null,null,null,null,null,0,null,null,null,null,null,null,null,null,null,null,null,null,0]
[null,null,null,null,null,null,null,null,null,null,null,null,null,null,null,null,null,null,0,null,null,null,null,null,null,null,null,null,null,null,null,0]
[null,null,null,null,null,null,null,null,null,null,null,null,null,null,null,null,null,null,0,null,null,null,null,null,null,null,null,null,null,null,null,0]
[null,null,null,null,null,null,null,null,null,null,null,null,null,null,null,null,null,null,0,null,null,null,null,null,null,null,null,null,null,null,null,0]
[null,null,null,null,null,null,null,null,null,null,null,null,null,null,null,null,null,null,0,null,null,null,null,null,null,null,null,null,null,null,null,0]
[null,null,null,null,null,null,null,null,null,null,null,null,null,null,null,null,null,null,0,null,null,null,null,null,null,null,null,null,null,null,null,0]
[null,null,null,null,null,null,null,null,null,null,null,null,null,null,null,null,null,null,0,null,null,null,null,null,null,null,null,null,null,null,null,0]
[null,null,null,null,null,null,null,null,null,null,null,null,null,null,null,null,null,null,0,null,null,null,null,null,null,null,null,null,null,null,null,0]
[null,null,null,null,null,null,null,null,null,null,null,null,null,null,null,null,null,null,0,null,null,null,null,null,null,null,null,null,null,null,null,0]
[null,null,null,null,null,null,null,null,null,null,null,null,null,null,null,null,null,null,0,null,null,null,null,null,null,null,null,null,null,null,null,0]
[null,null,null,null,null,null,null,null,null,null,null,null,null,null,null,null,null,null,0,null,null,null,null,null,null,null,null,null,null,null,null,0]
[null,null,null,null,null,null,null,null,null,null,null,null,null,null,null,null,null,null,0,null,null,null,null,null,null,null,null,null,null,null,null,0]
[null,null,null,null,null,null,null,null,null,null,null,null,null,null,null,null,null,null,0,null,null,null,null,null,null,null,null,null,null,null,null,0]
[null,null,null,null,null,null,null,null,null,null,null,null,null,null,null,null,null,null,0,null,null,null,null,null,null,null,null,null,null,null,null,0]
[null,null,null,null,null,null,null,null,null,null,null,null,null,null,null,null,null,null,0,null,null,null,null,null,null,null,null,null,null,null,null,0]
[null,null,null,null,null,null,null,null,null,null,null,null,null,null,null,null,null,null,0,null,null,null,null,null,null,null,null,null,null,null,null,0]
[null,null,null,null,null,null,null,null,null,null,null,null,null,null,null,null,null,null,0,null,null,null,null,null,null,null,null,null,null,null,null,0]
[null,null,null,null,null,null,null,null,null,null,null,null,null,null,null,null,null,null,0,null,null,null,null,null,null,null,null,null,null,null,null,0]
[null,null,null,null,null,null,null,null,null,null,null,null,null,null,null,null,null,null,0,null,null,null,null,null,null,null,null,null,null,null,null,0]
[null,null,null,null,null,null,null,null,null,null,null,null,null,null,null,null,null,null,0,null,null,null,null,null,null,null,null,null,null,null,null,0]
[null,null,null,null,null,null,null,null,null,null,null,null,null,null,null,null,null,null,0,null,null,null,null,null,null,null,null,null,null,null,null,0]
[null,null,null,null,null,null,null,null,null,null,null,null,null,null,null,null,null,null,0,null,null,null,null,null,null,null,null,null,null,null,null,0]
[null,null,null,null,null,null,null,null,null,null,null,null,null,null,null,null,null,null,0,null,null,null,null,null,null,null,null,null,null,null,null,0]
[null,null,null,null,null,null,null,null,null,null,null,null,null,null,null,null,null,null,0,null,null,null,null,null,null,null,null,null,null,null,null,0]
[null,null,null,null,null,null,null,null,null,null,null,null,null,null,null,null,null,null,0,null,null,null,null,null,null,null,null,null,null,null,null,0]
[null,null,null,null,null,null,null,null,null,null,null,null,null,null,null,null,null,null,0,null,null,null,null,null,null,null,null,null,null,null,null,0]
[null,null,null,null,null,null,null,null,null,null,null,null,null,null,null,null,null,null,0,null,null,null,null,null,null,null,null,null,null,null,null,0]
[null,null,null,null,null,null,null,null,null,null,null,null,null,null,null,null,null,null,0,null,null,null,null,null,null,null,null,null,null,null,null,0]
[null,null,null,null,null,null,null,null,null,null,null,null,null,null,null,null,null,null,0,null,null,null,null,null,null,null,null,null,null,null,null,0]
[null,null,null,null,null,null,null,null,null,null,null,null,null,null,null,null,null,null,{"$f":"O1633+P1633+Q1633+R1633","v":0},null,null,null,null,null,null,null,null,null,null,null,null,{"$f":"AB1633+AC1633+AD1633+AE1633","v":0}]
[null,null,null,null,null,null,null,null,null,null,null,null,null,null,null,null,null,null,0,null,null,null,null,null,null,null,null,null,null,null,null,0]
[null,null,null,null,null,null,null,null,null,null,null,null,null,null,null,null,null,null,0,null,null,null,null,null,null,null,null,null,null,null,null,0]
[null,null,null,null,null,null,null,null,null,null,null,null,null,null,null,null,null,null,0,null,null,null,null,null,null,null,null,null,null,null,null,0]
[null,null,null,null,null,null,null,null,null,null,null,null,null,null,null,null,null,null,0,null,null,null,null,null,null,null,null,null,null,null,null,0]
[null,null,null,null,null,null,null,null,null,null,null,null,null,null,null,null,null,null,0,null,null,null,null,null,null,null,null,null,null,null,null,0]
[null,null,null,null,null,null,null,null,null,null,null,null,null,null,null,null,null,null,0,null,null,null,null,null,null,null,null,null,null,null,null,0]
[null,null,null,null,null,null,null,null,null,null,null,null,null,null,null,null,null,null,0,null,null,null,null,null,null,null,null,null,null,null,null,0]
[null,null,null,null,null,null,null,null,null,null,null,null,null,null,null,null,null,null,0,null,null,null,null,null,null,null,null,null,null,null,null,0]
[null,null,null,null,null,null,null,null,null,null,null,null,null,null,null,null,null,null,0,null,null,null,null,null,null,null,null,null,null,null,null,0]
[null,null,null,null,null,null,null,null,null,null,null,null,null,null,null,null,null,null,0,null,null,null,null,null,null,null,null,null,null,null,null,0]
[null,null,null,null,null,null,null,null,null,null,null,null,null,null,null,null,null,null,0,null,null,null,null,null,null,null,null,null,null,null,null,0]
[null,null,null,null,null,null,null,null,null,null,null,null,null,null,null,null,null,null,0,null,null,null,null,null,null,null,null,null,null,null,null,0]
[null,null,null,null,null,null,null,null,null,null,null,null,null,null,null,null,null,null,0,null,null,null,null,null,null,null,null,null,null,null,null,0]
[null,null,null,null,null,null,null,null,null,null,null,null,null,null,null,null,null,null,0,null,null,null,null,null,null,null,null,null,null,null,null,0]
[null,null,null,null,null,null,null,null,null,null,null,null,null,null,null,null,null,null,0,null,null,null,null,null,null,null,null,null,null,null,null,0]
[null,null,null,null,null,null,null,null,null,null,null,null,null,null,null,null,null,null,0,null,null,null,null,null,null,null,null,null,null,null,null,0]
[null,null,null,null,null,null,null,null,null,null,null,null,null,null,null,null,null,null,0,null,null,null,null,null,null,null,null,null,null,null,null,0]
[null,null,null,null,null,null,null,null,null,null,null,null,null,null,null,null,null,null,0,null,null,null,null,null,null,null,null,null,null,null,null,0]
[null,null,null,null,null,null,null,null,null,null,null,null,null,null,null,null,null,null,0,null,null,null,null,null,null,null,null,null,null,null,null,0]
[null,null,null,null,null,null,null,null,null,null,null,null,null,null,null,null,null,null,0,null,null,null,null,null,null,null,null,null,null,null,null,0]
[null,null,null,null,null,null,null,null,null,null,null,null,null,null,null,null,null,null,0,null,null,null,null,null,null,null,null,null,null,null,null,0]
[null,null,null,null,null,null,null,null,null,null,null,null,null,null,null,null,null,null,0,null,null,null,null,null,null,null,null,null,null,null,null,0]
[null,null,null,null,null,null,null,null,null,null,null,null,null,null,null,null,null,null,0,null,null,null,null,null,null,null,null,null,null,null,null,0]
[null,null,null,null,null,null,null,null,null,null,null,null,null,null,null,null,null,null,0,null,null,null,null,null,null,null,null,null,null,null,null,0]
[null,null,null,null,null,null,null,null,null,null,null,null,null,null,null,null,null,null,0,null,null,null,null,null,null,null,null,null,null,null,null,0]
[null,null,null,null,null,null,null,null,null,null,null,null,null,null,null,null,null,null,0,null,null,null,null,null,null,null,null,null,null,null,null,0]
[null,null,null,null,null,null,null,null,null,null,null,null,null,null,null,null,null,null,0,null,null,null,null,null,null,null,null,null,null,null,null,0]
[null,null,null,null,null,null,null,null,null,null,null,null,null,null,null,null,null,null,0,null,null,null,null,null,null,null,null,null,null,null,null,0]
[null,null,null,null,null,null,null,null,null,null,null,null,null,null,null,null,null,null,0,null,null,null,null,null,null,null,null,null,null,null,null,0]
[null,null,null,null,null,null,null,null,null,null,null,null,null,null,null,null,null,null,0,null,null,null,null,null,null,null,null,null,null,null,null,0]
[null,null,null,null,null,null,null,null,null,null,null,null,null,null,null,null,null,null,0,null,null,null,null,null,null,null,null,null,null,null,null,0]
[null,null,null,null,null,null,null,null,null,null,null,null,null,null,null,null,null,null,0,null,null,null,null,null,null,null,null,null,null,null,null,0]
[null,null,null,null,null,null,null,null,null,null,null,null,null,null,null,null,null,null,0,null,null,null,null,null,null,null,null,null,null,null,null,0]
[null,null,null,null,null,null,null,null,null,null,null,null,null,null,null,null,null,null,0,null,null,null,null,null,null,null,null,null,null,null,null,0]
[null,null,null,null,null,null,null,null,null,null,null,null,null,null,null,null,null,null,0,null,null,null,null,null,null,null,null,null,null,null,null,0]
[null,null,null,null,null,null,null,null,null,null,null,null,null,null,null,null,null,null,0,null,null,null,null,null,null,null,null,null,null,null,null,0]
[null,null,null,null,null,null,null,null,null,null,null,null,null,null,null,null,null,null,0,null,null,null,null,null,null,null,null,null,null,null,null,0]
[null,null,null,null,null,null,null,null,null,null,null,null,null,null,null,null,null,null,0,null,null,null,null,null,null,null,null,null,null,null,null,0]
[null,null,null,null,null,null,null,null,null,null,null,null,null,null,null,null,null,null,0,null,null,null,null,null,null,null,null,null,null,null,null,0]
[null,null,null,null,null,null,null,null,null,null,null,null,null,null,null,null,null,null,0,null,null,null,null,null,null,null,null,null,null,null,null,0]
[null,null,null,null,null,null,null,null,null,null,null,null,null,null,null,null,null,null,0,null,null,null,null,null,null,null,null,null,null,null,null,0]
[null,null,null,null,null,null,null,null,null,null,null,null,null,null,null,null,null,null,0,null,null,null,null,null,null,null,null,null,null,null,null,0]
[null,null,null,null,null,null,null,null,null,null,null,null,null,null,null,null,null,null,0,null,null,null,null,null,null,null,null,null,null,null,null,0]
[null,null,null,null,null,null,null,null,null,null,null,null,null,null,null,null,null,null,0,null,null,null,null,null,null,null,null,null,null,null,null,0]
[null,null,null,null,null,null,null,null,null,null,null,null,null,null,null,null,null,null,0,null,null,null,null,null,null,null,null,null,null,null,null,0]
[null,null,null,null,null,null,null,null,null,null,null,null,null,null,null,null,null,null,0,null,null,null,null,null,null,null,null,null,null,null,null,0]
[null,null,null,null,null,null,null,null,null,null,null,null,null,null,null,null,null,null,0,null,null,null,null,null,null,null,null,null,null,null,null,0]
[null,null,null,null,null,null,null,null,null,null,null,null,null,null,null,null,null,null,0,null,null,null,null,null,null,null,null,null,null,null,null,0]
[null,null,null,null,null,null,null,null,null,null,null,null,null,null,null,null,null,null,0,null,null,null,null,null,null,null,null,null,null,null,null,0]
[null,null,null,null,null,null,null,null,null,null,null,null,null,null,null,null,null,null,0,null,null,null,null,null,null,null,null,null,null,null,null,0]
[null,null,null,null,null,null,null,null,null,null,null,null,null,null,null,null,null,null,0,null,null,null,null,null,null,null,null,null,null,null,null,0]
[null,null,null,null,null,null,null,null,null,null,null,null,null,null,null,null,null,null,0,null,null,null,null,null,null,null,null,null,null,null,null,0]
[null,null,null,null,null,null,null,null,null,null,null,null,null,null,null,null,null,null,0,null,null,null,null,null,null,null,null,null,null,null,null,0]
[null,null,null,null,null,null,null,null,null,null,null,null,null,null,null,null,null,null,0,null,null,null,null,null,null,null,null,null,null,null,null,0]
[null,null,null,null,null,null,null,null,null,null,null,null,null,null,null,null,null,null,0,null,null,null,null,null,null,null,null,null,null,null,null,0]
[null,null,null,null,null,null,null,null,null,null,null,null,null,null,null,null,null,null,0,null,null,null,null,null,null,null,null,null,null,null,null,0]
[null,null,null,null,null,null,null,null,null,null,null,null,null,null,null,null,null,null,0,null,null,null,null,null,null,null,null,null,null,null,null,0]
[null,null,null,null,null,null,null,null,null,null,null,null,null,null,null,null,null,null,0,null,null,null,null,null,null,null,null,null,null,null,null,0]
[null,null,null,null,null,null,null,null,null,null,null,null,null,null,null,null,null,null,0,null,null,null,null,null,null,null,null,null,null,null,null,0]
[null,null,null,null,null,null,null,null,null,null,null,null,null,null,null,null,null,null,0,null,null,null,null,null,null,null,null,null,null,null,null,0]
[null,null,null,null,null,null,null,null,null,null,null,null,null,null,null,null,null,null,0,null,null,null,null,null,null,null,null,null,null,null,null,0]
[null,null,null,null,null,null,null,null,null,null,null,null,null,null,null,null,null,null,0,null,null,null,null,null,null,null,null,null,null,null,null,0]
[null,null,null,null,null,null,null,null,null,null,null,null,null,null,null,null,null,null,0,null,null,null,null,null,null,null,null,null,null,null,null,0]
[null,null,null,null,null,null,null,null,null,null,null,null,null,null,null,null,null,null,{"$f":"O1697+P1697+Q1697+R1697","v":0},null,null,null,null,null,null,null,null,null,null,null,null,{"$f":"AB1697+AC1697+AD1697+AE1697","v":0}]
[null,null,null,null,null,null,null,null,null,null,null,null,null,null,null,null,null,null,0,null,null,null,null,null,null,null,null,null,null,null,null,0]
[null,null,null,null,null,null,null,null,null,null,null,null,null,null,null,null,null,null,0,null,null,null,null,null,null,null,null,null,null,null,null,0]
[null,null,null,null,null,null,null,null,null,null,null,null,null,null,null,null,null,null,0,null,null,null,null,null,null,null,null,null,null,null,null,0]
[null,null,null,null,null,null,null,null,null,null,null,null,null,null,null,null,null,null,0,null,null,null,null,null,null,null,null,null,null,null,null,0]
[null,null,null,null,null,null,null,null,null,null,null,null,null,null,null,null,null,null,0,null,null,null,null,null,null,null,null,null,null,null,null,0]
[null,null,null,null,null,null,null,null,null,null,null,null,null,null,null,null,null,null,0,null,null,null,null,null,null,null,null,null,null,null,null,0]
[null,null,null,null,null,null,null,null,null,null,null,null,null,null,null,null,null,null,0,null,null,null,null,null,null,null,null,null,null,null,null,0]
[null,null,null,null,null,null,null,null,null,null,null,null,null,null,null,null,null,null,0,null,null,null,null,null,null,null,null,null,null,null,null,0]
[null,null,null,null,null,null,null,null,null,null,null,null,null,null,null,null,null,null,0,null,null,null,null,null,null,null,null,null,null,null,null,0]
[null,null,null,null,null,null,null,null,null,null,null,null,null,null,null,null,null,null,0,null,null,null,null,null,null,null,null,null,null,null,null,0]
[null,null,null,null,null,null,null,null,null,null,null,null,null,null,null,null,null,null,0,null,null,null,null,null,null,null,null,null,null,null,null,0]
[null,null,null,null,null,null,null,null,null,null,null,null,null,null,null,null,null,null,0,null,null,null,null,null,null,null,null,null,null,null,null,0]
[null,null,null,null,null,null,null,null,null,null,null,null,null,null,null,null,null,null,0,null,null,null,null,null,null,null,null,null,null,null,null,0]
[null,null,null,null,null,null,null,null,null,null,null,null,null,null,null,null,null,null,0,null,null,null,null,null,null,null,null,null,null,null,null,0]
[null,null,null,null,null,null,null,null,null,null,null,null,null,null,null,null,null,null,0,null,null,null,null,null,null,null,null,null,null,null,null,0]
[null,null,null,null,null,null,null,null,null,null,null,null,null,null,null,null,null,null,0,null,null,null,null,null,null,null,null,null,null,null,null,0]
[null,null,null,null,null,null,null,null,null,null,null,null,null,null,null,null,null,null,0,null,null,null,null,null,null,null,null,null,null,null,null,0]
[null,null,null,null,null,null,null,null,null,null,null,null,null,null,null,null,null,null,0,null,null,null,null,null,null,null,null,null,null,null,null,0]
[null,null,null,null,null,null,null,null,null,null,null,null,null,null,null,null,null,null,0,null,null,null,null,null,null,null,null,null,null,null,null,0]
[null,null,null,null,null,null,null,null,null,null,null,null,null,null,null,null,null,null,0,null,null,null,null,null,null,null,null,null,null,null,null,0]
[null,null,null,null,null,null,null,null,null,null,null,null,null,null,null,null,null,null,0,null,null,null,null,null,null,null,null,null,null,null,null,0]
[null,null,null,null,null,null,null,null,null,null,null,null,null,null,null,null,null,null,0,null,null,null,null,null,null,null,null,null,null,null,null,0]
[null,null,null,null,null,null,null,null,null,null,null,null,null,null,null,null,null,null,0,null,null,null,null,null,null,null,null,null,null,null,null,0]
[null,null,null,null,null,null,null,null,null,null,null,null,null,null,null,null,null,null,0,null,null,null,null,null,null,null,null,null,null,null,null,0]
[null,null,null,null,null,null,null,null,null,null,null,null,null,null,null,null,null,null,0,null,null,null,null,null,null,null,null,null,null,null,null,0]
[null,null,null,null,null,null,null,null,null,null,null,null,null,null,null,null,null,null,0,null,null,null,null,null,null,null,null,null,null,null,null,0]
[null,null,null,null,null,null,null,null,null,null,null,null,null,null,null,null,null,null,0,null,null,null,null,null,null,null,null,null,null,null,null,0]
[null,null,null,null,null,null,null,null,null,null,null,null,null,null,null,null,null,null,0,null,null,null,null,null,null,null,null,null,null,null,null,0]
[null,null,null,null,null,null,null,null,null,null,null,null,null,null,null,null,null,null,0,null,null,null,null,null,null,null,null,null,null,null,null,0]
[null,null,null,null,null,null,null,null,null,null,null,null,null,null,null,null,null,null,0,null,null,null,null,null,null,null,null,null,null,null,null,0]
[null,null,null,null,null,null,null,null,null,null,null,null,null,null,null,null,null,null,0,null,null,null,null,null,null,null,null,null,null,null,null,0]
[null,null,null,null,null,null,null,null,null,null,null,null,null,null,null,null,null,null,0,null,null,null,null,null,null,null,null,null,null,null,null,0]
[null,null,null,null,null,null,null,null,null,null,null,null,null,null,null,null,null,null,0,null,null,null,null,null,null,null,null,null,null,null,null,0]
[null,null,null,null,null,null,null,null,null,null,null,null,null,null,null,null,null,null,0,null,null,null,null,null,null,null,null,null,null,null,null,0]
[null,null,null,null,null,null,null,null,null,null,null,null,null,null,null,null,null,null,0,null,null,null,null,null,null,null,null,null,null,null,null,0]
[null,null,null,null,null,null,null,null,null,null,null,null,null,null,null,null,null,null,0,null,null,null,null,null,null,null,null,null,null,null,null,0]
[null,null,null,null,null,null,null,null,null,null,null,null,null,null,null,null,null,null,0,null,null,null,null,null,null,null,null,null,null,null,null,0]
[null,null,null,null,null,null,null,null,null,null,null,null,null,null,null,null,null,null,0,null,null,null,null,null,null,null,null,null,null,null,null,0]
[null,null,null,null,null,null,null,null,null,null,null,null,null,null,null,null,null,null,0,null,null,null,null,null,null,null,null,null,null,null,null,0]
[null,null,null,null,null,null,null,null,null,null,null,null,null,null,null,null,null,null,0,null,null,null,null,null,null,null,null,null,null,null,null,0]
[null,null,null,null,null,null,null,null,null,null,null,null,null,null,null,null,null,null,0,null,null,null,null,null,null,null,null,null,null,null,null,0]
[null,null,null,null,null,null,null,null,null,null,null,null,null,null,null,null,null,null,0,null,null,null,null,null,null,null,null,null,null,null,null,0]
[null,null,null,null,null,null,null,null,null,null,null,null,null,null,null,null,null,null,0,null,null,null,null,null,null,null,null,null,null,null,null,0]
[null,null,null,null,null,null,null,null,null,null,null,null,null,null,null,null,null,null,0,null,null,null,null,null,null,null,null,null,null,null,null,0]
[null,null,null,null,null,null,null,null,null,null,null,null,null,null,null,null,null,null,0,null,null,null,null,null,null,null,null,null,null,null,null,0]
[null,null,null,null,null,null,null,null,null,null,null,null,null,null,null,null,null,null,0,null,null,null,null,null,null,null,null,null,null,null,null,0]
[null,null,null,null,null,null,null,null,null,null,null,null,null,null,null,null,null,null,0,null,null,null,null,null,null,null,null,null,null,null,null,0]
[null,null,null,null,null,null,null,null,null,null,null,null,null,null,null,null,null,null,0,null,null,null,null,null,null,null,null,null,null,null,null,0]
[null,null,null,null,null,null,null,null,null,null,null,null,null,null,null,null,null,null,0,null,null,null,null,null,null,null,null,null,null,null,null,0]
[null,null,null,null,null,null,null,null,null,null,null,null,null,null,null,null,null,null,0,null,null,null,null,null,null,null,null,null,null,null,null,0]
[null,null,null,null,null,null,null,null,null,null,null,null,null,null,null,null,null,null,0,null,null,null,null,null,null,null,null,null,null,null,null,0]
[null,null,null,null,null,null,null,null,null,null,null,null,null,null,null,null,null,null,0,null,null,null,null,null,null,null,null,null,null,null,null,0]
[null,null,null,null,null,null,null,null,null,null,null,null,null,null,null,null,null,null,0,null,null,null,null,null,null,null,null,null,null,null,null,0]
[null,null,null,null,null,null,null,null,null,null,null,null,null,null,null,null,null,null,0,null,null,null,null,null,null,null,null,null,null,null,null,0]
[null,null,null,null,null,null,null,null,null,null,null,null,null,null,null,null,null,null,0,null,null,null,null,null,null,null,null,null,null,null,null,0]
[null,null,null,null,null,null,null,null,null,null,null,null,null,null,null,null,null,null,0,null,null,null,null,null,null,null,null,null,null,null,null,0]
[null,null,null,null,null,null,null,null,null,null,null,null,null,null,null,null,null,null,0,null,null,null,null,null,null,null,null,null,null,null,null,0]
[null,null,null,null,null,null,null,null,null,null,null,null,null,null,null,null,null,null,0,null,null,null,null,null,null,null,null,null,null,null,null,0]
[null,null,null,null,null,null,null,null,null,null,null,null,null,null,null,null,null,null,0,null,null,null,null,null,null,null,null,null,null,null,null,0]
[null,null,null,null,null,null,null,null,null,null,null,null,null,null,null,null,null,null,0,null,null,null,null,null,null,null,null,null,null,null,null,0]
[null,null,null,null,null,null,null,null,null,null,null,null,null,null,null,null,null,null,0,null,null,null,null,null,null,null,null,null,null,null,null,0]
[null,null,null,null,null,null,null,null,null,null,null,null,null,null,null,null,null,null,0,null,null,null,null,null,null,null,null,null,null,null,null,0]
[null,null,null,null,null,null,null,null,null,null,null,null,null,null,null,null,null,null,0,null,null,null,null,null,null,null,null,null,null,null,null,0]
[null,null,null,null,null,null,null,null,null,null,null,null,null,null,null,null,null,null,{"$f":"O1761+P1761+Q1761+R1761","v":0},null,null,null,null,null,null,null,null,null,null,null,null,{"$f":"AB1761+AC1761+AD1761+AE1761","v":0}]
[null,null,null,null,null,null,null,null,null,null,null,null,null,null,null,null,null,null,0,null,null,null,null,null,null,null,null,null,null,null,null,0]
[null,null,null,null,null,null,null,null,null,null,null,null,null,null,null,null,null,null,0,null,null,null,null,null,null,null,null,null,null,null,null,0]
[null,null,null,null,null,null,null,null,null,null,null,null,null,null,null,null,null,null,0,null,null,null,null,null,null,null,null,null,null,null,null,0]
[null,null,null,null,null,null,null,null,null,null,null,null,null,null,null,null,null,null,0,null,null,null,null,null,null,null,null,null,null,null,null,0]
[null,null,null,null,null,null,null,null,null,null,null,null,null,null,null,null,null,null,0,null,null,null,null,null,null,null,null,null,null,null,null,0]
[null,null,null,null,null,null,null,null,null,null,null,null,null,null,null,null,null,null,0,null,null,null,null,null,null,null,null,null,null,null,null,0]
[null,null,null,null,null,null,null,null,null,null,null,null,null,null,null,null,null,null,0,null,null,null,null,null,null,null,null,null,null,null,null,0]
[null,null,null,null,null,null,null,null,null,null,null,null,null,null,null,null,null,null,0,null,null,null,null,null,null,null,null,null,null,null,null,0]
[null,null,null,null,null,null,null,null,null,null,null,null,null,null,null,null,null,null,0,null,null,null,null,null,null,null,null,null,null,null,null,0]
[null,null,null,null,null,null,null,null,null,null,null,null,null,null,null,null,null,null,0,null,null,null,null,null,null,null,null,null,null,null,null,0]
[null,null,null,null,null,null,null,null,null,null,null,null,null,null,null,null,null,null,0,null,null,null,null,null,null,null,null,null,null,null,null,0]
[null,null,null,null,null,null,null,null,null,null,null,null,null,null,null,null,null,null,0,null,null,null,null,null,null,null,null,null,null,null,null,0]
[null,null,null,null,null,null,null,null,null,null,null,null,null,null,null,null,null,null,0,null,null,null,null,null,null,null,null,null,null,null,null,0]
[null,null,null,null,null,null,null,null,null,null,null,null,null,null,null,null,null,null,0,null,null,null,null,null,null,null,null,null,null,null,null,0]
[null,null,null,null,null,null,null,null,null,null,null,null,null,null,null,null,null,null,0,null,null,null,null,null,null,null,null,null,null,null,null,0]
[null,null,null,null,null,null,null,null,null,null,null,null,null,null,null,null,null,null,0,null,null,null,null,null,null,null,null,null,null,null,null,0]
[null,null,null,null,null,null,null,null,null,null,null,null,null,null,null,null,null,null,0,null,null,null,null,null,null,null,null,null,null,null,null,0]
[null,null,null,null,null,null,null,null,null,null,null,null,null,null,null,null,null,null,0,null,null,null,null,null,null,null,null,null,null,null,null,0]
[null,null,null,null,null,null,null,null,null,null,null,null,null,null,null,null,null,null,0,null,null,null,null,null,null,null,null,null,null,null,null,0]
[null,null,null,null,null,null,null,null,null,null,null,null,null,null,null,null,null,null,0,null,null,null,null,null,null,null,null,null,null,null,null,0]
[null,null,null,null,null,null,null,null,null,null,null,null,null,null,null,null,null,null,0,null,null,null,null,null,null,null,null,null,null,null,null,0]
[null,null,null,null,null,null,null,null,null,null,null,null,null,null,null,null,null,null,0,null,null,null,null,null,null,null,null,null,null,null,null,0]
[null,null,null,null,null,null,null,null,null,null,null,null,null,null,null,null,null,null,0,null,null,null,null,null,null,null,null,null,null,null,null,0]
[null,null,null,null,null,null,null,null,null,null,null,null,null,null,null,null,null,null,0,null,null,null,null,null,null,null,null,null,null,null,null,0]
[null,null,null,null,null,null,null,null,null,null,null,null,null,null,null,null,null,null,0,null,null,null,null,null,null,null,null,null,null,null,null,0]
[null,null,null,null,null,null,null,null,null,null,null,null,null,null,null,null,null,null,0,null,null,null,null,null,null,null,null,null,null,null,null,0]
[null,null,null,null,null,null,null,null,null,null,null,null,null,null,null,null,null,null,0,null,null,null,null,null,null,null,null,null,null,null,null,0]
[null,null,null,null,null,null,null,null,null,null,null,null,null,null,null,null,null,null,0,null,null,null,null,null,null,null,null,null,null,null,null,0]
[null,null,null,null,null,null,null,null,null,null,null,null,null,null,null,null,null,null,0,null,null,null,null,null,null,null,null,null,null,null,null,0]
[null,null,null,null,null,null,null,null,null,null,null,null,null,null,null,null,null,null,0,null,null,null,null,null,null,null,null,null,null,null,null,0]
[null,null,null,null,null,null,null,null,null,null,null,null,null,null,null,null,null,null,0,null,null,null,null,null,null,null,null,null,null,null,null,0]
[null,null,null,null,null,null,null,null,null,null,null,null,null,null,null,null,null,null,0,null,null,null,null,null,null,null,null,null,null,null,null,0]
[null,null,null,null,null,null,null,null,null,null,null,null,null,null,null,null,null,null,0,null,null,null,null,null,null,null,null,null,null,null,null,0]
[null,null,null,null,null,null,null,null,null,null,null,null,null,null,null,null,null,null,0,null,null,null,null,null,null,null,null,null,null,null,null,0]
[null,null,null,null,null,null,null,null,null,null,null,null,null,null,null,null,null,null,0,null,null,null,null,null,null,null,null,null,null,null,null,0]
[null,null,null,null,null,null,null,null,null,null,null,null,null,null,null,null,null,null,0,null,null,null,null,null,null,null,null,null,null,null,null,0]
[null,null,null,null,null,null,null,null,null,null,null,null,null,null,null,null,null,null,0,null,null,null,null,null,null,null,null,null,null,null,null,0]
[null,null,null,null,null,null,null,null,null,null,null,null,null,null,null,null,null,null,0,null,null,null,null,null,null,null,null,null,null,null,null,0]
[null,null,null,null,null,null,null,null,null,null,null,null,null,null,null,null,null,null,0,null,null,null,null,null,null,null,null,null,null,null,null,0]
[null,null,null,null,null,null,null,null,null,null,null,null,null,null,null,null,null,null,0,null,null,null,null,null,null,null,null,null,null,null,null,0]
[null,null,null,null,null,null,null,null,null,null,null,null,null,null,null,null,null,null,0,null,null,null,null,null,null,null,null,null,null,null,null,0]
[null,null,null,null,null,null,null,null,null,null,null,null,null,null,null,null,null,null,0,null,null,null,null,null,null,null,null,null,null,null,null,0]
[null,null,null,null,null,null,null,null,null,null,null,null,null,null,null,null,null,null,0,null,null,null,null,null,null,null,null,null,null,null,null,0]
[null,null,null,null,null,null,null,null,null,null,null,null,null,null,null,null,null,null,0,null,null,null,null,null,null,null,null,null,null,null,null,0]
[null,null,null,null,null,null,null,null,null,null,null,null,null,null,null,null,null,null,0,null,null,null,null,null,null,null,null,null,null,null,null,0]
[null,null,null,null,null,null,null,null,null,null,null,null,null,null,null,null,null,null,0,null,null,null,null,null,null,null,null,null,null,null,null,0]
[null,null,null,null,null,null,null,null,null,null,null,null,null,null,null,null,null,null,0,null,null,null,null,null,null,null,null,null,null,null,null,0]
[null,null,null,null,null,null,null,null,null,null,null,null,null,null,null,null,null,null,0,null,null,null,null,null,null,null,null,null,null,null,null,0]
[null,null,null,null,null,null,null,null,null,null,null,null,null,null,null,null,null,null,0,null,null,null,null,null,null,null,null,null,null,null,null,0]
[null,null,null,null,null,null,null,null,null,null,null,null,null,null,null,null,null,null,0,null,null,null,null,null,null,null,null,null,null,null,null,0]
[null,null,null,null,null,null,null,null,null,null,null,null,null,null,null,null,null,null,0,null,null,null,null,null,null,null,null,null,null,null,null,0]
[null,null,null,null,null,null,null,null,null,null,null,null,null,null,null,null,null,null,0,null,null,null,null,null,null,null,null,null,null,null,null,0]
[null,null,null,null,null,null,null,null,null,null,null,null,null,null,null,null,null,null,0,null,null,null,null,null,null,null,null,null,null,null,null,0]
[null,null,null,null,null,null,null,null,null,null,null,null,null,null,null,null,null,null,0,null,null,null,null,null,null,null,null,null,null,null,null,0]
[null,null,null,null,null,null,null,null,null,null,null,null,null,null,null,null,null,null,0,null,null,null,null,null,null,null,null,null,null,null,null,0]
[null,null,null,null,null,null,null,null,null,null,null,null,null,null,null,null,null,null,0,null,null,null,null,null,null,null,null,null,null,null,null,0]
[null,null,null,null,null,null,null,null,null,null,null,null,null,null,null,null,null,null,0,null,null,null,null,null,null,null,null,null,null,null,null,0]
[null,null,null,null,null,null,null,null,null,null,null,null,null,null,null,null,null,null,0,null,null,null,null,null,null,null,null,null,null,null,null,0]
[null,null,null,null,null,null,null,null,null,null,null,null,null,null,null,null,null,null,0,null,null,null,null,null,null,null,null,null,null,null,null,0]
[null,null,null,null,null,null,null,null,null,null,null,null,null,null,null,null,null,null,0,null,null,null,null,null,null,null,null,null,null,null,null,0]
[null,null,null,null,null,null,null,null,null,null,null,null,null,null,null,null,null,null,0,null,null,null,null,null,null,null,null,null,null,null,null,0]
[null,null,null,null,null,null,null,null,null,null,null,null,null,null,null,null,null,null,0,null,null,null,null,null,null,null,null,null,null,null,null,0]
[null,null,null,null,null,null,null,null,null,null,null,null,null,null,null,null,null,null,0,null,null,null,null,null,null,null,null,null,null,null,null,0]
[null,null,null,null,null,null,null,null,null,null,null,null,null,null,null,null,null,null,{"$f":"O1825+P1825+Q1825+R1825","v":0},null,null,null,null,null,null,null,null,null,null,null,null,{"$f":"AB1825+AC1825+AD1825+AE1825","v":0}]
[null,null,null,null,null,null,null,null,null,null,null,null,null,null,null,null,null,null,0,null,null,null,null,null,null,null,null,null,null,null,null,0]
[null,null,null,null,null,null,null,null,null,null,null,null,null,null,null,null,null,null,0,null,null,null,null,null,null,null,null,null,null,null,null,0]
[null,null,null,null,null,null,null,null,null,null,null,null,null,null,null,null,null,null,0,null,null,null,null,null,null,null,null,null,null,null,null,0]
[null,null,null,null,null,null,null,null,null,null,null,null,null,null,null,null,null,null,0,null,null,null,null,null,null,null,null,null,null,null,null,0]
[null,null,null,null,null,null,null,null,null,null,null,null,null,null,null,null,null,null,0,null,null,null,null,null,null,null,null,null,null,null,null,0]
[null,null,null,null,null,null,null,null,null,null,null,null,null,null,null,null,null,null,0,null,null,null,null,null,null,null,null,null,null,null,null,0]
[null,null,null,null,null,null,null,null,null,null,null,null,null,null,null,null,null,null,0,null,null,null,null,null,null,null,null,null,null,null,null,0]
[null,null,null,null,null,null,null,null,null,null,null,null,null,null,null,null,null,null,0,null,null,null,null,null,null,null,null,null,null,null,null,0]
[null,null,null,null,null,null,null,null,null,null,null,null,null,null,null,null,null,null,0,null,null,null,null,null,null,null,null,null,null,null,null,0]
[null,null,null,null,null,null,null,null,null,null,null,null,null,null,null,null,null,null,0,null,null,null,null,null,null,null,null,null,null,null,null,0]
[null,null,null,null,null,null,null,null,null,null,null,null,null,null,null,null,null,null,0,null,null,null,null,null,null,null,null,null,null,null,null,0]
[null,null,null,null,null,null,null,null,null,null,null,null,null,null,null,null,null,null,0,null,null,null,null,null,null,null,null,null,null,null,null,0]
[null,null,null,null,null,null,null,null,null,null,null,null,null,null,null,null,null,null,0,null,null,null,null,null,null,null,null,null,null,null,null,0]
[null,null,null,null,null,null,null,null,null,null,null,null,null,null,null,null,null,null,0,null,null,null,null,null,null,null,null,null,null,null,null,0]
[null,null,null,null,null,null,null,null,null,null,null,null,null,null,null,null,null,null,0,null,null,null,null,null,null,null,null,null,null,null,null,0]
[null,null,null,null,null,null,null,null,null,null,null,null,null,null,null,null,null,null,0,null,null,null,null,null,null,null,null,null,null,null,null,0]
[null,null,null,null,null,null,null,null,null,null,null,null,null,null,null,null,null,null,0,null,null,null,null,null,null,null,null,null,null,null,null,0]
[null,null,null,null,null,null,null,null,null,null,null,null,null,null,null,null,null,null,0,null,null,null,null,null,null,null,null,null,null,null,null,0]
[null,null,null,null,null,null,null,null,null,null,null,null,null,null,null,null,null,null,0,null,null,null,null,null,null,null,null,null,null,null,null,0]
[null,null,null,null,null,null,null,null,null,null,null,null,null,null,null,null,null,null,0,null,null,null,null,null,null,null,null,null,null,null,null,0]
[null,null,null,null,null,null,null,null,null,null,null,null,null,null,null,null,null,null,0,null,null,null,null,null,null,null,null,null,null,null,null,0]
[null,null,null,null,null,null,null,null,null,null,null,null,null,null,null,null,null,null,0,null,null,null,null,null,null,null,null,null,null,null,null,0]
[null,null,null,null,null,null,null,null,null,null,null,null,null,null,null,null,null,null,0,null,null,null,null,null,null,null,null,null,null,null,null,0]
[null,null,null,null,null,null,null,null,null,null,null,null,null,null,null,null,null,null,0,null,null,null,null,null,null,null,null,null,null,null,null,0]
[null,null,null,null,null,null,null,null,null,null,null,null,null,null,null,null,null,null,0,null,null,null,null,null,null,null,null,null,null,null,null,0]
[null,null,null,null,null,null,null,null,null,null,null,null,null,null,null,null,null,null,0,null,null,null,null,null,null,null,null,null,null,null,null,0]
[null,null,null,null,null,null,null,null,null,null,null,null,null,null,null,null,null,null,0,null,null,null,null,null,null,null,null,null,null,null,null,0]
[null,null,null,null,null,null,null,null,null,null,null,null,null,null,null,null,null,null,0,null,null,null,null,null,null,null,null,null,null,null,null,0]
[null,null,null,null,null,null,null,null,null,null,null,null,null,null,null,null,null,null,0,null,null,null,null,null,null,null,null,null,null,null,null,0]
[null,null,null,null,null,null,null,null,null,null,null,null,null,null,null,null,null,null,0,null,null,null,null,null,null,null,null,null,null,null,null,0]
[null,null,null,null,null,null,null,null,null,null,null,null,null,null,null,null,null,null,0,null,null,null,null,null,null,null,null,null,null,null,null,0]
[null,null,null,null,null,null,null,null,null,null,null,null,null,null,null,null,null,null,0,null,null,null,null,null,null,null,null,null,null,null,null,0]
[null,null,null,null,null,null,null,null,null,null,null,null,null,null,null,null,null,null,0,null,null,null,null,null,null,null,null,null,null,null,null,0]
[null,null,null,null,null,null,null,null,null,null,null,null,null,null,null,null,null,null,0,null,null,null,null,null,null,null,null,null,null,null,null,0]
[null,null,null,null,null,null,null,null,null,null,null,null,null,null,null,null,null,null,0,null,null,null,null,null,null,null,null,null,null,null,null,0]
[null,null,null,null,null,null,null,null,null,null,null,null,null,null,null,null,null,null,0,null,null,null,null,null,null,null,null,null,null,null,null,0]
[null,null,null,null,null,null,null,null,null,null,null,null,null,null,null,null,null,null,0,null,null,null,null,null,null,null,null,null,null,null,null,0]
[null,null,null,null,null,null,null,null,null,null,null,null,null,null,null,null,null,null,0,null,null,null,null,null,null,null,null,null,null,null,null,0]
[null,null,null,null,null,null,null,null,null,null,null,null,null,null,null,null,null,null,0,null,null,null,null,null,null,null,null,null,null,null,null,0]
[null,null,null,null,null,null,null,null,null,null,null,null,null,null,null,null,null,null,0,null,null,null,null,null,null,null,null,null,null,null,null,0]
[null,null,null,null,null,null,null,null,null,null,null,null,null,null,null,null,null,null,0,null,null,null,null,null,null,null,null,null,null,null,null,0]
[null,null,null,null,null,null,null,null,null,null,null,null,null,null,null,null,null,null,0,null,null,null,null,null,null,null,null,null,null,null,null,0]
[null,null,null,null,null,null,null,null,null,null,null,null,null,null,null,null,null,null,0,null,null,null,null,null,null,null,null,null,null,null,null,0]
[null,null,null,null,null,null,null,null,null,null,null,null,null,null,null,null,null,null,0,null,null,null,null,null,null,null,null,null,null,null,null,0]
[null,null,null,null,null,null,null,null,null,null,null,null,null,null,null,null,null,null,0,null,null,null,null,null,null,null,null,null,null,null,null,0]
[null,null,null,null,null,null,null,null,null,null,null,null,null,null,null,null,null,null,0,null,null,null,null,null,null,null,null,null,null,null,null,0]
[null,null,null,null,null,null,null,null,null,null,null,null,null,null,null,null,null,null,0,null,null,null,null,null,null,null,null,null,null,null,null,0]
[null,null,null,null,null,null,null,null,null,null,null,null,null,null,null,null,null,null,0,null,null,null,null,null,null,null,null,null,null,null,null,0]
[null,null,null,null,null,null,null,null,null,null,null,null,null,null,null,null,null,null,0,null,null,null,null,null,null,null,null,null,null,null,null,0]
[null,null,null,null,null,null,null,null,null,null,null,null,null,null,null,null,null,null,0,null,null,null,null,null,null,null,null,null,null,null,null,0]
[null,null,null,null,null,null,null,null,null,null,null,null,null,null,null,null,null,null,0,null,null,null,null,null,null,null,null,null,null,null,null,0]
[null,null,null,null,null,null,null,null,null,null,null,null,null,null,null,null,null,null,0,null,null,null,null,null,null,null,null,null,null,null,null,0]
[null,null,null,null,null,null,null,null,null,null,null,null,null,null,null,null,null,null,0,null,null,null,null,null,null,null,null,null,null,null,null,0]
[null,null,null,null,null,null,null,null,null,null,null,null,null,null,null,null,null,null,0,null,null,null,null,null,null,null,null,null,null,null,null,0]
[null,null,null,null,null,null,null,null,null,null,null,null,null,null,null,null,null,null,0,null,null,null,null,null,null,null,null,null,null,null,null,0]
[null,null,null,null,null,null,null,null,null,null,null,null,null,null,null,null,null,null,0,null,null,null,null,null,null,null,null,null,null,null,null,0]
[null,null,null,null,null,null,null,null,null,null,null,null,null,null,null,null,null,null,0,null,null,null,null,null,null,null,null,null,null,null,null,0]
[null,null,null,null,null,null,null,null,null,null,null,null,null,null,null,null,null,null,0,null,null,null,null,null,null,null,null,null,null,null,null,0]
[null,null,null,null,null,null,null,null,null,null,null,null,null,null,null,null,null,null,0,null,null,null,null,null,null,null,null,null,null,null,null,0]
[null,null,null,null,null,null,null,null,null,null,null,null,null,null,null,null,null,null,0,null,null,null,null,null,null,null,null,null,null,null,null,0]
[null,null,null,null,null,null,null,null,null,null,null,null,null,null,null,null,null,null,0,null,null,null,null,null,null,null,null,null,null,null,null,0]
[null,null,null,null,null,null,null,null,null,null,null,null,null,null,null,null,null,null,0,null,null,null,null,null,null,null,null,null,null,null,null,0]
[null,null,null,null,null,null,null,null,null,null,null,null,null,null,null,null,null,null,0,null,null,null,null,null,null,null,null,null,null,null,null,0]
[null,null,null,null,null,null,null,null,null,null,null,null,null,null,null,null,null,null,{"$f":"O1889+P1889+Q1889+R1889","v":0},null,null,null,null,null,null,null,null,null,null,null,null,{"$f":"AB1889+AC1889+AD1889+AE1889","v":0}]
[null,null,null,null,null,null,null,null,null,null,null,null,null,null,null,null,null,null,0,null,null,null,null,null,null,null,null,null,null,null,null,0]
[null,null,null,null,null,null,null,null,null,null,null,null,null,null,null,null,null,null,0,null,null,null,null,null,null,null,null,null,null,null,null,0]
[null,null,null,null,null,null,null,null,null,null,null,null,null,null,null,null,null,null,0,null,null,null,null,null,null,null,null,null,null,null,null,0]
[null,null,null,null,null,null,null,null,null,null,null,null,null,null,null,null,null,null,0,null,null,null,null,null,null,null,null,null,null,null,null,0]
[null,null,null,null,null,null,null,null,null,null,null,null,null,null,null,null,null,null,0,null,null,null,null,null,null,null,null,null,null,null,null,0]
[null,null,null,null,null,null,null,null,null,null,null,null,null,null,null,null,null,null,0,null,null,null,null,null,null,null,null,null,null,null,null,0]
[null,null,null,null,null,null,null,null,null,null,null,null,null,null,null,null,null,null,0,null,null,null,null,null,null,null,null,null,null,null,null,0]
[null,null,null,null,null,null,null,null,null,null,null,null,null,null,null,null,null,null,0,null,null,null,null,null,null,null,null,null,null,null,null,0]
[null,null,null,null,null,null,null,null,null,null,null,null,null,null,null,null,null,null,0,null,null,null,null,null,null,null,null,null,null,null,null,0]
[null,null,null,null,null,null,null,null,null,null,null,null,null,null,null,null,null,null,0,null,null,null,null,null,null,null,null,null,null,null,null,0]
[null,null,null,null,null,null,null,null,null,null,null,null,null,null,null,null,null,null,0,null,null,null,null,null,null,null,null,null,null,null,null,0]
[null,null,null,null,null,null,null,null,null,null,null,null,null,null,null,null,null,null,0,null,null,null,null,null,null,null,null,null,null,null,null,0]
[null,null,null,null,null,null,null,null,null,null,null,null,null,null,null,null,null,null,0,null,null,null,null,null,null,null,null,null,null,null,null,0]
[null,null,null,null,null,null,null,null,null,null,null,null,null,null,null,null,null,null,0,null,null,null,null,null,null,null,null,null,null,null,null,0]
[null,null,null,null,null,null,null,null,null,null,null,null,null,null,null,null,null,null,0,null,null,null,null,null,null,null,null,null,null,null,null,0]
[null,null,null,null,null,null,null,null,null,null,null,null,null,null,null,null,null,null,0,null,null,null,null,null,null,null,null,null,null,null,null,0]
[null,null,null,null,null,null,null,null,null,null,null,null,null,null,null,null,null,null,0,null,null,null,null,null,null,null,null,null,null,null,null,0]
[null,null,null,null,null,null,null,null,null,null,null,null,null,null,null,null,null,null,0,null,null,null,null,null,null,null,null,null,null,null,null,0]
[null,null,null,null,null,null,null,null,null,null,null,null,null,null,null,null,null,null,0,null,null,null,null,null,null,null,null,null,null,null,null,0]
[null,null,null,null,null,null,null,null,null,null,null,null,null,null,null,null,null,null,0,null,null,null,null,null,null,null,null,null,null,null,null,0]
[null,null,null,null,null,null,null,null,null,null,null,null,null,null,null,null,null,null,0,null,null,null,null,null,null,null,null,null,null,null,null,0]
[null,null,null,null,null,null,null,null,null,null,null,null,null,null,null,null,null,null,0,null,null,null,null,null,null,null,null,null,null,null,null,0]
[null,null,null,null,null,null,null,null,null,null,null,null,null,null,null,null,null,null,0,null,null,null,null,null,null,null,null,null,null,null,null,0]
[null,null,null,null,null,null,null,null,null,null,null,null,null,null,null,null,null,null,0,null,null,null,null,null,null,null,null,null,null,null,null,0]
[null,null,null,null,null,null,null,null,null,null,null,null,null,null,null,null,null,null,0,null,null,null,null,null,null,null,null,null,null,null,null,0]
[null,null,null,null,null,null,null,null,null,null,null,null,null,null,null,null,null,null,0,null,null,null,null,null,null,null,null,null,null,null,null,0]
[null,null,null,null,null,null,null,null,null,null,null,null,null,null,null,null,null,null,0,null,null,null,null,null,null,null,null,null,null,null,null,0]
[null,null,null,null,null,null,null,null,null,null,null,null,null,null,null,null,null,null,0,null,null,null,null,null,null,null,null,null,null,null,null,0]
[null,null,null,null,null,null,null,null,null,null,null,null,null,null,null,null,null,null,0,null,null,null,null,null,null,null,null,null,null,null,null,0]
[null,null,null,null,null,null,null,null,null,null,null,null,null,null,null,null,null,null,0,null,null,null,null,null,null,null,null,null,null,null,null,0]
[null,null,null,null,null,null,null,null,null,null,null,null,null,null,null,null,null,null,0,null,null,null,null,null,null,null,null,null,null,null,null,0]
[null,null,null,null,null,null,null,null,null,null,null,null,null,null,null,null,null,null,0,null,null,null,null,null,null,null,null,null,null,null,null,0]
[null,null,null,null,null,null,null,null,null,null,null,null,null,null,null,null,null,null,0,null,null,null,null,null,null,null,null,null,null,null,null,0]
[null,null,null,null,null,null,null,null,null,null,null,null,null,null,null,null,null,null,0,null,null,null,null,null,null,null,null,null,null,null,null,0]
[null,null,null,null,null,null,null,null,null,null,null,null,null,null,null,null,null,null,0,null,null,null,null,null,null,null,null,null,null,null,null,0]
[null,null,null,null,null,null,null,null,null,null,null,null,null,null,null,null,null,null,0,null,null,null,null,null,null,null,null,null,null,null,null,0]
[null,null,null,null,null,null,null,null,null,null,null,null,null,null,null,null,null,null,0,null,null,null,null,null,null,null,null,null,null,null,null,0]
[null,null,null,null,null,null,null,null,null,null,null,null,null,null,null,null,null,null,0,null,null,null,null,null,null,null,null,null,null,null,null,0]
[null,null,null,null,null,null,null,null,null,null,null,null,null,null,null,null,null,null,0,null,null,null,null,null,null,null,null,null,null,null,null,0]
[null,null,null,null,null,null,null,null,null,null,null,null,null,null,null,null,null,null,0,null,null,null,null,null,null,null,null,null,null,null,null,0]
[null,null,null,null,null,null,null,null,null,null,null,null,null,null,null,null,null,null,0,null,null,null,null,null,null,null,null,null,null,null,null,0]
[null,null,null,null,null,null,null,null,null,null,null,null,null,null,null,null,null,null,0,null,null,null,null,null,null,null,null,null,null,null,null,0]
[null,null,null,null,null,null,null,null,null,null,null,null,null,null,null,null,null,null,0,null,null,null,null,null,null,null,null,null,null,null,null,0]
[null,null,null,null,null,null,null,null,null,null,null,null,null,null,null,null,null,null,0,null,null,null,null,null,null,null,null,null,null,null,null,0]
[null,null,null,null,null,null,null,null,null,null,null,null,null,null,null,null,null,null,0,null,null,null,null,null,null,null,null,null,null,null,null,0]
[null,null,null,null,null,null,null,null,null,null,null,null,null,null,null,null,null,null,0,null,null,null,null,null,null,null,null,null,null,null,null,0]
[null,null,null,null,null,null,null,null,null,null,null,null,null,null,null,null,null,null,0,null,null,null,null,null,null,null,null,null,null,null,null,0]
[null,null,null,null,null,null,null,null,null,null,null,null,null,null,null,null,null,null,0,null,null,null,null,null,null,null,null,null,null,null,null,0]
[null,null,null,null,null,null,null,null,null,null,null,null,null,null,null,null,null,null,0,null,null,null,null,null,null,null,null,null,null,null,null,0]
[null,null,null,null,null,null,null,null,null,null,null,null,null,null,null,null,null,null,0,null,null,null,null,null,null,null,null,null,null,null,null,0]
[null,null,null,null,null,null,null,null,null,null,null,null,null,null,null,null,null,null,0,null,null,null,null,null,null,null,null,null,null,null,null,0]
[null,null,null,null,null,null,null,null,null,null,null,null,null,null,null,null,null,null,0,null,null,null,null,null,null,null,null,null,null,null,null,0]
[null,null,null,null,null,null,null,null,null,null,null,null,null,null,null,null,null,null,0,null,null,null,null,null,null,null,null,null,null,null,null,0]
[null,null,null,null,null,null,null,null,null,null,null,null,null,null,null,null,null,null,0,null,null,null,null,null,null,null,null,null,null,null,null,0]
[null,null,null,null,null,null,null,null,null,null,null,null,null,null,null,null,null,null,0,null,null,null,null,null,null,null,null,null,null,null,null,0]
[null,null,null,null,null,null,null,null,null,null,null,null,null,null,null,null,null,null,0,null,null,null,null,null,null,null,null,null,null,null,null,0]
[null,null,null,null,null,null,null,null,null,null,null,null,null,null,null,null,null,null,0,null,null,null,null,null,null,null,null,null,null,null,null,0]
[null,null,null,null,null,null,null,null,null,null,null,null,null,null,null,null,null,null,0,null,null,null,null,null,null,null,null,null,null,null,null,0]
[null,null,null,null,null,null,null,null,null,null,null,null,null,null,null,null,null,null,0,null,null,null,null,null,null,null,null,null,null,null,null,0]
[null,null,null,null,null,null,null,null,null,null,null,null,null,null,null,null,null,null,0,null,null,null,null,null,null,null,null,null,null,null,null,0]
[null,null,null,null,null,null,null,null,null,null,null,null,null,null,null,null,null,null,0,null,null,null,null,null,null,null,null,null,null,null,null,0]
[null,null,null,null,null,null,null,null,null,null,null,null,null,null,null,null,null,null,0,null,null,null,null,null,null,null,null,null,null,null,null,0]
[null,null,null,null,null,null,null,null,null,null,null,null,null,null,null,null,null,null,0,null,null,null,null,null,null,null,null,null,null,null,null,0]
[null,null,null,null,null,null,null,null,null,null,null,null,null,null,null,null,null,null,{"$f":"O1953+P1953+Q1953+R1953","v":0},null,null,null,null,null,null,null,null,null,null,null,null,{"$f":"AB1953+AC1953+AD1953+AE1953","v":0}]
[null,null,null,null,null,null,null,null,null,null,null,null,null,null,null,null,null,null,0,null,null,null,null,null,null,null,null,null,null,null,null,0]
[null,null,null,null,null,null,null,null,null,null,null,null,null,null,null,null,null,null,0,null,null,null,null,null,null,null,null,null,null,null,null,0]
[null,null,null,null,null,null,null,null,null,null,null,null,null,null,null,null,null,null,0,null,null,null,null,null,null,null,null,null,null,null,null,0]
[null,null,null,null,null,null,null,null,null,null,null,null,null,null,null,null,null,null,0,null,null,null,null,null,null,null,null,null,null,null,null,0]
[null,null,null,null,null,null,null,null,null,null,null,null,null,null,null,null,null,null,0,null,null,null,null,null,null,null,null,null,null,null,null,0]
[null,null,null,null,null,null,null,null,null,null,null,null,null,null,null,null,null,null,0,null,null,null,null,null,null,null,null,null,null,null,null,0]
[null,null,null,null,null,null,null,null,null,null,null,null,null,null,null,null,null,null,0,null,null,null,null,null,null,null,null,null,null,null,null,0]